Workbook

Sheet Présentaion
B3: Outil de pré-dimensionnement : | F3: Prédimaxe
A5: But de l'outil : | E5: Pré-dimensionnement pour l'empilage axial d'un rotor de turbopompe
A7: Utilisation de la méthode dans le cadre de : | E7: Pré-dimensionnement
A9: Contact en cas de questions : | E9: FLTTM
A11: Principe d'utilisation :
A13: 1 - Indiquer dans la cellule le nombre de frettage que comporte l'empilage et appuyer sur "entrée".
A14: 2 - Cliquer sur le bouton "Démarrer étude", le nombre de tableaux de définition des pièces se mettra à jour automatiquement.
A15: 3 - Renseigner les données géométriques et matériaux dans les cellules vertes pour les frettages mâles et femelles.
A16: Il faut noter que une pièce peut avoir avoir plusieurs frettages. Il faut définir la pièce autant de fois qu'elle comporte de frettage.
A17: Des informations complémentaires pour le "Type de pèce" sont disponibles dans l'onglet "Type_piece"
A18: De plus, vous pouvez ajouter un matériau supplémentaire au besoin. Dans ce cas veuillez vous reporter à l'onglet "Matériaux".
A20: 4 - A noter que pour l'effet de fond, la cellule n'est à remplir que si le type de pièce est différent du type "Profil cylindrique"
A21: Pour l'effet de fond, préciser son action bénéfique (négatif) ou antagoniste (positif).
A23: 5 - Renseigner les valeurs lié à la variation de diamètre. On considèrera la "Distance au plan grand diamètre" comme étant la distance entre le bord du frette et le plan moyen du grand diamètre. On prendra en compte seulement la partie pleine. On renseignera également le plus grand diamètre.
A27: 6 - Renseigner les données système (cellules vertes uniquement).
A29: Les calculs seront automatique et la récupération des résultats est immédiate.
A49: Nota :
A51: - La modification du nom sera automatique sur les tableaux de résultats du même frettage.
A52: - On retrouvera les résultats relatifs au déformations et contraintes dans l'onglet "Empilage" ainsi que les résultats liés aux efforts d'emmanchement.
A53: - Pour le détails de chaque effets par frettage, rendez-vous dans l'onglet "Details_des_effets".
A54: - Pour un nouveau calcul au même nombre de frettage, vous pouvez sauter l'étape 1 et 2.
A56: !! Attention, en dehors des cellules vertes, ne rien modifier !!
A60: Pour plus de détails :

Sheet Empilage
A1: Outil de prédimensionnement empilage rotor
B4: Nombre de couple sur l'empilage : | D4: 10
B6: Les cellules vertes sont à renseigner par l'utilisateur.
B7: Les autres cellules ne doivent pas être modifiées!
B9: Définition matériaux, propriétés et géomètries des pièces mâles et femelles
B11: Nom : | C11: Pièce mâle | F11: Nom : | G11: Pièce mâle | J11: Nom : | K11: Pièce mâle | N11: Nom : | O11: Pièce mâle | R11: Nom : | S11: Pièce mâle | V11: Nom : | W11: Pièce mâle | Z11: Nom : | AA11: Pièce mâle | AD11: Nom : | AE11: Pièce mâle | AH11: Nom : | AI11: Pièce mâle | AL11: Nom : | AM11: Pièce mâle
B12: Matière : | C12: 3 - Inconel 718 | F12: Matière : | G12: 3 - Inconel 718 | J12: Matière : | K12: 3 - Inconel 718 | N12: Matière : | O12: 3 - Inconel 718 | R12: Matière : | S12: 3 - Inconel 718 | V12: Matière : | W12: 3 - Inconel 718 | Z12: Matière : | AA12: 3 - Inconel 718 | AD12: Matière : | AE12: 3 - Inconel 718 | AH12: Matière : | AI12: 3 - Inconel 718 | AL12: Matière : | AM12: 3 - Inconel 718
B13: L zone | C13: 52.700 | D13: mm | F13: L zone | G13: 52.700 | H13: mm | J13: L zone | K13: 52.700 | L13: mm | N13: L zone | O13: 52.700 | P13: mm | R13: L zone | S13: 52.700 | T13: mm | V13: L zone | W13: 52.700 | X13: mm | Z13: L zone | AA13: 52.700 | AB13: mm | AD13: L zone | AE13: 52.700 | AF13: mm | AH13: L zone | AI13: 52.700 | AJ13: mm | AL13: L zone | AM13: 52.700 | AN13: mm
B14: L frette | C14: 0.000 | D14: mm | F14: L frette | G14: 0.000 | H14: mm | J14: L frette | K14: 0.000 | L14: mm | N14: L frette | O14: 0.000 | P14: mm | R14: L frette | S14: 0.000 | T14: mm | V14: L frette | W14: 0.000 | X14: mm | Z14: L frette | AA14: 0.000 | AB14: mm | AD14: L frette | AE14: 0.000 | AF14: mm | AH14: L frette | AI14: 0.000 | AJ14: mm | AL14: L frette | AM14: 0.000 | AN14: mm
B15: Dext | C15: 25.000 | D15: mm | F15: Dext | G15: 25.000 | H15: mm | J15: Dext | K15: 25.000 | L15: mm | N15: Dext | O15: 25.000 | P15: mm | R15: Dext | S15: 25.000 | T15: mm | V15: Dext | W15: 25.000 | X15: mm | Z15: Dext | AA15: 25.000 | AB15: mm | AD15: Dext | AE15: 25.000 | AF15: mm | AH15: Dext | AI15: 25.000 | AJ15: mm | AL15: Dext | AM15: 25.000 | AN15: mm
B16: dint | C16: 0.000 | D16: mm | F16: dint | G16: 0.000 | H16: mm | J16: dint | K16: 0.000 | L16: mm | N16: dint | O16: 0.000 | P16: mm | R16: dint | S16: 0.000 | T16: mm | V16: dint | W16: 0.000 | X16: mm | Z16: dint | AA16: 0.000 | AB16: mm | AD16: dint | AE16: 0.000 | AF16: mm | AH16: dint | AI16: 0.000 | AJ16: mm | AL16: dint | AM16: 0.000 | AN16: mm
B17: Diamètre de calcul | C17: 20.000 | D17: mm | F17: Diamètre de calcul | G17: 20.000 | H17: mm | J17: Diamètre de calcul | K17: 20.000 | L17: mm | N17: Diamètre de calcul | O17: 20.000 | P17: mm | R17: Diamètre de calcul | S17: 20.000 | T17: mm | V17: Diamètre de calcul | W17: 20.000 | X17: mm | Z17: Diamètre de calcul | AA17: 20.000 | AB17: mm | AD17: Diamètre de calcul | AE17: 20.000 | AF17: mm | AH17: Diamètre de calcul | AI17: 20.000 | AJ17: mm | AL17: Diamètre de calcul | AM17: 20.000 | AN17: mm
B18: Young Montage | C18: =VLOOKUP(C12,Matériaux!$C$4:$T$15,6) -> 20675 | D18: daN/mm2 | F18: Young Montage | G18: =VLOOKUP(G12,Matériaux!$C$4:$T$15,6) -> 20675 | H18: daN/mm2 | J18: Young Montage | K18: =VLOOKUP(K12,Matériaux!$C$4:$T$15,6) -> 20675 | L18: daN/mm2 | N18: Young Montage | O18: =VLOOKUP(O12,Matériaux!$C$4:$T$15,6) -> 20675 | P18: daN/mm2 | R18: Young Montage | S18: =VLOOKUP(S12,Matériaux!$C$4:$T$15,6) -> 20675 | T18: daN/mm2 | V18: Young Montage | W18: =VLOOKUP(W12,Matériaux!$C$4:$T$15,6) -> 20675 | X18: daN/mm2 | Z18: Young Montage | AA18: =VLOOKUP(AA12,Matériaux!$C$4:$T$15,6) -> 20675 | AB18: daN/mm2 | AD18: Young Montage | AE18: =VLOOKUP(AE12,Matériaux!$C$4:$T$15,6) -> 20675 | AF18: daN/mm2 | AH18: Young Montage | AI18: =VLOOKUP(AI12,Matériaux!$C$4:$T$15,6) -> 20675 | AJ18: daN/mm2 | AL18: Young Montage | AM18: =VLOOKUP(AM12,Matériaux!$C$4:$T$15,6) -> 20675 | AN18: daN/mm2
B19: Youg MeF | C19: =VLOOKUP(C12,Matériaux!$C$4:$T$15,7) -> 22036 | D19: daN/mm2 | F19: Youg MeF | G19: =VLOOKUP(G12,Matériaux!$C$4:$T$15,7) -> 22036 | H19: daN/mm2 | J19: Youg MeF | K19: =VLOOKUP(K12,Matériaux!$C$4:$T$15,7) -> 22036 | L19: daN/mm2 | N19: Youg MeF | O19: =VLOOKUP(O12,Matériaux!$C$4:$T$15,7) -> 22036 | P19: daN/mm2 | R19: Youg MeF | S19: =VLOOKUP(S12,Matériaux!$C$4:$T$15,7) -> 22036 | T19: daN/mm2 | V19: Youg MeF | W19: =VLOOKUP(W12,Matériaux!$C$4:$T$15,7) -> 22036 | X19: daN/mm2 | Z19: Youg MeF | AA19: =VLOOKUP(AA12,Matériaux!$C$4:$T$15,7) -> 22036 | AB19: daN/mm2 | AD19: Youg MeF | AE19: =VLOOKUP(AE12,Matériaux!$C$4:$T$15,7) -> 22036 | AF19: daN/mm2 | AH19: Youg MeF | AI19: =VLOOKUP(AI12,Matériaux!$C$4:$T$15,7) -> 22036 | AJ19: daN/mm2 | AL19: Youg MeF | AM19: =VLOOKUP(AM12,Matériaux!$C$4:$T$15,7) -> 22036 | AN19: daN/mm2
B20: Young fonctionnement | C20: =VLOOKUP(C12,Matériaux!$C$4:$T$15,8) -> 21715 | D20: daN/mm2 | F20: Young fonctionnement | G20: =VLOOKUP(G12,Matériaux!$C$4:$T$15,8) -> 21715 | H20: daN/mm2 | J20: Young fonctionnement | K20: =VLOOKUP(K12,Matériaux!$C$4:$T$15,8) -> 21715 | L20: daN/mm2 | N20: Young fonctionnement | O20: =VLOOKUP(O12,Matériaux!$C$4:$T$15,8) -> 21715 | P20: daN/mm2 | R20: Young fonctionnement | S20: =VLOOKUP(S12,Matériaux!$C$4:$T$15,8) -> 21715 | T20: daN/mm2 | V20: Young fonctionnement | W20: =VLOOKUP(W12,Matériaux!$C$4:$T$15,8) -> 21715 | X20: daN/mm2 | Z20: Young fonctionnement | AA20: =VLOOKUP(AA12,Matériaux!$C$4:$T$15,8) -> 21715 | AB20: daN/mm2 | AD20: Young fonctionnement | AE20: =VLOOKUP(AE12,Matériaux!$C$4:$T$15,8) -> 21715 | AF20: daN/mm2 | AH20: Young fonctionnement | AI20: =VLOOKUP(AI12,Matériaux!$C$4:$T$15,8) -> 21715 | AJ20: daN/mm2 | AL20: Young fonctionnement | AM20: =VLOOKUP(AM12,Matériaux!$C$4:$T$15,8) -> 21715 | AN20: daN/mm2
B21: S | C21: =(PI()/4*((C15)-(C16)))^2 -> 385.531 | D21: mm2 | F21: S | G21: =(PI()/4*((G15)-(G16)))^2 -> 385.531 | H21: mm2 | J21: S | K21: =(PI()/4*((K15)-(K16)))^2 -> 385.531 | L21: mm2 | N21: S | O21: =(PI()/4*((O15)-(O16)))^2 -> 385.531 | P21: mm2 | R21: S | S21: =(PI()/4*((S15)-(S16)))^2 -> 385.531 | T21: mm2 | V21: S | W21: =(PI()/4*((W15)-(W16)))^2 -> 385.531 | X21: mm2 | Z21: S | AA21: =(PI()/4*((AA15)-(AA16)))^2 -> 385.531 | AB21: mm2 | AD21: S | AE21: =(PI()/4*((AE15)-(AE16)))^2 -> 385.531 | AF21: mm2 | AH21: S | AI21: =(PI()/4*((AI15)-(AI16)))^2 -> 385.531 | AJ21: mm2 | AL21: S | AM21: =(PI()/4*((AM15)-(AM16)))^2 -> 385.531 | AN21: mm2
B22: Kv (montage) | C22: =IFERROR(C21*C18/C13,0) -> 1.512E+05 | D22: daN/mm | F22: Kv (montage) | G22: =IFERROR(G21*G18/G13,0) -> 1.512E+05 | H22: daN/mm | J22: Kv (montage) | K22: =IFERROR(K21*K18/K13,0) -> 1.512E+05 | L22: daN/mm | N22: Kv (montage) | O22: =IFERROR(O21*O18/O13,0) -> 1.512E+05 | P22: daN/mm | R22: Kv (montage) | S22: =IFERROR(S21*S18/S13,0) -> 1.512E+05 | T22: daN/mm | V22: Kv (montage) | W22: =IFERROR(W21*W18/W13,0) -> 1.512E+05 | X22: daN/mm | Z22: Kv (montage) | AA22: =IFERROR(AA21*AA18/AA13,0) -> 1.512E+05 | AB22: daN/mm | AD22: Kv (montage) | AE22: =IFERROR(AE21*AE18/AE13,0) -> 1.512E+05 | AF22: daN/mm | AH22: Kv (montage) | AI22: =IFERROR(AI21*AI18/AI13,0) -> 1.512E+05 | AJ22: daN/mm | AL22: Kv (montage) | AM22: =IFERROR(AM21*AM18/AM13,0) -> 1.512E+05 | AN22: daN/mm
B23: Kv (MeF) | C23: =IFERROR(C21*C19/C13,0) -> 1.612E+05 | D23: daN/mm | F23: Kv (MeF) | G23: =IFERROR(G21*G19/G13,0) -> 1.612E+05 | H23: daN/mm | J23: Kv (MeF) | K23: =IFERROR(K21*K19/K13,0) -> 1.612E+05 | L23: daN/mm | N23: Kv (MeF) | O23: =IFERROR(O21*O19/O13,0) -> 1.612E+05 | P23: daN/mm | R23: Kv (MeF) | S23: =IFERROR(S21*S19/S13,0) -> 1.612E+05 | T23: daN/mm | V23: Kv (MeF) | W23: =IFERROR(W21*W19/W13,0) -> 1.612E+05 | X23: daN/mm | Z23: Kv (MeF) | AA23: =IFERROR(AA21*AA19/AA13,0) -> 1.612E+05 | AB23: daN/mm | AD23: Kv (MeF) | AE23: =IFERROR(AE21*AE19/AE13,0) -> 1.612E+05 | AF23: daN/mm | AH23: Kv (MeF) | AI23: =IFERROR(AI21*AI19/AI13,0) -> 1.612E+05 | AJ23: daN/mm | AL23: Kv (MeF) | AM23: =IFERROR(AM21*AM19/AM13,0) -> 1.612E+05 | AN23: daN/mm
B24: Kv (fonctionnement) | C24: =IFERROR(C21*C20/C13,0) -> 1.589E+05 | D24: daN/mm | F24: Kv (fonctionnement) | G24: =IFERROR(G21*G20/G13,0) -> 1.589E+05 | H24: daN/mm | J24: Kv (fonctionnement) | K24: =IFERROR(K21*K20/K13,0) -> 1.589E+05 | L24: daN/mm | N24: Kv (fonctionnement) | O24: =IFERROR(O21*O20/O13,0) -> 1.589E+05 | P24: daN/mm | R24: Kv (fonctionnement) | S24: =IFERROR(S21*S20/S13,0) -> 1.589E+05 | T24: daN/mm | V24: Kv (fonctionnement) | W24: =IFERROR(W21*W20/W13,0) -> 1.589E+05 | X24: daN/mm | Z24: Kv (fonctionnement) | AA24: =IFERROR(AA21*AA20/AA13,0) -> 1.589E+05 | AB24: daN/mm | AD24: Kv (fonctionnement) | AE24: =IFERROR(AE21*AE20/AE13,0) -> 1.589E+05 | AF24: daN/mm | AH24: Kv (fonctionnement) | AI24: =IFERROR(AI21*AI20/AI13,0) -> 1.589E+05 | AJ24: daN/mm | AL24: Kv (fonctionnement) | AM24: =IFERROR(AM21*AM20/AM13,0) -> 1.589E+05 | AN24: daN/mm
B25: ΔL/L MeF | C25: =VLOOKUP(C12,Matériaux!$C$4:$T$15,15) -> -249.6 | D25: *10^-5 | F25: ΔL/L MeF | G25: =VLOOKUP(G12,Matériaux!$C$4:$T$15,15) -> -249.6 | H25: *10^-5 | J25: ΔL/L MeF | K25: =VLOOKUP(K12,Matériaux!$C$4:$T$15,15) -> -249.6 | L25: *10^-5 | N25: ΔL/L MeF | O25: =VLOOKUP(O12,Matériaux!$C$4:$T$15,15) -> -249.6 | P25: *10^-5 | R25: ΔL/L MeF | S25: =VLOOKUP(S12,Matériaux!$C$4:$T$15,15) -> -249.6 | T25: *10^-5 | V25: ΔL/L MeF | W25: =VLOOKUP(W12,Matériaux!$C$4:$T$15,15) -> -249.6 | X25: *10^-5 | Z25: ΔL/L MeF | AA25: =VLOOKUP(AA12,Matériaux!$C$4:$T$15,15) -> -249.6 | AB25: *10^-5 | AD25: ΔL/L MeF | AE25: =VLOOKUP(AE12,Matériaux!$C$4:$T$15,15) -> -249.6 | AF25: *10^-5 | AH25: ΔL/L MeF | AI25: =VLOOKUP(AI12,Matériaux!$C$4:$T$15,15) -> -249.6 | AJ25: *10^-5 | AL25: ΔL/L MeF | AM25: =VLOOKUP(AM12,Matériaux!$C$4:$T$15,15) -> -249.6 | AN25: *10^-5
B26: ΔL/L Fonctionnement | C26: =VLOOKUP(C12,Matériaux!$C$4:$T$15,16) -> -200.6 | D26: *10^-5 | F26: ΔL/L Fonctionnement | G26: =VLOOKUP(G12,Matériaux!$C$4:$T$15,16) -> -200.6 | H26: *10^-5 | J26: ΔL/L Fonctionnement | K26: =VLOOKUP(K12,Matériaux!$C$4:$T$15,16) -> -200.6 | L26: *10^-5 | N26: ΔL/L Fonctionnement | O26: =VLOOKUP(O12,Matériaux!$C$4:$T$15,16) -> -200.6 | P26: *10^-5 | R26: ΔL/L Fonctionnement | S26: =VLOOKUP(S12,Matériaux!$C$4:$T$15,16) -> -200.6 | T26: *10^-5 | V26: ΔL/L Fonctionnement | W26: =VLOOKUP(W12,Matériaux!$C$4:$T$15,16) -> -200.6 | X26: *10^-5 | Z26: ΔL/L Fonctionnement | AA26: =VLOOKUP(AA12,Matériaux!$C$4:$T$15,16) -> -200.6 | AB26: *10^-5 | AD26: ΔL/L Fonctionnement | AE26: =VLOOKUP(AE12,Matériaux!$C$4:$T$15,16) -> -200.6 | AF26: *10^-5 | AH26: ΔL/L Fonctionnement | AI26: =VLOOKUP(AI12,Matériaux!$C$4:$T$15,16) -> -200.6 | AJ26: *10^-5 | AL26: ΔL/L Fonctionnement | AM26: =VLOOKUP(AM12,Matériaux!$C$4:$T$15,16) -> -200.6 | AN26: *10^-5
B27: ν | C27: =VLOOKUP(C12,Matériaux!$C$4:$T$15,17) -> 0.28 | D27: - | F27: ν | G27: =VLOOKUP(G12,Matériaux!$C$4:$T$15,17) -> 0.28 | H27: - | J27: ν | K27: =VLOOKUP(K12,Matériaux!$C$4:$T$15,17) -> 0.28 | L27: - | N27: ν | O27: =VLOOKUP(O12,Matériaux!$C$4:$T$15,17) -> 0.28 | P27: - | R27: ν | S27: =VLOOKUP(S12,Matériaux!$C$4:$T$15,17) -> 0.28 | T27: - | V27: ν | W27: =VLOOKUP(W12,Matériaux!$C$4:$T$15,17) -> 0.28 | X27: - | Z27: ν | AA27: =VLOOKUP(AA12,Matériaux!$C$4:$T$15,17) -> 0.28 | AB27: - | AD27: ν | AE27: =VLOOKUP(AE12,Matériaux!$C$4:$T$15,17) -> 0.28 | AF27: - | AH27: ν | AI27: =VLOOKUP(AI12,Matériaux!$C$4:$T$15,17) -> 0.28 | AJ27: - | AL27: ν | AM27: =VLOOKUP(AM12,Matériaux!$C$4:$T$15,17) -> 0.28 | AN27: -
B28: ρ | C28: =VLOOKUP(C12,Matériaux!$C$4:$T$15,18) -> 8260 | D28: kg/m3 | F28: ρ | G28: =VLOOKUP(G12,Matériaux!$C$4:$T$15,18) -> 8260 | H28: kg/m3 | J28: ρ | K28: =VLOOKUP(K12,Matériaux!$C$4:$T$15,18) -> 8260 | L28: kg/m3 | N28: ρ | O28: =VLOOKUP(O12,Matériaux!$C$4:$T$15,18) -> 8260 | P28: kg/m3 | R28: ρ | S28: =VLOOKUP(S12,Matériaux!$C$4:$T$15,18) -> 8260 | T28: kg/m3 | V28: ρ | W28: =VLOOKUP(W12,Matériaux!$C$4:$T$15,18) -> 8260 | X28: kg/m3 | Z28: ρ | AA28: =VLOOKUP(AA12,Matériaux!$C$4:$T$15,18) -> 8260 | AB28: kg/m3 | AD28: ρ | AE28: =VLOOKUP(AE12,Matériaux!$C$4:$T$15,18) -> 8260 | AF28: kg/m3 | AH28: ρ | AI28: =VLOOKUP(AI12,Matériaux!$C$4:$T$15,18) -> 8260 | AJ28: kg/m3 | AL28: ρ | AM28: =VLOOKUP(AM12,Matériaux!$C$4:$T$15,18) -> 8260 | AN28: kg/m3
B29: Frettage en def | C29: 170 | D29: microns | F29: Frettage en def | G29: 170 | H29: microns | J29: Frettage en def | K29: 170 | L29: microns | N29: Frettage en def | O29: 170 | P29: microns | R29: Frettage en def | S29: 170 | T29: microns | V29: Frettage en def | W29: 170 | X29: microns | Z29: Frettage en def | AA29: 170 | AB29: microns | AD29: Frettage en def | AE29: 170 | AF29: microns | AH29: Frettage en def | AI29: 170 | AJ29: microns | AL29: Frettage en def | AM29: 170 | AN29: microns
B31: Nom : | C31: Pièce femelle | F31: Nom : | G31: Pièce femelle | J31: Nom : | K31: Pièce femelle | N31: Nom : | O31: Pièce femelle | R31: Nom : | S31: Pièce femelle | V31: Nom : | W31: Pièce femelle | Z31: Nom : | AA31: Pièce femelle | AD31: Nom : | AE31: Pièce femelle | AH31: Nom : | AI31: Pièce femelle | AL31: Nom : | AM31: Pièce femelle
B32: Matière : | C32: 3 - Inconel 718 | F32: Matière : | G32: 3 - Inconel 718 | J32: Matière : | K32: 3 - Inconel 718 | N32: Matière : | O32: 3 - Inconel 718 | R32: Matière : | S32: 3 - Inconel 718 | V32: Matière : | W32: 3 - Inconel 718 | Z32: Matière : | AA32: 3 - Inconel 718 | AD32: Matière : | AE32: 3 - Inconel 718 | AH32: Matière : | AI32: 3 - Inconel 718 | AL32: Matière : | AM32: 3 - Inconel 718
B33: L zone | C33: 52.700 | D33: mm | F33: L zone | G33: 52.700 | H33: mm | J33: L zone | K33: 52.700 | L33: mm | N33: L zone | O33: 52.700 | P33: mm | R33: L zone | S33: 52.700 | T33: mm | V33: L zone | W33: 52.700 | X33: mm | Z33: L zone | AA33: 52.700 | AB33: mm | AD33: L zone | AE33: 52.700 | AF33: mm | AH33: L zone | AI33: 52.700 | AJ33: mm | AL33: L zone | AM33: 52.700 | AN33: mm
B34: L frette | C34: 0.000 | D34: mm | F34: L frette | G34: 0.000 | H34: mm | J34: L frette | K34: 0.000 | L34: mm | N34: L frette | O34: 0.000 | P34: mm | R34: L frette | S34: 0.000 | T34: mm | V34: L frette | W34: 0.000 | X34: mm | Z34: L frette | AA34: 0.000 | AB34: mm | AD34: L frette | AE34: 0.000 | AF34: mm | AH34: L frette | AI34: 0.000 | AJ34: mm | AL34: L frette | AM34: 0.000 | AN34: mm
B35: Dext | C35: 30.000 | D35: mm | F35: Dext | G35: 30.000 | H35: mm | J35: Dext | K35: 30.000 | L35: mm | N35: Dext | O35: 30.000 | P35: mm | R35: Dext | S35: 30.000 | T35: mm | V35: Dext | W35: 30.000 | X35: mm | Z35: Dext | AA35: 30.000 | AB35: mm | AD35: Dext | AE35: 30.000 | AF35: mm | AH35: Dext | AI35: 30.000 | AJ35: mm | AL35: Dext | AM35: 30.000 | AN35: mm
B36: dint | C36: 25.000 | D36: mm | F36: dint | G36: 25.000 | H36: mm | J36: dint | K36: 25.000 | L36: mm | N36: dint | O36: 25.000 | P36: mm | R36: dint | S36: 25.000 | T36: mm | V36: dint | W36: 25.000 | X36: mm | Z36: dint | AA36: 25.000 | AB36: mm | AD36: dint | AE36: 25.000 | AF36: mm | AH36: dint | AI36: 25.000 | AJ36: mm | AL36: dint | AM36: 25.000 | AN36: mm
B37: Diamètre de calcul | C37: 29.000 | D37: mm | F37: Diamètre de calcul | G37: 29.000 | H37: mm | J37: Diamètre de calcul | K37: 29.000 | L37: mm | N37: Diamètre de calcul | O37: 29.000 | P37: mm | R37: Diamètre de calcul | S37: 29.000 | T37: mm | V37: Diamètre de calcul | W37: 29.000 | X37: mm | Z37: Diamètre de calcul | AA37: 29.000 | AB37: mm | AD37: Diamètre de calcul | AE37: 29.000 | AF37: mm | AH37: Diamètre de calcul | AI37: 29.000 | AJ37: mm | AL37: Diamètre de calcul | AM37: 29.000 | AN37: mm
B38: Type de pièce | C38: 1 - Profil cylindrique | F38: Type de pièce | G38: 1 - Profil cylindrique | J38: Type de pièce | K38: 1 - Profil cylindrique | N38: Type de pièce | O38: 1 - Profil cylindrique | R38: Type de pièce | S38: 1 - Profil cylindrique | V38: Type de pièce | W38: 1 - Profil cylindrique | Z38: Type de pièce | AA38: 1 - Profil cylindrique | AD38: Type de pièce | AE38: 1 - Profil cylindrique | AH38: Type de pièce | AI38: 1 - Profil cylindrique | AL38: Type de pièce | AM38: 1 - Profil cylindrique
B39: Distance au plan grand diamètre | C39: 0.000 | D39: mm | F39: Distance au plan grand diamètre | G39: 0.000 | H39: mm | J39: Distance au plan grand diamètre | K39: 0.000 | L39: mm | N39: Distance au plan grand diamètre | O39: 0.000 | P39: mm | R39: Distance au plan grand diamètre | S39: 0.000 | T39: mm | V39: Distance au plan grand diamètre | W39: 0.000 | X39: mm | Z39: Distance au plan grand diamètre | AA39: 0.000 | AB39: mm | AD39: Distance au plan grand diamètre | AE39: 0.000 | AF39: mm | AH39: Distance au plan grand diamètre | AI39: 0.000 | AJ39: mm | AL39: Distance au plan grand diamètre | AM39: 0.000 | AN39: mm
B40: Rayon max pièce | C40: 0.000 | D40: mm | F40: Rayon max pièce | G40: 0.000 | H40: mm | J40: Rayon max pièce | K40: 0.000 | L40: mm | N40: Rayon max pièce | O40: 0.000 | P40: mm | R40: Rayon max pièce | S40: 0.000 | T40: mm | V40: Rayon max pièce | W40: 0.000 | X40: mm | Z40: Rayon max pièce | AA40: 0.000 | AB40: mm | AD40: Rayon max pièce | AE40: 0.000 | AF40: mm | AH40: Rayon max pièce | AI40: 0.000 | AJ40: mm | AL40: Rayon max pièce | AM40: 0.000 | AN40: mm
B41: Epaisseur grand diamètre | C41: 0.000 | D41: mm | F41: Epaisseur grand diamètre | G41: 0.000 | H41: mm | J41: Epaisseur grand diamètre | K41: 0.000 | L41: mm | N41: Epaisseur grand diamètre | O41: 0.000 | P41: mm | R41: Epaisseur grand diamètre | S41: 0.000 | T41: mm | V41: Epaisseur grand diamètre | W41: 0.000 | X41: mm | Z41: Epaisseur grand diamètre | AA41: 0.000 | AB41: mm | AD41: Epaisseur grand diamètre | AE41: 0.000 | AF41: mm | AH41: Epaisseur grand diamètre | AI41: 0.000 | AJ41: mm | AL41: Epaisseur grand diamètre | AM41: 0.000 | AN41: mm
B42: Effet de fond | C42: 0.000 | D42: N | F42: Effet de fond | G42: 0.000 | H42: N | J42: Effet de fond | K42: 0.000 | L42: N | N42: Effet de fond | O42: 0.000 | P42: N | R42: Effet de fond | S42: 0.000 | T42: N | V42: Effet de fond | W42: 0.000 | X42: N | Z42: Effet de fond | AA42: 0.000 | AB42: N | AD42: Effet de fond | AE42: 0.000 | AF42: N | AH42: Effet de fond | AI42: 0.000 | AJ42: N | AL42: Effet de fond | AM42: 0.000 | AN42: N
B43: Young Montage | C43: =VLOOKUP(C32,Matériaux!$C$4:$T$15,6) -> 20675 | D43: daN/mm2 | F43: Young Montage | G43: =VLOOKUP(G32,Matériaux!$C$4:$T$15,6) -> 20675 | H43: daN/mm2 | J43: Young Montage | K43: =VLOOKUP(K32,Matériaux!$C$4:$T$15,6) -> 20675 | L43: daN/mm2 | N43: Young Montage | O43: =VLOOKUP(O32,Matériaux!$C$4:$T$15,6) -> 20675 | P43: daN/mm2 | R43: Young Montage | S43: =VLOOKUP(S32,Matériaux!$C$4:$T$15,6) -> 20675 | T43: daN/mm2 | V43: Young Montage | W43: =VLOOKUP(W32,Matériaux!$C$4:$T$15,6) -> 20675 | X43: daN/mm2 | Z43: Young Montage | AA43: =VLOOKUP(AA32,Matériaux!$C$4:$T$15,6) -> 20675 | AB43: daN/mm2 | AD43: Young Montage | AE43: =VLOOKUP(AE32,Matériaux!$C$4:$T$15,6) -> 20675 | AF43: daN/mm2 | AH43: Young Montage | AI43: =VLOOKUP(AI32,Matériaux!$C$4:$T$15,6) -> 20675 | AJ43: daN/mm2 | AL43: Young Montage | AM43: =VLOOKUP(AM32,Matériaux!$C$4:$T$15,6) -> 20675 | AN43: daN/mm2
B44: Youg MeF | C44: =VLOOKUP(C32,Matériaux!$C$4:$T$15,7) -> 22036 | D44: daN/mm2 | F44: Youg MeF | G44: =VLOOKUP(G32,Matériaux!$C$4:$T$15,7) -> 22036 | H44: daN/mm2 | J44: Youg MeF | K44: =VLOOKUP(K32,Matériaux!$C$4:$T$15,7) -> 22036 | L44: daN/mm2 | N44: Youg MeF | O44: =VLOOKUP(O32,Matériaux!$C$4:$T$15,7) -> 22036 | P44: daN/mm2 | R44: Youg MeF | S44: =VLOOKUP(S32,Matériaux!$C$4:$T$15,7) -> 22036 | T44: daN/mm2 | V44: Youg MeF | W44: =VLOOKUP(W32,Matériaux!$C$4:$T$15,7) -> 22036 | X44: daN/mm2 | Z44: Youg MeF | AA44: =VLOOKUP(AA32,Matériaux!$C$4:$T$15,7) -> 22036 | AB44: daN/mm2 | AD44: Youg MeF | AE44: =VLOOKUP(AE32,Matériaux!$C$4:$T$15,7) -> 22036 | AF44: daN/mm2 | AH44: Youg MeF | AI44: =VLOOKUP(AI32,Matériaux!$C$4:$T$15,7) -> 22036 | AJ44: daN/mm2 | AL44: Youg MeF | AM44: =VLOOKUP(AM32,Matériaux!$C$4:$T$15,7) -> 22036 | AN44: daN/mm2
B45: Young fonctionnement | C45: =VLOOKUP(C32,Matériaux!$C$4:$T$15,8) -> 21715 | D45: daN/mm2 | F45: Young fonctionnement | G45: =VLOOKUP(G32,Matériaux!$C$4:$T$15,8) -> 21715 | H45: daN/mm2 | J45: Young fonctionnement | K45: =VLOOKUP(K32,Matériaux!$C$4:$T$15,8) -> 21715 | L45: daN/mm2 | N45: Young fonctionnement | O45: =VLOOKUP(O32,Matériaux!$C$4:$T$15,8) -> 21715 | P45: daN/mm2 | R45: Young fonctionnement | S45: =VLOOKUP(S32,Matériaux!$C$4:$T$15,8) -> 21715 | T45: daN/mm2 | V45: Young fonctionnement | W45: =VLOOKUP(W32,Matériaux!$C$4:$T$15,8) -> 21715 | X45: daN/mm2 | Z45: Young fonctionnement | AA45: =VLOOKUP(AA32,Matériaux!$C$4:$T$15,8) -> 21715 | AB45: daN/mm2 | AD45: Young fonctionnement | AE45: =VLOOKUP(AE32,Matériaux!$C$4:$T$15,8) -> 21715 | AF45: daN/mm2 | AH45: Young fonctionnement | AI45: =VLOOKUP(AI32,Matériaux!$C$4:$T$15,8) -> 21715 | AJ45: daN/mm2 | AL45: Young fonctionnement | AM45: =VLOOKUP(AM32,Matériaux!$C$4:$T$15,8) -> 21715 | AN45: daN/mm2
B46: S | C46: =(PI()/4*((C35)-(C36)))^2 -> 15.421 | D46: mm2 | F46: S | G46: =(PI()/4*((G35)-(G36)))^2 -> 15.421 | H46: mm2 | J46: S | K46: =(PI()/4*((K35)-(K36)))^2 -> 15.421 | L46: mm2 | N46: S | O46: =(PI()/4*((O35)-(O36)))^2 -> 15.421 | P46: mm2 | R46: S | S46: =(PI()/4*((S35)-(S36)))^2 -> 15.421 | T46: mm2 | V46: S | W46: =(PI()/4*((W35)-(W36)))^2 -> 15.421 | X46: mm2 | Z46: S | AA46: =(PI()/4*((AA35)-(AA36)))^2 -> 15.421 | AB46: mm2 | AD46: S | AE46: =(PI()/4*((AE35)-(AE36)))^2 -> 15.421 | AF46: mm2 | AH46: S | AI46: =(PI()/4*((AI35)-(AI36)))^2 -> 15.421 | AJ46: mm2 | AL46: S | AM46: =(PI()/4*((AM35)-(AM36)))^2 -> 15.421 | AN46: mm2
B47: Kv (montage) | C47: =IFERROR(C46*C43/C33,0) -> 6.050E+03 | D47: daN/mm | F47: Kv (montage) | G47: =IFERROR(G46*G43/G33,0) -> 6.050E+03 | H47: daN/mm | J47: Kv (montage) | K47: =IFERROR(K46*K43/K33,0) -> 6.050E+03 | L47: daN/mm | N47: Kv (montage) | O47: =IFERROR(O46*O43/O33,0) -> 6.050E+03 | P47: daN/mm | R47: Kv (montage) | S47: =IFERROR(S46*S43/S33,0) -> 6.050E+03 | T47: daN/mm | V47: Kv (montage) | W47: =IFERROR(W46*W43/W33,0) -> 6.050E+03 | X47: daN/mm | Z47: Kv (montage) | AA47: =IFERROR(AA46*AA43/AA33,0) -> 6.050E+03 | AB47: daN/mm | AD47: Kv (montage) | AE47: =IFERROR(AE46*AE43/AE33,0) -> 6.050E+03 | AF47: daN/mm | AH47: Kv (montage) | AI47: =IFERROR(AI46*AI43/AI33,0) -> 6.050E+03 | AJ47: daN/mm | AL47: Kv (montage) | AM47: =IFERROR(AM46*AM43/AM33,0) -> 6.050E+03 | AN47: daN/mm
B48: Kv (MeF) | C48: =IFERROR(C46*C44/C33,0) -> 6.448E+03 | D48: daN/mm | F48: Kv (MeF) | G48: =IFERROR(G46*G44/G33,0) -> 6.448E+03 | H48: daN/mm | J48: Kv (MeF) | K48: =IFERROR(K46*K44/K33,0) -> 6.448E+03 | L48: daN/mm | N48: Kv (MeF) | O48: =IFERROR(O46*O44/O33,0) -> 6.448E+03 | P48: daN/mm | R48: Kv (MeF) | S48: =IFERROR(S46*S44/S33,0) -> 6.448E+03 | T48: daN/mm | V48: Kv (MeF) | W48: =IFERROR(W46*W44/W33,0) -> 6.448E+03 | X48: daN/mm | Z48: Kv (MeF) | AA48: =IFERROR(AA46*AA44/AA33,0) -> 6.448E+03 | AB48: daN/mm | AD48: Kv (MeF) | AE48: =IFERROR(AE46*AE44/AE33,0) -> 6.448E+03 | AF48: daN/mm | AH48: Kv (MeF) | AI48: =IFERROR(AI46*AI44/AI33,0) -> 6.448E+03 | AJ48: daN/mm | AL48: Kv (MeF) | AM48: =IFERROR(AM46*AM44/AM33,0) -> 6.448E+03 | AN48: daN/mm
B49: Kv (fonctionnement) | C49: =IFERROR(C46*C45/C33,0) -> 6.354E+03 | D49: daN/mm | F49: Kv (fonctionnement) | G49: =IFERROR(G46*G45/G33,0) -> 6.354E+03 | H49: daN/mm | J49: Kv (fonctionnement) | K49: =IFERROR(K46*K45/K33,0) -> 6.354E+03 | L49: daN/mm | N49: Kv (fonctionnement) | O49: =IFERROR(O46*O45/O33,0) -> 6.354E+03 | P49: daN/mm | R49: Kv (fonctionnement) | S49: =IFERROR(S46*S45/S33,0) -> 6.354E+03 | T49: daN/mm | V49: Kv (fonctionnement) | W49: =IFERROR(W46*W45/W33,0) -> 6.354E+03 | X49: daN/mm | Z49: Kv (fonctionnement) | AA49: =IFERROR(AA46*AA45/AA33,0) -> 6.354E+03 | AB49: daN/mm | AD49: Kv (fonctionnement) | AE49: =IFERROR(AE46*AE45/AE33,0) -> 6.354E+03 | AF49: daN/mm | AH49: Kv (fonctionnement) | AI49: =IFERROR(AI46*AI45/AI33,0) -> 6.354E+03 | AJ49: daN/mm | AL49: Kv (fonctionnement) | AM49: =IFERROR(AM46*AM45/AM33,0) -> 6.354E+03 | AN49: daN/mm
B50: ΔL/L MeF | C50: =VLOOKUP(C32,Matériaux!$C$4:$T$15,15) -> -249.6 | D50: *10^-5 | F50: ΔL/L MeF | G50: =VLOOKUP(G32,Matériaux!$C$4:$T$15,15) -> -249.6 | H50: *10^-5 | J50: ΔL/L MeF | K50: =VLOOKUP(K32,Matériaux!$C$4:$T$15,15) -> -249.6 | L50: *10^-5 | N50: ΔL/L MeF | O50: =VLOOKUP(O32,Matériaux!$C$4:$T$15,15) -> -249.6 | P50: *10^-5 | R50: ΔL/L MeF | S50: =VLOOKUP(S32,Matériaux!$C$4:$T$15,15) -> -249.6 | T50: *10^-5 | V50: ΔL/L MeF | W50: =VLOOKUP(W32,Matériaux!$C$4:$T$15,15) -> -249.6 | X50: *10^-5 | Z50: ΔL/L MeF | AA50: =VLOOKUP(AA32,Matériaux!$C$4:$T$15,15) -> -249.6 | AB50: *10^-5 | AD50: ΔL/L MeF | AE50: =VLOOKUP(AE32,Matériaux!$C$4:$T$15,15) -> -249.6 | AF50: *10^-5 | AH50: ΔL/L MeF | AI50: =VLOOKUP(AI32,Matériaux!$C$4:$T$15,15) -> -249.6 | AJ50: *10^-5 | AL50: ΔL/L MeF | AM50: =VLOOKUP(AM32,Matériaux!$C$4:$T$15,15) -> -249.6 | AN50: *10^-5
B51: ΔL/L Fonctionnement | C51: =VLOOKUP(C32,Matériaux!$C$4:$T$15,16) -> -200.6 | D51: *10^-5 | F51: ΔL/L Fonctionnement | G51: =VLOOKUP(G32,Matériaux!$C$4:$T$15,16) -> -200.6 | H51: *10^-5 | J51: ΔL/L Fonctionnement | K51: =VLOOKUP(K32,Matériaux!$C$4:$T$15,16) -> -200.6 | L51: *10^-5 | N51: ΔL/L Fonctionnement | O51: =VLOOKUP(O32,Matériaux!$C$4:$T$15,16) -> -200.6 | P51: *10^-5 | R51: ΔL/L Fonctionnement | S51: =VLOOKUP(S32,Matériaux!$C$4:$T$15,16) -> -200.6 | T51: *10^-5 | V51: ΔL/L Fonctionnement | W51: =VLOOKUP(W32,Matériaux!$C$4:$T$15,16) -> -200.6 | X51: *10^-5 | Z51: ΔL/L Fonctionnement | AA51: =VLOOKUP(AA32,Matériaux!$C$4:$T$15,16) -> -200.6 | AB51: *10^-5 | AD51: ΔL/L Fonctionnement | AE51: =VLOOKUP(AE32,Matériaux!$C$4:$T$15,16) -> -200.6 | AF51: *10^-5 | AH51: ΔL/L Fonctionnement | AI51: =VLOOKUP(AI32,Matériaux!$C$4:$T$15,16) -> -200.6 | AJ51: *10^-5 | AL51: ΔL/L Fonctionnement | AM51: =VLOOKUP(AM32,Matériaux!$C$4:$T$15,16) -> -200.6 | AN51: *10^-5
B52: ν | C52: =VLOOKUP(C32,Matériaux!$C$4:$T$15,17) -> 0.28 | D52: - | F52: ν | G52: =VLOOKUP(G32,Matériaux!$C$4:$T$15,17) -> 0.28 | H52: - | J52: ν | K52: =VLOOKUP(K32,Matériaux!$C$4:$T$15,17) -> 0.28 | L52: - | N52: ν | O52: =VLOOKUP(O32,Matériaux!$C$4:$T$15,17) -> 0.28 | P52: - | R52: ν | S52: =VLOOKUP(S32,Matériaux!$C$4:$T$15,17) -> 0.28 | T52: - | V52: ν | W52: =VLOOKUP(W32,Matériaux!$C$4:$T$15,17) -> 0.28 | X52: - | Z52: ν | AA52: =VLOOKUP(AA32,Matériaux!$C$4:$T$15,17) -> 0.28 | AB52: - | AD52: ν | AE52: =VLOOKUP(AE32,Matériaux!$C$4:$T$15,17) -> 0.28 | AF52: - | AH52: ν | AI52: =VLOOKUP(AI32,Matériaux!$C$4:$T$15,17) -> 0.28 | AJ52: - | AL52: ν | AM52: =VLOOKUP(AM32,Matériaux!$C$4:$T$15,17) -> 0.28 | AN52: -
B53: ρ | C53: =VLOOKUP(C32,Matériaux!$C$4:$T$15,18) -> 8260 | D53: kg/m3 | F53: ρ | G53: =VLOOKUP(G32,Matériaux!$C$4:$T$15,18) -> 8260 | H53: kg/m3 | J53: ρ | K53: =VLOOKUP(K32,Matériaux!$C$4:$T$15,18) -> 8260 | L53: kg/m3 | N53: ρ | O53: =VLOOKUP(O32,Matériaux!$C$4:$T$15,18) -> 8260 | P53: kg/m3 | R53: ρ | S53: =VLOOKUP(S32,Matériaux!$C$4:$T$15,18) -> 8260 | T53: kg/m3 | V53: ρ | W53: =VLOOKUP(W32,Matériaux!$C$4:$T$15,18) -> 8260 | X53: kg/m3 | Z53: ρ | AA53: =VLOOKUP(AA32,Matériaux!$C$4:$T$15,18) -> 8260 | AB53: kg/m3 | AD53: ρ | AE53: =VLOOKUP(AE32,Matériaux!$C$4:$T$15,18) -> 8260 | AF53: kg/m3 | AH53: ρ | AI53: =VLOOKUP(AI32,Matériaux!$C$4:$T$15,18) -> 8260 | AJ53: kg/m3 | AL53: ρ | AM53: =VLOOKUP(AM32,Matériaux!$C$4:$T$15,18) -> 8260 | AN53: kg/m3
B55: Coefficient de frottement | C55: 0.12 | D55: - | F55: Coefficient de frottement | G55: 0.12 | H55: - | J55: Coefficient de frottement | K55: 0.12 | L55: - | N55: Coefficient de frottement | O55: 0.12 | P55: - | R55: Coefficient de frottement | S55: 0.12 | T55: - | V55: Coefficient de frottement | W55: 0.12 | X55: - | Z55: Coefficient de frottement | AA55: 0.12 | AB55: - | AD55: Coefficient de frottement | AE55: 0.12 | AF55: - | AH55: Coefficient de frottement | AI55: 0.12 | AJ55: - | AL55: Coefficient de frottement | AM55: 0.12 | AN55: -
B57: Montage :
B59: L_Total : | C59: =SUM(13:13) -> 527 | D59: mm
B60: K_Total_Traction : | C60: =(22:22) -> 151248 | D60: daN/mm
B61: L_Total : | C61: =SUM(33:33) -> 527 | D61: mm
B62: K_Total_Compression : | C62: =SUM(47:47) -> 60499 | D62: daN/mm
B64: MeF :
B66: L_Total : | C66: =SUM(13:13) -> 527 | D66: mm
B67: DeltaL/L moyen : | C67: =(SUM(13:13)*SUM(25:25)*0.00001)/C66 -> -2.50E-02 | D67: mm/mm
B68: K_Total_Traction : | C68: =SUM(23:23) -> 1612063 | D68: daN/mm
B69: L_Total : | C69: =SUM(33:33) -> 527 | D69: mm
B70: DeltaL/L moyen : | C70: =(SUM(33:33)*SUM(50:50)*0.00001)/C69 -> -2.50E-02 | D70: mm/mm
B71: K_Total_Compression : | C71: =SUM(48:48) -> 64483 | D71: daN/mm
B73: Fonctionnement :
B75: L_Total : | C75: =SUM(13:13) -> 527 | D75: mm
B76: DeltaL/L moyen : | C76: =(SUM(13:13)*SUM(26:26)*0.00001)/C66 -> -2.01E-02 | D76: mm/mm
B77: K_Total_Traction : | C77: =SUM(24:24) -> 1588609 | D77: daN/mm
B78: L_Total : | C78: =SUM(33:33) -> 527 | D78: mm
B79: DeltaL/L moyen : | C79: =(SUM(33:33)*SUM(51:51)*0.00001)/C69 -> -2.01E-02 | D79: mm/mm
B80: K_Total_Compression : | C80: =SUM(49:49) -> 63544 | D80: daN/mm
B82: Pour ajouter un matériau hors liste, veuillez vous reporter à l'onglet "Matériaux" et suivre la procédure.
B84: Définition des données système
B86: Vitesse de rotation | D86: 30000 | E86: tr/min
D87: =2*3.141592/60*D86 -> 3142 | E87: rad/s
B88: Pression intérieure mâle | D88: 10.0 | E88: bar
B89: Pression extérieure mâle | D89: 20.0 | E89: bar
B90: Pression intérieure femelle | D90: 10.0 | E90: bar
B91: Pression extérieure femelle | D91: 20.0 | E91: bar
B92: Effort axial F (traction F=+..., compression F=-...) | D92: 6000 | E92: daN
B94: Température Montage | D94: 293 | E94: K
B95: Température Mise en froid | D95: 20 | E95: K
B96: Température Fonctionnement | D96: 90 | E96: K
B101: Résultats des effets conjugués par pièce au montage
B103: Nom : | C103: =C11 -> Pièce mâle | F103: Nom : | G103: =G11 -> Pièce mâle | J103: Nom : | K103: =K11 -> Pièce mâle | N103: Nom : | O103: =O11 -> Pièce mâle | R103: Nom : | S103: =S11 -> Pièce mâle | V103: Nom : | W103: =W11 -> Pièce mâle | Z103: Nom : | AA103: =AA11 -> Pièce mâle | AD103: Nom : | AE103: =AE11 -> Pièce mâle | AH103: Nom : | AI103: =AI11 -> Pièce mâle | AL103: Nom : | AM103: =AM11 -> Pièce mâle
B104: Au niveau du frettage | F104: Au niveau du frettage | J104: Au niveau du frettage | N104: Au niveau du frettage | R104: Au niveau du frettage | V104: Au niveau du frettage | Z104: Au niveau du frettage | AD104: Au niveau du frettage | AH104: Au niveau du frettage | AL104: Au niveau du frettage
B105: Contrainte axiale | C105: =Detail_des_effets!C28 -> 122.23 | D105: MPa | F105: Contrainte axiale | G105: =Detail_des_effets!G28 -> 122.23 | H105: MPa | J105: Contrainte axiale | K105: =Detail_des_effets!K28 -> 122.23 | L105: MPa | N105: Contrainte axiale | O105: =Detail_des_effets!O28 -> 122.23 | P105: MPa | R105: Contrainte axiale | S105: =Detail_des_effets!S28 -> 122.23 | T105: MPa | V105: Contrainte axiale | W105: =Detail_des_effets!W28 -> 122.23 | X105: MPa | Z105: Contrainte axiale | AA105: =Detail_des_effets!AA28 -> 122.23 | AB105: MPa | AD105: Contrainte axiale | AE105: =Detail_des_effets!AE28 -> 122.23 | AF105: MPa | AH105: Contrainte axiale | AI105: =Detail_des_effets!AI28 -> 122.23 | AJ105: MPa | AL105: Contrainte axiale | AM105: =Detail_des_effets!AM28 -> 122.23 | AN105: MPa
B106: Contrainte radiale | C106: =Detail_des_effets!C59 ->  | D106: MPa | F106: Contrainte radiale | G106: =Detail_des_effets!G59 ->  | H106: MPa | J106: Contrainte radiale | K106: =Detail_des_effets!K59 ->  | L106: MPa | N106: Contrainte radiale | O106: =Detail_des_effets!O59 ->  | P106: MPa | R106: Contrainte radiale | S106: =Detail_des_effets!S59 ->  | T106: MPa | V106: Contrainte radiale | W106: =Detail_des_effets!W59 ->  | X106: MPa | Z106: Contrainte radiale | AA106: =Detail_des_effets!AA59 ->  | AB106: MPa | AD106: Contrainte radiale | AE106: =Detail_des_effets!AE59 ->  | AF106: MPa | AH106: Contrainte radiale | AI106: =Detail_des_effets!AI59 ->  | AJ106: MPa | AL106: Contrainte radiale | AM106: =Detail_des_effets!AM59 ->  | AN106: MPa
B107: Contrainte tangentielle | C107: =Detail_des_effets!C60 ->  | D107: MPa | F107: Contrainte tangentielle | G107: =Detail_des_effets!G60 ->  | H107: MPa | J107: Contrainte tangentielle | K107: =Detail_des_effets!K60 ->  | L107: MPa | N107: Contrainte tangentielle | O107: =Detail_des_effets!O60 ->  | P107: MPa | R107: Contrainte tangentielle | S107: =Detail_des_effets!S60 ->  | T107: MPa | V107: Contrainte tangentielle | W107: =Detail_des_effets!W60 ->  | X107: MPa | Z107: Contrainte tangentielle | AA107: =Detail_des_effets!AA60 ->  | AB107: MPa | AD107: Contrainte tangentielle | AE107: =Detail_des_effets!AE60 ->  | AF107: MPa | AH107: Contrainte tangentielle | AI107: =Detail_des_effets!AI60 ->  | AJ107: MPa | AL107: Contrainte tangentielle | AM107: =Detail_des_effets!AM60 ->  | AN107: MPa
B108: Déformée axiale | C108: =Detail_des_effets!C29 -> 0.031 | D108: mm | F108: Déformée axiale | G108: =Detail_des_effets!G29 -> 0.031 | H108: mm | J108: Déformée axiale | K108: =Detail_des_effets!K29 -> 0.031 | L108: mm | N108: Déformée axiale | O108: =Detail_des_effets!O29 -> 0.031 | P108: mm | R108: Déformée axiale | S108: =Detail_des_effets!S29 -> 0.031 | T108: mm | V108: Déformée axiale | W108: =Detail_des_effets!W29 -> 0.031 | X108: mm | Z108: Déformée axiale | AA108: =Detail_des_effets!AA29 -> 0.031 | AB108: mm | AD108: Déformée axiale | AE108: =Detail_des_effets!AE29 -> 0.031 | AF108: mm | AH108: Déformée axiale | AI108: =Detail_des_effets!AI29 -> 0.031 | AJ108: mm | AL108: Déformée axiale | AM108: =Detail_des_effets!AM29 -> 0.031 | AN108: mm
B109: Déformée radiale | C109: =Detail_des_effets!C30+Detail_des_effets!C61 ->  | D109: mm | F109: Déformée radiale | G109: =Detail_des_effets!G30+Detail_des_effets!G61 ->  | H109: mm | J109: Déformée radiale | K109: =Detail_des_effets!K30+Detail_des_effets!K61 ->  | L109: mm | N109: Déformée radiale | O109: =Detail_des_effets!O30+Detail_des_effets!O61 ->  | P109: mm | R109: Déformée radiale | S109: =Detail_des_effets!S30+Detail_des_effets!S61 ->  | T109: mm | V109: Déformée radiale | W109: =Detail_des_effets!W30+Detail_des_effets!W61 ->  | X109: mm | Z109: Déformée radiale | AA109: =Detail_des_effets!AA30+Detail_des_effets!AA61 ->  | AB109: mm | AD109: Déformée radiale | AE109: =Detail_des_effets!AE30+Detail_des_effets!AE61 ->  | AF109: mm | AH109: Déformée radiale | AI109: =Detail_des_effets!AI30+Detail_des_effets!AI61 ->  | AJ109: mm | AL109: Déformée radiale | AM109: =Detail_des_effets!AM30+Detail_des_effets!AM61 ->  | AN109: mm
B110: Dans la pièce, au diamètre particulier | F110: Dans la pièce, au diamètre particulier | J110: Dans la pièce, au diamètre particulier | N110: Dans la pièce, au diamètre particulier | R110: Dans la pièce, au diamètre particulier | V110: Dans la pièce, au diamètre particulier | Z110: Dans la pièce, au diamètre particulier | AD110: Dans la pièce, au diamètre particulier | AH110: Dans la pièce, au diamètre particulier | AL110: Dans la pièce, au diamètre particulier
B111: Contrainte axiale | C111: =Detail_des_effets!C32 -> 122.23 | D111: MPa | F111: Contrainte axiale | G111: =Detail_des_effets!G32 -> 122.23 | H111: MPa | J111: Contrainte axiale | K111: =Detail_des_effets!K32 -> 122.23 | L111: MPa | N111: Contrainte axiale | O111: =Detail_des_effets!O32 -> 122.23 | P111: MPa | R111: Contrainte axiale | S111: =Detail_des_effets!S32 -> 122.23 | T111: MPa | V111: Contrainte axiale | W111: =Detail_des_effets!W32 -> 122.23 | X111: MPa | Z111: Contrainte axiale | AA111: =Detail_des_effets!AA32 -> 122.23 | AB111: MPa | AD111: Contrainte axiale | AE111: =Detail_des_effets!AE32 -> 122.23 | AF111: MPa | AH111: Contrainte axiale | AI111: =Detail_des_effets!AI32 -> 122.23 | AJ111: MPa | AL111: Contrainte axiale | AM111: =Detail_des_effets!AM32 -> 122.23 | AN111: MPa
B112: Contrainte radiale | C112: =Detail_des_effets!C63 ->  | D112: MPa | F112: Contrainte radiale | G112: =Detail_des_effets!G63 ->  | H112: MPa | J112: Contrainte radiale | K112: =Detail_des_effets!K63 ->  | L112: MPa | N112: Contrainte radiale | O112: =Detail_des_effets!O63 ->  | P112: MPa | R112: Contrainte radiale | S112: =Detail_des_effets!S63 ->  | T112: MPa | V112: Contrainte radiale | W112: =Detail_des_effets!W63 ->  | X112: MPa | Z112: Contrainte radiale | AA112: =Detail_des_effets!AA63 ->  | AB112: MPa | AD112: Contrainte radiale | AE112: =Detail_des_effets!AE63 ->  | AF112: MPa | AH112: Contrainte radiale | AI112: =Detail_des_effets!AI63 ->  | AJ112: MPa | AL112: Contrainte radiale | AM112: =Detail_des_effets!AM63 ->  | AN112: MPa
B113: Contrainte tangentielle | C113: =Detail_des_effets!C64 ->  | D113: MPa | F113: Contrainte tangentielle | G113: =Detail_des_effets!G64 ->  | H113: MPa | J113: Contrainte tangentielle | K113: =Detail_des_effets!K64 ->  | L113: MPa | N113: Contrainte tangentielle | O113: =Detail_des_effets!O64 ->  | P113: MPa | R113: Contrainte tangentielle | S113: =Detail_des_effets!S64 ->  | T113: MPa | V113: Contrainte tangentielle | W113: =Detail_des_effets!W64 ->  | X113: MPa | Z113: Contrainte tangentielle | AA113: =Detail_des_effets!AA64 ->  | AB113: MPa | AD113: Contrainte tangentielle | AE113: =Detail_des_effets!AE64 ->  | AF113: MPa | AH113: Contrainte tangentielle | AI113: =Detail_des_effets!AI64 ->  | AJ113: MPa | AL113: Contrainte tangentielle | AM113: =Detail_des_effets!AM64 ->  | AN113: MPa
B114: Déformée axiale | C114: =Detail_des_effets!C29 -> 0.031 | D114: mm | F114: Déformée axiale | G114: =Detail_des_effets!G29 -> 0.031 | H114: mm | J114: Déformée axiale | K114: =Detail_des_effets!K29 -> 0.031 | L114: mm | N114: Déformée axiale | O114: =Detail_des_effets!O29 -> 0.031 | P114: mm | R114: Déformée axiale | S114: =Detail_des_effets!S29 -> 0.031 | T114: mm | V114: Déformée axiale | W114: =Detail_des_effets!W29 -> 0.031 | X114: mm | Z114: Déformée axiale | AA114: =Detail_des_effets!AA29 -> 0.031 | AB114: mm | AD114: Déformée axiale | AE114: =Detail_des_effets!AE29 -> 0.031 | AF114: mm | AH114: Déformée axiale | AI114: =Detail_des_effets!AI29 -> 0.031 | AJ114: mm | AL114: Déformée axiale | AM114: =Detail_des_effets!AM29 -> 0.031 | AN114: mm
B115: Déformée radiale | C115: =Detail_des_effets!C34+Detail_des_effets!C65 ->  | D115: mm | F115: Déformée radiale | G115: =Detail_des_effets!G34+Detail_des_effets!G65 ->  | H115: mm | J115: Déformée radiale | K115: =Detail_des_effets!K34+Detail_des_effets!K65 ->  | L115: mm | N115: Déformée radiale | O115: =Detail_des_effets!O34+Detail_des_effets!O65 ->  | P115: mm | R115: Déformée radiale | S115: =Detail_des_effets!S34+Detail_des_effets!S65 ->  | T115: mm | V115: Déformée radiale | W115: =Detail_des_effets!W34+Detail_des_effets!W65 ->  | X115: mm | Z115: Déformée radiale | AA115: =Detail_des_effets!AA34+Detail_des_effets!AA65 ->  | AB115: mm | AD115: Déformée radiale | AE115: =Detail_des_effets!AE34+Detail_des_effets!AE65 ->  | AF115: mm | AH115: Déformée radiale | AI115: =Detail_des_effets!AI34+Detail_des_effets!AI65 ->  | AJ115: mm | AL115: Déformée radiale | AM115: =Detail_des_effets!AM34+Detail_des_effets!AM65 ->  | AN115: mm
B117: Nom : | C117: =C31 -> Pièce femelle | F117: Nom : | G117: =G31 -> Pièce femelle | J117: Nom : | K117: =K31 -> Pièce femelle | N117: Nom : | O117: =O31 -> Pièce femelle | R117: Nom : | S117: =S31 -> Pièce femelle | V117: Nom : | W117: =W31 -> Pièce femelle | Z117: Nom : | AA117: =AA31 -> Pièce femelle | AD117: Nom : | AE117: =AE31 -> Pièce femelle | AH117: Nom : | AI117: =AI31 -> Pièce femelle | AL117: Nom : | AM117: =AM31 -> Pièce femelle
B118: Au niveau du frettage | F118: Au niveau du frettage | J118: Au niveau du frettage | N118: Au niveau du frettage | R118: Au niveau du frettage | V118: Au niveau du frettage | Z118: Au niveau du frettage | AD118: Au niveau du frettage | AH118: Au niveau du frettage | AL118: Au niveau du frettage
B119: Contrainte axiale | C119: =Detail_des_effets!C132 -> 277.80 | D119: MPa | F119: Contrainte axiale | G119: =Detail_des_effets!G132 -> 277.80 | H119: MPa | J119: Contrainte axiale | K119: =Detail_des_effets!K132 -> 277.80 | L119: MPa | N119: Contrainte axiale | O119: =Detail_des_effets!O132 -> 277.80 | P119: MPa | R119: Contrainte axiale | S119: =Detail_des_effets!S132 -> 277.80 | T119: MPa | V119: Contrainte axiale | W119: =Detail_des_effets!W132 -> 277.80 | X119: MPa | Z119: Contrainte axiale | AA119: =Detail_des_effets!AA132 -> 277.80 | AB119: MPa | AD119: Contrainte axiale | AE119: =Detail_des_effets!AE132 -> 277.80 | AF119: MPa | AH119: Contrainte axiale | AI119: =Detail_des_effets!AI132 -> 277.80 | AJ119: MPa | AL119: Contrainte axiale | AM119: =Detail_des_effets!AM132 -> 277.80 | AN119: MPa
B120: Contrainte radiale | C120: =Detail_des_effets!C163 ->  | D120: MPa | F120: Contrainte radiale | G120: =Detail_des_effets!G163 ->  | H120: MPa | J120: Contrainte radiale | K120: =Detail_des_effets!K163 ->  | L120: MPa | N120: Contrainte radiale | O120: =Detail_des_effets!O163 ->  | P120: MPa | R120: Contrainte radiale | S120: =Detail_des_effets!S163 ->  | T120: MPa | V120: Contrainte radiale | W120: =Detail_des_effets!W163 ->  | X120: MPa | Z120: Contrainte radiale | AA120: =Detail_des_effets!AA163 ->  | AB120: MPa | AD120: Contrainte radiale | AE120: =Detail_des_effets!AE163 ->  | AF120: MPa | AH120: Contrainte radiale | AI120: =Detail_des_effets!AI163 ->  | AJ120: MPa | AL120: Contrainte radiale | AM120: =Detail_des_effets!AM163 ->  | AN120: MPa
B121: Contrainte tangentielle | C121: =Detail_des_effets!C164 ->  | D121: MPa | F121: Contrainte tangentielle | G121: =Detail_des_effets!G164 ->  | H121: MPa | J121: Contrainte tangentielle | K121: =Detail_des_effets!K164 ->  | L121: MPa | N121: Contrainte tangentielle | O121: =Detail_des_effets!O164 ->  | P121: MPa | R121: Contrainte tangentielle | S121: =Detail_des_effets!S164 ->  | T121: MPa | V121: Contrainte tangentielle | W121: =Detail_des_effets!W164 ->  | X121: MPa | Z121: Contrainte tangentielle | AA121: =Detail_des_effets!AA164 ->  | AB121: MPa | AD121: Contrainte tangentielle | AE121: =Detail_des_effets!AE164 ->  | AF121: MPa | AH121: Contrainte tangentielle | AI121: =Detail_des_effets!AI164 ->  | AJ121: MPa | AL121: Contrainte tangentielle | AM121: =Detail_des_effets!AM164 ->  | AN121: MPa
B122: Déformée axiale | C122: =Detail_des_effets!C133 -> 0.071 | D122: mm | F122: Déformée axiale | G122: =Detail_des_effets!G133 -> 0.071 | H122: mm | J122: Déformée axiale | K122: =Detail_des_effets!K133 -> 0.071 | L122: mm | N122: Déformée axiale | O122: =Detail_des_effets!O133 -> 0.071 | P122: mm | R122: Déformée axiale | S122: =Detail_des_effets!S133 -> 0.071 | T122: mm | V122: Déformée axiale | W122: =Detail_des_effets!W133 -> 0.071 | X122: mm | Z122: Déformée axiale | AA122: =Detail_des_effets!AA133 -> 0.071 | AB122: mm | AD122: Déformée axiale | AE122: =Detail_des_effets!AE133 -> 0.071 | AF122: mm | AH122: Déformée axiale | AI122: =Detail_des_effets!AI133 -> 0.071 | AJ122: mm | AL122: Déformée axiale | AM122: =Detail_des_effets!AM133 -> 0.071 | AN122: mm
B123: Déformée radiale | C123: =Detail_des_effets!C134+Detail_des_effets!C165 ->  | D123: mm | F123: Déformée radiale | G123: =Detail_des_effets!G134+Detail_des_effets!G165 ->  | H123: mm | J123: Déformée radiale | K123: =Detail_des_effets!K134+Detail_des_effets!K165 ->  | L123: mm | N123: Déformée radiale | O123: =Detail_des_effets!O134+Detail_des_effets!O165 ->  | P123: mm | R123: Déformée radiale | S123: =Detail_des_effets!S134+Detail_des_effets!S165 ->  | T123: mm | V123: Déformée radiale | W123: =Detail_des_effets!W134+Detail_des_effets!W165 ->  | X123: mm | Z123: Déformée radiale | AA123: =Detail_des_effets!AA134+Detail_des_effets!AA165 ->  | AB123: mm | AD123: Déformée radiale | AE123: =Detail_des_effets!AE134+Detail_des_effets!AE165 ->  | AF123: mm | AH123: Déformée radiale | AI123: =Detail_des_effets!AI134+Detail_des_effets!AI165 ->  | AJ123: mm | AL123: Déformée radiale | AM123: =Detail_des_effets!AM134+Detail_des_effets!AM165 ->  | AN123: mm
B124: Dans la pièce, au diamètre particulier | F124: Dans la pièce, au diamètre particulier | J124: Dans la pièce, au diamètre particulier | N124: Dans la pièce, au diamètre particulier | R124: Dans la pièce, au diamètre particulier | V124: Dans la pièce, au diamètre particulier | Z124: Dans la pièce, au diamètre particulier | AD124: Dans la pièce, au diamètre particulier | AH124: Dans la pièce, au diamètre particulier | AL124: Dans la pièce, au diamètre particulier
B125: Contrainte axiale | C125: =Detail_des_effets!C136 -> 277.80 | D125: MPa | F125: Contrainte axiale | G125: =Detail_des_effets!G136 -> 277.80 | H125: MPa | J125: Contrainte axiale | K125: =Detail_des_effets!K136 -> 277.80 | L125: MPa | N125: Contrainte axiale | O125: =Detail_des_effets!O136 -> 277.80 | P125: MPa | R125: Contrainte axiale | S125: =Detail_des_effets!S136 -> 277.80 | T125: MPa | V125: Contrainte axiale | W125: =Detail_des_effets!W136 -> 277.80 | X125: MPa | Z125: Contrainte axiale | AA125: =Detail_des_effets!AA136 -> 277.80 | AB125: MPa | AD125: Contrainte axiale | AE125: =Detail_des_effets!AE136 -> 277.80 | AF125: MPa | AH125: Contrainte axiale | AI125: =Detail_des_effets!AI136 -> 277.80 | AJ125: MPa | AL125: Contrainte axiale | AM125: =Detail_des_effets!AM136 -> 277.80 | AN125: MPa
B126: Contrainte radiale | C126: =Detail_des_effets!C167 ->  | D126: MPa | F126: Contrainte radiale | G126: =Detail_des_effets!G167 ->  | H126: MPa | J126: Contrainte radiale | K126: =Detail_des_effets!K167 ->  | L126: MPa | N126: Contrainte radiale | O126: =Detail_des_effets!O167 ->  | P126: MPa | R126: Contrainte radiale | S126: =Detail_des_effets!S167 ->  | T126: MPa | V126: Contrainte radiale | W126: =Detail_des_effets!W167 ->  | X126: MPa | Z126: Contrainte radiale | AA126: =Detail_des_effets!AA167 ->  | AB126: MPa | AD126: Contrainte radiale | AE126: =Detail_des_effets!AE167 ->  | AF126: MPa | AH126: Contrainte radiale | AI126: =Detail_des_effets!AI167 ->  | AJ126: MPa | AL126: Contrainte radiale | AM126: =Detail_des_effets!AM167 ->  | AN126: MPa
B127: Contrainte tangentielle | C127: =Detail_des_effets!C168 ->  | D127: MPa | F127: Contrainte tangentielle | G127: =Detail_des_effets!G168 ->  | H127: MPa | J127: Contrainte tangentielle | K127: =Detail_des_effets!K168 ->  | L127: MPa | N127: Contrainte tangentielle | O127: =Detail_des_effets!O168 ->  | P127: MPa | R127: Contrainte tangentielle | S127: =Detail_des_effets!S168 ->  | T127: MPa | V127: Contrainte tangentielle | W127: =Detail_des_effets!W168 ->  | X127: MPa | Z127: Contrainte tangentielle | AA127: =Detail_des_effets!AA168 ->  | AB127: MPa | AD127: Contrainte tangentielle | AE127: =Detail_des_effets!AE168 ->  | AF127: MPa | AH127: Contrainte tangentielle | AI127: =Detail_des_effets!AI168 ->  | AJ127: MPa | AL127: Contrainte tangentielle | AM127: =Detail_des_effets!AM168 ->  | AN127: MPa
B128: Déformée axiale | C128: =Detail_des_effets!C137 -> 0.071 | D128: mm | F128: Déformée axiale | G128: =Detail_des_effets!G137 -> 0.071 | H128: mm | J128: Déformée axiale | K128: =Detail_des_effets!K137 -> 0.071 | L128: mm | N128: Déformée axiale | O128: =Detail_des_effets!O137 -> 0.071 | P128: mm | R128: Déformée axiale | S128: =Detail_des_effets!S137 -> 0.071 | T128: mm | V128: Déformée axiale | W128: =Detail_des_effets!W137 -> 0.071 | X128: mm | Z128: Déformée axiale | AA128: =Detail_des_effets!AA137 -> 0.071 | AB128: mm | AD128: Déformée axiale | AE128: =Detail_des_effets!AE137 -> 0.071 | AF128: mm | AH128: Déformée axiale | AI128: =Detail_des_effets!AI137 -> 0.071 | AJ128: mm | AL128: Déformée axiale | AM128: =Detail_des_effets!AM137 -> 0.071 | AN128: mm
B129: Déformée radiale | C129: =Detail_des_effets!C138+Detail_des_effets!C169 ->  | D129: mm | F129: Déformée radiale | G129: =Detail_des_effets!G138+Detail_des_effets!G169 ->  | H129: mm | J129: Déformée radiale | K129: =Detail_des_effets!K138+Detail_des_effets!K169 ->  | L129: mm | N129: Déformée radiale | O129: =Detail_des_effets!O138+Detail_des_effets!O169 ->  | P129: mm | R129: Déformée radiale | S129: =Detail_des_effets!S138+Detail_des_effets!S169 ->  | T129: mm | V129: Déformée radiale | W129: =Detail_des_effets!W138+Detail_des_effets!W169 ->  | X129: mm | Z129: Déformée radiale | AA129: =Detail_des_effets!AA138+Detail_des_effets!AA169 ->  | AB129: mm | AD129: Déformée radiale | AE129: =Detail_des_effets!AE138+Detail_des_effets!AE169 ->  | AF129: mm | AH129: Déformée radiale | AI129: =Detail_des_effets!AI138+Detail_des_effets!AI169 ->  | AJ129: mm | AL129: Déformée radiale | AM129: =Detail_des_effets!AM138+Detail_des_effets!AM169 ->  | AN129: mm
B132: Résultats des effets conjugués par pièce à la mise en froid
B134: Nom : | C134: =C11 -> Pièce mâle | F134: Nom : | G134: =G11 -> Pièce mâle | J134: Nom : | K134: =K11 -> Pièce mâle | N134: Nom : | O134: =O11 -> Pièce mâle | R134: Nom : | S134: =S11 -> Pièce mâle | V134: Nom : | W134: =W11 -> Pièce mâle | Z134: Nom : | AA134: =AA11 -> Pièce mâle | AD134: Nom : | AE134: =AE11 -> Pièce mâle | AH134: Nom : | AI134: =AI11 -> Pièce mâle | AL134: Nom : | AM134: =AM11 -> Pièce mâle
B135: Au niveau du frettage | F135: Au niveau du frettage | J135: Au niveau du frettage | N135: Au niveau du frettage | R135: Au niveau du frettage | V135: Au niveau du frettage | Z135: Au niveau du frettage | AD135: Au niveau du frettage | AH135: Au niveau du frettage | AL135: Au niveau du frettage
B136: Contrainte axiale | C136: =Detail_des_effets!C38 -> 122.23 | D136: MPa | F136: Contrainte axiale | G136: =Detail_des_effets!G38 -> 122.23 | H136: MPa | J136: Contrainte axiale | K136: =Detail_des_effets!K38 -> 122.23 | L136: MPa | N136: Contrainte axiale | O136: =Detail_des_effets!O38 -> 122.23 | P136: MPa | R136: Contrainte axiale | S136: =Detail_des_effets!S38 -> 122.23 | T136: MPa | V136: Contrainte axiale | W136: =Detail_des_effets!W38 -> 122.23 | X136: MPa | Z136: Contrainte axiale | AA136: =Detail_des_effets!AA38 -> 122.23 | AB136: MPa | AD136: Contrainte axiale | AE136: =Detail_des_effets!AE38 -> 122.23 | AF136: MPa | AH136: Contrainte axiale | AI136: =Detail_des_effets!AI38 -> 122.23 | AJ136: MPa | AL136: Contrainte axiale | AM136: =Detail_des_effets!AM38 -> 122.23 | AN136: MPa
B137: Contrainte radiale | C137: =Detail_des_effets!C18+Detail_des_effets!C70 ->  | D137: MPa | F137: Contrainte radiale | G137: =Detail_des_effets!G18+Detail_des_effets!G70 ->  | H137: MPa | J137: Contrainte radiale | K137: =Detail_des_effets!K18+Detail_des_effets!K70 ->  | L137: MPa | N137: Contrainte radiale | O137: =Detail_des_effets!O18+Detail_des_effets!O70 ->  | P137: MPa | R137: Contrainte radiale | S137: =Detail_des_effets!S18+Detail_des_effets!S70 ->  | T137: MPa | V137: Contrainte radiale | W137: =Detail_des_effets!W18+Detail_des_effets!W70 ->  | X137: MPa | Z137: Contrainte radiale | AA137: =Detail_des_effets!AA18+Detail_des_effets!AA70 ->  | AB137: MPa | AD137: Contrainte radiale | AE137: =Detail_des_effets!AE18+Detail_des_effets!AE70 ->  | AF137: MPa | AH137: Contrainte radiale | AI137: =Detail_des_effets!AI18+Detail_des_effets!AI70 ->  | AJ137: MPa | AL137: Contrainte radiale | AM137: =Detail_des_effets!AM18+Detail_des_effets!AM70 ->  | AN137: MPa
B138: Contrainte tangentielle | C138: =Detail_des_effets!C19+Detail_des_effets!C71 ->  | D138: MPa | F138: Contrainte tangentielle | G138: =Detail_des_effets!G19+Detail_des_effets!G71 ->  | H138: MPa | J138: Contrainte tangentielle | K138: =Detail_des_effets!K19+Detail_des_effets!K71 ->  | L138: MPa | N138: Contrainte tangentielle | O138: =Detail_des_effets!O19+Detail_des_effets!O71 ->  | P138: MPa | R138: Contrainte tangentielle | S138: =Detail_des_effets!S19+Detail_des_effets!S71 ->  | T138: MPa | V138: Contrainte tangentielle | W138: =Detail_des_effets!W19+Detail_des_effets!W71 ->  | X138: MPa | Z138: Contrainte tangentielle | AA138: =Detail_des_effets!AA19+Detail_des_effets!AA71 ->  | AB138: MPa | AD138: Contrainte tangentielle | AE138: =Detail_des_effets!AE19+Detail_des_effets!AE71 ->  | AF138: MPa | AH138: Contrainte tangentielle | AI138: =Detail_des_effets!AI19+Detail_des_effets!AI71 ->  | AJ138: MPa | AL138: Contrainte tangentielle | AM138: =Detail_des_effets!AM19+Detail_des_effets!AM71 ->  | AN138: MPa
B139: Déformée axiale | C139: =Detail_des_effets!C91+Detail_des_effets!C39 -> -0.102 | D139: mm | F139: Déformée axiale | G139: =Detail_des_effets!G91+Detail_des_effets!G39 -> -0.102 | H139: mm | J139: Déformée axiale | K139: =Detail_des_effets!K91+Detail_des_effets!K39 -> -0.102 | L139: mm | N139: Déformée axiale | O139: =Detail_des_effets!O91+Detail_des_effets!O39 -> -0.102 | P139: mm | R139: Déformée axiale | S139: =Detail_des_effets!S91+Detail_des_effets!S39 -> -0.102 | T139: mm | V139: Déformée axiale | W139: =Detail_des_effets!W91+Detail_des_effets!W39 -> -0.102 | X139: mm | Z139: Déformée axiale | AA139: =Detail_des_effets!AA91+Detail_des_effets!AA39 -> -0.102 | AB139: mm | AD139: Déformée axiale | AE139: =Detail_des_effets!AE91+Detail_des_effets!AE39 -> -0.102 | AF139: mm | AH139: Déformée axiale | AI139: =Detail_des_effets!AI91+Detail_des_effets!AI39 -> -0.102 | AJ139: mm | AL139: Déformée axiale | AM139: =Detail_des_effets!AM91+Detail_des_effets!AM39 -> -0.102 | AN139: mm
B140: Déformée radiale | C140: =Detail_des_effets!C92+Detail_des_effets!C40+Detail_des_effets!C72 ->  | D140: mm | F140: Déformée radiale | G140: =Detail_des_effets!G92+Detail_des_effets!G40+Detail_des_effets!G72 ->  | H140: mm | J140: Déformée radiale | K140: =Detail_des_effets!K92+Detail_des_effets!K40+Detail_des_effets!K72 ->  | L140: mm | N140: Déformée radiale | O140: =Detail_des_effets!O92+Detail_des_effets!O40+Detail_des_effets!O72 ->  | P140: mm | R140: Déformée radiale | S140: =Detail_des_effets!S92+Detail_des_effets!S40+Detail_des_effets!S72 ->  | T140: mm | V140: Déformée radiale | W140: =Detail_des_effets!W92+Detail_des_effets!W40+Detail_des_effets!W72 ->  | X140: mm | Z140: Déformée radiale | AA140: =Detail_des_effets!AA92+Detail_des_effets!AA40+Detail_des_effets!AA72 ->  | AB140: mm | AD140: Déformée radiale | AE140: =Detail_des_effets!AE92+Detail_des_effets!AE40+Detail_des_effets!AE72 ->  | AF140: mm | AH140: Déformée radiale | AI140: =Detail_des_effets!AI92+Detail_des_effets!AI40+Detail_des_effets!AI72 ->  | AJ140: mm | AL140: Déformée radiale | AM140: =Detail_des_effets!AM92+Detail_des_effets!AM40+Detail_des_effets!AM72 ->  | AN140: mm
B141: Dans la pièce, au diamètre particulier | F141: Dans la pièce, au diamètre particulier | J141: Dans la pièce, au diamètre particulier | N141: Dans la pièce, au diamètre particulier | R141: Dans la pièce, au diamètre particulier | V141: Dans la pièce, au diamètre particulier | Z141: Dans la pièce, au diamètre particulier | AD141: Dans la pièce, au diamètre particulier | AH141: Dans la pièce, au diamètre particulier | AL141: Dans la pièce, au diamètre particulier
B142: Contrainte axiale | C142: =Detail_des_effets!C42 -> 122.23 | D142: MPa | F142: Contrainte axiale | G142: =Detail_des_effets!G42 -> 122.23 | H142: MPa | J142: Contrainte axiale | K142: =Detail_des_effets!K42 -> 122.23 | L142: MPa | N142: Contrainte axiale | O142: =Detail_des_effets!O42 -> 122.23 | P142: MPa | R142: Contrainte axiale | S142: =Detail_des_effets!S42 -> 122.23 | T142: MPa | V142: Contrainte axiale | W142: =Detail_des_effets!W42 -> 122.23 | X142: MPa | Z142: Contrainte axiale | AA142: =Detail_des_effets!AA42 -> 122.23 | AB142: MPa | AD142: Contrainte axiale | AE142: =Detail_des_effets!AE42 -> 122.23 | AF142: MPa | AH142: Contrainte axiale | AI142: =Detail_des_effets!AI42 -> 122.23 | AJ142: MPa | AL142: Contrainte axiale | AM142: =Detail_des_effets!AM42 -> 122.23 | AN142: MPa
B143: Contrainte radiale | C143: =Detail_des_effets!C22+Detail_des_effets!C74 ->  | D143: MPa | F143: Contrainte radiale | G143: =Detail_des_effets!G22+Detail_des_effets!G74 ->  | H143: MPa | J143: Contrainte radiale | K143: =Detail_des_effets!K22+Detail_des_effets!K74 ->  | L143: MPa | N143: Contrainte radiale | O143: =Detail_des_effets!O22+Detail_des_effets!O74 ->  | P143: MPa | R143: Contrainte radiale | S143: =Detail_des_effets!S22+Detail_des_effets!S74 ->  | T143: MPa | V143: Contrainte radiale | W143: =Detail_des_effets!W22+Detail_des_effets!W74 ->  | X143: MPa | Z143: Contrainte radiale | AA143: =Detail_des_effets!AA22+Detail_des_effets!AA74 ->  | AB143: MPa | AD143: Contrainte radiale | AE143: =Detail_des_effets!AE22+Detail_des_effets!AE74 ->  | AF143: MPa | AH143: Contrainte radiale | AI143: =Detail_des_effets!AI22+Detail_des_effets!AI74 ->  | AJ143: MPa | AL143: Contrainte radiale | AM143: =Detail_des_effets!AM22+Detail_des_effets!AM74 ->  | AN143: MPa
B144: Contrainte tangentielle | C144: =Detail_des_effets!C23+Detail_des_effets!C75 ->  | D144: MPa | F144: Contrainte tangentielle | G144: =Detail_des_effets!G23+Detail_des_effets!G75 ->  | H144: MPa | J144: Contrainte tangentielle | K144: =Detail_des_effets!K23+Detail_des_effets!K75 ->  | L144: MPa | N144: Contrainte tangentielle | O144: =Detail_des_effets!O23+Detail_des_effets!O75 ->  | P144: MPa | R144: Contrainte tangentielle | S144: =Detail_des_effets!S23+Detail_des_effets!S75 ->  | T144: MPa | V144: Contrainte tangentielle | W144: =Detail_des_effets!W23+Detail_des_effets!W75 ->  | X144: MPa | Z144: Contrainte tangentielle | AA144: =Detail_des_effets!AA23+Detail_des_effets!AA75 ->  | AB144: MPa | AD144: Contrainte tangentielle | AE144: =Detail_des_effets!AE23+Detail_des_effets!AE75 ->  | AF144: MPa | AH144: Contrainte tangentielle | AI144: =Detail_des_effets!AI23+Detail_des_effets!AI75 ->  | AJ144: MPa | AL144: Contrainte tangentielle | AM144: =Detail_des_effets!AM23+Detail_des_effets!AM75 ->  | AN144: MPa
B145: Déformée axiale | C145: =Detail_des_effets!C94+Detail_des_effets!C43 -> -0.102 | D145: mm | F145: Déformée axiale | G145: =Detail_des_effets!G94+Detail_des_effets!G43 -> -0.102 | H145: mm | J145: Déformée axiale | K145: =Detail_des_effets!K94+Detail_des_effets!K43 -> -0.102 | L145: mm | N145: Déformée axiale | O145: =Detail_des_effets!O94+Detail_des_effets!O43 -> -0.102 | P145: mm | R145: Déformée axiale | S145: =Detail_des_effets!S94+Detail_des_effets!S43 -> -0.102 | T145: mm | V145: Déformée axiale | W145: =Detail_des_effets!W94+Detail_des_effets!W43 -> -0.102 | X145: mm | Z145: Déformée axiale | AA145: =Detail_des_effets!AA94+Detail_des_effets!AA43 -> -0.102 | AB145: mm | AD145: Déformée axiale | AE145: =Detail_des_effets!AE94+Detail_des_effets!AE43 -> -0.102 | AF145: mm | AH145: Déformée axiale | AI145: =Detail_des_effets!AI94+Detail_des_effets!AI43 -> -0.102 | AJ145: mm | AL145: Déformée axiale | AM145: =Detail_des_effets!AM94+Detail_des_effets!AM43 -> -0.102 | AN145: mm
B146: Déformée radiale | C146: =Detail_des_effets!C95+Detail_des_effets!C44+Detail_des_effets!C76 ->  | D146: mm | F146: Déformée radiale | G146: =Detail_des_effets!G95+Detail_des_effets!G44+Detail_des_effets!G76 ->  | H146: mm | J146: Déformée radiale | K146: =Detail_des_effets!K95+Detail_des_effets!K44+Detail_des_effets!K76 ->  | L146: mm | N146: Déformée radiale | O146: =Detail_des_effets!O95+Detail_des_effets!O44+Detail_des_effets!O76 ->  | P146: mm | R146: Déformée radiale | S146: =Detail_des_effets!S95+Detail_des_effets!S44+Detail_des_effets!S76 ->  | T146: mm | V146: Déformée radiale | W146: =Detail_des_effets!W95+Detail_des_effets!W44+Detail_des_effets!W76 ->  | X146: mm | Z146: Déformée radiale | AA146: =Detail_des_effets!AA95+Detail_des_effets!AA44+Detail_des_effets!AA76 ->  | AB146: mm | AD146: Déformée radiale | AE146: =Detail_des_effets!AE95+Detail_des_effets!AE44+Detail_des_effets!AE76 ->  | AF146: mm | AH146: Déformée radiale | AI146: =Detail_des_effets!AI95+Detail_des_effets!AI44+Detail_des_effets!AI76 ->  | AJ146: mm | AL146: Déformée radiale | AM146: =Detail_des_effets!AM95+Detail_des_effets!AM44+Detail_des_effets!AM76 ->  | AN146: mm
B148: Nom : | C148: =C31 -> Pièce femelle | F148: Nom : | G148: =G31 -> Pièce femelle | J148: Nom : | K148: =K31 -> Pièce femelle | N148: Nom : | O148: =O31 -> Pièce femelle | R148: Nom : | S148: =S31 -> Pièce femelle | V148: Nom : | W148: =W31 -> Pièce femelle | Z148: Nom : | AA148: =AA31 -> Pièce femelle | AD148: Nom : | AE148: =AE31 -> Pièce femelle | AH148: Nom : | AI148: =AI31 -> Pièce femelle | AL148: Nom : | AM148: =AM31 -> Pièce femelle
B149: Au niveau du frettage | F149: Au niveau du frettage | J149: Au niveau du frettage | N149: Au niveau du frettage | R149: Au niveau du frettage | V149: Au niveau du frettage | Z149: Au niveau du frettage | AD149: Au niveau du frettage | AH149: Au niveau du frettage | AL149: Au niveau du frettage
B150: Contrainte axiale | C150: =Detail_des_effets!C142 -> 277.80 | D150: MPa | F150: Contrainte axiale | G150: =Detail_des_effets!G142 -> 277.80 | H150: MPa | J150: Contrainte axiale | K150: =Detail_des_effets!K142 -> 277.80 | L150: MPa | N150: Contrainte axiale | O150: =Detail_des_effets!O142 -> 277.80 | P150: MPa | R150: Contrainte axiale | S150: =Detail_des_effets!S142 -> 277.80 | T150: MPa | V150: Contrainte axiale | W150: =Detail_des_effets!W142 -> 277.80 | X150: MPa | Z150: Contrainte axiale | AA150: =Detail_des_effets!AA142 -> 277.80 | AB150: MPa | AD150: Contrainte axiale | AE150: =Detail_des_effets!AE142 -> 277.80 | AF150: MPa | AH150: Contrainte axiale | AI150: =Detail_des_effets!AI142 -> 277.80 | AJ150: MPa | AL150: Contrainte axiale | AM150: =Detail_des_effets!AM142 -> 277.80 | AN150: MPa
B151: Contrainte radiale | C151: =Detail_des_effets!C122+Detail_des_effets!C174 ->  | D151: MPa | F151: Contrainte radiale | G151: =Detail_des_effets!G122+Detail_des_effets!G174 ->  | H151: MPa | J151: Contrainte radiale | K151: =Detail_des_effets!K122+Detail_des_effets!K174 ->  | L151: MPa | N151: Contrainte radiale | O151: =Detail_des_effets!O122+Detail_des_effets!O174 ->  | P151: MPa | R151: Contrainte radiale | S151: =Detail_des_effets!S122+Detail_des_effets!S174 ->  | T151: MPa | V151: Contrainte radiale | W151: =Detail_des_effets!W122+Detail_des_effets!W174 ->  | X151: MPa | Z151: Contrainte radiale | AA151: =Detail_des_effets!AA122+Detail_des_effets!AA174 ->  | AB151: MPa | AD151: Contrainte radiale | AE151: =Detail_des_effets!AE122+Detail_des_effets!AE174 ->  | AF151: MPa | AH151: Contrainte radiale | AI151: =Detail_des_effets!AI122+Detail_des_effets!AI174 ->  | AJ151: MPa | AL151: Contrainte radiale | AM151: =Detail_des_effets!AM122+Detail_des_effets!AM174 ->  | AN151: MPa
B152: Contrainte tangentielle | C152: =Detail_des_effets!C123+Detail_des_effets!C175 ->  | D152: MPa | F152: Contrainte tangentielle | G152: =Detail_des_effets!G123+Detail_des_effets!G175 ->  | H152: MPa | J152: Contrainte tangentielle | K152: =Detail_des_effets!K123+Detail_des_effets!K175 ->  | L152: MPa | N152: Contrainte tangentielle | O152: =Detail_des_effets!O123+Detail_des_effets!O175 ->  | P152: MPa | R152: Contrainte tangentielle | S152: =Detail_des_effets!S123+Detail_des_effets!S175 ->  | T152: MPa | V152: Contrainte tangentielle | W152: =Detail_des_effets!W123+Detail_des_effets!W175 ->  | X152: MPa | Z152: Contrainte tangentielle | AA152: =Detail_des_effets!AA123+Detail_des_effets!AA175 ->  | AB152: MPa | AD152: Contrainte tangentielle | AE152: =Detail_des_effets!AE123+Detail_des_effets!AE175 ->  | AF152: MPa | AH152: Contrainte tangentielle | AI152: =Detail_des_effets!AI123+Detail_des_effets!AI175 ->  | AJ152: MPa | AL152: Contrainte tangentielle | AM152: =Detail_des_effets!AM123+Detail_des_effets!AM175 ->  | AN152: MPa
B153: Déformée axiale | C153: =Detail_des_effets!C195+Detail_des_effets!C143 -> -0.065 | D153: mm | F153: Déformée axiale | G153: =Detail_des_effets!G195+Detail_des_effets!G143 -> -0.065 | H153: mm | J153: Déformée axiale | K153: =Detail_des_effets!K195+Detail_des_effets!K143 -> -0.065 | L153: mm | N153: Déformée axiale | O153: =Detail_des_effets!O195+Detail_des_effets!O143 -> -0.065 | P153: mm | R153: Déformée axiale | S153: =Detail_des_effets!S195+Detail_des_effets!S143 -> -0.065 | T153: mm | V153: Déformée axiale | W153: =Detail_des_effets!W195+Detail_des_effets!W143 -> -0.065 | X153: mm | Z153: Déformée axiale | AA153: =Detail_des_effets!AA195+Detail_des_effets!AA143 -> -0.065 | AB153: mm | AD153: Déformée axiale | AE153: =Detail_des_effets!AE195+Detail_des_effets!AE143 -> -0.065 | AF153: mm | AH153: Déformée axiale | AI153: =Detail_des_effets!AI195+Detail_des_effets!AI143 -> -0.065 | AJ153: mm | AL153: Déformée axiale | AM153: =Detail_des_effets!AM195+Detail_des_effets!AM143 -> -0.065 | AN153: mm
B154: Déformée radiale | C154: =Detail_des_effets!C196+Detail_des_effets!C176+Detail_des_effets!C144 ->  | D154: mm | F154: Déformée radiale | G154: =Detail_des_effets!G196+Detail_des_effets!G176+Detail_des_effets!G144 ->  | H154: mm | J154: Déformée radiale | K154: =Detail_des_effets!K196+Detail_des_effets!K176+Detail_des_effets!K144 ->  | L154: mm | N154: Déformée radiale | O154: =Detail_des_effets!O196+Detail_des_effets!O176+Detail_des_effets!O144 ->  | P154: mm | R154: Déformée radiale | S154: =Detail_des_effets!S196+Detail_des_effets!S176+Detail_des_effets!S144 ->  | T154: mm | V154: Déformée radiale | W154: =Detail_des_effets!W196+Detail_des_effets!W176+Detail_des_effets!W144 ->  | X154: mm | Z154: Déformée radiale | AA154: =Detail_des_effets!AA196+Detail_des_effets!AA176+Detail_des_effets!AA144 ->  | AB154: mm | AD154: Déformée radiale | AE154: =Detail_des_effets!AE196+Detail_des_effets!AE176+Detail_des_effets!AE144 ->  | AF154: mm | AH154: Déformée radiale | AI154: =Detail_des_effets!AI196+Detail_des_effets!AI176+Detail_des_effets!AI144 ->  | AJ154: mm | AL154: Déformée radiale | AM154: =Detail_des_effets!AM196+Detail_des_effets!AM176+Detail_des_effets!AM144 ->  | AN154: mm
B155: Dans la pièce, au diamètre particulier | F155: Dans la pièce, au diamètre particulier | J155: Dans la pièce, au diamètre particulier | N155: Dans la pièce, au diamètre particulier | R155: Dans la pièce, au diamètre particulier | V155: Dans la pièce, au diamètre particulier | Z155: Dans la pièce, au diamètre particulier | AD155: Dans la pièce, au diamètre particulier | AH155: Dans la pièce, au diamètre particulier | AL155: Dans la pièce, au diamètre particulier
B156: Contrainte axiale | C156: =Detail_des_effets!C146 -> 277.80 | D156: MPa | F156: Contrainte axiale | G156: =Detail_des_effets!G146 -> 277.80 | H156: MPa | J156: Contrainte axiale | K156: =Detail_des_effets!K146 -> 277.80 | L156: MPa | N156: Contrainte axiale | O156: =Detail_des_effets!O146 -> 277.80 | P156: MPa | R156: Contrainte axiale | S156: =Detail_des_effets!S146 -> 277.80 | T156: MPa | V156: Contrainte axiale | W156: =Detail_des_effets!W146 -> 277.80 | X156: MPa | Z156: Contrainte axiale | AA156: =Detail_des_effets!AA146 -> 277.80 | AB156: MPa | AD156: Contrainte axiale | AE156: =Detail_des_effets!AE146 -> 277.80 | AF156: MPa | AH156: Contrainte axiale | AI156: =Detail_des_effets!AI146 -> 277.80 | AJ156: MPa | AL156: Contrainte axiale | AM156: =Detail_des_effets!AM146 -> 277.80 | AN156: MPa
B157: Contrainte radiale | C157: =C126 ->  | D157: MPa | F157: Contrainte radiale | G157: =G126 ->  | H157: MPa | J157: Contrainte radiale | K157: =K126 ->  | L157: MPa | N157: Contrainte radiale | O157: =O126 ->  | P157: MPa | R157: Contrainte radiale | S157: =S126 ->  | T157: MPa | V157: Contrainte radiale | W157: =W126 ->  | X157: MPa | Z157: Contrainte radiale | AA157: =AA126 ->  | AB157: MPa | AD157: Contrainte radiale | AE157: =AE126 ->  | AF157: MPa | AH157: Contrainte radiale | AI157: =AI126 ->  | AJ157: MPa | AL157: Contrainte radiale | AM157: =AM126 ->  | AN157: MPa
B158: Contrainte tangentielle | C158: =Detail_des_effets!C127+Detail_des_effets!C179 ->  | D158: MPa | F158: Contrainte tangentielle | G158: =Detail_des_effets!G127+Detail_des_effets!G179 ->  | H158: MPa | J158: Contrainte tangentielle | K158: =Detail_des_effets!K127+Detail_des_effets!K179 ->  | L158: MPa | N158: Contrainte tangentielle | O158: =Detail_des_effets!O127+Detail_des_effets!O179 ->  | P158: MPa | R158: Contrainte tangentielle | S158: =Detail_des_effets!S127+Detail_des_effets!S179 ->  | T158: MPa | V158: Contrainte tangentielle | W158: =Detail_des_effets!W127+Detail_des_effets!W179 ->  | X158: MPa | Z158: Contrainte tangentielle | AA158: =Detail_des_effets!AA127+Detail_des_effets!AA179 ->  | AB158: MPa | AD158: Contrainte tangentielle | AE158: =Detail_des_effets!AE127+Detail_des_effets!AE179 ->  | AF158: MPa | AH158: Contrainte tangentielle | AI158: =Detail_des_effets!AI127+Detail_des_effets!AI179 ->  | AJ158: MPa | AL158: Contrainte tangentielle | AM158: =Detail_des_effets!AM127+Detail_des_effets!AM179 ->  | AN158: MPa
B159: Déformée axiale | C159: =Detail_des_effets!C198+Detail_des_effets!C147 -> -0.065 | D159: mm | F159: Déformée axiale | G159: =Detail_des_effets!G198+Detail_des_effets!G147 -> -0.065 | H159: mm | J159: Déformée axiale | K159: =Detail_des_effets!K198+Detail_des_effets!K147 -> -0.065 | L159: mm | N159: Déformée axiale | O159: =Detail_des_effets!O198+Detail_des_effets!O147 -> -0.065 | P159: mm | R159: Déformée axiale | S159: =Detail_des_effets!S198+Detail_des_effets!S147 -> -0.065 | T159: mm | V159: Déformée axiale | W159: =Detail_des_effets!W198+Detail_des_effets!W147 -> -0.065 | X159: mm | Z159: Déformée axiale | AA159: =Detail_des_effets!AA198+Detail_des_effets!AA147 -> -0.065 | AB159: mm | AD159: Déformée axiale | AE159: =Detail_des_effets!AE198+Detail_des_effets!AE147 -> -0.065 | AF159: mm | AH159: Déformée axiale | AI159: =Detail_des_effets!AI198+Detail_des_effets!AI147 -> -0.065 | AJ159: mm | AL159: Déformée axiale | AM159: =Detail_des_effets!AM198+Detail_des_effets!AM147 -> -0.065 | AN159: mm
B160: Déformée radiale | C160: =Detail_des_effets!C199+Detail_des_effets!C180+Detail_des_effets!C148 ->  | D160: mm | F160: Déformée radiale | G160: =Detail_des_effets!G199+Detail_des_effets!G180+Detail_des_effets!G148 ->  | H160: mm | J160: Déformée radiale | K160: =Detail_des_effets!K199+Detail_des_effets!K180+Detail_des_effets!K148 ->  | L160: mm | N160: Déformée radiale | O160: =Detail_des_effets!O199+Detail_des_effets!O180+Detail_des_effets!O148 ->  | P160: mm | R160: Déformée radiale | S160: =Detail_des_effets!S199+Detail_des_effets!S180+Detail_des_effets!S148 ->  | T160: mm | V160: Déformée radiale | W160: =Detail_des_effets!W199+Detail_des_effets!W180+Detail_des_effets!W148 ->  | X160: mm | Z160: Déformée radiale | AA160: =Detail_des_effets!AA199+Detail_des_effets!AA180+Detail_des_effets!AA148 ->  | AB160: mm | AD160: Déformée radiale | AE160: =Detail_des_effets!AE199+Detail_des_effets!AE180+Detail_des_effets!AE148 ->  | AF160: mm | AH160: Déformée radiale | AI160: =Detail_des_effets!AI199+Detail_des_effets!AI180+Detail_des_effets!AI148 ->  | AJ160: mm | AL160: Déformée radiale | AM160: =Detail_des_effets!AM199+Detail_des_effets!AM180+Detail_des_effets!AM148 ->  | AN160: mm
B163: Résultats des effets conjugués par pièce en fonctionnement
B165: Nom : | C165: =C11 -> Pièce mâle | F165: Nom : | G165: =G11 -> Pièce mâle | J165: Nom : | K165: =K11 -> Pièce mâle | N165: Nom : | O165: =O11 -> Pièce mâle | R165: Nom : | S165: =S11 -> Pièce mâle | V165: Nom : | W165: =W11 -> Pièce mâle | Z165: Nom : | AA165: =AA11 -> Pièce mâle | AD165: Nom : | AE165: =AE11 -> Pièce mâle | AH165: Nom : | AI165: =AI11 -> Pièce mâle | AL165: Nom : | AM165: =AM11 -> Pièce mâle
B166: Au niveau du frettage | F166: Au niveau du frettage | J166: Au niveau du frettage | N166: Au niveau du frettage | R166: Au niveau du frettage | V166: Au niveau du frettage | Z166: Au niveau du frettage | AD166: Au niveau du frettage | AH166: Au niveau du frettage | AL166: Au niveau du frettage
B167: Contrainte axiale | C167: =Detail_des_effets!C48 -> 122.23 | D167: MPa | F167: Contrainte axiale | G167: =Detail_des_effets!G48 -> 122.23 | H167: MPa | J167: Contrainte axiale | K167: =Detail_des_effets!K48 -> 122.23 | L167: MPa | N167: Contrainte axiale | O167: =Detail_des_effets!O48 -> 122.23 | P167: MPa | R167: Contrainte axiale | S167: =Detail_des_effets!S48 -> 122.23 | T167: MPa | V167: Contrainte axiale | W167: =Detail_des_effets!W48 -> 122.23 | X167: MPa | Z167: Contrainte axiale | AA167: =Detail_des_effets!AA48 -> 122.23 | AB167: MPa | AD167: Contrainte axiale | AE167: =Detail_des_effets!AE48 -> 122.23 | AF167: MPa | AH167: Contrainte axiale | AI167: =Detail_des_effets!AI48 -> 122.23 | AJ167: MPa | AL167: Contrainte axiale | AM167: =Detail_des_effets!AM48 -> 122.23 | AN167: MPa
B168: Contrainte radiale | C168: =Detail_des_effets!C8+Detail_des_effets!C18+Detail_des_effets!C81 ->  | D168: MPa | F168: Contrainte radiale | G168: =Detail_des_effets!G8+Detail_des_effets!G18+Detail_des_effets!G81 ->  | H168: MPa | J168: Contrainte radiale | K168: =Detail_des_effets!K8+Detail_des_effets!K18+Detail_des_effets!K81 ->  | L168: MPa | N168: Contrainte radiale | O168: =Detail_des_effets!O8+Detail_des_effets!O18+Detail_des_effets!O81 ->  | P168: MPa | R168: Contrainte radiale | S168: =Detail_des_effets!S8+Detail_des_effets!S18+Detail_des_effets!S81 ->  | T168: MPa | V168: Contrainte radiale | W168: =Detail_des_effets!W8+Detail_des_effets!W18+Detail_des_effets!W81 ->  | X168: MPa | Z168: Contrainte radiale | AA168: =Detail_des_effets!AA8+Detail_des_effets!AA18+Detail_des_effets!AA81 ->  | AB168: MPa | AD168: Contrainte radiale | AE168: =Detail_des_effets!AE8+Detail_des_effets!AE18+Detail_des_effets!AE81 ->  | AF168: MPa | AH168: Contrainte radiale | AI168: =Detail_des_effets!AI8+Detail_des_effets!AI18+Detail_des_effets!AI81 ->  | AJ168: MPa | AL168: Contrainte radiale | AM168: =Detail_des_effets!AM8+Detail_des_effets!AM18+Detail_des_effets!AM81 ->  | AN168: MPa
B169: Contrainte tangentielle | C169: =Detail_des_effets!C9+Detail_des_effets!C19+Detail_des_effets!C82 ->  | D169: MPa | F169: Contrainte tangentielle | G169: =Detail_des_effets!G9+Detail_des_effets!G19+Detail_des_effets!G82 ->  | H169: MPa | J169: Contrainte tangentielle | K169: =Detail_des_effets!K9+Detail_des_effets!K19+Detail_des_effets!K82 ->  | L169: MPa | N169: Contrainte tangentielle | O169: =Detail_des_effets!O9+Detail_des_effets!O19+Detail_des_effets!O82 ->  | P169: MPa | R169: Contrainte tangentielle | S169: =Detail_des_effets!S9+Detail_des_effets!S19+Detail_des_effets!S82 ->  | T169: MPa | V169: Contrainte tangentielle | W169: =Detail_des_effets!W9+Detail_des_effets!W19+Detail_des_effets!W82 ->  | X169: MPa | Z169: Contrainte tangentielle | AA169: =Detail_des_effets!AA9+Detail_des_effets!AA19+Detail_des_effets!AA82 ->  | AB169: MPa | AD169: Contrainte tangentielle | AE169: =Detail_des_effets!AE9+Detail_des_effets!AE19+Detail_des_effets!AE82 ->  | AF169: MPa | AH169: Contrainte tangentielle | AI169: =Detail_des_effets!AI9+Detail_des_effets!AI19+Detail_des_effets!AI82 ->  | AJ169: MPa | AL169: Contrainte tangentielle | AM169: =Detail_des_effets!AM9+Detail_des_effets!AM19+Detail_des_effets!AM82 ->  | AN169: MPa
B170: Déformée axiale | C170: =Detail_des_effets!C49+Detail_des_effets!C99 -> -0.076 | D170: mm | F170: Déformée axiale | G170: =Detail_des_effets!G49+Detail_des_effets!G99 -> -0.076 | H170: mm | J170: Déformée axiale | K170: =Detail_des_effets!K49+Detail_des_effets!K99 -> -0.076 | L170: mm | N170: Déformée axiale | O170: =Detail_des_effets!O49+Detail_des_effets!O99 -> -0.076 | P170: mm | R170: Déformée axiale | S170: =Detail_des_effets!S49+Detail_des_effets!S99 -> -0.076 | T170: mm | V170: Déformée axiale | W170: =Detail_des_effets!W49+Detail_des_effets!W99 -> -0.076 | X170: mm | Z170: Déformée axiale | AA170: =Detail_des_effets!AA49+Detail_des_effets!AA99 -> -0.076 | AB170: mm | AD170: Déformée axiale | AE170: =Detail_des_effets!AE49+Detail_des_effets!AE99 -> -0.076 | AF170: mm | AH170: Déformée axiale | AI170: =Detail_des_effets!AI49+Detail_des_effets!AI99 -> -0.076 | AJ170: mm | AL170: Déformée axiale | AM170: =Detail_des_effets!AM49+Detail_des_effets!AM99 -> -0.076 | AN170: mm
B171: Déformée radiale | C171: =Detail_des_effets!C10+Detail_des_effets!C20+Detail_des_effets!C50+Detail_des_effets!C83 ->  | D171: mm | F171: Déformée radiale | G171: =Detail_des_effets!G10+Detail_des_effets!G20+Detail_des_effets!G50+Detail_des_effets!G83 ->  | H171: mm | J171: Déformée radiale | K171: =Detail_des_effets!K10+Detail_des_effets!K20+Detail_des_effets!K50+Detail_des_effets!K83 ->  | L171: mm | N171: Déformée radiale | O171: =Detail_des_effets!O10+Detail_des_effets!O20+Detail_des_effets!O50+Detail_des_effets!O83 ->  | P171: mm | R171: Déformée radiale | S171: =Detail_des_effets!S10+Detail_des_effets!S20+Detail_des_effets!S50+Detail_des_effets!S83 ->  | T171: mm | V171: Déformée radiale | W171: =Detail_des_effets!W10+Detail_des_effets!W20+Detail_des_effets!W50+Detail_des_effets!W83 ->  | X171: mm | Z171: Déformée radiale | AA171: =Detail_des_effets!AA10+Detail_des_effets!AA20+Detail_des_effets!AA50+Detail_des_effets!AA83 ->  | AB171: mm | AD171: Déformée radiale | AE171: =Detail_des_effets!AE10+Detail_des_effets!AE20+Detail_des_effets!AE50+Detail_des_effets!AE83 ->  | AF171: mm | AH171: Déformée radiale | AI171: =Detail_des_effets!AI10+Detail_des_effets!AI20+Detail_des_effets!AI50+Detail_des_effets!AI83 ->  | AJ171: mm | AL171: Déformée radiale | AM171: =Detail_des_effets!AM10+Detail_des_effets!AM20+Detail_des_effets!AM50+Detail_des_effets!AM83 ->  | AN171: mm
B172: Dans la pièce, au diamètre particulier | F172: Dans la pièce, au diamètre particulier | J172: Dans la pièce, au diamètre particulier | N172: Dans la pièce, au diamètre particulier | R172: Dans la pièce, au diamètre particulier | V172: Dans la pièce, au diamètre particulier | Z172: Dans la pièce, au diamètre particulier | AD172: Dans la pièce, au diamètre particulier | AH172: Dans la pièce, au diamètre particulier | AL172: Dans la pièce, au diamètre particulier
B173: Contrainte axiale | C173: =Detail_des_effets!C52 -> 122.23 | D173: MPa | F173: Contrainte axiale | G173: =Detail_des_effets!G52 -> 122.23 | H173: MPa | J173: Contrainte axiale | K173: =Detail_des_effets!K52 -> 122.23 | L173: MPa | N173: Contrainte axiale | O173: =Detail_des_effets!O52 -> 122.23 | P173: MPa | R173: Contrainte axiale | S173: =Detail_des_effets!S52 -> 122.23 | T173: MPa | V173: Contrainte axiale | W173: =Detail_des_effets!W52 -> 122.23 | X173: MPa | Z173: Contrainte axiale | AA173: =Detail_des_effets!AA52 -> 122.23 | AB173: MPa | AD173: Contrainte axiale | AE173: =Detail_des_effets!AE52 -> 122.23 | AF173: MPa | AH173: Contrainte axiale | AI173: =Detail_des_effets!AI52 -> 122.23 | AJ173: MPa | AL173: Contrainte axiale | AM173: =Detail_des_effets!AM52 -> 122.23 | AN173: MPa
B174: Contrainte radiale | C174: =Detail_des_effets!C12+Detail_des_effets!C22+Detail_des_effets!C85 ->  | D174: MPa | F174: Contrainte radiale | G174: =Detail_des_effets!G12+Detail_des_effets!G22+Detail_des_effets!G85 ->  | H174: MPa | J174: Contrainte radiale | K174: =Detail_des_effets!K12+Detail_des_effets!K22+Detail_des_effets!K85 ->  | L174: MPa | N174: Contrainte radiale | O174: =Detail_des_effets!O12+Detail_des_effets!O22+Detail_des_effets!O85 ->  | P174: MPa | R174: Contrainte radiale | S174: =Detail_des_effets!S12+Detail_des_effets!S22+Detail_des_effets!S85 ->  | T174: MPa | V174: Contrainte radiale | W174: =Detail_des_effets!W12+Detail_des_effets!W22+Detail_des_effets!W85 ->  | X174: MPa | Z174: Contrainte radiale | AA174: =Detail_des_effets!AA12+Detail_des_effets!AA22+Detail_des_effets!AA85 ->  | AB174: MPa | AD174: Contrainte radiale | AE174: =Detail_des_effets!AE12+Detail_des_effets!AE22+Detail_des_effets!AE85 ->  | AF174: MPa | AH174: Contrainte radiale | AI174: =Detail_des_effets!AI12+Detail_des_effets!AI22+Detail_des_effets!AI85 ->  | AJ174: MPa | AL174: Contrainte radiale | AM174: =Detail_des_effets!AM12+Detail_des_effets!AM22+Detail_des_effets!AM85 ->  | AN174: MPa
B175: Contrainte tangentielle | C175: =Detail_des_effets!C13+Detail_des_effets!C23+Detail_des_effets!C86 ->  | D175: MPa | F175: Contrainte tangentielle | G175: =Detail_des_effets!G13+Detail_des_effets!G23+Detail_des_effets!G86 ->  | H175: MPa | J175: Contrainte tangentielle | K175: =Detail_des_effets!K13+Detail_des_effets!K23+Detail_des_effets!K86 ->  | L175: MPa | N175: Contrainte tangentielle | O175: =Detail_des_effets!O13+Detail_des_effets!O23+Detail_des_effets!O86 ->  | P175: MPa | R175: Contrainte tangentielle | S175: =Detail_des_effets!S13+Detail_des_effets!S23+Detail_des_effets!S86 ->  | T175: MPa | V175: Contrainte tangentielle | W175: =Detail_des_effets!W13+Detail_des_effets!W23+Detail_des_effets!W86 ->  | X175: MPa | Z175: Contrainte tangentielle | AA175: =Detail_des_effets!AA13+Detail_des_effets!AA23+Detail_des_effets!AA86 ->  | AB175: MPa | AD175: Contrainte tangentielle | AE175: =Detail_des_effets!AE13+Detail_des_effets!AE23+Detail_des_effets!AE86 ->  | AF175: MPa | AH175: Contrainte tangentielle | AI175: =Detail_des_effets!AI13+Detail_des_effets!AI23+Detail_des_effets!AI86 ->  | AJ175: MPa | AL175: Contrainte tangentielle | AM175: =Detail_des_effets!AM13+Detail_des_effets!AM23+Detail_des_effets!AM86 ->  | AN175: MPa
B176: Déformée axiale | C176: =Detail_des_effets!C53+Detail_des_effets!C102 -> -0.076 | D176: mm | F176: Déformée axiale | G176: =Detail_des_effets!G53+Detail_des_effets!G102 -> -0.076 | H176: mm | J176: Déformée axiale | K176: =Detail_des_effets!K53+Detail_des_effets!K102 -> -0.076 | L176: mm | N176: Déformée axiale | O176: =Detail_des_effets!O53+Detail_des_effets!O102 -> -0.076 | P176: mm | R176: Déformée axiale | S176: =Detail_des_effets!S53+Detail_des_effets!S102 -> -0.076 | T176: mm | V176: Déformée axiale | W176: =Detail_des_effets!W53+Detail_des_effets!W102 -> -0.076 | X176: mm | Z176: Déformée axiale | AA176: =Detail_des_effets!AA53+Detail_des_effets!AA102 -> -0.076 | AB176: mm | AD176: Déformée axiale | AE176: =Detail_des_effets!AE53+Detail_des_effets!AE102 -> -0.076 | AF176: mm | AH176: Déformée axiale | AI176: =Detail_des_effets!AI53+Detail_des_effets!AI102 -> -0.076 | AJ176: mm | AL176: Déformée axiale | AM176: =Detail_des_effets!AM53+Detail_des_effets!AM102 -> -0.076 | AN176: mm
B177: Déformée radiale | C177: =Detail_des_effets!C14+Detail_des_effets!C24+Detail_des_effets!C50+Detail_des_effets!C83+Detail_des_effets!C100 ->  | D177: mm | F177: Déformée radiale | G177: =Detail_des_effets!G14+Detail_des_effets!G24+Detail_des_effets!G50+Detail_des_effets!G83+Detail_des_effets!G100 ->  | H177: mm | J177: Déformée radiale | K177: =Detail_des_effets!K14+Detail_des_effets!K24+Detail_des_effets!K50+Detail_des_effets!K83+Detail_des_effets!K100 ->  | L177: mm | N177: Déformée radiale | O177: =Detail_des_effets!O14+Detail_des_effets!O24+Detail_des_effets!O50+Detail_des_effets!O83+Detail_des_effets!O100 ->  | P177: mm | R177: Déformée radiale | S177: =Detail_des_effets!S14+Detail_des_effets!S24+Detail_des_effets!S50+Detail_des_effets!S83+Detail_des_effets!S100 ->  | T177: mm | V177: Déformée radiale | W177: =Detail_des_effets!W14+Detail_des_effets!W24+Detail_des_effets!W50+Detail_des_effets!W83+Detail_des_effets!W100 ->  | X177: mm | Z177: Déformée radiale | AA177: =Detail_des_effets!AA14+Detail_des_effets!AA24+Detail_des_effets!AA50+Detail_des_effets!AA83+Detail_des_effets!AA100 ->  | AB177: mm | AD177: Déformée radiale | AE177: =Detail_des_effets!AE14+Detail_des_effets!AE24+Detail_des_effets!AE50+Detail_des_effets!AE83+Detail_des_effets!AE100 ->  | AF177: mm | AH177: Déformée radiale | AI177: =Detail_des_effets!AI14+Detail_des_effets!AI24+Detail_des_effets!AI50+Detail_des_effets!AI83+Detail_des_effets!AI100 ->  | AJ177: mm | AL177: Déformée radiale | AM177: =Detail_des_effets!AM14+Detail_des_effets!AM24+Detail_des_effets!AM50+Detail_des_effets!AM83+Detail_des_effets!AM100 ->  | AN177: mm
B179: Nom : | C179: =C31 -> Pièce femelle | F179: Nom : | G179: =G31 -> Pièce femelle | J179: Nom : | K179: =K31 -> Pièce femelle | N179: Nom : | O179: =O31 -> Pièce femelle | R179: Nom : | S179: =S31 -> Pièce femelle | V179: Nom : | W179: =W31 -> Pièce femelle | Z179: Nom : | AA179: =AA31 -> Pièce femelle | AD179: Nom : | AE179: =AE31 -> Pièce femelle | AH179: Nom : | AI179: =AI31 -> Pièce femelle | AL179: Nom : | AM179: =AM31 -> Pièce femelle
B180: Au niveau du frettage | F180: Au niveau du frettage | J180: Au niveau du frettage | N180: Au niveau du frettage | R180: Au niveau du frettage | V180: Au niveau du frettage | Z180: Au niveau du frettage | AD180: Au niveau du frettage | AH180: Au niveau du frettage | AL180: Au niveau du frettage
B181: Contrainte axiale | C181: =Detail_des_effets!C152 -> 277.80 | D181: MPa | F181: Contrainte axiale | G181: =Detail_des_effets!G152 -> 277.80 | H181: MPa | J181: Contrainte axiale | K181: =Detail_des_effets!K152 -> 277.80 | L181: MPa | N181: Contrainte axiale | O181: =Detail_des_effets!O152 -> 277.80 | P181: MPa | R181: Contrainte axiale | S181: =Detail_des_effets!S152 -> 277.80 | T181: MPa | V181: Contrainte axiale | W181: =Detail_des_effets!W152 -> 277.80 | X181: MPa | Z181: Contrainte axiale | AA181: =Detail_des_effets!AA152 -> 277.80 | AB181: MPa | AD181: Contrainte axiale | AE181: =Detail_des_effets!AE152 -> 277.80 | AF181: MPa | AH181: Contrainte axiale | AI181: =Detail_des_effets!AI152 -> 277.80 | AJ181: MPa | AL181: Contrainte axiale | AM181: =Detail_des_effets!AM152 -> 277.80 | AN181: MPa
B182: Contrainte radiale | C182: =Detail_des_effets!C112+Detail_des_effets!C122+Detail_des_effets!C185 ->  | D182: MPa | F182: Contrainte radiale | G182: =Detail_des_effets!G112+Detail_des_effets!G122+Detail_des_effets!G185 ->  | H182: MPa | J182: Contrainte radiale | K182: =Detail_des_effets!K112+Detail_des_effets!K122+Detail_des_effets!K185 ->  | L182: MPa | N182: Contrainte radiale | O182: =Detail_des_effets!O112+Detail_des_effets!O122+Detail_des_effets!O185 ->  | P182: MPa | R182: Contrainte radiale | S182: =Detail_des_effets!S112+Detail_des_effets!S122+Detail_des_effets!S185 ->  | T182: MPa | V182: Contrainte radiale | W182: =Detail_des_effets!W112+Detail_des_effets!W122+Detail_des_effets!W185 ->  | X182: MPa | Z182: Contrainte radiale | AA182: =Detail_des_effets!AA112+Detail_des_effets!AA122+Detail_des_effets!AA185 ->  | AB182: MPa | AD182: Contrainte radiale | AE182: =Detail_des_effets!AE112+Detail_des_effets!AE122+Detail_des_effets!AE185 ->  | AF182: MPa | AH182: Contrainte radiale | AI182: =Detail_des_effets!AI112+Detail_des_effets!AI122+Detail_des_effets!AI185 ->  | AJ182: MPa | AL182: Contrainte radiale | AM182: =Detail_des_effets!AM112+Detail_des_effets!AM122+Detail_des_effets!AM185 ->  | AN182: MPa
B183: Contrainte tangentielle | C183: =Detail_des_effets!C113+Detail_des_effets!C123+Detail_des_effets!C186 ->  | D183: MPa | F183: Contrainte tangentielle | G183: =Detail_des_effets!G113+Detail_des_effets!G123+Detail_des_effets!G186 ->  | H183: MPa | J183: Contrainte tangentielle | K183: =Detail_des_effets!K113+Detail_des_effets!K123+Detail_des_effets!K186 ->  | L183: MPa | N183: Contrainte tangentielle | O183: =Detail_des_effets!O113+Detail_des_effets!O123+Detail_des_effets!O186 ->  | P183: MPa | R183: Contrainte tangentielle | S183: =Detail_des_effets!S113+Detail_des_effets!S123+Detail_des_effets!S186 ->  | T183: MPa | V183: Contrainte tangentielle | W183: =Detail_des_effets!W113+Detail_des_effets!W123+Detail_des_effets!W186 ->  | X183: MPa | Z183: Contrainte tangentielle | AA183: =Detail_des_effets!AA113+Detail_des_effets!AA123+Detail_des_effets!AA186 ->  | AB183: MPa | AD183: Contrainte tangentielle | AE183: =Detail_des_effets!AE113+Detail_des_effets!AE123+Detail_des_effets!AE186 ->  | AF183: MPa | AH183: Contrainte tangentielle | AI183: =Detail_des_effets!AI113+Detail_des_effets!AI123+Detail_des_effets!AI186 ->  | AJ183: MPa | AL183: Contrainte tangentielle | AM183: =Detail_des_effets!AM113+Detail_des_effets!AM123+Detail_des_effets!AM186 ->  | AN183: MPa
B184: Déformée axiale | C184: =Detail_des_effets!C153+Detail_des_effets!C203 -> -0.038 | D184: mm | F184: Déformée axiale | G184: =Detail_des_effets!G153+Detail_des_effets!G203 -> -0.038 | H184: mm | J184: Déformée axiale | K184: =Detail_des_effets!K153+Detail_des_effets!K203 -> -0.038 | L184: mm | N184: Déformée axiale | O184: =Detail_des_effets!O153+Detail_des_effets!O203 -> -0.038 | P184: mm | R184: Déformée axiale | S184: =Detail_des_effets!S153+Detail_des_effets!S203 -> -0.038 | T184: mm | V184: Déformée axiale | W184: =Detail_des_effets!W153+Detail_des_effets!W203 -> -0.038 | X184: mm | Z184: Déformée axiale | AA184: =Detail_des_effets!AA153+Detail_des_effets!AA203 -> -0.038 | AB184: mm | AD184: Déformée axiale | AE184: =Detail_des_effets!AE153+Detail_des_effets!AE203 -> -0.038 | AF184: mm | AH184: Déformée axiale | AI184: =Detail_des_effets!AI153+Detail_des_effets!AI203 -> -0.038 | AJ184: mm | AL184: Déformée axiale | AM184: =Detail_des_effets!AM153+Detail_des_effets!AM203 -> -0.038 | AN184: mm
B185: Déformée radiale | C185: =Detail_des_effets!C114+Detail_des_effets!C124+Detail_des_effets!C154+Detail_des_effets!C187+Detail_des_effets!C204 ->  | D185: mm | F185: Déformée radiale | G185: =Detail_des_effets!G114+Detail_des_effets!G124+Detail_des_effets!G154+Detail_des_effets!G187+Detail_des_effets!G204 ->  | H185: mm | J185: Déformée radiale | K185: =Detail_des_effets!K114+Detail_des_effets!K124+Detail_des_effets!K154+Detail_des_effets!K187+Detail_des_effets!K204 ->  | L185: mm | N185: Déformée radiale | O185: =Detail_des_effets!O114+Detail_des_effets!O124+Detail_des_effets!O154+Detail_des_effets!O187+Detail_des_effets!O204 ->  | P185: mm | R185: Déformée radiale | S185: =Detail_des_effets!S114+Detail_des_effets!S124+Detail_des_effets!S154+Detail_des_effets!S187+Detail_des_effets!S204 ->  | T185: mm | V185: Déformée radiale | W185: =Detail_des_effets!W114+Detail_des_effets!W124+Detail_des_effets!W154+Detail_des_effets!W187+Detail_des_effets!W204 ->  | X185: mm | Z185: Déformée radiale | AA185: =Detail_des_effets!AA114+Detail_des_effets!AA124+Detail_des_effets!AA154+Detail_des_effets!AA187+Detail_des_effets!AA204 ->  | AB185: mm | AD185: Déformée radiale | AE185: =Detail_des_effets!AE114+Detail_des_effets!AE124+Detail_des_effets!AE154+Detail_des_effets!AE187+Detail_des_effets!AE204 ->  | AF185: mm | AH185: Déformée radiale | AI185: =Detail_des_effets!AI114+Detail_des_effets!AI124+Detail_des_effets!AI154+Detail_des_effets!AI187+Detail_des_effets!AI204 ->  | AJ185: mm | AL185: Déformée radiale | AM185: =Detail_des_effets!AM114+Detail_des_effets!AM124+Detail_des_effets!AM154+Detail_des_effets!AM187+Detail_des_effets!AM204 ->  | AN185: mm
B186: Dans la pièce, au diamètre particulier | F186: Dans la pièce, au diamètre particulier | J186: Dans la pièce, au diamètre particulier | N186: Dans la pièce, au diamètre particulier | R186: Dans la pièce, au diamètre particulier | V186: Dans la pièce, au diamètre particulier | Z186: Dans la pièce, au diamètre particulier | AD186: Dans la pièce, au diamètre particulier | AH186: Dans la pièce, au diamètre particulier | AL186: Dans la pièce, au diamètre particulier
B187: Contrainte axiale | C187: =Detail_des_effets!C152 -> 277.80 | D187: MPa | F187: Contrainte axiale | G187: =Detail_des_effets!G152 -> 277.80 | H187: MPa | J187: Contrainte axiale | K187: =Detail_des_effets!K152 -> 277.80 | L187: MPa | N187: Contrainte axiale | O187: =Detail_des_effets!O152 -> 277.80 | P187: MPa | R187: Contrainte axiale | S187: =Detail_des_effets!S152 -> 277.80 | T187: MPa | V187: Contrainte axiale | W187: =Detail_des_effets!W152 -> 277.80 | X187: MPa | Z187: Contrainte axiale | AA187: =Detail_des_effets!AA152 -> 277.80 | AB187: MPa | AD187: Contrainte axiale | AE187: =Detail_des_effets!AE152 -> 277.80 | AF187: MPa | AH187: Contrainte axiale | AI187: =Detail_des_effets!AI152 -> 277.80 | AJ187: MPa | AL187: Contrainte axiale | AM187: =Detail_des_effets!AM152 -> 277.80 | AN187: MPa
B188: Contrainte radiale | C188: =Detail_des_effets!C116+Detail_des_effets!C126+Detail_des_effets!C185 ->  | D188: MPa | F188: Contrainte radiale | G188: =Detail_des_effets!G116+Detail_des_effets!G126+Detail_des_effets!G185 ->  | H188: MPa | J188: Contrainte radiale | K188: =Detail_des_effets!K116+Detail_des_effets!K126+Detail_des_effets!K185 ->  | L188: MPa | N188: Contrainte radiale | O188: =Detail_des_effets!O116+Detail_des_effets!O126+Detail_des_effets!O185 ->  | P188: MPa | R188: Contrainte radiale | S188: =Detail_des_effets!S116+Detail_des_effets!S126+Detail_des_effets!S185 ->  | T188: MPa | V188: Contrainte radiale | W188: =Detail_des_effets!W116+Detail_des_effets!W126+Detail_des_effets!W185 ->  | X188: MPa | Z188: Contrainte radiale | AA188: =Detail_des_effets!AA116+Detail_des_effets!AA126+Detail_des_effets!AA185 ->  | AB188: MPa | AD188: Contrainte radiale | AE188: =Detail_des_effets!AE116+Detail_des_effets!AE126+Detail_des_effets!AE185 ->  | AF188: MPa | AH188: Contrainte radiale | AI188: =Detail_des_effets!AI116+Detail_des_effets!AI126+Detail_des_effets!AI185 ->  | AJ188: MPa | AL188: Contrainte radiale | AM188: =Detail_des_effets!AM116+Detail_des_effets!AM126+Detail_des_effets!AM185 ->  | AN188: MPa
B189: Contrainte tangentielle | C189: =Detail_des_effets!C117+Detail_des_effets!C127+Detail_des_effets!C186 ->  | D189: MPa | F189: Contrainte tangentielle | G189: =Detail_des_effets!G117+Detail_des_effets!G127+Detail_des_effets!G186 ->  | H189: MPa | J189: Contrainte tangentielle | K189: =Detail_des_effets!K117+Detail_des_effets!K127+Detail_des_effets!K186 ->  | L189: MPa | N189: Contrainte tangentielle | O189: =Detail_des_effets!O117+Detail_des_effets!O127+Detail_des_effets!O186 ->  | P189: MPa | R189: Contrainte tangentielle | S189: =Detail_des_effets!S117+Detail_des_effets!S127+Detail_des_effets!S186 ->  | T189: MPa | V189: Contrainte tangentielle | W189: =Detail_des_effets!W117+Detail_des_effets!W127+Detail_des_effets!W186 ->  | X189: MPa | Z189: Contrainte tangentielle | AA189: =Detail_des_effets!AA117+Detail_des_effets!AA127+Detail_des_effets!AA186 ->  | AB189: MPa | AD189: Contrainte tangentielle | AE189: =Detail_des_effets!AE117+Detail_des_effets!AE127+Detail_des_effets!AE186 ->  | AF189: MPa | AH189: Contrainte tangentielle | AI189: =Detail_des_effets!AI117+Detail_des_effets!AI127+Detail_des_effets!AI186 ->  | AJ189: MPa | AL189: Contrainte tangentielle | AM189: =Detail_des_effets!AM117+Detail_des_effets!AM127+Detail_des_effets!AM186 ->  | AN189: MPa
B190: Déformée axiale | C190: =Detail_des_effets!C203+Detail_des_effets!C153 -> -0.038 | D190: mm | F190: Déformée axiale | G190: =Detail_des_effets!G203+Detail_des_effets!G153 -> -0.038 | H190: mm | J190: Déformée axiale | K190: =Detail_des_effets!K203+Detail_des_effets!K153 -> -0.038 | L190: mm | N190: Déformée axiale | O190: =Detail_des_effets!O203+Detail_des_effets!O153 -> -0.038 | P190: mm | R190: Déformée axiale | S190: =Detail_des_effets!S203+Detail_des_effets!S153 -> -0.038 | T190: mm | V190: Déformée axiale | W190: =Detail_des_effets!W203+Detail_des_effets!W153 -> -0.038 | X190: mm | Z190: Déformée axiale | AA190: =Detail_des_effets!AA203+Detail_des_effets!AA153 -> -0.038 | AB190: mm | AD190: Déformée axiale | AE190: =Detail_des_effets!AE203+Detail_des_effets!AE153 -> -0.038 | AF190: mm | AH190: Déformée axiale | AI190: =Detail_des_effets!AI203+Detail_des_effets!AI153 -> -0.038 | AJ190: mm | AL190: Déformée axiale | AM190: =Detail_des_effets!AM203+Detail_des_effets!AM153 -> -0.038 | AN190: mm
B191: Déformée radiale | C191: =Detail_des_effets!C118+Detail_des_effets!C128+Detail_des_effets!C158+Detail_des_effets!C191+Detail_des_effets!C207 ->  | D191: mm | F191: Déformée radiale | G191: =Detail_des_effets!G118+Detail_des_effets!G128+Detail_des_effets!G158+Detail_des_effets!G191+Detail_des_effets!G207 ->  | H191: mm | J191: Déformée radiale | K191: =Detail_des_effets!K118+Detail_des_effets!K128+Detail_des_effets!K158+Detail_des_effets!K191+Detail_des_effets!K207 ->  | L191: mm | N191: Déformée radiale | O191: =Detail_des_effets!O118+Detail_des_effets!O128+Detail_des_effets!O158+Detail_des_effets!O191+Detail_des_effets!O207 ->  | P191: mm | R191: Déformée radiale | S191: =Detail_des_effets!S118+Detail_des_effets!S128+Detail_des_effets!S158+Detail_des_effets!S191+Detail_des_effets!S207 ->  | T191: mm | V191: Déformée radiale | W191: =Detail_des_effets!W118+Detail_des_effets!W128+Detail_des_effets!W158+Detail_des_effets!W191+Detail_des_effets!W207 ->  | X191: mm | Z191: Déformée radiale | AA191: =Detail_des_effets!AA118+Detail_des_effets!AA128+Detail_des_effets!AA158+Detail_des_effets!AA191+Detail_des_effets!AA207 ->  | AB191: mm | AD191: Déformée radiale | AE191: =Detail_des_effets!AE118+Detail_des_effets!AE128+Detail_des_effets!AE158+Detail_des_effets!AE191+Detail_des_effets!AE207 ->  | AF191: mm | AH191: Déformée radiale | AI191: =Detail_des_effets!AI118+Detail_des_effets!AI128+Detail_des_effets!AI158+Detail_des_effets!AI191+Detail_des_effets!AI207 ->  | AJ191: mm | AL191: Déformée radiale | AM191: =Detail_des_effets!AM118+Detail_des_effets!AM128+Detail_des_effets!AM158+Detail_des_effets!AM191+Detail_des_effets!AM207 ->  | AN191: mm
A197: Effort d'emmanchement au montage | C197: =IF((C55*Detail_des_effets!C161*PI()*Empilage!C15*MIN(Empilage!C13,Empilage!C33))<=0,0,C55*Detail_des_effets!C161*PI()*Empilage!C15*MIN(Empilage!C13,Empilage!C33)) ->  | D197: N | E197: Effort d'emmanchement au montage | G197: =IF((G55*Detail_des_effets!G161*PI()*Empilage!G15*MIN(Empilage!G13,Empilage!G33))<=0,0,G55*Detail_des_effets!G161*PI()*Empilage!G15*MIN(Empilage!G13,Empilage!G33)) ->  | H197: N | I197: Effort d'emmanchement au montage | K197: =IF((K55*Detail_des_effets!K161*PI()*Empilage!K15*MIN(Empilage!K13,Empilage!K33))<=0,0,K55*Detail_des_effets!K161*PI()*Empilage!K15*MIN(Empilage!K13,Empilage!K33)) ->  | L197: N | M197: Effort d'emmanchement au montage | O197: =IF((O55*Detail_des_effets!O161*PI()*Empilage!O15*MIN(Empilage!O13,Empilage!O33))<=0,0,O55*Detail_des_effets!O161*PI()*Empilage!O15*MIN(Empilage!O13,Empilage!O33)) ->  | P197: N | Q197: Effort d'emmanchement au montage | S197: =IF((S55*Detail_des_effets!S161*PI()*Empilage!S15*MIN(Empilage!S13,Empilage!S33))<=0,0,S55*Detail_des_effets!S161*PI()*Empilage!S15*MIN(Empilage!S13,Empilage!S33)) ->  | T197: N | U197: Effort d'emmanchement au montage | W197: =IF((W55*Detail_des_effets!W161*PI()*Empilage!W15*MIN(Empilage!W13,Empilage!W33))<=0,0,W55*Detail_des_effets!W161*PI()*Empilage!W15*MIN(Empilage!W13,Empilage!W33)) ->  | X197: N | Y197: Effort d'emmanchement au montage | AA197: =IF((AA55*Detail_des_effets!AA161*PI()*Empilage!AA15*MIN(Empilage!AA13,Empilage!AA33))<=0,0,AA55*Detail_des_effets!AA161*PI()*Empilage!AA15*MIN(Empilage!AA13,Empilage!AA33)) ->  | AB197: N | AC197: Effort d'emmanchement au montage | AE197: =IF((AE55*Detail_des_effets!AE161*PI()*Empilage!AE15*MIN(Empilage!AE13,Empilage!AE33))<=0,0,AE55*Detail_des_effets!AE161*PI()*Empilage!AE15*MIN(Empilage!AE13,Empilage!AE33)) ->  | AF197: N | AG197: Effort d'emmanchement au montage | AI197: =IF((AI55*Detail_des_effets!AI161*PI()*Empilage!AI15*MIN(Empilage!AI13,Empilage!AI33))<=0,0,AI55*Detail_des_effets!AI161*PI()*Empilage!AI15*MIN(Empilage!AI13,Empilage!AI33)) ->  | AJ197: N | AK197: Effort d'emmanchement au montage | AM197: =IF((AM55*Detail_des_effets!AM161*PI()*Empilage!AM15*MIN(Empilage!AM13,Empilage!AM33))<=0,0,AM55*Detail_des_effets!AM161*PI()*Empilage!AM15*MIN(Empilage!AM13,Empilage!AM33)) ->  | AN197: N
A198: Pression effective en fonctionnement | C198: Empilage!/Empilage!/(Constantes_de_frettage!-Constantes_de_frettage!) * 0.001 | D198: MPa | E198: Pression effective en fonctionnement | G198: Empilage!/Empilage!/(Constantes_de_frettage!-Constantes_de_frettage!) * 0.001 | H198: MPa | I198: Pression effective en fonctionnement | K198: Empilage!/Empilage!/(Constantes_de_frettage!-Constantes_de_frettage!) * 0.001 | L198: MPa | M198: Pression effective en fonctionnement | O198: Empilage!/Empilage!/(Constantes_de_frettage!-Constantes_de_frettage!) * 0.001 | P198: MPa | Q198: Pression effective en fonctionnement | S198: Empilage!/Empilage!/(Constantes_de_frettage!-Constantes_de_frettage!) * 0.001 | T198: MPa | U198: Pression effective en fonctionnement | W198: Empilage!/Empilage!/(Constantes_de_frettage!-Constantes_de_frettage!) * 0.001 | X198: MPa | Y198: Pression effective en fonctionnement | AA198: Empilage!/Empilage!/(Constantes_de_frettage!-Constantes_de_frettage!) * 0.001 | AB198: MPa | AC198: Pression effective en fonctionnement | AE198: Empilage!/Empilage!/(Constantes_de_frettage!-Constantes_de_frettage!) * 0.001 | AF198: MPa | AG198: Pression effective en fonctionnement | AI198: Empilage!/Empilage!/(Constantes_de_frettage!-Constantes_de_frettage!) * 0.001 | AJ198: MPa | AK198: Pression effective en fonctionnement | AM198: Empilage!/Empilage!/(Constantes_de_frettage!-Constantes_de_frettage!) * 0.001 | AN198: MPa
A199: Jeu/frettage effectif en fonctionnement | C199: =IF((C29+(Detail_des_effets!C10+Detail_des_effets!C20+Detail_des_effets!C50+Detail_des_effets!C100-Detail_des_effets!C114-Detail_des_effets!C124-Detail_des_effets!C154-Detail_des_effets!C204)*1000)>0,C29+(Detail_des_effets!C10+Detail_des_effets!C20+Detail_des_effets!C50+Detail_des_effets!C100-Detail_des_effets!C114-Detail_des_effets!C124-Detail_des_effets!C154-Detail_des_effets!C204)*1000,0) -> 175.5 | D199: micron | E199: Jeu/frettage effectif en fonctionnement | G199: =IF((G29+(Detail_des_effets!G10+Detail_des_effets!G20+Detail_des_effets!G50+Detail_des_effets!G100-Detail_des_effets!G114-Detail_des_effets!G124-Detail_des_effets!G154-Detail_des_effets!G204)*1000)>0,G29+(Detail_des_effets!G10+Detail_des_effets!G20+Detail_des_effets!G50+Detail_des_effets!G100-Detail_des_effets!G114-Detail_des_effets!G124-Detail_des_effets!G154-Detail_des_effets!G204)*1000,0) -> 175.5 | H199: micron | I199: Jeu/frettage effectif en fonctionnement | K199: =IF((K29+(Detail_des_effets!K10+Detail_des_effets!K20+Detail_des_effets!K50+Detail_des_effets!K100-Detail_des_effets!K114-Detail_des_effets!K124-Detail_des_effets!K154-Detail_des_effets!K204)*1000)>0,K29+(Detail_des_effets!K10+Detail_des_effets!K20+Detail_des_effets!K50+Detail_des_effets!K100-Detail_des_effets!K114-Detail_des_effets!K124-Detail_des_effets!K154-Detail_des_effets!K204)*1000,0) -> 175.5 | L199: micron | M199: Jeu/frettage effectif en fonctionnement | O199: =IF((O29+(Detail_des_effets!O10+Detail_des_effets!O20+Detail_des_effets!O50+Detail_des_effets!O100-Detail_des_effets!O114-Detail_des_effets!O124-Detail_des_effets!O154-Detail_des_effets!O204)*1000)>0,O29+(Detail_des_effets!O10+Detail_des_effets!O20+Detail_des_effets!O50+Detail_des_effets!O100-Detail_des_effets!O114-Detail_des_effets!O124-Detail_des_effets!O154-Detail_des_effets!O204)*1000,0) -> 175.5 | P199: micron | Q199: Jeu/frettage effectif en fonctionnement | S199: =IF((S29+(Detail_des_effets!S10+Detail_des_effets!S20+Detail_des_effets!S50+Detail_des_effets!S100-Detail_des_effets!S114-Detail_des_effets!S124-Detail_des_effets!S154-Detail_des_effets!S204)*1000)>0,S29+(Detail_des_effets!S10+Detail_des_effets!S20+Detail_des_effets!S50+Detail_des_effets!S100-Detail_des_effets!S114-Detail_des_effets!S124-Detail_des_effets!S154-Detail_des_effets!S204)*1000,0) -> 175.5 | T199: micron | U199: Jeu/frettage effectif en fonctionnement | W199: =IF((W29+(Detail_des_effets!W10+Detail_des_effets!W20+Detail_des_effets!W50+Detail_des_effets!W100-Detail_des_effets!W114-Detail_des_effets!W124-Detail_des_effets!W154-Detail_des_effets!W204)*1000)>0,W29+(Detail_des_effets!W10+Detail_des_effets!W20+Detail_des_effets!W50+Detail_des_effets!W100-Detail_des_effets!W114-Detail_des_effets!W124-Detail_des_effets!W154-Detail_des_effets!W204)*1000,0) -> 175.5 | X199: micron | Y199: Jeu/frettage effectif en fonctionnement | AA199: =IF((AA29+(Detail_des_effets!AA10+Detail_des_effets!AA20+Detail_des_effets!AA50+Detail_des_effets!AA100-Detail_des_effets!AA114-Detail_des_effets!AA124-Detail_des_effets!AA154-Detail_des_effets!AA204)*1000)>0,AA29+(Detail_des_effets!AA10+Detail_des_effets!AA20+Detail_des_effets!AA50+Detail_des_effets!AA100-Detail_des_effets!AA114-Detail_des_effets!AA124-Detail_des_effets!AA154-Detail_des_effets!AA204)*1000,0) -> 175.5 | AB199: micron | AC199: Jeu/frettage effectif en fonctionnement | AE199: =IF((AE29+(Detail_des_effets!AE10+Detail_des_effets!AE20+Detail_des_effets!AE50+Detail_des_effets!AE100-Detail_des_effets!AE114-Detail_des_effets!AE124-Detail_des_effets!AE154-Detail_des_effets!AE204)*1000)>0,AE29+(Detail_des_effets!AE10+Detail_des_effets!AE20+Detail_des_effets!AE50+Detail_des_effets!AE100-Detail_des_effets!AE114-Detail_des_effets!AE124-Detail_des_effets!AE154-Detail_des_effets!AE204)*1000,0) -> 175.5 | AF199: micron | AG199: Jeu/frettage effectif en fonctionnement | AI199: =IF((AI29+(Detail_des_effets!AI10+Detail_des_effets!AI20+Detail_des_effets!AI50+Detail_des_effets!AI100-Detail_des_effets!AI114-Detail_des_effets!AI124-Detail_des_effets!AI154-Detail_des_effets!AI204)*1000)>0,AI29+(Detail_des_effets!AI10+Detail_des_effets!AI20+Detail_des_effets!AI50+Detail_des_effets!AI100-Detail_des_effets!AI114-Detail_des_effets!AI124-Detail_des_effets!AI154-Detail_des_effets!AI204)*1000,0) -> 175.5 | AJ199: micron | AK199: Jeu/frettage effectif en fonctionnement | AM199: =IF((AM29+(Detail_des_effets!AM10+Detail_des_effets!AM20+Detail_des_effets!AM50+Detail_des_effets!AM100-Detail_des_effets!AM114-Detail_des_effets!AM124-Detail_des_effets!AM154-Detail_des_effets!AM204)*1000)>0,AM29+(Detail_des_effets!AM10+Detail_des_effets!AM20+Detail_des_effets!AM50+Detail_des_effets!AM100-Detail_des_effets!AM114-Detail_des_effets!AM124-Detail_des_effets!AM154-Detail_des_effets!AM204)*1000,0) -> 175.5 | AN199: micron
A200: Effet de fond | C200: =C42 -> 0.0 | D200: N | E200: Effet de fond | G200: =G42 -> 0.0 | H200: N | I200: Effet de fond | K200: =K42 -> 0.0 | L200: N | M200: Effet de fond | O200: =O42 -> 0.0 | P200: N | Q200: Effet de fond | S200: =S42 -> 0.0 | T200: N | U200: Effet de fond | W200: =W42 -> 0.0 | X200: N | Y200: Effet de fond | AA200: =AA42 -> 0.0 | AB200: N | AC200: Effet de fond | AE200: =AE42 -> 0.0 | AF200: N | AG200: Effet de fond | AI200: =AI42 -> 0.0 | AJ200: N | AK200: Effet de fond | AM200: =AM42 -> 0.0 | AN200: N
A201: Résultat jeu/frette | C201: =IF(C29<=0,"Attention frettage non désiré",IF(C199=0,"Incertain",IF(C199>0,"Maintien frette assuré","Défrettage"))) -> Maintien frette assuré | E201: Résultat jeu/frette | G201: =IF(G29<=0,"Attention frettage non désiré",IF(G199=0,"Incertain",IF(G199>0,"Maintien frette assuré","Défrettage"))) -> Maintien frette assuré | I201: Résultat jeu/frette | K201: =IF(K29<=0,"Attention frettage non désiré",IF(K199=0,"Incertain",IF(K199>0,"Maintien frette assuré","Défrettage"))) -> Maintien frette assuré | M201: Résultat jeu/frette | O201: =IF(O29<=0,"Attention frettage non désiré",IF(O199=0,"Incertain",IF(O199>0,"Maintien frette assuré","Défrettage"))) -> Maintien frette assuré | Q201: Résultat jeu/frette | S201: =IF(S29<=0,"Attention frettage non désiré",IF(S199=0,"Incertain",IF(S199>0,"Maintien frette assuré","Défrettage"))) -> Maintien frette assuré | U201: Résultat jeu/frette | W201: =IF(W29<=0,"Attention frettage non désiré",IF(W199=0,"Incertain",IF(W199>0,"Maintien frette assuré","Défrettage"))) -> Maintien frette assuré | Y201: Résultat jeu/frette | AA201: =IF(AA29<=0,"Attention frettage non désiré",IF(AA199=0,"Incertain",IF(AA199>0,"Maintien frette assuré","Défrettage"))) -> Maintien frette assuré | AC201: Résultat jeu/frette | AE201: =IF(AE29<=0,"Attention frettage non désiré",IF(AE199=0,"Incertain",IF(AE199>0,"Maintien frette assuré","Défrettage"))) -> Maintien frette assuré | AG201: Résultat jeu/frette | AI201: =IF(AI29<=0,"Attention frettage non désiré",IF(AI199=0,"Incertain",IF(AI199>0,"Maintien frette assuré","Défrettage"))) -> Maintien frette assuré | AK201: Résultat jeu/frette | AM201: =IF(AM29<=0,"Attention frettage non désiré",IF(AM199=0,"Incertain",IF(AM199>0,"Maintien frette assuré","Défrettage"))) -> Maintien frette assuré
A202: Effort d'emmanchement en fonctionnement | C202: =C55*Detail_des_effets!C183*PI()*Empilage!C15*MIN(Empilage!C13,Empilage!C33) ->  | D202: N | E202: Effort d'emmanchement en fonctionnement | G202: =G55*Detail_des_effets!G183*PI()*Empilage!G15*MIN(Empilage!G13,Empilage!G33) ->  | H202: N | I202: Effort d'emmanchement en fonctionnement | K202: =K55*Detail_des_effets!K183*PI()*Empilage!K15*MIN(Empilage!K13,Empilage!K33) ->  | L202: N | M202: Effort d'emmanchement en fonctionnement | O202: =O55*Detail_des_effets!O183*PI()*Empilage!O15*MIN(Empilage!O13,Empilage!O33) ->  | P202: N | Q202: Effort d'emmanchement en fonctionnement | S202: =S55*Detail_des_effets!S183*PI()*Empilage!S15*MIN(Empilage!S13,Empilage!S33) ->  | T202: N | U202: Effort d'emmanchement en fonctionnement | W202: =W55*Detail_des_effets!W183*PI()*Empilage!W15*MIN(Empilage!W13,Empilage!W33) ->  | X202: N | Y202: Effort d'emmanchement en fonctionnement | AA202: =AA55*Detail_des_effets!AA183*PI()*Empilage!AA15*MIN(Empilage!AA13,Empilage!AA33) ->  | AB202: N | AC202: Effort d'emmanchement en fonctionnement | AE202: =AE55*Detail_des_effets!AE183*PI()*Empilage!AE15*MIN(Empilage!AE13,Empilage!AE33) ->  | AF202: N | AG202: Effort d'emmanchement en fonctionnement | AI202: =AI55*Detail_des_effets!AI183*PI()*Empilage!AI15*MIN(Empilage!AI13,Empilage!AI33) ->  | AJ202: N | AK202: Effort d'emmanchement en fonctionnement | AM202: =AM55*Detail_des_effets!AM183*PI()*Empilage!AM15*MIN(Empilage!AM13,Empilage!AM33) ->  | AN202: N
A204: Effort maximum d'emmanchement d'un empilage axial en série (montage) : | F204: =SUMPRODUCT(197:197) ->  | G204: N
A205: Effort maximum d'emmanchement d'un empilage axial en parallèle (montage) : | F205: =MAX(197:197) ->  | G205: N
A207: Effort maximum d'emmanchement d'un empilage axial en série (fonc.) : | F207: =SUMPRODUCT(202:202) ->  | G207: N
A208: Effort maximum d'emmanchement d'un empilage axial en parallèle (fonc.) : | F208: =MAX(202:202) ->  | G208: N
F212: VARIATION D'EFFORT DU AU SERRAGE A L'ALLONGEMENT AU MONTAGE
C214: Montage nominal | E214: Montage Effort -5% | H214: Montage Effort +5%
A215: Re mini Tirant Montage | C215: =VLOOKUP(C12,Matériaux!$C$4:$AB$15,24) -> 101 | D215: daN/mm2 | E215: 0.95 | H215: 1.05
A216: Sigma Maxi fut Montage (0,85 Re) | C216: =C215*0.85 -> 86 | D216: daN/mm2 | F216: =F217/C21 -> 81 | G216: daN/mm2 | I216: =I217/C21 -> 90 | J216: daN/mm2 | K216: soit | L216: =I216/C215 -> 0.893 | M216: % de Re | N216: Marge mini au montage | P216: =(C215-I216)/C215% -> 10.8 | Q216: %
A217: F Maxi Tirant Montage (0,85 Re) | C217: =C21*C216 -> 32999 | D217: daN | F217: =F218*C60 -> 31349 | G217: daN | I217: =I218*C60 -> 34649 | J217: daN
A218: Delta L Tirant au montage | C218: =C217/C60 -> 0.218 | D218: mm | F218: =C218*E215 -> 0.207 | G218: mm | I218: =C218*H215 -> 0.229 | J218: mm
A219: Effort résiduel après montage | C219: =(C217/C60)/(1/C60+1/C62) -> 9428 | D219: daN | F219: =(F217/C60)/(1/C60+1/C62) -> 8957 | G219: daN | I219: =(I217/C60)/(1/C60+1/C62) -> 9900 | J219: daN
A220: Delta_L Tirant après Montage | C220: =C219/C60 -> 0.062 | D220: mm | F220: =F219/C60 -> 0.059 | G220: mm | I220: =I219/C60 -> 0.065 | J220: mm
A221: Delta_L Serrées après Montage | C221: =-(C219/C62) -> -0.156 | D221: mm | F221: =-(F219/C62) -> -0.148 | G221: mm | I221: =-(I219/C62) -> -0.164 | J221: mm
A222: Sigma Maxi fut après Montage | C222: =C219/C21 -> 24.46 | D222: daN/mm2 | F222: =F219/C21 -> 23.23 | G222: daN/mm2 | I222: =I219/C21 -> 25.68 | J222: daN/mm2 | M222: Marge mini après montage | P222: =(C215-I222)/C215% -> 74.5 | Q222: %
A223: Vérification Delta L | C223: =IF(C220-C221=C218,"OK","ERREUR") -> OK | F223: =IF(F220-F221=F218,"OK","ERREUR") -> OK | I223: =IF(I220-I221=I218,"OK","ERREUR") -> OK
F225: VARIATION D'EFFORT DU AU SERRAGE A L'ALLONGEMENT EN MEF
C227: Montage nominal en MeF | E227: Montage Effort -5% | H227: Montage Effort +5%
A228: Effort fictif résiduel après Montage | C228: =(C233/C68)/((1/C68)+(1/C71)) -> 1579 | D228: daN | F228: =(F233/C68)/(1/C68+1/C71) -> 1500 | G228: daN | I228: =(I233/C68)/(1/C68+1/C71) -> 1658 | J228: daN
A229: Variation de serrage en MeF | C229: =((C70-C67)*C66)/(1/C68+1/C71) -> 0 | D229: daN
A230: Effort en fin de mise en froid | C230: =C228+C229 -> 1579 | D230: daN | E230: mini | F230: =(C228*0.95)+C229 -> 1500 | G230: daN | H230: maxi | I230: =(C228*1.05)+C229 -> 1658 | J230: daN
A231: Re mini Tirant MeF | C231: =VLOOKUP(C12,Matériaux!$C$4:$AB$15,25) -> 125 | D231: daN/mm2 | E231: 0.95 | H231: 1.05
A232: Sigma Maxi fut MeF (0,85 Re) | C232: =C231*0.85 -> 106 | D232: daN/mm2 | F232: =F233/C21 -> 101 | G232: daN/mm2 | I232: =I233/C21 -> 112 | J232: daN/mm2 | K232: soit | L232: =I232/C231 -> 0.893 | M232: % de Re | N232: Marge mini au montage | P232: =(C231-I232)/C215% -> 13.4 | Q232: %
A233: F Maxi Tirant MeF (0,85 Re) | C233: =C21*C232 -> 41058 | D233: daN | F233: =F234*C68 -> 39005 | G233: daN | I233: =I234*C68 -> 43111 | J233: daN
A234: Delta L Tirant MeF | C234: =C233/C68 -> 0.025 | D234: mm | F234: =C234*E231 -> 0.024 | G234: mm | I234: =C234*H231 -> 0.027 | J234: mm
A235: Delta L Tirant après MeF | C235: =C228/C68 -> 0.001 | D235: mm | F235: =F228/C68 -> 0.001 | G235: mm | I235: =I228/C68 -> 0.001 | J235: mm
A236: Delta_L Serrées après MeF | C236: =-(C228/C71) -> -0.024 | D236: mm | F236: =-(F228/C71) -> -0.023 | G236: mm | I236: =-(I228/C71) -> -0.026 | J236: mm
A237: Sigma Maxi fut après MeF | C237: =C228/C21 -> 4.10 | D237: daN/mm2 | F237: =F228/C21 -> 3.89 | G237: daN/mm2 | I237: =I228/C21 -> 4.30 | J237: daN/mm2 | M237: Marge mini après montage | P237: =(C231-I237)/C231% -> 96.6 | Q237: %
A238: Vérification Delta L | C238: =IF(C235-C236=C234,"OK","ERREUR") -> OK | F238: =IF(F235-F236=F234,"OK","ERREUR") -> OK | I238: =IF(I235-I236=I234,"OK","ERREUR") -> OK
F241: VARIATION D'EFFORT DU AU SERRAGE A L'ALLONGEMENT EN FONCTIONNEMENT
C243: Montage nominal en fonctionnement | E243: Montage Effort -5% | H243: Montage Effort +5%
A244: Effort fictif résiduel après MeF | C244: =(C249/C77)/((1/C77)+(1/C80)) -> 1468 | D244: daN | F244: =(F249/C77)/(1/C77+1/C80) -> 1394 | G244: daN | I244: =(I249/C77)/(1/C77+1/C80) -> 1541 | J244: daN
A245: Variation de serrage en fonctionnement | C245: =((C79-C76)*C75)/(1/C77+1/C80) -> 0 | D245: daN
A246: Effort en fonctionnement | C246: =C244+C245 -> 1468 | D246: daN | E246: mini | F246: =(C244*0.95)+C245 -> 1394 | G246: daN | H246: maxi | I246: =(C244*1.05)+C245 -> 1541 | J246: daN
A247: Re mini Tirant fonctionnement | C247: =VLOOKUP(C12,Matériaux!$C$4:$AB$15,26) -> 116 | D247: daN/mm2 | E247: 0.95 | H247: 1.05
... 7 more rows

Sheet Detail_des_effets
A1: Détails des différents effets mécaniques et thermique
B4: Nom : | C4: =Empilage!C11 -> Pièce mâle | F4: Nom : | G4: =Empilage!G11 -> Pièce mâle | J4: Nom : | K4: =Empilage!K11 -> Pièce mâle | N4: Nom : | O4: =Empilage!O11 -> Pièce mâle | R4: Nom : | S4: =Empilage!S11 -> Pièce mâle | V4: Nom : | W4: =Empilage!W11 -> Pièce mâle | Z4: Nom : | AA4: =Empilage!AA11 -> Pièce mâle | AD4: Nom : | AE4: =Empilage!AE11 -> Pièce mâle | AH4: Nom : | AI4: =Empilage!AI11 -> Pièce mâle | AL4: Nom : | AM4: =Empilage!AM11 -> Pièce mâle
B5: Effet de la centrifugation seule | F5: Effet de la centrifugation seule | J5: Effet de la centrifugation seule | N5: Effet de la centrifugation seule | R5: Effet de la centrifugation seule | V5: Effet de la centrifugation seule | Z5: Effet de la centrifugation seule | AD5: Effet de la centrifugation seule | AH5: Effet de la centrifugation seule | AL5: Effet de la centrifugation seule
B7: Au niveau du frettage | F7: Au niveau du frettage | J7: Au niveau du frettage | N7: Au niveau du frettage | R7: Au niveau du frettage | V7: Au niveau du frettage | Z7: Au niveau du frettage | AD7: Au niveau du frettage | AH7: Au niveau du frettage | AL7: Au niveau du frettage
B8: Contrainte radiale | C8: =0 -> 0.00 | D8: MPa | F8: Contrainte radiale | G8: =0 -> 0.00 | H8: MPa | J8: Contrainte radiale | K8: =0 -> 0.00 | L8: MPa | N8: Contrainte radiale | O8: =0 -> 0.00 | P8: MPa | R8: Contrainte radiale | S8: =0 -> 0.00 | T8: MPa | V8: Contrainte radiale | W8: =0 -> 0.00 | X8: MPa | Z8: Contrainte radiale | AA8: =0 -> 0.00 | AB8: MPa | AD8: Contrainte radiale | AE8: =0 -> 0.00 | AF8: MPa | AH8: Contrainte radiale | AI8: =0 -> 0.00 | AJ8: MPa | AL8: Contrainte radiale | AM8: =0 -> 0.00 | AN8: MPa
B9: Contrainte tangentielle | C9: =10^-12*Empilage!C28*Empilage!$D$87^2/16*((3+Empilage!C27)*Empilage!C16^2+(1-Empilage!C27)*Empilage!C15^2) -> 2.29 | D9: MPa | F9: Contrainte tangentielle | G9: =10^-12*Empilage!G28*Empilage!$D$87^2/16*((3+Empilage!G27)*Empilage!G16^2+(1-Empilage!G27)*Empilage!G15^2) -> 2.29 | H9: MPa | J9: Contrainte tangentielle | K9: =10^-12*Empilage!K28*Empilage!$D$87^2/16*((3+Empilage!K27)*Empilage!K16^2+(1-Empilage!K27)*Empilage!K15^2) -> 2.29 | L9: MPa | N9: Contrainte tangentielle | O9: =10^-12*Empilage!O28*Empilage!$D$87^2/16*((3+Empilage!O27)*Empilage!O16^2+(1-Empilage!O27)*Empilage!O15^2) -> 2.29 | P9: MPa | R9: Contrainte tangentielle | S9: =10^-12*Empilage!S28*Empilage!$D$87^2/16*((3+Empilage!S27)*Empilage!S16^2+(1-Empilage!S27)*Empilage!S15^2) -> 2.29 | T9: MPa | V9: Contrainte tangentielle | W9: =10^-12*Empilage!W28*Empilage!$D$87^2/16*((3+Empilage!W27)*Empilage!W16^2+(1-Empilage!W27)*Empilage!W15^2) -> 2.29 | X9: MPa | Z9: Contrainte tangentielle | AA9: =10^-12*Empilage!AA28*Empilage!$D$87^2/16*((3+Empilage!AA27)*Empilage!AA16^2+(1-Empilage!AA27)*Empilage!AA15^2) -> 2.29 | AB9: MPa | AD9: Contrainte tangentielle | AE9: =10^-12*Empilage!AE28*Empilage!$D$87^2/16*((3+Empilage!AE27)*Empilage!AE16^2+(1-Empilage!AE27)*Empilage!AE15^2) -> 2.29 | AF9: MPa | AH9: Contrainte tangentielle | AI9: =10^-12*Empilage!AI28*Empilage!$D$87^2/16*((3+Empilage!AI27)*Empilage!AI16^2+(1-Empilage!AI27)*Empilage!AI15^2) -> 2.29 | AJ9: MPa | AL9: Contrainte tangentielle | AM9: =10^-12*Empilage!AM28*Empilage!$D$87^2/16*((3+Empilage!AM27)*Empilage!AM16^2+(1-Empilage!AM27)*Empilage!AM15^2) -> 2.29 | AN9: MPa
B10: Déformée radiale | C10: =(Empilage!C15/Empilage!C20*Detail_des_effets!C9)*10^-1 -> 0.000 | D10: mm au diamètre | F10: Déformée radiale | G10: =(Empilage!G15/Empilage!G20*Detail_des_effets!G9)*10^-1 -> 0.000 | H10: mm au diamètre | J10: Déformée radiale | K10: =(Empilage!K15/Empilage!K20*Detail_des_effets!K9)*10^-1 -> 0.000 | L10: mm au diamètre | N10: Déformée radiale | O10: =(Empilage!O15/Empilage!O20*Detail_des_effets!O9)*10^-1 -> 0.000 | P10: mm au diamètre | R10: Déformée radiale | S10: =(Empilage!S15/Empilage!S20*Detail_des_effets!S9)*10^-1 -> 0.000 | T10: mm au diamètre | V10: Déformée radiale | W10: =(Empilage!W15/Empilage!W20*Detail_des_effets!W9)*10^-1 -> 0.000 | X10: mm au diamètre | Z10: Déformée radiale | AA10: =(Empilage!AA15/Empilage!AA20*Detail_des_effets!AA9)*10^-1 -> 0.000 | AB10: mm au diamètre | AD10: Déformée radiale | AE10: =(Empilage!AE15/Empilage!AE20*Detail_des_effets!AE9)*10^-1 -> 0.000 | AF10: mm au diamètre | AH10: Déformée radiale | AI10: =(Empilage!AI15/Empilage!AI20*Detail_des_effets!AI9)*10^-1 -> 0.000 | AJ10: mm au diamètre | AL10: Déformée radiale | AM10: =(Empilage!AM15/Empilage!AM20*Detail_des_effets!AM9)*10^-1 -> 0.000 | AN10: mm au diamètre
B11: Dans la pièce, au diamètre particulier | C11: =Empilage!C$17 -> 20.00 | D11: mm | F11: Dans la pièce, au diamètre particulier | G11: =Empilage!G$17 -> 20.00 | H11: mm | J11: Dans la pièce, au diamètre particulier | K11: =Empilage!K$17 -> 20.00 | L11: mm | N11: Dans la pièce, au diamètre particulier | O11: =Empilage!O$17 -> 20.00 | P11: mm | R11: Dans la pièce, au diamètre particulier | S11: =Empilage!S$17 -> 20.00 | T11: mm | V11: Dans la pièce, au diamètre particulier | W11: =Empilage!W$17 -> 20.00 | X11: mm | Z11: Dans la pièce, au diamètre particulier | AA11: =Empilage!AA$17 -> 20.00 | AB11: mm | AD11: Dans la pièce, au diamètre particulier | AE11: =Empilage!AE$17 -> 20.00 | AF11: mm | AH11: Dans la pièce, au diamètre particulier | AI11: =Empilage!AI$17 -> 20.00 | AJ11: mm | AL11: Dans la pièce, au diamètre particulier | AM11: =Empilage!AM$17 -> 20.00 | AN11: mm
B12: Contrainte radiale | C12: =10^-12*(3+Empilage!C27)/32*Empilage!C28*Empilage!$D$87^2*(Empilage!C16^2+Empilage!C15^2-(Empilage!C16*Empilage!C15/Detail_des_effets!C11)^2-Detail_des_effets!C11^2) -> 1.88 | D12: MPa | F12: Contrainte radiale | G12: =10^-12*(3+Empilage!G27)/32*Empilage!G28*Empilage!$D$87^2*(Empilage!G16^2+Empilage!G15^2-(Empilage!G16*Empilage!G15/Detail_des_effets!G11)^2-Detail_des_effets!G11^2) -> 1.88 | H12: MPa | J12: Contrainte radiale | K12: =10^-12*(3+Empilage!K27)/32*Empilage!K28*Empilage!$D$87^2*(Empilage!K16^2+Empilage!K15^2-(Empilage!K16*Empilage!K15/Detail_des_effets!K11)^2-Detail_des_effets!K11^2) -> 1.88 | L12: MPa | N12: Contrainte radiale | O12: =10^-12*(3+Empilage!O27)/32*Empilage!O28*Empilage!$D$87^2*(Empilage!O16^2+Empilage!O15^2-(Empilage!O16*Empilage!O15/Detail_des_effets!O11)^2-Detail_des_effets!O11^2) -> 1.88 | P12: MPa | R12: Contrainte radiale | S12: =10^-12*(3+Empilage!S27)/32*Empilage!S28*Empilage!$D$87^2*(Empilage!S16^2+Empilage!S15^2-(Empilage!S16*Empilage!S15/Detail_des_effets!S11)^2-Detail_des_effets!S11^2) -> 1.88 | T12: MPa | V12: Contrainte radiale | W12: =10^-12*(3+Empilage!W27)/32*Empilage!W28*Empilage!$D$87^2*(Empilage!W16^2+Empilage!W15^2-(Empilage!W16*Empilage!W15/Detail_des_effets!W11)^2-Detail_des_effets!W11^2) -> 1.88 | X12: MPa | Z12: Contrainte radiale | AA12: =10^-12*(3+Empilage!AA27)/32*Empilage!AA28*Empilage!$D$87^2*(Empilage!AA16^2+Empilage!AA15^2-(Empilage!AA16*Empilage!AA15/Detail_des_effets!AA11)^2-Detail_des_effets!AA11^2) -> 1.88 | AB12: MPa | AD12: Contrainte radiale | AE12: =10^-12*(3+Empilage!AE27)/32*Empilage!AE28*Empilage!$D$87^2*(Empilage!AE16^2+Empilage!AE15^2-(Empilage!AE16*Empilage!AE15/Detail_des_effets!AE11)^2-Detail_des_effets!AE11^2) -> 1.88 | AF12: MPa | AH12: Contrainte radiale | AI12: =10^-12*(3+Empilage!AI27)/32*Empilage!AI28*Empilage!$D$87^2*(Empilage!AI16^2+Empilage!AI15^2-(Empilage!AI16*Empilage!AI15/Detail_des_effets!AI11)^2-Detail_des_effets!AI11^2) -> 1.88 | AJ12: MPa | AL12: Contrainte radiale | AM12: =10^-12*(3+Empilage!AM27)/32*Empilage!AM28*Empilage!$D$87^2*(Empilage!AM16^2+Empilage!AM15^2-(Empilage!AM16*Empilage!AM15/Detail_des_effets!AM11)^2-Detail_des_effets!AM11^2) -> 1.88 | AN12: MPa
B13: Contrainte tangentielle | C13: =10^-12*Empilage!C28/32*Empilage!$D$87^2*((3+Empilage!C27)*(Empilage!C16^2+Empilage!C15^2+(Empilage!C16*Empilage!C15/Detail_des_effets!C11)^2)-(1+3*Empilage!C27)*Detail_des_effets!C11^2) -> 3.35 | D13: MPa | F13: Contrainte tangentielle | G13: =10^-12*Empilage!G28/32*Empilage!$D$87^2*((3+Empilage!G27)*(Empilage!G16^2+Empilage!G15^2+(Empilage!G16*Empilage!G15/Detail_des_effets!G11)^2)-(1+3*Empilage!G27)*Detail_des_effets!G11^2) -> 3.35 | H13: MPa | J13: Contrainte tangentielle | K13: =10^-12*Empilage!K28/32*Empilage!$D$87^2*((3+Empilage!K27)*(Empilage!K16^2+Empilage!K15^2+(Empilage!K16*Empilage!K15/Detail_des_effets!K11)^2)-(1+3*Empilage!K27)*Detail_des_effets!K11^2) -> 3.35 | L13: MPa | N13: Contrainte tangentielle | O13: =10^-12*Empilage!O28/32*Empilage!$D$87^2*((3+Empilage!O27)*(Empilage!O16^2+Empilage!O15^2+(Empilage!O16*Empilage!O15/Detail_des_effets!O11)^2)-(1+3*Empilage!O27)*Detail_des_effets!O11^2) -> 3.35 | P13: MPa | R13: Contrainte tangentielle | S13: =10^-12*Empilage!S28/32*Empilage!$D$87^2*((3+Empilage!S27)*(Empilage!S16^2+Empilage!S15^2+(Empilage!S16*Empilage!S15/Detail_des_effets!S11)^2)-(1+3*Empilage!S27)*Detail_des_effets!S11^2) -> 3.35 | T13: MPa | V13: Contrainte tangentielle | W13: =10^-12*Empilage!W28/32*Empilage!$D$87^2*((3+Empilage!W27)*(Empilage!W16^2+Empilage!W15^2+(Empilage!W16*Empilage!W15/Detail_des_effets!W11)^2)-(1+3*Empilage!W27)*Detail_des_effets!W11^2) -> 3.35 | X13: MPa | Z13: Contrainte tangentielle | AA13: =10^-12*Empilage!AA28/32*Empilage!$D$87^2*((3+Empilage!AA27)*(Empilage!AA16^2+Empilage!AA15^2+(Empilage!AA16*Empilage!AA15/Detail_des_effets!AA11)^2)-(1+3*Empilage!AA27)*Detail_des_effets!AA11^2) -> 3.35 | AB13: MPa | AD13: Contrainte tangentielle | AE13: =10^-12*Empilage!AE28/32*Empilage!$D$87^2*((3+Empilage!AE27)*(Empilage!AE16^2+Empilage!AE15^2+(Empilage!AE16*Empilage!AE15/Detail_des_effets!AE11)^2)-(1+3*Empilage!AE27)*Detail_des_effets!AE11^2) -> 3.35 | AF13: MPa | AH13: Contrainte tangentielle | AI13: =10^-12*Empilage!AI28/32*Empilage!$D$87^2*((3+Empilage!AI27)*(Empilage!AI16^2+Empilage!AI15^2+(Empilage!AI16*Empilage!AI15/Detail_des_effets!AI11)^2)-(1+3*Empilage!AI27)*Detail_des_effets!AI11^2) -> 3.35 | AJ13: MPa | AL13: Contrainte tangentielle | AM13: =10^-12*Empilage!AM28/32*Empilage!$D$87^2*((3+Empilage!AM27)*(Empilage!AM16^2+Empilage!AM15^2+(Empilage!AM16*Empilage!AM15/Detail_des_effets!AM11)^2)-(1+3*Empilage!AM27)*Detail_des_effets!AM11^2) -> 3.35 | AN13: MPa
B14: Déformée radiale | C14: =(C11/Empilage!C20*(Detail_des_effets!C13-Empilage!C27*Detail_des_effets!C12))*10^-1 -> 0.000 | D14: mm au diamètre | F14: Déformée radiale | G14: =(G11/Empilage!G20*(Detail_des_effets!G13-Empilage!G27*Detail_des_effets!G12))*10^-1 -> 0.000 | H14: mm au diamètre | J14: Déformée radiale | K14: =(K11/Empilage!K20*(Detail_des_effets!K13-Empilage!K27*Detail_des_effets!K12))*10^-1 -> 0.000 | L14: mm au diamètre | N14: Déformée radiale | O14: =(O11/Empilage!O20*(Detail_des_effets!O13-Empilage!O27*Detail_des_effets!O12))*10^-1 -> 0.000 | P14: mm au diamètre | R14: Déformée radiale | S14: =(S11/Empilage!S20*(Detail_des_effets!S13-Empilage!S27*Detail_des_effets!S12))*10^-1 -> 0.000 | T14: mm au diamètre | V14: Déformée radiale | W14: =(W11/Empilage!W20*(Detail_des_effets!W13-Empilage!W27*Detail_des_effets!W12))*10^-1 -> 0.000 | X14: mm au diamètre | Z14: Déformée radiale | AA14: =(AA11/Empilage!AA20*(Detail_des_effets!AA13-Empilage!AA27*Detail_des_effets!AA12))*10^-1 -> 0.000 | AB14: mm au diamètre | AD14: Déformée radiale | AE14: =(AE11/Empilage!AE20*(Detail_des_effets!AE13-Empilage!AE27*Detail_des_effets!AE12))*10^-1 -> 0.000 | AF14: mm au diamètre | AH14: Déformée radiale | AI14: =(AI11/Empilage!AI20*(Detail_des_effets!AI13-Empilage!AI27*Detail_des_effets!AI12))*10^-1 -> 0.000 | AJ14: mm au diamètre | AL14: Déformée radiale | AM14: =(AM11/Empilage!AM20*(Detail_des_effets!AM13-Empilage!AM27*Detail_des_effets!AM12))*10^-1 -> 0.000 | AN14: mm au diamètre
B15: Effet de la pression seule | F15: Effet de la pression seule | J15: Effet de la pression seule | N15: Effet de la pression seule | R15: Effet de la pression seule | V15: Effet de la pression seule | Z15: Effet de la pression seule | AD15: Effet de la pression seule | AH15: Effet de la pression seule | AL15: Effet de la pression seule
B17: Au niveau du frettage | F17: Au niveau du frettage | J17: Au niveau du frettage | N17: Au niveau du frettage | R17: Au niveau du frettage | V17: Au niveau du frettage | Z17: Au niveau du frettage | AD17: Au niveau du frettage | AH17: Au niveau du frettage | AL17: Au niveau du frettage
B18: Contrainte radiale | C18: =-Empilage!$D$89/10 -> -2.00 | D18: MPa | F18: Contrainte radiale | G18: =-Empilage!$D$89/10 -> -2.00 | H18: MPa | J18: Contrainte radiale | K18: =-Empilage!$D$89/10 -> -2.00 | L18: MPa | N18: Contrainte radiale | O18: =-Empilage!$D$89/10 -> -2.00 | P18: MPa | R18: Contrainte radiale | S18: =-Empilage!$D$89/10 -> -2.00 | T18: MPa | V18: Contrainte radiale | W18: =-Empilage!$D$89/10 -> -2.00 | X18: MPa | Z18: Contrainte radiale | AA18: =-Empilage!$D$89/10 -> -2.00 | AB18: MPa | AD18: Contrainte radiale | AE18: =-Empilage!$D$89/10 -> -2.00 | AF18: MPa | AH18: Contrainte radiale | AI18: =-Empilage!$D$89/10 -> -2.00 | AJ18: MPa | AL18: Contrainte radiale | AM18: =-Empilage!$D$89/10 -> -2.00 | AN18: MPa
B19: Contrainte tangentielle | C19: =(2*Empilage!C16^2*Empilage!$D$88-(Empilage!C16^2+Empilage!C15^2)*Empilage!$D$89)/(Empilage!C15^2-Empilage!C16^2)/10 -> -2.00 | D19: MPa | F19: Contrainte tangentielle | G19: =(2*Empilage!G16^2*Empilage!$D$88-(Empilage!G16^2+Empilage!G15^2)*Empilage!$D$89)/(Empilage!G15^2-Empilage!G16^2)/10 -> -2.00 | H19: MPa | J19: Contrainte tangentielle | K19: =(2*Empilage!K16^2*Empilage!$D$88-(Empilage!K16^2+Empilage!K15^2)*Empilage!$D$89)/(Empilage!K15^2-Empilage!K16^2)/10 -> -2.00 | L19: MPa | N19: Contrainte tangentielle | O19: =(2*Empilage!O16^2*Empilage!$D$88-(Empilage!O16^2+Empilage!O15^2)*Empilage!$D$89)/(Empilage!O15^2-Empilage!O16^2)/10 -> -2.00 | P19: MPa | R19: Contrainte tangentielle | S19: =(2*Empilage!S16^2*Empilage!$D$88-(Empilage!S16^2+Empilage!S15^2)*Empilage!$D$89)/(Empilage!S15^2-Empilage!S16^2)/10 -> -2.00 | T19: MPa | V19: Contrainte tangentielle | W19: =(2*Empilage!W16^2*Empilage!$D$88-(Empilage!W16^2+Empilage!W15^2)*Empilage!$D$89)/(Empilage!W15^2-Empilage!W16^2)/10 -> -2.00 | X19: MPa | Z19: Contrainte tangentielle | AA19: =(2*Empilage!AA16^2*Empilage!$D$88-(Empilage!AA16^2+Empilage!AA15^2)*Empilage!$D$89)/(Empilage!AA15^2-Empilage!AA16^2)/10 -> -2.00 | AB19: MPa | AD19: Contrainte tangentielle | AE19: =(2*Empilage!AE16^2*Empilage!$D$88-(Empilage!AE16^2+Empilage!AE15^2)*Empilage!$D$89)/(Empilage!AE15^2-Empilage!AE16^2)/10 -> -2.00 | AF19: MPa | AH19: Contrainte tangentielle | AI19: =(2*Empilage!AI16^2*Empilage!$D$88-(Empilage!AI16^2+Empilage!AI15^2)*Empilage!$D$89)/(Empilage!AI15^2-Empilage!AI16^2)/10 -> -2.00 | AJ19: MPa | AL19: Contrainte tangentielle | AM19: =(2*Empilage!AM16^2*Empilage!$D$88-(Empilage!AM16^2+Empilage!AM15^2)*Empilage!$D$89)/(Empilage!AM15^2-Empilage!AM16^2)/10 -> -2.00 | AN19: MPa
B20: Déformée radiale | C20: =(Empilage!C15/Empilage!C20*(Detail_des_effets!C19-Empilage!C27*Detail_des_effets!C18))*10^-1 -> -0.000 | D20: mm au diamètre | F20: Déformée radiale | G20: =(Empilage!G15/Empilage!G20*(Detail_des_effets!G19-Empilage!G27*Detail_des_effets!G18))*10^-1 -> -0.000 | H20: mm au diamètre | J20: Déformée radiale | K20: =(Empilage!K15/Empilage!K20*(Detail_des_effets!K19-Empilage!K27*Detail_des_effets!K18))*10^-1 -> -0.000 | L20: mm au diamètre | N20: Déformée radiale | O20: =(Empilage!O15/Empilage!O20*(Detail_des_effets!O19-Empilage!O27*Detail_des_effets!O18))*10^-1 -> -0.000 | P20: mm au diamètre | R20: Déformée radiale | S20: =(Empilage!S15/Empilage!S20*(Detail_des_effets!S19-Empilage!S27*Detail_des_effets!S18))*10^-1 -> -0.000 | T20: mm au diamètre | V20: Déformée radiale | W20: =(Empilage!W15/Empilage!W20*(Detail_des_effets!W19-Empilage!W27*Detail_des_effets!W18))*10^-1 -> -0.000 | X20: mm au diamètre | Z20: Déformée radiale | AA20: =(Empilage!AA15/Empilage!AA20*(Detail_des_effets!AA19-Empilage!AA27*Detail_des_effets!AA18))*10^-1 -> -0.000 | AB20: mm au diamètre | AD20: Déformée radiale | AE20: =(Empilage!AE15/Empilage!AE20*(Detail_des_effets!AE19-Empilage!AE27*Detail_des_effets!AE18))*10^-1 -> -0.000 | AF20: mm au diamètre | AH20: Déformée radiale | AI20: =(Empilage!AI15/Empilage!AI20*(Detail_des_effets!AI19-Empilage!AI27*Detail_des_effets!AI18))*10^-1 -> -0.000 | AJ20: mm au diamètre | AL20: Déformée radiale | AM20: =(Empilage!AM15/Empilage!AM20*(Detail_des_effets!AM19-Empilage!AM27*Detail_des_effets!AM18))*10^-1 -> -0.000 | AN20: mm au diamètre
B21: Dans la pièce, au diamètre particulier | C21: =Empilage!C$17 -> 20.00 | D21: mm | F21: Dans la pièce, au diamètre particulier | G21: =Empilage!G$17 -> 20.00 | H21: mm | J21: Dans la pièce, au diamètre particulier | K21: =Empilage!K$17 -> 20.00 | L21: mm | N21: Dans la pièce, au diamètre particulier | O21: =Empilage!O$17 -> 20.00 | P21: mm | R21: Dans la pièce, au diamètre particulier | S21: =Empilage!S$17 -> 20.00 | T21: mm | V21: Dans la pièce, au diamètre particulier | W21: =Empilage!W$17 -> 20.00 | X21: mm | Z21: Dans la pièce, au diamètre particulier | AA21: =Empilage!AA$17 -> 20.00 | AB21: mm | AD21: Dans la pièce, au diamètre particulier | AE21: =Empilage!AE$17 -> 20.00 | AF21: mm | AH21: Dans la pièce, au diamètre particulier | AI21: =Empilage!AI$17 -> 20.00 | AJ21: mm | AL21: Dans la pièce, au diamètre particulier | AM21: =Empilage!AM$17 -> 20.00 | AN21: mm
B22: Contrainte radiale | C22: =(C$21^2*(Empilage!C16^2*Empilage!$D$88-Empilage!C15^2*Empilage!$D$89)-(Empilage!$D$88-Empilage!$D$89)*Empilage!C16^2*Empilage!C15^2)/(Detail_des_effets!C$21^2*(Empilage!C15^2-Empilage!C16^2))/10 -> -2.00 | D22: MPa | F22: Contrainte radiale | G22: =(G$21^2*(Empilage!G16^2*Empilage!$D$88-Empilage!G15^2*Empilage!$D$89)-(Empilage!$D$88-Empilage!$D$89)*Empilage!G16^2*Empilage!G15^2)/(Detail_des_effets!G$21^2*(Empilage!G15^2-Empilage!G16^2))/10 -> -2.00 | H22: MPa | J22: Contrainte radiale | K22: =(K$21^2*(Empilage!K16^2*Empilage!$D$88-Empilage!K15^2*Empilage!$D$89)-(Empilage!$D$88-Empilage!$D$89)*Empilage!K16^2*Empilage!K15^2)/(Detail_des_effets!K$21^2*(Empilage!K15^2-Empilage!K16^2))/10 -> -2.00 | L22: MPa | N22: Contrainte radiale | O22: =(O$21^2*(Empilage!O16^2*Empilage!$D$88-Empilage!O15^2*Empilage!$D$89)-(Empilage!$D$88-Empilage!$D$89)*Empilage!O16^2*Empilage!O15^2)/(Detail_des_effets!O$21^2*(Empilage!O15^2-Empilage!O16^2))/10 -> -2.00 | P22: MPa | R22: Contrainte radiale | S22: =(S$21^2*(Empilage!S16^2*Empilage!$D$88-Empilage!S15^2*Empilage!$D$89)-(Empilage!$D$88-Empilage!$D$89)*Empilage!S16^2*Empilage!S15^2)/(Detail_des_effets!S$21^2*(Empilage!S15^2-Empilage!S16^2))/10 -> -2.00 | T22: MPa | V22: Contrainte radiale | W22: =(W$21^2*(Empilage!W16^2*Empilage!$D$88-Empilage!W15^2*Empilage!$D$89)-(Empilage!$D$88-Empilage!$D$89)*Empilage!W16^2*Empilage!W15^2)/(Detail_des_effets!W$21^2*(Empilage!W15^2-Empilage!W16^2))/10 -> -2.00 | X22: MPa | Z22: Contrainte radiale | AA22: =(AA$21^2*(Empilage!AA16^2*Empilage!$D$88-Empilage!AA15^2*Empilage!$D$89)-(Empilage!$D$88-Empilage!$D$89)*Empilage!AA16^2*Empilage!AA15^2)/(Detail_des_effets!AA$21^2*(Empilage!AA15^2-Empilage!AA16^2))/10 -> -2.00 | AB22: MPa | AD22: Contrainte radiale | AE22: =(AE$21^2*(Empilage!AE16^2*Empilage!$D$88-Empilage!AE15^2*Empilage!$D$89)-(Empilage!$D$88-Empilage!$D$89)*Empilage!AE16^2*Empilage!AE15^2)/(Detail_des_effets!AE$21^2*(Empilage!AE15^2-Empilage!AE16^2))/10 -> -2.00 | AF22: MPa | AH22: Contrainte radiale | AI22: =(AI$21^2*(Empilage!AI16^2*Empilage!$D$88-Empilage!AI15^2*Empilage!$D$89)-(Empilage!$D$88-Empilage!$D$89)*Empilage!AI16^2*Empilage!AI15^2)/(Detail_des_effets!AI$21^2*(Empilage!AI15^2-Empilage!AI16^2))/10 -> -2.00 | AJ22: MPa | AL22: Contrainte radiale | AM22: =(AM$21^2*(Empilage!AM16^2*Empilage!$D$88-Empilage!AM15^2*Empilage!$D$89)-(Empilage!$D$88-Empilage!$D$89)*Empilage!AM16^2*Empilage!AM15^2)/(Detail_des_effets!AM$21^2*(Empilage!AM15^2-Empilage!AM16^2))/10 -> -2.00 | AN22: MPa
B23: Contrainte tangentielle | C23: =(C$21^2*(Empilage!C16^2*Empilage!$D$88-Empilage!C15^2*Empilage!$D$89)+(Empilage!$D$88-Empilage!$D$89)*Empilage!C16^2*Empilage!C15^2)/(Detail_des_effets!C$21^2*(Empilage!C15^2-Empilage!C16^2))/10 -> -2.00 | D23: MPa | F23: Contrainte tangentielle | G23: =(G$21^2*(Empilage!G16^2*Empilage!$D$88-Empilage!G15^2*Empilage!$D$89)+(Empilage!$D$88-Empilage!$D$89)*Empilage!G16^2*Empilage!G15^2)/(Detail_des_effets!G$21^2*(Empilage!G15^2-Empilage!G16^2))/10 -> -2.00 | H23: MPa | J23: Contrainte tangentielle | K23: =(K$21^2*(Empilage!K16^2*Empilage!$D$88-Empilage!K15^2*Empilage!$D$89)+(Empilage!$D$88-Empilage!$D$89)*Empilage!K16^2*Empilage!K15^2)/(Detail_des_effets!K$21^2*(Empilage!K15^2-Empilage!K16^2))/10 -> -2.00 | L23: MPa | N23: Contrainte tangentielle | O23: =(O$21^2*(Empilage!O16^2*Empilage!$D$88-Empilage!O15^2*Empilage!$D$89)+(Empilage!$D$88-Empilage!$D$89)*Empilage!O16^2*Empilage!O15^2)/(Detail_des_effets!O$21^2*(Empilage!O15^2-Empilage!O16^2))/10 -> -2.00 | P23: MPa | R23: Contrainte tangentielle | S23: =(S$21^2*(Empilage!S16^2*Empilage!$D$88-Empilage!S15^2*Empilage!$D$89)+(Empilage!$D$88-Empilage!$D$89)*Empilage!S16^2*Empilage!S15^2)/(Detail_des_effets!S$21^2*(Empilage!S15^2-Empilage!S16^2))/10 -> -2.00 | T23: MPa | V23: Contrainte tangentielle | W23: =(W$21^2*(Empilage!W16^2*Empilage!$D$88-Empilage!W15^2*Empilage!$D$89)+(Empilage!$D$88-Empilage!$D$89)*Empilage!W16^2*Empilage!W15^2)/(Detail_des_effets!W$21^2*(Empilage!W15^2-Empilage!W16^2))/10 -> -2.00 | X23: MPa | Z23: Contrainte tangentielle | AA23: =(AA$21^2*(Empilage!AA16^2*Empilage!$D$88-Empilage!AA15^2*Empilage!$D$89)+(Empilage!$D$88-Empilage!$D$89)*Empilage!AA16^2*Empilage!AA15^2)/(Detail_des_effets!AA$21^2*(Empilage!AA15^2-Empilage!AA16^2))/10 -> -2.00 | AB23: MPa | AD23: Contrainte tangentielle | AE23: =(AE$21^2*(Empilage!AE16^2*Empilage!$D$88-Empilage!AE15^2*Empilage!$D$89)+(Empilage!$D$88-Empilage!$D$89)*Empilage!AE16^2*Empilage!AE15^2)/(Detail_des_effets!AE$21^2*(Empilage!AE15^2-Empilage!AE16^2))/10 -> -2.00 | AF23: MPa | AH23: Contrainte tangentielle | AI23: =(AI$21^2*(Empilage!AI16^2*Empilage!$D$88-Empilage!AI15^2*Empilage!$D$89)+(Empilage!$D$88-Empilage!$D$89)*Empilage!AI16^2*Empilage!AI15^2)/(Detail_des_effets!AI$21^2*(Empilage!AI15^2-Empilage!AI16^2))/10 -> -2.00 | AJ23: MPa | AL23: Contrainte tangentielle | AM23: =(AM$21^2*(Empilage!AM16^2*Empilage!$D$88-Empilage!AM15^2*Empilage!$D$89)+(Empilage!$D$88-Empilage!$D$89)*Empilage!AM16^2*Empilage!AM15^2)/(Detail_des_effets!AM$21^2*(Empilage!AM15^2-Empilage!AM16^2))/10 -> -2.00 | AN23: MPa
B24: Déformée radiale | C24: =((C$21/Empilage!C$20)*(Detail_des_effets!C23-Empilage!C$27*Detail_des_effets!C22))*10^-1 -> -0.000 | D24: mm au diamètre | F24: Déformée radiale | G24: =((G$21/Empilage!G$20)*(Detail_des_effets!G23-Empilage!G$27*Detail_des_effets!G22))*10^-1 -> -0.000 | H24: mm au diamètre | J24: Déformée radiale | K24: =((K$21/Empilage!K$20)*(Detail_des_effets!K23-Empilage!K$27*Detail_des_effets!K22))*10^-1 -> -0.000 | L24: mm au diamètre | N24: Déformée radiale | O24: =((O$21/Empilage!O$20)*(Detail_des_effets!O23-Empilage!O$27*Detail_des_effets!O22))*10^-1 -> -0.000 | P24: mm au diamètre | R24: Déformée radiale | S24: =((S$21/Empilage!S$20)*(Detail_des_effets!S23-Empilage!S$27*Detail_des_effets!S22))*10^-1 -> -0.000 | T24: mm au diamètre | V24: Déformée radiale | W24: =((W$21/Empilage!W$20)*(Detail_des_effets!W23-Empilage!W$27*Detail_des_effets!W22))*10^-1 -> -0.000 | X24: mm au diamètre | Z24: Déformée radiale | AA24: =((AA$21/Empilage!AA$20)*(Detail_des_effets!AA23-Empilage!AA$27*Detail_des_effets!AA22))*10^-1 -> -0.000 | AB24: mm au diamètre | AD24: Déformée radiale | AE24: =((AE$21/Empilage!AE$20)*(Detail_des_effets!AE23-Empilage!AE$27*Detail_des_effets!AE22))*10^-1 -> -0.000 | AF24: mm au diamètre | AH24: Déformée radiale | AI24: =((AI$21/Empilage!AI$20)*(Detail_des_effets!AI23-Empilage!AI$27*Detail_des_effets!AI22))*10^-1 -> -0.000 | AJ24: mm au diamètre | AL24: Déformée radiale | AM24: =((AM$21/Empilage!AM$20)*(Detail_des_effets!AM23-Empilage!AM$27*Detail_des_effets!AM22))*10^-1 -> -0.000 | AN24: mm au diamètre
B25: Effet de l'effort axial seul en montage | F25: Effet de l'effort axial seul en montage | J25: Effet de l'effort axial seul en montage | N25: Effet de l'effort axial seul en montage | R25: Effet de l'effort axial seul en montage | V25: Effet de l'effort axial seul en montage | Z25: Effet de l'effort axial seul en montage | AD25: Effet de l'effort axial seul en montage | AH25: Effet de l'effort axial seul en montage | AL25: Effet de l'effort axial seul en montage
B27: Au niveau du frettage | F27: Au niveau du frettage | J27: Au niveau du frettage | N27: Au niveau du frettage | R27: Au niveau du frettage | V27: Au niveau du frettage | Z27: Au niveau du frettage | AD27: Au niveau du frettage | AH27: Au niveau du frettage | AL27: Au niveau du frettage
B28: Contrainte axiale | C28: =Empilage!$D$92*10/((PI()/4)*(Empilage!C$15^2-Empilage!C$16^2)) -> 122 | D28: MPa | F28: Contrainte axiale | G28: =Empilage!$D$92*10/((PI()/4)*(Empilage!G$15^2-Empilage!G$16^2)) -> 122 | H28: MPa | J28: Contrainte axiale | K28: =Empilage!$D$92*10/((PI()/4)*(Empilage!K$15^2-Empilage!K$16^2)) -> 122 | L28: MPa | N28: Contrainte axiale | O28: =Empilage!$D$92*10/((PI()/4)*(Empilage!O$15^2-Empilage!O$16^2)) -> 122 | P28: MPa | R28: Contrainte axiale | S28: =Empilage!$D$92*10/((PI()/4)*(Empilage!S$15^2-Empilage!S$16^2)) -> 122 | T28: MPa | V28: Contrainte axiale | W28: =Empilage!$D$92*10/((PI()/4)*(Empilage!W$15^2-Empilage!W$16^2)) -> 122 | X28: MPa | Z28: Contrainte axiale | AA28: =Empilage!$D$92*10/((PI()/4)*(Empilage!AA$15^2-Empilage!AA$16^2)) -> 122 | AB28: MPa | AD28: Contrainte axiale | AE28: =Empilage!$D$92*10/((PI()/4)*(Empilage!AE$15^2-Empilage!AE$16^2)) -> 122 | AF28: MPa | AH28: Contrainte axiale | AI28: =Empilage!$D$92*10/((PI()/4)*(Empilage!AI$15^2-Empilage!AI$16^2)) -> 122 | AJ28: MPa | AL28: Contrainte axiale | AM28: =Empilage!$D$92*10/((PI()/4)*(Empilage!AM$15^2-Empilage!AM$16^2)) -> 122 | AN28: MPa
B29: Déformée axiale | C29: =(C$28/Empilage!C$18*Empilage!C$13)*10^-1 -> 0.031 | D29: mm | F29: Déformée axiale | G29: =(G$28/Empilage!G$18*Empilage!G$13)*10^-1 -> 0.031 | H29: mm | J29: Déformée axiale | K29: =(K$28/Empilage!K$18*Empilage!K$13)*10^-1 -> 0.031 | L29: mm | N29: Déformée axiale | O29: =(O$28/Empilage!O$18*Empilage!O$13)*10^-1 -> 0.031 | P29: mm | R29: Déformée axiale | S29: =(S$28/Empilage!S$18*Empilage!S$13)*10^-1 -> 0.031 | T29: mm | V29: Déformée axiale | W29: =(W$28/Empilage!W$18*Empilage!W$13)*10^-1 -> 0.031 | X29: mm | Z29: Déformée axiale | AA29: =(AA$28/Empilage!AA$18*Empilage!AA$13)*10^-1 -> 0.031 | AB29: mm | AD29: Déformée axiale | AE29: =(AE$28/Empilage!AE$18*Empilage!AE$13)*10^-1 -> 0.031 | AF29: mm | AH29: Déformée axiale | AI29: =(AI$28/Empilage!AI$18*Empilage!AI$13)*10^-1 -> 0.031 | AJ29: mm | AL29: Déformée axiale | AM29: =(AM$28/Empilage!AM$18*Empilage!AM$13)*10^-1 -> 0.031 | AN29: mm
B30: Déformée radiale | C30: =(-Empilage!C$27/Empilage!C$18*Empilage!C$15*Detail_des_effets!C$28)*10^-1 -> -0.004 | D30: mm au diamètre | F30: Déformée radiale | G30: =(-Empilage!G$27/Empilage!G$18*Empilage!G$15*Detail_des_effets!G$28)*10^-1 -> -0.004 | H30: mm au diamètre | J30: Déformée radiale | K30: =(-Empilage!K$27/Empilage!K$18*Empilage!K$15*Detail_des_effets!K$28)*10^-1 -> -0.004 | L30: mm au diamètre | N30: Déformée radiale | O30: =(-Empilage!O$27/Empilage!O$18*Empilage!O$15*Detail_des_effets!O$28)*10^-1 -> -0.004 | P30: mm au diamètre | R30: Déformée radiale | S30: =(-Empilage!S$27/Empilage!S$18*Empilage!S$15*Detail_des_effets!S$28)*10^-1 -> -0.004 | T30: mm au diamètre | V30: Déformée radiale | W30: =(-Empilage!W$27/Empilage!W$18*Empilage!W$15*Detail_des_effets!W$28)*10^-1 -> -0.004 | X30: mm au diamètre | Z30: Déformée radiale | AA30: =(-Empilage!AA$27/Empilage!AA$18*Empilage!AA$15*Detail_des_effets!AA$28)*10^-1 -> -0.004 | AB30: mm au diamètre | AD30: Déformée radiale | AE30: =(-Empilage!AE$27/Empilage!AE$18*Empilage!AE$15*Detail_des_effets!AE$28)*10^-1 -> -0.004 | AF30: mm au diamètre | AH30: Déformée radiale | AI30: =(-Empilage!AI$27/Empilage!AI$18*Empilage!AI$15*Detail_des_effets!AI$28)*10^-1 -> -0.004 | AJ30: mm au diamètre | AL30: Déformée radiale | AM30: =(-Empilage!AM$27/Empilage!AM$18*Empilage!AM$15*Detail_des_effets!AM$28)*10^-1 -> -0.004 | AN30: mm au diamètre
B31: Dans la pièce, au diamètre particulier | C31: =Empilage!C$17 -> 20.00 | D31: mm | F31: Dans la pièce, au diamètre particulier | G31: =Empilage!G$17 -> 20.00 | H31: mm | J31: Dans la pièce, au diamètre particulier | K31: =Empilage!K$17 -> 20.00 | L31: mm | N31: Dans la pièce, au diamètre particulier | O31: =Empilage!O$17 -> 20.00 | P31: mm | R31: Dans la pièce, au diamètre particulier | S31: =Empilage!S$17 -> 20.00 | T31: mm | V31: Dans la pièce, au diamètre particulier | W31: =Empilage!W$17 -> 20.00 | X31: mm | Z31: Dans la pièce, au diamètre particulier | AA31: =Empilage!AA$17 -> 20.00 | AB31: mm | AD31: Dans la pièce, au diamètre particulier | AE31: =Empilage!AE$17 -> 20.00 | AF31: mm | AH31: Dans la pièce, au diamètre particulier | AI31: =Empilage!AI$17 -> 20.00 | AJ31: mm | AL31: Dans la pièce, au diamètre particulier | AM31: =Empilage!AM$17 -> 20.00 | AN31: mm
B32: Contrainte axiale | C32: =Empilage!$D$92*10/((PI()/4)*(Empilage!C$15^2-Empilage!C$16^2)) -> 122 | D32: MPa | F32: Contrainte axiale | G32: =Empilage!$D$92*10/((PI()/4)*(Empilage!G$15^2-Empilage!G$16^2)) -> 122 | H32: MPa | J32: Contrainte axiale | K32: =Empilage!$D$92*10/((PI()/4)*(Empilage!K$15^2-Empilage!K$16^2)) -> 122 | L32: MPa | N32: Contrainte axiale | O32: =Empilage!$D$92*10/((PI()/4)*(Empilage!O$15^2-Empilage!O$16^2)) -> 122 | P32: MPa | R32: Contrainte axiale | S32: =Empilage!$D$92*10/((PI()/4)*(Empilage!S$15^2-Empilage!S$16^2)) -> 122 | T32: MPa | V32: Contrainte axiale | W32: =Empilage!$D$92*10/((PI()/4)*(Empilage!W$15^2-Empilage!W$16^2)) -> 122 | X32: MPa | Z32: Contrainte axiale | AA32: =Empilage!$D$92*10/((PI()/4)*(Empilage!AA$15^2-Empilage!AA$16^2)) -> 122 | AB32: MPa | AD32: Contrainte axiale | AE32: =Empilage!$D$92*10/((PI()/4)*(Empilage!AE$15^2-Empilage!AE$16^2)) -> 122 | AF32: MPa | AH32: Contrainte axiale | AI32: =Empilage!$D$92*10/((PI()/4)*(Empilage!AI$15^2-Empilage!AI$16^2)) -> 122 | AJ32: MPa | AL32: Contrainte axiale | AM32: =Empilage!$D$92*10/((PI()/4)*(Empilage!AM$15^2-Empilage!AM$16^2)) -> 122 | AN32: MPa
B33: Déformée axiale | C33: =(C$32/Empilage!C$18*Empilage!C$13)*10^-1 -> 0.031 | D33: mm | F33: Déformée axiale | G33: =(G$32/Empilage!G$18*Empilage!G$13)*10^-1 -> 0.031 | H33: mm | J33: Déformée axiale | K33: =(K$32/Empilage!K$18*Empilage!K$13)*10^-1 -> 0.031 | L33: mm | N33: Déformée axiale | O33: =(O$32/Empilage!O$18*Empilage!O$13)*10^-1 -> 0.031 | P33: mm | R33: Déformée axiale | S33: =(S$32/Empilage!S$18*Empilage!S$13)*10^-1 -> 0.031 | T33: mm | V33: Déformée axiale | W33: =(W$32/Empilage!W$18*Empilage!W$13)*10^-1 -> 0.031 | X33: mm | Z33: Déformée axiale | AA33: =(AA$32/Empilage!AA$18*Empilage!AA$13)*10^-1 -> 0.031 | AB33: mm | AD33: Déformée axiale | AE33: =(AE$32/Empilage!AE$18*Empilage!AE$13)*10^-1 -> 0.031 | AF33: mm | AH33: Déformée axiale | AI33: =(AI$32/Empilage!AI$18*Empilage!AI$13)*10^-1 -> 0.031 | AJ33: mm | AL33: Déformée axiale | AM33: =(AM$32/Empilage!AM$18*Empilage!AM$13)*10^-1 -> 0.031 | AN33: mm
B34: Déformée radiale | C34: =(-Empilage!C$27/Empilage!C$18*C31*Detail_des_effets!C$32)*10^-1 -> -0.003 | D34: mm au diamètre | F34: Déformée radiale | G34: =(-Empilage!G$27/Empilage!G$18*G31*Detail_des_effets!G$32)*10^-1 -> -0.003 | H34: mm au diamètre | J34: Déformée radiale | K34: =(-Empilage!K$27/Empilage!K$18*K31*Detail_des_effets!K$32)*10^-1 -> -0.003 | L34: mm au diamètre | N34: Déformée radiale | O34: =(-Empilage!O$27/Empilage!O$18*O31*Detail_des_effets!O$32)*10^-1 -> -0.003 | P34: mm au diamètre | R34: Déformée radiale | S34: =(-Empilage!S$27/Empilage!S$18*S31*Detail_des_effets!S$32)*10^-1 -> -0.003 | T34: mm au diamètre | V34: Déformée radiale | W34: =(-Empilage!W$27/Empilage!W$18*W31*Detail_des_effets!W$32)*10^-1 -> -0.003 | X34: mm au diamètre | Z34: Déformée radiale | AA34: =(-Empilage!AA$27/Empilage!AA$18*AA31*Detail_des_effets!AA$32)*10^-1 -> -0.003 | AB34: mm au diamètre | AD34: Déformée radiale | AE34: =(-Empilage!AE$27/Empilage!AE$18*AE31*Detail_des_effets!AE$32)*10^-1 -> -0.003 | AF34: mm au diamètre | AH34: Déformée radiale | AI34: =(-Empilage!AI$27/Empilage!AI$18*AI31*Detail_des_effets!AI$32)*10^-1 -> -0.003 | AJ34: mm au diamètre | AL34: Déformée radiale | AM34: =(-Empilage!AM$27/Empilage!AM$18*AM31*Detail_des_effets!AM$32)*10^-1 -> -0.003 | AN34: mm au diamètre
B35: Effet de l'effort axial seul en mise en froid | F35: Effet de l'effort axial seul en mise en froid | J35: Effet de l'effort axial seul en mise en froid | N35: Effet de l'effort axial seul en mise en froid | R35: Effet de l'effort axial seul en mise en froid | V35: Effet de l'effort axial seul en mise en froid | Z35: Effet de l'effort axial seul en mise en froid | AD35: Effet de l'effort axial seul en mise en froid | AH35: Effet de l'effort axial seul en mise en froid | AL35: Effet de l'effort axial seul en mise en froid
B37: Au niveau du frettage | F37: Au niveau du frettage | J37: Au niveau du frettage | N37: Au niveau du frettage | R37: Au niveau du frettage | V37: Au niveau du frettage | Z37: Au niveau du frettage | AD37: Au niveau du frettage | AH37: Au niveau du frettage | AL37: Au niveau du frettage
B38: Contrainte axiale | C38: =Empilage!$D$92*10/((PI()/4)*(Empilage!C$15^2-Empilage!C$16^2)) -> 122 | D38: MPa | F38: Contrainte axiale | G38: =Empilage!$D$92*10/((PI()/4)*(Empilage!G$15^2-Empilage!G$16^2)) -> 122 | H38: MPa | J38: Contrainte axiale | K38: =Empilage!$D$92*10/((PI()/4)*(Empilage!K$15^2-Empilage!K$16^2)) -> 122 | L38: MPa | N38: Contrainte axiale | O38: =Empilage!$D$92*10/((PI()/4)*(Empilage!O$15^2-Empilage!O$16^2)) -> 122 | P38: MPa | R38: Contrainte axiale | S38: =Empilage!$D$92*10/((PI()/4)*(Empilage!S$15^2-Empilage!S$16^2)) -> 122 | T38: MPa | V38: Contrainte axiale | W38: =Empilage!$D$92*10/((PI()/4)*(Empilage!W$15^2-Empilage!W$16^2)) -> 122 | X38: MPa | Z38: Contrainte axiale | AA38: =Empilage!$D$92*10/((PI()/4)*(Empilage!AA$15^2-Empilage!AA$16^2)) -> 122 | AB38: MPa | AD38: Contrainte axiale | AE38: =Empilage!$D$92*10/((PI()/4)*(Empilage!AE$15^2-Empilage!AE$16^2)) -> 122 | AF38: MPa | AH38: Contrainte axiale | AI38: =Empilage!$D$92*10/((PI()/4)*(Empilage!AI$15^2-Empilage!AI$16^2)) -> 122 | AJ38: MPa | AL38: Contrainte axiale | AM38: =Empilage!$D$92*10/((PI()/4)*(Empilage!AM$15^2-Empilage!AM$16^2)) -> 122 | AN38: MPa
B39: Déformée axiale | C39: =(C$38/Empilage!C$19*Empilage!C$13)*10^-1 -> 0.029 | D39: mm | F39: Déformée axiale | G39: =(G$38/Empilage!G$19*Empilage!G$13)*10^-1 -> 0.029 | H39: mm | J39: Déformée axiale | K39: =(K$38/Empilage!K$19*Empilage!K$13)*10^-1 -> 0.029 | L39: mm | N39: Déformée axiale | O39: =(O$38/Empilage!O$19*Empilage!O$13)*10^-1 -> 0.029 | P39: mm | R39: Déformée axiale | S39: =(S$38/Empilage!S$19*Empilage!S$13)*10^-1 -> 0.029 | T39: mm | V39: Déformée axiale | W39: =(W$38/Empilage!W$19*Empilage!W$13)*10^-1 -> 0.029 | X39: mm | Z39: Déformée axiale | AA39: =(AA$38/Empilage!AA$19*Empilage!AA$13)*10^-1 -> 0.029 | AB39: mm | AD39: Déformée axiale | AE39: =(AE$38/Empilage!AE$19*Empilage!AE$13)*10^-1 -> 0.029 | AF39: mm | AH39: Déformée axiale | AI39: =(AI$38/Empilage!AI$19*Empilage!AI$13)*10^-1 -> 0.029 | AJ39: mm | AL39: Déformée axiale | AM39: =(AM$38/Empilage!AM$19*Empilage!AM$13)*10^-1 -> 0.029 | AN39: mm
B40: Déformée radiale | C40: =(-Empilage!C$27/Empilage!C$19*Empilage!C$15*Detail_des_effets!C$38)*10^-1 -> -0.004 | D40: mm au diamètre | F40: Déformée radiale | G40: =(-Empilage!G$27/Empilage!G$19*Empilage!G$15*Detail_des_effets!G$38)*10^-1 -> -0.004 | H40: mm au diamètre | J40: Déformée radiale | K40: =(-Empilage!K$27/Empilage!K$19*Empilage!K$15*Detail_des_effets!K$38)*10^-1 -> -0.004 | L40: mm au diamètre | N40: Déformée radiale | O40: =(-Empilage!O$27/Empilage!O$19*Empilage!O$15*Detail_des_effets!O$38)*10^-1 -> -0.004 | P40: mm au diamètre | R40: Déformée radiale | S40: =(-Empilage!S$27/Empilage!S$19*Empilage!S$15*Detail_des_effets!S$38)*10^-1 -> -0.004 | T40: mm au diamètre | V40: Déformée radiale | W40: =(-Empilage!W$27/Empilage!W$19*Empilage!W$15*Detail_des_effets!W$38)*10^-1 -> -0.004 | X40: mm au diamètre | Z40: Déformée radiale | AA40: =(-Empilage!AA$27/Empilage!AA$19*Empilage!AA$15*Detail_des_effets!AA$38)*10^-1 -> -0.004 | AB40: mm au diamètre | AD40: Déformée radiale | AE40: =(-Empilage!AE$27/Empilage!AE$19*Empilage!AE$15*Detail_des_effets!AE$38)*10^-1 -> -0.004 | AF40: mm au diamètre | AH40: Déformée radiale | AI40: =(-Empilage!AI$27/Empilage!AI$19*Empilage!AI$15*Detail_des_effets!AI$38)*10^-1 -> -0.004 | AJ40: mm au diamètre | AL40: Déformée radiale | AM40: =(-Empilage!AM$27/Empilage!AM$19*Empilage!AM$15*Detail_des_effets!AM$38)*10^-1 -> -0.004 | AN40: mm au diamètre
B41: Dans la pièce, au diamètre particulier | C41: =Empilage!C$17 -> 20.00 | D41: mm | F41: Dans la pièce, au diamètre particulier | G41: =Empilage!G$17 -> 20.00 | H41: mm | J41: Dans la pièce, au diamètre particulier | K41: =Empilage!K$17 -> 20.00 | L41: mm | N41: Dans la pièce, au diamètre particulier | O41: =Empilage!O$17 -> 20.00 | P41: mm | R41: Dans la pièce, au diamètre particulier | S41: =Empilage!S$17 -> 20.00 | T41: mm | V41: Dans la pièce, au diamètre particulier | W41: =Empilage!W$17 -> 20.00 | X41: mm | Z41: Dans la pièce, au diamètre particulier | AA41: =Empilage!AA$17 -> 20.00 | AB41: mm | AD41: Dans la pièce, au diamètre particulier | AE41: =Empilage!AE$17 -> 20.00 | AF41: mm | AH41: Dans la pièce, au diamètre particulier | AI41: =Empilage!AI$17 -> 20.00 | AJ41: mm | AL41: Dans la pièce, au diamètre particulier | AM41: =Empilage!AM$17 -> 20.00 | AN41: mm
B42: Contrainte axiale | C42: =Empilage!$D$92*10/((PI()/4)*(Empilage!C$15^2-Empilage!C$16^2)) -> 122 | D42: MPa | F42: Contrainte axiale | G42: =Empilage!$D$92*10/((PI()/4)*(Empilage!G$15^2-Empilage!G$16^2)) -> 122 | H42: MPa | J42: Contrainte axiale | K42: =Empilage!$D$92*10/((PI()/4)*(Empilage!K$15^2-Empilage!K$16^2)) -> 122 | L42: MPa | N42: Contrainte axiale | O42: =Empilage!$D$92*10/((PI()/4)*(Empilage!O$15^2-Empilage!O$16^2)) -> 122 | P42: MPa | R42: Contrainte axiale | S42: =Empilage!$D$92*10/((PI()/4)*(Empilage!S$15^2-Empilage!S$16^2)) -> 122 | T42: MPa | V42: Contrainte axiale | W42: =Empilage!$D$92*10/((PI()/4)*(Empilage!W$15^2-Empilage!W$16^2)) -> 122 | X42: MPa | Z42: Contrainte axiale | AA42: =Empilage!$D$92*10/((PI()/4)*(Empilage!AA$15^2-Empilage!AA$16^2)) -> 122 | AB42: MPa | AD42: Contrainte axiale | AE42: =Empilage!$D$92*10/((PI()/4)*(Empilage!AE$15^2-Empilage!AE$16^2)) -> 122 | AF42: MPa | AH42: Contrainte axiale | AI42: =Empilage!$D$92*10/((PI()/4)*(Empilage!AI$15^2-Empilage!AI$16^2)) -> 122 | AJ42: MPa | AL42: Contrainte axiale | AM42: =Empilage!$D$92*10/((PI()/4)*(Empilage!AM$15^2-Empilage!AM$16^2)) -> 122 | AN42: MPa
B43: Déformée axiale | C43: =(C$42/Empilage!C$19*Empilage!C$13)*10^-1 -> 0.029 | D43: mm | F43: Déformée axiale | G43: =(G$42/Empilage!G$19*Empilage!G$13)*10^-1 -> 0.029 | H43: mm | J43: Déformée axiale | K43: =(K$42/Empilage!K$19*Empilage!K$13)*10^-1 -> 0.029 | L43: mm | N43: Déformée axiale | O43: =(O$42/Empilage!O$19*Empilage!O$13)*10^-1 -> 0.029 | P43: mm | R43: Déformée axiale | S43: =(S$42/Empilage!S$19*Empilage!S$13)*10^-1 -> 0.029 | T43: mm | V43: Déformée axiale | W43: =(W$42/Empilage!W$19*Empilage!W$13)*10^-1 -> 0.029 | X43: mm | Z43: Déformée axiale | AA43: =(AA$42/Empilage!AA$19*Empilage!AA$13)*10^-1 -> 0.029 | AB43: mm | AD43: Déformée axiale | AE43: =(AE$42/Empilage!AE$19*Empilage!AE$13)*10^-1 -> 0.029 | AF43: mm | AH43: Déformée axiale | AI43: =(AI$42/Empilage!AI$19*Empilage!AI$13)*10^-1 -> 0.029 | AJ43: mm | AL43: Déformée axiale | AM43: =(AM$42/Empilage!AM$19*Empilage!AM$13)*10^-1 -> 0.029 | AN43: mm
B44: Déformée radiale | C44: =(-Empilage!C$27/Empilage!C$19*C41*Detail_des_effets!C$42)*10^-1 -> -0.003 | D44: mm au diamètre | F44: Déformée radiale | G44: =(-Empilage!G$27/Empilage!G$19*G41*Detail_des_effets!G$42)*10^-1 -> -0.003 | H44: mm au diamètre | J44: Déformée radiale | K44: =(-Empilage!K$27/Empilage!K$19*K41*Detail_des_effets!K$42)*10^-1 -> -0.003 | L44: mm au diamètre | N44: Déformée radiale | O44: =(-Empilage!O$27/Empilage!O$19*O41*Detail_des_effets!O$42)*10^-1 -> -0.003 | P44: mm au diamètre | R44: Déformée radiale | S44: =(-Empilage!S$27/Empilage!S$19*S41*Detail_des_effets!S$42)*10^-1 -> -0.003 | T44: mm au diamètre | V44: Déformée radiale | W44: =(-Empilage!W$27/Empilage!W$19*W41*Detail_des_effets!W$42)*10^-1 -> -0.003 | X44: mm au diamètre | Z44: Déformée radiale | AA44: =(-Empilage!AA$27/Empilage!AA$19*AA41*Detail_des_effets!AA$42)*10^-1 -> -0.003 | AB44: mm au diamètre | AD44: Déformée radiale | AE44: =(-Empilage!AE$27/Empilage!AE$19*AE41*Detail_des_effets!AE$42)*10^-1 -> -0.003 | AF44: mm au diamètre | AH44: Déformée radiale | AI44: =(-Empilage!AI$27/Empilage!AI$19*AI41*Detail_des_effets!AI$42)*10^-1 -> -0.003 | AJ44: mm au diamètre | AL44: Déformée radiale | AM44: =(-Empilage!AM$27/Empilage!AM$19*AM41*Detail_des_effets!AM$42)*10^-1 -> -0.003 | AN44: mm au diamètre
B45: Effet de l'effort axial seul en fonctionnement | F45: Effet de l'effort axial seul en fonctionnement | J45: Effet de l'effort axial seul en fonctionnement | N45: Effet de l'effort axial seul en fonctionnement | R45: Effet de l'effort axial seul en fonctionnement | V45: Effet de l'effort axial seul en fonctionnement | Z45: Effet de l'effort axial seul en fonctionnement | AD45: Effet de l'effort axial seul en fonctionnement | AH45: Effet de l'effort axial seul en fonctionnement | AL45: Effet de l'effort axial seul en fonctionnement
B47: Au niveau du frettage | F47: Au niveau du frettage | J47: Au niveau du frettage | N47: Au niveau du frettage | R47: Au niveau du frettage | V47: Au niveau du frettage | Z47: Au niveau du frettage | AD47: Au niveau du frettage | AH47: Au niveau du frettage | AL47: Au niveau du frettage
B48: Contrainte axiale | C48: =Empilage!$D$92*10/((PI()/4)*(Empilage!C$15^2-Empilage!C$16^2)) -> 122 | D48: MPa | F48: Contrainte axiale | G48: =Empilage!$D$92*10/((PI()/4)*(Empilage!G$15^2-Empilage!G$16^2)) -> 122 | H48: MPa | J48: Contrainte axiale | K48: =Empilage!$D$92*10/((PI()/4)*(Empilage!K$15^2-Empilage!K$16^2)) -> 122 | L48: MPa | N48: Contrainte axiale | O48: =Empilage!$D$92*10/((PI()/4)*(Empilage!O$15^2-Empilage!O$16^2)) -> 122 | P48: MPa | R48: Contrainte axiale | S48: =Empilage!$D$92*10/((PI()/4)*(Empilage!S$15^2-Empilage!S$16^2)) -> 122 | T48: MPa | V48: Contrainte axiale | W48: =Empilage!$D$92*10/((PI()/4)*(Empilage!W$15^2-Empilage!W$16^2)) -> 122 | X48: MPa | Z48: Contrainte axiale | AA48: =Empilage!$D$92*10/((PI()/4)*(Empilage!AA$15^2-Empilage!AA$16^2)) -> 122 | AB48: MPa | AD48: Contrainte axiale | AE48: =Empilage!$D$92*10/((PI()/4)*(Empilage!AE$15^2-Empilage!AE$16^2)) -> 122 | AF48: MPa | AH48: Contrainte axiale | AI48: =Empilage!$D$92*10/((PI()/4)*(Empilage!AI$15^2-Empilage!AI$16^2)) -> 122 | AJ48: MPa | AL48: Contrainte axiale | AM48: =Empilage!$D$92*10/((PI()/4)*(Empilage!AM$15^2-Empilage!AM$16^2)) -> 122 | AN48: MPa
B49: Déformée axiale | C49: =(C$48/Empilage!C$20*Empilage!C$13)*10^-1 -> 0.030 | D49: mm | F49: Déformée axiale | G49: =(G$48/Empilage!G$20*Empilage!G$13)*10^-1 -> 0.030 | H49: mm | J49: Déformée axiale | K49: =(K$48/Empilage!K$20*Empilage!K$13)*10^-1 -> 0.030 | L49: mm | N49: Déformée axiale | O49: =(O$48/Empilage!O$20*Empilage!O$13)*10^-1 -> 0.030 | P49: mm | R49: Déformée axiale | S49: =(S$48/Empilage!S$20*Empilage!S$13)*10^-1 -> 0.030 | T49: mm | V49: Déformée axiale | W49: =(W$48/Empilage!W$20*Empilage!W$13)*10^-1 -> 0.030 | X49: mm | Z49: Déformée axiale | AA49: =(AA$48/Empilage!AA$20*Empilage!AA$13)*10^-1 -> 0.030 | AB49: mm | AD49: Déformée axiale | AE49: =(AE$48/Empilage!AE$20*Empilage!AE$13)*10^-1 -> 0.030 | AF49: mm | AH49: Déformée axiale | AI49: =(AI$48/Empilage!AI$20*Empilage!AI$13)*10^-1 -> 0.030 | AJ49: mm | AL49: Déformée axiale | AM49: =(AM$48/Empilage!AM$20*Empilage!AM$13)*10^-1 -> 0.030 | AN49: mm
B50: Déformée radiale | C50: =(-Empilage!C$27/Empilage!C$20*Empilage!C$15*Detail_des_effets!C$48)*10^-1 -> -0.004 | D50: mm au diamètre | F50: Déformée radiale | G50: =(-Empilage!G$27/Empilage!G$20*Empilage!G$15*Detail_des_effets!G$48)*10^-1 -> -0.004 | H50: mm au diamètre | J50: Déformée radiale | K50: =(-Empilage!K$27/Empilage!K$20*Empilage!K$15*Detail_des_effets!K$48)*10^-1 -> -0.004 | L50: mm au diamètre | N50: Déformée radiale | O50: =(-Empilage!O$27/Empilage!O$20*Empilage!O$15*Detail_des_effets!O$48)*10^-1 -> -0.004 | P50: mm au diamètre | R50: Déformée radiale | S50: =(-Empilage!S$27/Empilage!S$20*Empilage!S$15*Detail_des_effets!S$48)*10^-1 -> -0.004 | T50: mm au diamètre | V50: Déformée radiale | W50: =(-Empilage!W$27/Empilage!W$20*Empilage!W$15*Detail_des_effets!W$48)*10^-1 -> -0.004 | X50: mm au diamètre | Z50: Déformée radiale | AA50: =(-Empilage!AA$27/Empilage!AA$20*Empilage!AA$15*Detail_des_effets!AA$48)*10^-1 -> -0.004 | AB50: mm au diamètre | AD50: Déformée radiale | AE50: =(-Empilage!AE$27/Empilage!AE$20*Empilage!AE$15*Detail_des_effets!AE$48)*10^-1 -> -0.004 | AF50: mm au diamètre | AH50: Déformée radiale | AI50: =(-Empilage!AI$27/Empilage!AI$20*Empilage!AI$15*Detail_des_effets!AI$48)*10^-1 -> -0.004 | AJ50: mm au diamètre | AL50: Déformée radiale | AM50: =(-Empilage!AM$27/Empilage!AM$20*Empilage!AM$15*Detail_des_effets!AM$48)*10^-1 -> -0.004 | AN50: mm au diamètre
B51: Dans la pièce, au diamètre particulier | C51: =Empilage!C$17 -> 20.00 | D51: mm | F51: Dans la pièce, au diamètre particulier | G51: =Empilage!G$17 -> 20.00 | H51: mm | J51: Dans la pièce, au diamètre particulier | K51: =Empilage!K$17 -> 20.00 | L51: mm | N51: Dans la pièce, au diamètre particulier | O51: =Empilage!O$17 -> 20.00 | P51: mm | R51: Dans la pièce, au diamètre particulier | S51: =Empilage!S$17 -> 20.00 | T51: mm | V51: Dans la pièce, au diamètre particulier | W51: =Empilage!W$17 -> 20.00 | X51: mm | Z51: Dans la pièce, au diamètre particulier | AA51: =Empilage!AA$17 -> 20.00 | AB51: mm | AD51: Dans la pièce, au diamètre particulier | AE51: =Empilage!AE$17 -> 20.00 | AF51: mm | AH51: Dans la pièce, au diamètre particulier | AI51: =Empilage!AI$17 -> 20.00 | AJ51: mm | AL51: Dans la pièce, au diamètre particulier | AM51: =Empilage!AM$17 -> 20.00 | AN51: mm
B52: Contrainte axiale | C52: =Empilage!$D$92*10/((PI()/4)*(Empilage!C$15^2-Empilage!C$16^2)) -> 122 | D52: MPa | F52: Contrainte axiale | G52: =Empilage!$D$92*10/((PI()/4)*(Empilage!G$15^2-Empilage!G$16^2)) -> 122 | H52: MPa | J52: Contrainte axiale | K52: =Empilage!$D$92*10/((PI()/4)*(Empilage!K$15^2-Empilage!K$16^2)) -> 122 | L52: MPa | N52: Contrainte axiale | O52: =Empilage!$D$92*10/((PI()/4)*(Empilage!O$15^2-Empilage!O$16^2)) -> 122 | P52: MPa | R52: Contrainte axiale | S52: =Empilage!$D$92*10/((PI()/4)*(Empilage!S$15^2-Empilage!S$16^2)) -> 122 | T52: MPa | V52: Contrainte axiale | W52: =Empilage!$D$92*10/((PI()/4)*(Empilage!W$15^2-Empilage!W$16^2)) -> 122 | X52: MPa | Z52: Contrainte axiale | AA52: =Empilage!$D$92*10/((PI()/4)*(Empilage!AA$15^2-Empilage!AA$16^2)) -> 122 | AB52: MPa | AD52: Contrainte axiale | AE52: =Empilage!$D$92*10/((PI()/4)*(Empilage!AE$15^2-Empilage!AE$16^2)) -> 122 | AF52: MPa | AH52: Contrainte axiale | AI52: =Empilage!$D$92*10/((PI()/4)*(Empilage!AI$15^2-Empilage!AI$16^2)) -> 122 | AJ52: MPa | AL52: Contrainte axiale | AM52: =Empilage!$D$92*10/((PI()/4)*(Empilage!AM$15^2-Empilage!AM$16^2)) -> 122 | AN52: MPa
B53: Déformée axiale | C53: =(C$52/Empilage!C$20*Empilage!C$13)*10^-1 -> 0.030 | D53: mm | F53: Déformée axiale | G53: =(G$52/Empilage!G$20*Empilage!G$13)*10^-1 -> 0.030 | H53: mm | J53: Déformée axiale | K53: =(K$52/Empilage!K$20*Empilage!K$13)*10^-1 -> 0.030 | L53: mm | N53: Déformée axiale | O53: =(O$52/Empilage!O$20*Empilage!O$13)*10^-1 -> 0.030 | P53: mm | R53: Déformée axiale | S53: =(S$52/Empilage!S$20*Empilage!S$13)*10^-1 -> 0.030 | T53: mm | V53: Déformée axiale | W53: =(W$52/Empilage!W$20*Empilage!W$13)*10^-1 -> 0.030 | X53: mm | Z53: Déformée axiale | AA53: =(AA$52/Empilage!AA$20*Empilage!AA$13)*10^-1 -> 0.030 | AB53: mm | AD53: Déformée axiale | AE53: =(AE$52/Empilage!AE$20*Empilage!AE$13)*10^-1 -> 0.030 | AF53: mm | AH53: Déformée axiale | AI53: =(AI$52/Empilage!AI$20*Empilage!AI$13)*10^-1 -> 0.030 | AJ53: mm | AL53: Déformée axiale | AM53: =(AM$52/Empilage!AM$20*Empilage!AM$13)*10^-1 -> 0.030 | AN53: mm
B54: Déformée radiale | C54: =(-Empilage!C$27/Empilage!C$20*C51*Detail_des_effets!C$52)*10^-1 -> -0.003 | D54: mm au diamètre | F54: Déformée radiale | G54: =(-Empilage!G$27/Empilage!G$20*G51*Detail_des_effets!G$52)*10^-1 -> -0.003 | H54: mm au diamètre | J54: Déformée radiale | K54: =(-Empilage!K$27/Empilage!K$20*K51*Detail_des_effets!K$52)*10^-1 -> -0.003 | L54: mm au diamètre | N54: Déformée radiale | O54: =(-Empilage!O$27/Empilage!O$20*O51*Detail_des_effets!O$52)*10^-1 -> -0.003 | P54: mm au diamètre | R54: Déformée radiale | S54: =(-Empilage!S$27/Empilage!S$20*S51*Detail_des_effets!S$52)*10^-1 -> -0.003 | T54: mm au diamètre | V54: Déformée radiale | W54: =(-Empilage!W$27/Empilage!W$20*W51*Detail_des_effets!W$52)*10^-1 -> -0.003 | X54: mm au diamètre | Z54: Déformée radiale | AA54: =(-Empilage!AA$27/Empilage!AA$20*AA51*Detail_des_effets!AA$52)*10^-1 -> -0.003 | AB54: mm au diamètre | AD54: Déformée radiale | AE54: =(-Empilage!AE$27/Empilage!AE$20*AE51*Detail_des_effets!AE$52)*10^-1 -> -0.003 | AF54: mm au diamètre | AH54: Déformée radiale | AI54: =(-Empilage!AI$27/Empilage!AI$20*AI51*Detail_des_effets!AI$52)*10^-1 -> -0.003 | AJ54: mm au diamètre | AL54: Déformée radiale | AM54: =(-Empilage!AM$27/Empilage!AM$20*AM51*Detail_des_effets!AM$52)*10^-1 -> -0.003 | AN54: mm au diamètre
B55: Effet du frettage seul en montage | F55: Effet du frettage seul en montage | J55: Effet du frettage seul en montage | N55: Effet du frettage seul en montage | R55: Effet du frettage seul en montage | V55: Effet du frettage seul en montage | Z55: Effet du frettage seul en montage | AD55: Effet du frettage seul en montage | AH55: Effet du frettage seul en montage | AL55: Effet du frettage seul en montage
B57: Pression de contact | C57: Empilage!/Empilage!/(Constantes_de_frettage!-Constantes_de_frettage!) * 0.001 | D57: MPa | F57: Pression de contact | G57: Empilage!/Empilage!/(Constantes_de_frettage!-Constantes_de_frettage!) * 0.001 | H57: MPa | J57: Pression de contact | K57: Empilage!/Empilage!/(Constantes_de_frettage!-Constantes_de_frettage!) * 0.001 | L57: MPa | N57: Pression de contact | O57: Empilage!/Empilage!/(Constantes_de_frettage!-Constantes_de_frettage!) * 0.001 | P57: MPa | R57: Pression de contact | S57: Empilage!/Empilage!/(Constantes_de_frettage!-Constantes_de_frettage!) * 0.001 | T57: MPa | V57: Pression de contact | W57: Empilage!/Empilage!/(Constantes_de_frettage!-Constantes_de_frettage!) * 0.001 | X57: MPa | Z57: Pression de contact | AA57: Empilage!/Empilage!/(Constantes_de_frettage!-Constantes_de_frettage!) * 0.001 | AB57: MPa | AD57: Pression de contact | AE57: Empilage!/Empilage!/(Constantes_de_frettage!-Constantes_de_frettage!) * 0.001 | AF57: MPa | AH57: Pression de contact | AI57: Empilage!/Empilage!/(Constantes_de_frettage!-Constantes_de_frettage!) * 0.001 | AJ57: MPa | AL57: Pression de contact | AM57: Empilage!/Empilage!/(Constantes_de_frettage!-Constantes_de_frettage!) * 0.001 | AN57: MPa
B58: Au niveau du frettage | F58: Au niveau du frettage | J58: Au niveau du frettage | N58: Au niveau du frettage | R58: Au niveau du frettage | V58: Au niveau du frettage | Z58: Au niveau du frettage | AD58: Au niveau du frettage | AH58: Au niveau du frettage | AL58: Au niveau du frettage
B59: Contrainte radiale | C59: =-C57 ->  | D59: MPa | F59: Contrainte radiale | G59: =-G57 ->  | H59: MPa | J59: Contrainte radiale | K59: =-K57 ->  | L59: MPa | N59: Contrainte radiale | O59: =-O57 ->  | P59: MPa | R59: Contrainte radiale | S59: =-S57 ->  | T59: MPa | V59: Contrainte radiale | W59: =-W57 ->  | X59: MPa | Z59: Contrainte radiale | AA59: =-AA57 ->  | AB59: MPa | AD59: Contrainte radiale | AE59: =-AE57 ->  | AF59: MPa | AH59: Contrainte radiale | AI59: =-AI57 ->  | AJ59: MPa | AL59: Contrainte radiale | AM59: =-AM57 ->  | AN59: MPa
B60: Contrainte tangentielle | C60: =-C57*(Empilage!C15^2+Empilage!C16^2)/(Empilage!C15^2-Empilage!C16^2) ->  | D60: MPa | F60: Contrainte tangentielle | G60: =-G57*(Empilage!G15^2+Empilage!G16^2)/(Empilage!G15^2-Empilage!G16^2) ->  | H60: MPa | J60: Contrainte tangentielle | K60: =-K57*(Empilage!K15^2+Empilage!K16^2)/(Empilage!K15^2-Empilage!K16^2) ->  | L60: MPa | N60: Contrainte tangentielle | O60: =-O57*(Empilage!O15^2+Empilage!O16^2)/(Empilage!O15^2-Empilage!O16^2) ->  | P60: MPa | R60: Contrainte tangentielle | S60: =-S57*(Empilage!S15^2+Empilage!S16^2)/(Empilage!S15^2-Empilage!S16^2) ->  | T60: MPa | V60: Contrainte tangentielle | W60: =-W57*(Empilage!W15^2+Empilage!W16^2)/(Empilage!W15^2-Empilage!W16^2) ->  | X60: MPa | Z60: Contrainte tangentielle | AA60: =-AA57*(Empilage!AA15^2+Empilage!AA16^2)/(Empilage!AA15^2-Empilage!AA16^2) ->  | AB60: MPa | AD60: Contrainte tangentielle | AE60: =-AE57*(Empilage!AE15^2+Empilage!AE16^2)/(Empilage!AE15^2-Empilage!AE16^2) ->  | AF60: MPa | AH60: Contrainte tangentielle | AI60: =-AI57*(Empilage!AI15^2+Empilage!AI16^2)/(Empilage!AI15^2-Empilage!AI16^2) ->  | AJ60: MPa | AL60: Contrainte tangentielle | AM60: =-AM57*(Empilage!AM15^2+Empilage!AM16^2)/(Empilage!AM15^2-Empilage!AM16^2) ->  | AN60: MPa
B61: Déformée radiale | C61: =Empilage!C15*((C60-Empilage!C$27*Detail_des_effets!C59)/Empilage!C18)*10^-1 ->  | D61: mm au diamètre | F61: Déformée radiale | G61: =Empilage!G15*((G60-Empilage!G$27*Detail_des_effets!G59)/Empilage!G18)*10^-1 ->  | H61: mm au diamètre | J61: Déformée radiale | K61: =Empilage!K15*((K60-Empilage!K$27*Detail_des_effets!K59)/Empilage!K18)*10^-1 ->  | L61: mm au diamètre | N61: Déformée radiale | O61: =Empilage!O15*((O60-Empilage!O$27*Detail_des_effets!O59)/Empilage!O18)*10^-1 ->  | P61: mm au diamètre | R61: Déformée radiale | S61: =Empilage!S15*((S60-Empilage!S$27*Detail_des_effets!S59)/Empilage!S18)*10^-1 ->  | T61: mm au diamètre | V61: Déformée radiale | W61: =Empilage!W15*((W60-Empilage!W$27*Detail_des_effets!W59)/Empilage!W18)*10^-1 ->  | X61: mm au diamètre | Z61: Déformée radiale | AA61: =Empilage!AA15*((AA60-Empilage!AA$27*Detail_des_effets!AA59)/Empilage!AA18)*10^-1 ->  | AB61: mm au diamètre | AD61: Déformée radiale | AE61: =Empilage!AE15*((AE60-Empilage!AE$27*Detail_des_effets!AE59)/Empilage!AE18)*10^-1 ->  | AF61: mm au diamètre | AH61: Déformée radiale | AI61: =Empilage!AI15*((AI60-Empilage!AI$27*Detail_des_effets!AI59)/Empilage!AI18)*10^-1 ->  | AJ61: mm au diamètre | AL61: Déformée radiale | AM61: =Empilage!AM15*((AM60-Empilage!AM$27*Detail_des_effets!AM59)/Empilage!AM18)*10^-1 ->  | AN61: mm au diamètre
B62: Dans la pièce, au diamètre particulier | C62: =Empilage!C$17 -> 20.00 | D62: mm | F62: Dans la pièce, au diamètre particulier | G62: =Empilage!G$17 -> 20.00 | H62: mm | J62: Dans la pièce, au diamètre particulier | K62: =Empilage!K$17 -> 20.00 | L62: mm | N62: Dans la pièce, au diamètre particulier | O62: =Empilage!O$17 -> 20.00 | P62: mm | R62: Dans la pièce, au diamètre particulier | S62: =Empilage!S$17 -> 20.00 | T62: mm | V62: Dans la pièce, au diamètre particulier | W62: =Empilage!W$17 -> 20.00 | X62: mm | Z62: Dans la pièce, au diamètre particulier | AA62: =Empilage!AA$17 -> 20.00 | AB62: mm | AD62: Dans la pièce, au diamètre particulier | AE62: =Empilage!AE$17 -> 20.00 | AF62: mm | AH62: Dans la pièce, au diamètre particulier | AI62: =Empilage!AI$17 -> 20.00 | AJ62: mm | AL62: Dans la pièce, au diamètre particulier | AM62: =Empilage!AM$17 -> 20.00 | AN62: mm
B63: Contrainte radiale | C63: =-C57*(Empilage!C$15^2/(Empilage!C$15^2-Empilage!C$16^2))*(1-(Empilage!C$16^2/Empilage!C$17^2)) ->  | D63: MPa | F63: Contrainte radiale | G63: =-G57*(Empilage!G$15^2/(Empilage!G$15^2-Empilage!G$16^2))*(1-(Empilage!G$16^2/Empilage!G$17^2)) ->  | H63: MPa | J63: Contrainte radiale | K63: =-K57*(Empilage!K$15^2/(Empilage!K$15^2-Empilage!K$16^2))*(1-(Empilage!K$16^2/Empilage!K$17^2)) ->  | L63: MPa | N63: Contrainte radiale | O63: =-O57*(Empilage!O$15^2/(Empilage!O$15^2-Empilage!O$16^2))*(1-(Empilage!O$16^2/Empilage!O$17^2)) ->  | P63: MPa | R63: Contrainte radiale | S63: =-S57*(Empilage!S$15^2/(Empilage!S$15^2-Empilage!S$16^2))*(1-(Empilage!S$16^2/Empilage!S$17^2)) ->  | T63: MPa | V63: Contrainte radiale | W63: =-W57*(Empilage!W$15^2/(Empilage!W$15^2-Empilage!W$16^2))*(1-(Empilage!W$16^2/Empilage!W$17^2)) ->  | X63: MPa | Z63: Contrainte radiale | AA63: =-AA57*(Empilage!AA$15^2/(Empilage!AA$15^2-Empilage!AA$16^2))*(1-(Empilage!AA$16^2/Empilage!AA$17^2)) ->  | AB63: MPa | AD63: Contrainte radiale | AE63: =-AE57*(Empilage!AE$15^2/(Empilage!AE$15^2-Empilage!AE$16^2))*(1-(Empilage!AE$16^2/Empilage!AE$17^2)) ->  | AF63: MPa | AH63: Contrainte radiale | AI63: =-AI57*(Empilage!AI$15^2/(Empilage!AI$15^2-Empilage!AI$16^2))*(1-(Empilage!AI$16^2/Empilage!AI$17^2)) ->  | AJ63: MPa | AL63: Contrainte radiale | AM63: =-AM57*(Empilage!AM$15^2/(Empilage!AM$15^2-Empilage!AM$16^2))*(1-(Empilage!AM$16^2/Empilage!AM$17^2)) ->  | AN63: MPa
B64: Contrainte tangentielle | C64: =-C57*(Empilage!C$15^2/(Empilage!C$15^2-Empilage!C$16^2))*(1+(Empilage!C$16^2/Empilage!C$17^2)) ->  | D64: MPa | F64: Contrainte tangentielle | G64: =-G57*(Empilage!G$15^2/(Empilage!G$15^2-Empilage!G$16^2))*(1+(Empilage!G$16^2/Empilage!G$17^2)) ->  | H64: MPa | J64: Contrainte tangentielle | K64: =-K57*(Empilage!K$15^2/(Empilage!K$15^2-Empilage!K$16^2))*(1+(Empilage!K$16^2/Empilage!K$17^2)) ->  | L64: MPa | N64: Contrainte tangentielle | O64: =-O57*(Empilage!O$15^2/(Empilage!O$15^2-Empilage!O$16^2))*(1+(Empilage!O$16^2/Empilage!O$17^2)) ->  | P64: MPa | R64: Contrainte tangentielle | S64: =-S57*(Empilage!S$15^2/(Empilage!S$15^2-Empilage!S$16^2))*(1+(Empilage!S$16^2/Empilage!S$17^2)) ->  | T64: MPa | V64: Contrainte tangentielle | W64: =-W57*(Empilage!W$15^2/(Empilage!W$15^2-Empilage!W$16^2))*(1+(Empilage!W$16^2/Empilage!W$17^2)) ->  | X64: MPa | Z64: Contrainte tangentielle | AA64: =-AA57*(Empilage!AA$15^2/(Empilage!AA$15^2-Empilage!AA$16^2))*(1+(Empilage!AA$16^2/Empilage!AA$17^2)) ->  | AB64: MPa | AD64: Contrainte tangentielle | AE64: =-AE57*(Empilage!AE$15^2/(Empilage!AE$15^2-Empilage!AE$16^2))*(1+(Empilage!AE$16^2/Empilage!AE$17^2)) ->  | AF64: MPa | AH64: Contrainte tangentielle | AI64: =-AI57*(Empilage!AI$15^2/(Empilage!AI$15^2-Empilage!AI$16^2))*(1+(Empilage!AI$16^2/Empilage!AI$17^2)) ->  | AJ64: MPa | AL64: Contrainte tangentielle | AM64: =-AM57*(Empilage!AM$15^2/(Empilage!AM$15^2-Empilage!AM$16^2))*(1+(Empilage!AM$16^2/Empilage!AM$17^2)) ->  | AN64: MPa
B65: Déformée radiale | C65: =C62*((C64-Empilage!C$27*Detail_des_effets!C63)/Empilage!C18)*10^-1 ->  | D65: mm au diamètre | F65: Déformée radiale | G65: =G62*((G64-Empilage!G$27*Detail_des_effets!G63)/Empilage!G18)*10^-1 ->  | H65: mm au diamètre | J65: Déformée radiale | K65: =K62*((K64-Empilage!K$27*Detail_des_effets!K63)/Empilage!K18)*10^-1 ->  | L65: mm au diamètre | N65: Déformée radiale | O65: =O62*((O64-Empilage!O$27*Detail_des_effets!O63)/Empilage!O18)*10^-1 ->  | P65: mm au diamètre | R65: Déformée radiale | S65: =S62*((S64-Empilage!S$27*Detail_des_effets!S63)/Empilage!S18)*10^-1 ->  | T65: mm au diamètre | V65: Déformée radiale | W65: =W62*((W64-Empilage!W$27*Detail_des_effets!W63)/Empilage!W18)*10^-1 ->  | X65: mm au diamètre | Z65: Déformée radiale | AA65: =AA62*((AA64-Empilage!AA$27*Detail_des_effets!AA63)/Empilage!AA18)*10^-1 ->  | AB65: mm au diamètre | AD65: Déformée radiale | AE65: =AE62*((AE64-Empilage!AE$27*Detail_des_effets!AE63)/Empilage!AE18)*10^-1 ->  | AF65: mm au diamètre | AH65: Déformée radiale | AI65: =AI62*((AI64-Empilage!AI$27*Detail_des_effets!AI63)/Empilage!AI18)*10^-1 ->  | AJ65: mm au diamètre | AL65: Déformée radiale | AM65: =AM62*((AM64-Empilage!AM$27*Detail_des_effets!AM63)/Empilage!AM18)*10^-1 ->  | AN65: mm au diamètre
B66: Effet du frettage seul en mise en froid | F66: Effet du frettage seul en mise en froid | J66: Effet du frettage seul en mise en froid | N66: Effet du frettage seul en mise en froid | R66: Effet du frettage seul en mise en froid | V66: Effet du frettage seul en mise en froid | Z66: Effet du frettage seul en mise en froid | AD66: Effet du frettage seul en mise en froid | AH66: Effet du frettage seul en mise en froid | AL66: Effet du frettage seul en mise en froid
B68: Pression de contact | C68: Empilage!/Empilage!/(Constantes_de_frettage!-Constantes_de_frettage!) * 0.001 | D68: MPa | F68: Pression de contact | G68: Empilage!/Empilage!/(Constantes_de_frettage!-Constantes_de_frettage!) * 0.001 | H68: MPa | J68: Pression de contact | K68: Empilage!/Empilage!/(Constantes_de_frettage!-Constantes_de_frettage!) * 0.001 | L68: MPa | N68: Pression de contact | O68: Empilage!/Empilage!/(Constantes_de_frettage!-Constantes_de_frettage!) * 0.001 | P68: MPa | R68: Pression de contact | S68: Empilage!/Empilage!/(Constantes_de_frettage!-Constantes_de_frettage!) * 0.001 | T68: MPa | V68: Pression de contact | W68: Empilage!/Empilage!/(Constantes_de_frettage!-Constantes_de_frettage!) * 0.001 | X68: MPa | Z68: Pression de contact | AA68: Empilage!/Empilage!/(Constantes_de_frettage!-Constantes_de_frettage!) * 0.001 | AB68: MPa | AD68: Pression de contact | AE68: Empilage!/Empilage!/(Constantes_de_frettage!-Constantes_de_frettage!) * 0.001 | AF68: MPa | AH68: Pression de contact | AI68: Empilage!/Empilage!/(Constantes_de_frettage!-Constantes_de_frettage!) * 0.001 | AJ68: MPa | AL68: Pression de contact | AM68: Empilage!/Empilage!/(Constantes_de_frettage!-Constantes_de_frettage!) * 0.001 | AN68: MPa
B69: Au niveau du frettage | F69: Au niveau du frettage | J69: Au niveau du frettage | N69: Au niveau du frettage | R69: Au niveau du frettage | V69: Au niveau du frettage | Z69: Au niveau du frettage | AD69: Au niveau du frettage | AH69: Au niveau du frettage | AL69: Au niveau du frettage
B70: Contrainte radiale | C70: =-C68 ->  | D70: MPa | F70: Contrainte radiale | G70: =-G68 ->  | H70: MPa | J70: Contrainte radiale | K70: =-K68 ->  | L70: MPa | N70: Contrainte radiale | O70: =-O68 ->  | P70: MPa | R70: Contrainte radiale | S70: =-S68 ->  | T70: MPa | V70: Contrainte radiale | W70: =-W68 ->  | X70: MPa | Z70: Contrainte radiale | AA70: =-AA68 ->  | AB70: MPa | AD70: Contrainte radiale | AE70: =-AE68 ->  | AF70: MPa | AH70: Contrainte radiale | AI70: =-AI68 ->  | AJ70: MPa | AL70: Contrainte radiale | AM70: =-AM68 ->  | AN70: MPa
B71: Contrainte tangentielle | C71: =-C68*(Empilage!C15^2+Empilage!C16^2)/(Empilage!C15^2-Empilage!C16^2) ->  | D71: MPa | F71: Contrainte tangentielle | G71: =-G68*(Empilage!G15^2+Empilage!G16^2)/(Empilage!G15^2-Empilage!G16^2) ->  | H71: MPa | J71: Contrainte tangentielle | K71: =-K68*(Empilage!K15^2+Empilage!K16^2)/(Empilage!K15^2-Empilage!K16^2) ->  | L71: MPa | N71: Contrainte tangentielle | O71: =-O68*(Empilage!O15^2+Empilage!O16^2)/(Empilage!O15^2-Empilage!O16^2) ->  | P71: MPa | R71: Contrainte tangentielle | S71: =-S68*(Empilage!S15^2+Empilage!S16^2)/(Empilage!S15^2-Empilage!S16^2) ->  | T71: MPa | V71: Contrainte tangentielle | W71: =-W68*(Empilage!W15^2+Empilage!W16^2)/(Empilage!W15^2-Empilage!W16^2) ->  | X71: MPa | Z71: Contrainte tangentielle | AA71: =-AA68*(Empilage!AA15^2+Empilage!AA16^2)/(Empilage!AA15^2-Empilage!AA16^2) ->  | AB71: MPa | AD71: Contrainte tangentielle | AE71: =-AE68*(Empilage!AE15^2+Empilage!AE16^2)/(Empilage!AE15^2-Empilage!AE16^2) ->  | AF71: MPa | AH71: Contrainte tangentielle | AI71: =-AI68*(Empilage!AI15^2+Empilage!AI16^2)/(Empilage!AI15^2-Empilage!AI16^2) ->  | AJ71: MPa | AL71: Contrainte tangentielle | AM71: =-AM68*(Empilage!AM15^2+Empilage!AM16^2)/(Empilage!AM15^2-Empilage!AM16^2) ->  | AN71: MPa
B72: Déformée radiale | C72: =Empilage!C15*((C71-Empilage!C$27*Detail_des_effets!C70)/Empilage!C19)*10^-1 ->  | D72: mm au diamètre | F72: Déformée radiale | G72: =Empilage!G15*((G71-Empilage!G$27*Detail_des_effets!G70)/Empilage!G19)*10^-1 ->  | H72: mm au diamètre | J72: Déformée radiale | K72: =Empilage!K15*((K71-Empilage!K$27*Detail_des_effets!K70)/Empilage!K19)*10^-1 ->  | L72: mm au diamètre | N72: Déformée radiale | O72: =Empilage!O15*((O71-Empilage!O$27*Detail_des_effets!O70)/Empilage!O19)*10^-1 ->  | P72: mm au diamètre | R72: Déformée radiale | S72: =Empilage!S15*((S71-Empilage!S$27*Detail_des_effets!S70)/Empilage!S19)*10^-1 ->  | T72: mm au diamètre | V72: Déformée radiale | W72: =Empilage!W15*((W71-Empilage!W$27*Detail_des_effets!W70)/Empilage!W19)*10^-1 ->  | X72: mm au diamètre | Z72: Déformée radiale | AA72: =Empilage!AA15*((AA71-Empilage!AA$27*Detail_des_effets!AA70)/Empilage!AA19)*10^-1 ->  | AB72: mm au diamètre | AD72: Déformée radiale | AE72: =Empilage!AE15*((AE71-Empilage!AE$27*Detail_des_effets!AE70)/Empilage!AE19)*10^-1 ->  | AF72: mm au diamètre | AH72: Déformée radiale | AI72: =Empilage!AI15*((AI71-Empilage!AI$27*Detail_des_effets!AI70)/Empilage!AI19)*10^-1 ->  | AJ72: mm au diamètre | AL72: Déformée radiale | AM72: =Empilage!AM15*((AM71-Empilage!AM$27*Detail_des_effets!AM70)/Empilage!AM19)*10^-1 ->  | AN72: mm au diamètre
B73: Dans la pièce, au diamètre particulier | C73: =Empilage!C$17 -> 20.00 | D73: mm | F73: Dans la pièce, au diamètre particulier | G73: =Empilage!G$17 -> 20.00 | H73: mm | J73: Dans la pièce, au diamètre particulier | K73: =Empilage!K$17 -> 20.00 | L73: mm | N73: Dans la pièce, au diamètre particulier | O73: =Empilage!O$17 -> 20.00 | P73: mm | R73: Dans la pièce, au diamètre particulier | S73: =Empilage!S$17 -> 20.00 | T73: mm | V73: Dans la pièce, au diamètre particulier | W73: =Empilage!W$17 -> 20.00 | X73: mm | Z73: Dans la pièce, au diamètre particulier | AA73: =Empilage!AA$17 -> 20.00 | AB73: mm | AD73: Dans la pièce, au diamètre particulier | AE73: =Empilage!AE$17 -> 20.00 | AF73: mm | AH73: Dans la pièce, au diamètre particulier | AI73: =Empilage!AI$17 -> 20.00 | AJ73: mm | AL73: Dans la pièce, au diamètre particulier | AM73: =Empilage!AM$17 -> 20.00 | AN73: mm
B74: Contrainte radiale | C74: =-C68*(Empilage!C$15^2/(Empilage!C$15^2-Empilage!C$16^2))*(1-(Empilage!C$16^2/Empilage!C$17^2)) ->  | D74: MPa | F74: Contrainte radiale | G74: =-G68*(Empilage!G$15^2/(Empilage!G$15^2-Empilage!G$16^2))*(1-(Empilage!G$16^2/Empilage!G$17^2)) ->  | H74: MPa | J74: Contrainte radiale | K74: =-K68*(Empilage!K$15^2/(Empilage!K$15^2-Empilage!K$16^2))*(1-(Empilage!K$16^2/Empilage!K$17^2)) ->  | L74: MPa | N74: Contrainte radiale | O74: =-O68*(Empilage!O$15^2/(Empilage!O$15^2-Empilage!O$16^2))*(1-(Empilage!O$16^2/Empilage!O$17^2)) ->  | P74: MPa | R74: Contrainte radiale | S74: =-S68*(Empilage!S$15^2/(Empilage!S$15^2-Empilage!S$16^2))*(1-(Empilage!S$16^2/Empilage!S$17^2)) ->  | T74: MPa | V74: Contrainte radiale | W74: =-W68*(Empilage!W$15^2/(Empilage!W$15^2-Empilage!W$16^2))*(1-(Empilage!W$16^2/Empilage!W$17^2)) ->  | X74: MPa | Z74: Contrainte radiale | AA74: =-AA68*(Empilage!AA$15^2/(Empilage!AA$15^2-Empilage!AA$16^2))*(1-(Empilage!AA$16^2/Empilage!AA$17^2)) ->  | AB74: MPa | AD74: Contrainte radiale | AE74: =-AE68*(Empilage!AE$15^2/(Empilage!AE$15^2-Empilage!AE$16^2))*(1-(Empilage!AE$16^2/Empilage!AE$17^2)) ->  | AF74: MPa | AH74: Contrainte radiale | AI74: =-AI68*(Empilage!AI$15^2/(Empilage!AI$15^2-Empilage!AI$16^2))*(1-(Empilage!AI$16^2/Empilage!AI$17^2)) ->  | AJ74: MPa | AL74: Contrainte radiale | AM74: =-AM68*(Empilage!AM$15^2/(Empilage!AM$15^2-Empilage!AM$16^2))*(1-(Empilage!AM$16^2/Empilage!AM$17^2)) ->  | AN74: MPa
B75: Contrainte tangentielle | C75: =-C68*(Empilage!C$15^2/(Empilage!C$15^2-Empilage!C$16^2))*(1+(Empilage!C$16^2/Empilage!C$17^2)) ->  | D75: MPa | F75: Contrainte tangentielle | G75: =-G68*(Empilage!G$15^2/(Empilage!G$15^2-Empilage!G$16^2))*(1+(Empilage!G$16^2/Empilage!G$17^2)) ->  | H75: MPa | J75: Contrainte tangentielle | K75: =-K68*(Empilage!K$15^2/(Empilage!K$15^2-Empilage!K$16^2))*(1+(Empilage!K$16^2/Empilage!K$17^2)) ->  | L75: MPa | N75: Contrainte tangentielle | O75: =-O68*(Empilage!O$15^2/(Empilage!O$15^2-Empilage!O$16^2))*(1+(Empilage!O$16^2/Empilage!O$17^2)) ->  | P75: MPa | R75: Contrainte tangentielle | S75: =-S68*(Empilage!S$15^2/(Empilage!S$15^2-Empilage!S$16^2))*(1+(Empilage!S$16^2/Empilage!S$17^2)) ->  | T75: MPa | V75: Contrainte tangentielle | W75: =-W68*(Empilage!W$15^2/(Empilage!W$15^2-Empilage!W$16^2))*(1+(Empilage!W$16^2/Empilage!W$17^2)) ->  | X75: MPa | Z75: Contrainte tangentielle | AA75: =-AA68*(Empilage!AA$15^2/(Empilage!AA$15^2-Empilage!AA$16^2))*(1+(Empilage!AA$16^2/Empilage!AA$17^2)) ->  | AB75: MPa | AD75: Contrainte tangentielle | AE75: =-AE68*(Empilage!AE$15^2/(Empilage!AE$15^2-Empilage!AE$16^2))*(1+(Empilage!AE$16^2/Empilage!AE$17^2)) ->  | AF75: MPa | AH75: Contrainte tangentielle | AI75: =-AI68*(Empilage!AI$15^2/(Empilage!AI$15^2-Empilage!AI$16^2))*(1+(Empilage!AI$16^2/Empilage!AI$17^2)) ->  | AJ75: MPa | AL75: Contrainte tangentielle | AM75: =-AM68*(Empilage!AM$15^2/(Empilage!AM$15^2-Empilage!AM$16^2))*(1+(Empilage!AM$16^2/Empilage!AM$17^2)) ->  | AN75: MPa
B76: Déformée radiale | C76: =C73*((C75-Empilage!C$27*Detail_des_effets!C74)/Empilage!C19)*10^-1 ->  | D76: mm au diamètre | F76: Déformée radiale | G76: =G73*((G75-Empilage!G$27*Detail_des_effets!G74)/Empilage!G19)*10^-1 ->  | H76: mm au diamètre | J76: Déformée radiale | K76: =K73*((K75-Empilage!K$27*Detail_des_effets!K74)/Empilage!K19)*10^-1 ->  | L76: mm au diamètre | N76: Déformée radiale | O76: =O73*((O75-Empilage!O$27*Detail_des_effets!O74)/Empilage!O19)*10^-1 ->  | P76: mm au diamètre | R76: Déformée radiale | S76: =S73*((S75-Empilage!S$27*Detail_des_effets!S74)/Empilage!S19)*10^-1 ->  | T76: mm au diamètre | V76: Déformée radiale | W76: =W73*((W75-Empilage!W$27*Detail_des_effets!W74)/Empilage!W19)*10^-1 ->  | X76: mm au diamètre | Z76: Déformée radiale | AA76: =AA73*((AA75-Empilage!AA$27*Detail_des_effets!AA74)/Empilage!AA19)*10^-1 ->  | AB76: mm au diamètre | AD76: Déformée radiale | AE76: =AE73*((AE75-Empilage!AE$27*Detail_des_effets!AE74)/Empilage!AE19)*10^-1 ->  | AF76: mm au diamètre | AH76: Déformée radiale | AI76: =AI73*((AI75-Empilage!AI$27*Detail_des_effets!AI74)/Empilage!AI19)*10^-1 ->  | AJ76: mm au diamètre | AL76: Déformée radiale | AM76: =AM73*((AM75-Empilage!AM$27*Detail_des_effets!AM74)/Empilage!AM19)*10^-1 ->  | AN76: mm au diamètre
B77: Effet du frettage seul en fonctionnement | F77: Effet du frettage seul en fonctionnement | J77: Effet du frettage seul en fonctionnement | N77: Effet du frettage seul en fonctionnement | R77: Effet du frettage seul en fonctionnement | V77: Effet du frettage seul en fonctionnement | Z77: Effet du frettage seul en fonctionnement | AD77: Effet du frettage seul en fonctionnement | AH77: Effet du frettage seul en fonctionnement | AL77: Effet du frettage seul en fonctionnement
B79: Pression de contact | C79: Empilage!/Empilage!/(Constantes_de_frettage!-Constantes_de_frettage!) * 0.001 | D79: MPa | F79: Pression de contact | G79: Empilage!/Empilage!/(Constantes_de_frettage!-Constantes_de_frettage!) * 0.001 | H79: MPa | J79: Pression de contact | K79: Empilage!/Empilage!/(Constantes_de_frettage!-Constantes_de_frettage!) * 0.001 | L79: MPa | N79: Pression de contact | O79: Empilage!/Empilage!/(Constantes_de_frettage!-Constantes_de_frettage!) * 0.001 | P79: MPa | R79: Pression de contact | S79: Empilage!/Empilage!/(Constantes_de_frettage!-Constantes_de_frettage!) * 0.001 | T79: MPa | V79: Pression de contact | W79: Empilage!/Empilage!/(Constantes_de_frettage!-Constantes_de_frettage!) * 0.001 | X79: MPa | Z79: Pression de contact | AA79: Empilage!/Empilage!/(Constantes_de_frettage!-Constantes_de_frettage!) * 0.001 | AB79: MPa | AD79: Pression de contact | AE79: Empilage!/Empilage!/(Constantes_de_frettage!-Constantes_de_frettage!) * 0.001 | AF79: MPa | AH79: Pression de contact | AI79: Empilage!/Empilage!/(Constantes_de_frettage!-Constantes_de_frettage!) * 0.001 | AJ79: MPa | AL79: Pression de contact | AM79: Empilage!/Empilage!/(Constantes_de_frettage!-Constantes_de_frettage!) * 0.001 | AN79: MPa
B80: Au niveau du frettage | F80: Au niveau du frettage | J80: Au niveau du frettage | N80: Au niveau du frettage | R80: Au niveau du frettage | V80: Au niveau du frettage | Z80: Au niveau du frettage | AD80: Au niveau du frettage | AH80: Au niveau du frettage | AL80: Au niveau du frettage
B81: Contrainte radiale | C81: =-C79*(Empilage!C$15^2/(Empilage!C$15^2-Empilage!C$16^2))*(1-(Empilage!C$16^2/Empilage!C$17^2)) ->  | D81: MPa | F81: Contrainte radiale | G81: =-G79*(Empilage!G$15^2/(Empilage!G$15^2-Empilage!G$16^2))*(1-(Empilage!G$16^2/Empilage!G$17^2)) ->  | H81: MPa | J81: Contrainte radiale | K81: =-K79*(Empilage!K$15^2/(Empilage!K$15^2-Empilage!K$16^2))*(1-(Empilage!K$16^2/Empilage!K$17^2)) ->  | L81: MPa | N81: Contrainte radiale | O81: =-O79*(Empilage!O$15^2/(Empilage!O$15^2-Empilage!O$16^2))*(1-(Empilage!O$16^2/Empilage!O$17^2)) ->  | P81: MPa | R81: Contrainte radiale | S81: =-S79*(Empilage!S$15^2/(Empilage!S$15^2-Empilage!S$16^2))*(1-(Empilage!S$16^2/Empilage!S$17^2)) ->  | T81: MPa | V81: Contrainte radiale | W81: =-W79*(Empilage!W$15^2/(Empilage!W$15^2-Empilage!W$16^2))*(1-(Empilage!W$16^2/Empilage!W$17^2)) ->  | X81: MPa | Z81: Contrainte radiale | AA81: =-AA79*(Empilage!AA$15^2/(Empilage!AA$15^2-Empilage!AA$16^2))*(1-(Empilage!AA$16^2/Empilage!AA$17^2)) ->  | AB81: MPa | AD81: Contrainte radiale | AE81: =-AE79*(Empilage!AE$15^2/(Empilage!AE$15^2-Empilage!AE$16^2))*(1-(Empilage!AE$16^2/Empilage!AE$17^2)) ->  | AF81: MPa | AH81: Contrainte radiale | AI81: =-AI79*(Empilage!AI$15^2/(Empilage!AI$15^2-Empilage!AI$16^2))*(1-(Empilage!AI$16^2/Empilage!AI$17^2)) ->  | AJ81: MPa | AL81: Contrainte radiale | AM81: =-AM79*(Empilage!AM$15^2/(Empilage!AM$15^2-Empilage!AM$16^2))*(1-(Empilage!AM$16^2/Empilage!AM$17^2)) ->  | AN81: MPa
B82: Contrainte tangentielle | C82: =-C79*(Empilage!C$15^2/(Empilage!C$15^2-Empilage!C$16^2))*(1+(Empilage!C$16^2/Empilage!C$17^2)) ->  | D82: MPa | F82: Contrainte tangentielle | G82: =-G79*(Empilage!G$15^2/(Empilage!G$15^2-Empilage!G$16^2))*(1+(Empilage!G$16^2/Empilage!G$17^2)) ->  | H82: MPa | J82: Contrainte tangentielle | K82: =-K79*(Empilage!K$15^2/(Empilage!K$15^2-Empilage!K$16^2))*(1+(Empilage!K$16^2/Empilage!K$17^2)) ->  | L82: MPa | N82: Contrainte tangentielle | O82: =-O79*(Empilage!O$15^2/(Empilage!O$15^2-Empilage!O$16^2))*(1+(Empilage!O$16^2/Empilage!O$17^2)) ->  | P82: MPa | R82: Contrainte tangentielle | S82: =-S79*(Empilage!S$15^2/(Empilage!S$15^2-Empilage!S$16^2))*(1+(Empilage!S$16^2/Empilage!S$17^2)) ->  | T82: MPa | V82: Contrainte tangentielle | W82: =-W79*(Empilage!W$15^2/(Empilage!W$15^2-Empilage!W$16^2))*(1+(Empilage!W$16^2/Empilage!W$17^2)) ->  | X82: MPa | Z82: Contrainte tangentielle | AA82: =-AA79*(Empilage!AA$15^2/(Empilage!AA$15^2-Empilage!AA$16^2))*(1+(Empilage!AA$16^2/Empilage!AA$17^2)) ->  | AB82: MPa | AD82: Contrainte tangentielle | AE82: =-AE79*(Empilage!AE$15^2/(Empilage!AE$15^2-Empilage!AE$16^2))*(1+(Empilage!AE$16^2/Empilage!AE$17^2)) ->  | AF82: MPa | AH82: Contrainte tangentielle | AI82: =-AI79*(Empilage!AI$15^2/(Empilage!AI$15^2-Empilage!AI$16^2))*(1+(Empilage!AI$16^2/Empilage!AI$17^2)) ->  | AJ82: MPa | AL82: Contrainte tangentielle | AM82: =-AM79*(Empilage!AM$15^2/(Empilage!AM$15^2-Empilage!AM$16^2))*(1+(Empilage!AM$16^2/Empilage!AM$17^2)) ->  | AN82: MPa
B83: Déformée radiale | C83: =Empilage!C15*((C82-Empilage!C$27*Detail_des_effets!C81)/Empilage!C20)*10^-1 ->  | D83: mm au diamètre | F83: Déformée radiale | G83: =Empilage!G15*((G82-Empilage!G$27*Detail_des_effets!G81)/Empilage!G20)*10^-1 ->  | H83: mm au diamètre | J83: Déformée radiale | K83: =Empilage!K15*((K82-Empilage!K$27*Detail_des_effets!K81)/Empilage!K20)*10^-1 ->  | L83: mm au diamètre | N83: Déformée radiale | O83: =Empilage!O15*((O82-Empilage!O$27*Detail_des_effets!O81)/Empilage!O20)*10^-1 ->  | P83: mm au diamètre | R83: Déformée radiale | S83: =Empilage!S15*((S82-Empilage!S$27*Detail_des_effets!S81)/Empilage!S20)*10^-1 ->  | T83: mm au diamètre | V83: Déformée radiale | W83: =Empilage!W15*((W82-Empilage!W$27*Detail_des_effets!W81)/Empilage!W20)*10^-1 ->  | X83: mm au diamètre | Z83: Déformée radiale | AA83: =Empilage!AA15*((AA82-Empilage!AA$27*Detail_des_effets!AA81)/Empilage!AA20)*10^-1 ->  | AB83: mm au diamètre | AD83: Déformée radiale | AE83: =Empilage!AE15*((AE82-Empilage!AE$27*Detail_des_effets!AE81)/Empilage!AE20)*10^-1 ->  | AF83: mm au diamètre | AH83: Déformée radiale | AI83: =Empilage!AI15*((AI82-Empilage!AI$27*Detail_des_effets!AI81)/Empilage!AI20)*10^-1 ->  | AJ83: mm au diamètre | AL83: Déformée radiale | AM83: =Empilage!AM15*((AM82-Empilage!AM$27*Detail_des_effets!AM81)/Empilage!AM20)*10^-1 ->  | AN83: mm au diamètre
B84: Dans la pièce, au diamètre particulier | C84: =Empilage!C$17 -> 20.00 | D84: mm | F84: Dans la pièce, au diamètre particulier | G84: =Empilage!G$17 -> 20.00 | H84: mm | J84: Dans la pièce, au diamètre particulier | K84: =Empilage!K$17 -> 20.00 | L84: mm | N84: Dans la pièce, au diamètre particulier | O84: =Empilage!O$17 -> 20.00 | P84: mm | R84: Dans la pièce, au diamètre particulier | S84: =Empilage!S$17 -> 20.00 | T84: mm | V84: Dans la pièce, au diamètre particulier | W84: =Empilage!W$17 -> 20.00 | X84: mm | Z84: Dans la pièce, au diamètre particulier | AA84: =Empilage!AA$17 -> 20.00 | AB84: mm | AD84: Dans la pièce, au diamètre particulier | AE84: =Empilage!AE$17 -> 20.00 | AF84: mm | AH84: Dans la pièce, au diamètre particulier | AI84: =Empilage!AI$17 -> 20.00 | AJ84: mm | AL84: Dans la pièce, au diamètre particulier | AM84: =Empilage!AM$17 -> 20.00 | AN84: mm
B85: Contrainte radiale | C85: =-C79*(Empilage!C$15^2/(Empilage!C$15^2-Empilage!C$16^2))*(1-(Empilage!C$16^2/Empilage!C$17^2)) ->  | D85: MPa | F85: Contrainte radiale | G85: =-G79*(Empilage!G$15^2/(Empilage!G$15^2-Empilage!G$16^2))*(1-(Empilage!G$16^2/Empilage!G$17^2)) ->  | H85: MPa | J85: Contrainte radiale | K85: =-K79*(Empilage!K$15^2/(Empilage!K$15^2-Empilage!K$16^2))*(1-(Empilage!K$16^2/Empilage!K$17^2)) ->  | L85: MPa | N85: Contrainte radiale | O85: =-O79*(Empilage!O$15^2/(Empilage!O$15^2-Empilage!O$16^2))*(1-(Empilage!O$16^2/Empilage!O$17^2)) ->  | P85: MPa | R85: Contrainte radiale | S85: =-S79*(Empilage!S$15^2/(Empilage!S$15^2-Empilage!S$16^2))*(1-(Empilage!S$16^2/Empilage!S$17^2)) ->  | T85: MPa | V85: Contrainte radiale | W85: =-W79*(Empilage!W$15^2/(Empilage!W$15^2-Empilage!W$16^2))*(1-(Empilage!W$16^2/Empilage!W$17^2)) ->  | X85: MPa | Z85: Contrainte radiale | AA85: =-AA79*(Empilage!AA$15^2/(Empilage!AA$15^2-Empilage!AA$16^2))*(1-(Empilage!AA$16^2/Empilage!AA$17^2)) ->  | AB85: MPa | AD85: Contrainte radiale | AE85: =-AE79*(Empilage!AE$15^2/(Empilage!AE$15^2-Empilage!AE$16^2))*(1-(Empilage!AE$16^2/Empilage!AE$17^2)) ->  | AF85: MPa | AH85: Contrainte radiale | AI85: =-AI79*(Empilage!AI$15^2/(Empilage!AI$15^2-Empilage!AI$16^2))*(1-(Empilage!AI$16^2/Empilage!AI$17^2)) ->  | AJ85: MPa | AL85: Contrainte radiale | AM85: =-AM79*(Empilage!AM$15^2/(Empilage!AM$15^2-Empilage!AM$16^2))*(1-(Empilage!AM$16^2/Empilage!AM$17^2)) ->  | AN85: MPa
B86: Contrainte tangentielle | C86: =-C79*(Empilage!C$15^2/(Empilage!C$15^2-Empilage!C$16^2))*(1+(Empilage!C$16^2/Empilage!C$17^2)) ->  | D86: MPa | F86: Contrainte tangentielle | G86: =-G79*(Empilage!G$15^2/(Empilage!G$15^2-Empilage!G$16^2))*(1+(Empilage!G$16^2/Empilage!G$17^2)) ->  | H86: MPa | J86: Contrainte tangentielle | K86: =-K79*(Empilage!K$15^2/(Empilage!K$15^2-Empilage!K$16^2))*(1+(Empilage!K$16^2/Empilage!K$17^2)) ->  | L86: MPa | N86: Contrainte tangentielle | O86: =-O79*(Empilage!O$15^2/(Empilage!O$15^2-Empilage!O$16^2))*(1+(Empilage!O$16^2/Empilage!O$17^2)) ->  | P86: MPa | R86: Contrainte tangentielle | S86: =-S79*(Empilage!S$15^2/(Empilage!S$15^2-Empilage!S$16^2))*(1+(Empilage!S$16^2/Empilage!S$17^2)) ->  | T86: MPa | V86: Contrainte tangentielle | W86: =-W79*(Empilage!W$15^2/(Empilage!W$15^2-Empilage!W$16^2))*(1+(Empilage!W$16^2/Empilage!W$17^2)) ->  | X86: MPa | Z86: Contrainte tangentielle | AA86: =-AA79*(Empilage!AA$15^2/(Empilage!AA$15^2-Empilage!AA$16^2))*(1+(Empilage!AA$16^2/Empilage!AA$17^2)) ->  | AB86: MPa | AD86: Contrainte tangentielle | AE86: =-AE79*(Empilage!AE$15^2/(Empilage!AE$15^2-Empilage!AE$16^2))*(1+(Empilage!AE$16^2/Empilage!AE$17^2)) ->  | AF86: MPa | AH86: Contrainte tangentielle | AI86: =-AI79*(Empilage!AI$15^2/(Empilage!AI$15^2-Empilage!AI$16^2))*(1+(Empilage!AI$16^2/Empilage!AI$17^2)) ->  | AJ86: MPa | AL86: Contrainte tangentielle | AM86: =-AM79*(Empilage!AM$15^2/(Empilage!AM$15^2-Empilage!AM$16^2))*(1+(Empilage!AM$16^2/Empilage!AM$17^2)) ->  | AN86: MPa
B87: Déformée radiale | C87: =C84*((C86-Empilage!C$27*Detail_des_effets!C85)/Empilage!C20)*10^-1 ->  | D87: mm au diamètre | F87: Déformée radiale | G87: =G84*((G86-Empilage!G$27*Detail_des_effets!G85)/Empilage!G20)*10^-1 ->  | H87: mm au diamètre | J87: Déformée radiale | K87: =K84*((K86-Empilage!K$27*Detail_des_effets!K85)/Empilage!K20)*10^-1 ->  | L87: mm au diamètre | N87: Déformée radiale | O87: =O84*((O86-Empilage!O$27*Detail_des_effets!O85)/Empilage!O20)*10^-1 ->  | P87: mm au diamètre | R87: Déformée radiale | S87: =S84*((S86-Empilage!S$27*Detail_des_effets!S85)/Empilage!S20)*10^-1 ->  | T87: mm au diamètre | V87: Déformée radiale | W87: =W84*((W86-Empilage!W$27*Detail_des_effets!W85)/Empilage!W20)*10^-1 ->  | X87: mm au diamètre | Z87: Déformée radiale | AA87: =AA84*((AA86-Empilage!AA$27*Detail_des_effets!AA85)/Empilage!AA20)*10^-1 ->  | AB87: mm au diamètre | AD87: Déformée radiale | AE87: =AE84*((AE86-Empilage!AE$27*Detail_des_effets!AE85)/Empilage!AE20)*10^-1 ->  | AF87: mm au diamètre | AH87: Déformée radiale | AI87: =AI84*((AI86-Empilage!AI$27*Detail_des_effets!AI85)/Empilage!AI20)*10^-1 ->  | AJ87: mm au diamètre | AL87: Déformée radiale | AM87: =AM84*((AM86-Empilage!AM$27*Detail_des_effets!AM85)/Empilage!AM20)*10^-1 ->  | AN87: mm au diamètre
B88: Effet de la thermique seule en mise en froid | F88: Effet de la thermique seule en mise en froid | J88: Effet de la thermique seule en mise en froid | N88: Effet de la thermique seule en mise en froid | R88: Effet de la thermique seule en mise en froid | V88: Effet de la thermique seule en mise en froid | Z88: Effet de la thermique seule en mise en froid | AD88: Effet de la thermique seule en mise en froid | AH88: Effet de la thermique seule en mise en froid | AL88: Effet de la thermique seule en mise en froid
B90: Au niveau du frettage | F90: Au niveau du frettage | J90: Au niveau du frettage | N90: Au niveau du frettage | R90: Au niveau du frettage | V90: Au niveau du frettage | Z90: Au niveau du frettage | AD90: Au niveau du frettage | AH90: Au niveau du frettage | AL90: Au niveau du frettage
B91: Déformée axiale | C91: =Empilage!C25*10^-5*Empilage!C13 -> -0.132 | D91: mm | F91: Déformée axiale | G91: =Empilage!G25*10^-5*Empilage!G13 -> -0.132 | H91: mm | J91: Déformée axiale | K91: =Empilage!K25*10^-5*Empilage!K13 -> -0.132 | L91: mm | N91: Déformée axiale | O91: =Empilage!O25*10^-5*Empilage!O13 -> -0.132 | P91: mm | R91: Déformée axiale | S91: =Empilage!S25*10^-5*Empilage!S13 -> -0.132 | T91: mm | V91: Déformée axiale | W91: =Empilage!W25*10^-5*Empilage!W13 -> -0.132 | X91: mm | Z91: Déformée axiale | AA91: =Empilage!AA25*10^-5*Empilage!AA13 -> -0.132 | AB91: mm | AD91: Déformée axiale | AE91: =Empilage!AE25*10^-5*Empilage!AE13 -> -0.132 | AF91: mm | AH91: Déformée axiale | AI91: =Empilage!AI25*10^-5*Empilage!AI13 -> -0.132 | AJ91: mm | AL91: Déformée axiale | AM91: =Empilage!AM25*10^-5*Empilage!AM13 -> -0.132 | AN91: mm
B92: Déformée radiale | C92: =Empilage!C25*10^-5*Empilage!C15 -> -0.062 | D92: mm | F92: Déformée radiale | G92: =Empilage!G25*10^-5*Empilage!G15 -> -0.062 | H92: mm | J92: Déformée radiale | K92: =Empilage!K25*10^-5*Empilage!K15 -> -0.062 | L92: mm | N92: Déformée radiale | O92: =Empilage!O25*10^-5*Empilage!O15 -> -0.062 | P92: mm | R92: Déformée radiale | S92: =Empilage!S25*10^-5*Empilage!S15 -> -0.062 | T92: mm | V92: Déformée radiale | W92: =Empilage!W25*10^-5*Empilage!W15 -> -0.062 | X92: mm | Z92: Déformée radiale | AA92: =Empilage!AA25*10^-5*Empilage!AA15 -> -0.062 | AB92: mm | AD92: Déformée radiale | AE92: =Empilage!AE25*10^-5*Empilage!AE15 -> -0.062 | AF92: mm | AH92: Déformée radiale | AI92: =Empilage!AI25*10^-5*Empilage!AI15 -> -0.062 | AJ92: mm | AL92: Déformée radiale | AM92: =Empilage!AM25*10^-5*Empilage!AM15 -> -0.062 | AN92: mm
B93: Dans la pièce, au diamètre particulier | C93: =Empilage!C$17 -> 20.00 | D93: mm | F93: Dans la pièce, au diamètre particulier | G93: =Empilage!G$17 -> 20.00 | H93: mm | J93: Dans la pièce, au diamètre particulier | K93: =Empilage!K$17 -> 20.00 | L93: mm | N93: Dans la pièce, au diamètre particulier | O93: =Empilage!O$17 -> 20.00 | P93: mm | R93: Dans la pièce, au diamètre particulier | S93: =Empilage!S$17 -> 20.00 | T93: mm | V93: Dans la pièce, au diamètre particulier | W93: =Empilage!W$17 -> 20.00 | X93: mm | Z93: Dans la pièce, au diamètre particulier | AA93: =Empilage!AA$17 -> 20.00 | AB93: mm | AD93: Dans la pièce, au diamètre particulier | AE93: =Empilage!AE$17 -> 20.00 | AF93: mm | AH93: Dans la pièce, au diamètre particulier | AI93: =Empilage!AI$17 -> 20.00 | AJ93: mm | AL93: Dans la pièce, au diamètre particulier | AM93: =Empilage!AM$17 -> 20.00 | AN93: mm
B94: Déformée axiale | C94: =Empilage!C25*10^-5*Empilage!C13 -> -0.132 | D94: mm | F94: Déformée axiale | G94: =Empilage!G25*10^-5*Empilage!G13 -> -0.132 | H94: mm | J94: Déformée axiale | K94: =Empilage!K25*10^-5*Empilage!K13 -> -0.132 | L94: mm | N94: Déformée axiale | O94: =Empilage!O25*10^-5*Empilage!O13 -> -0.132 | P94: mm | R94: Déformée axiale | S94: =Empilage!S25*10^-5*Empilage!S13 -> -0.132 | T94: mm | V94: Déformée axiale | W94: =Empilage!W25*10^-5*Empilage!W13 -> -0.132 | X94: mm | Z94: Déformée axiale | AA94: =Empilage!AA25*10^-5*Empilage!AA13 -> -0.132 | AB94: mm | AD94: Déformée axiale | AE94: =Empilage!AE25*10^-5*Empilage!AE13 -> -0.132 | AF94: mm | AH94: Déformée axiale | AI94: =Empilage!AI25*10^-5*Empilage!AI13 -> -0.132 | AJ94: mm | AL94: Déformée axiale | AM94: =Empilage!AM25*10^-5*Empilage!AM13 -> -0.132 | AN94: mm
B95: Déformée radiale | C95: =Empilage!C25*10^-5*C93 -> -0.050 | D95: mm | F95: Déformée radiale | G95: =Empilage!G25*10^-5*G93 -> -0.050 | H95: mm | J95: Déformée radiale | K95: =Empilage!K25*10^-5*K93 -> -0.050 | L95: mm | N95: Déformée radiale | O95: =Empilage!O25*10^-5*O93 -> -0.050 | P95: mm | R95: Déformée radiale | S95: =Empilage!S25*10^-5*S93 -> -0.050 | T95: mm | V95: Déformée radiale | W95: =Empilage!W25*10^-5*W93 -> -0.050 | X95: mm | Z95: Déformée radiale | AA95: =Empilage!AA25*10^-5*AA93 -> -0.050 | AB95: mm | AD95: Déformée radiale | AE95: =Empilage!AE25*10^-5*AE93 -> -0.050 | AF95: mm | AH95: Déformée radiale | AI95: =Empilage!AI25*10^-5*AI93 -> -0.050 | AJ95: mm | AL95: Déformée radiale | AM95: =Empilage!AM25*10^-5*AM93 -> -0.050 | AN95: mm
B96: Effet de la thermique seule en fonctionnement | F96: Effet de la thermique seule en fonctionnement | J96: Effet de la thermique seule en fonctionnement | N96: Effet de la thermique seule en fonctionnement | R96: Effet de la thermique seule en fonctionnement | V96: Effet de la thermique seule en fonctionnement | Z96: Effet de la thermique seule en fonctionnement | AD96: Effet de la thermique seule en fonctionnement | AH96: Effet de la thermique seule en fonctionnement | AL96: Effet de la thermique seule en fonctionnement
B98: Au niveau du frettage | F98: Au niveau du frettage | J98: Au niveau du frettage | N98: Au niveau du frettage | R98: Au niveau du frettage | V98: Au niveau du frettage | Z98: Au niveau du frettage | AD98: Au niveau du frettage | AH98: Au niveau du frettage | AL98: Au niveau du frettage
B99: Déformée axiale | C99: =Empilage!C26*10^-5*Empilage!C13 -> -0.106 | D99: mm | F99: Déformée axiale | G99: =Empilage!G26*10^-5*Empilage!G13 -> -0.106 | H99: mm | J99: Déformée axiale | K99: =Empilage!K26*10^-5*Empilage!K13 -> -0.106 | L99: mm | N99: Déformée axiale | O99: =Empilage!O26*10^-5*Empilage!O13 -> -0.106 | P99: mm | R99: Déformée axiale | S99: =Empilage!S26*10^-5*Empilage!S13 -> -0.106 | T99: mm | V99: Déformée axiale | W99: =Empilage!W26*10^-5*Empilage!W13 -> -0.106 | X99: mm | Z99: Déformée axiale | AA99: =Empilage!AA26*10^-5*Empilage!AA13 -> -0.106 | AB99: mm | AD99: Déformée axiale | AE99: =Empilage!AE26*10^-5*Empilage!AE13 -> -0.106 | AF99: mm | AH99: Déformée axiale | AI99: =Empilage!AI26*10^-5*Empilage!AI13 -> -0.106 | AJ99: mm | AL99: Déformée axiale | AM99: =Empilage!AM26*10^-5*Empilage!AM13 -> -0.106 | AN99: mm
B100: Déformée radiale | C100: =Empilage!C26*10^-5*Empilage!C15 -> -0.050 | D100: mm | F100: Déformée radiale | G100: =Empilage!G26*10^-5*Empilage!G15 -> -0.050 | H100: mm | J100: Déformée radiale | K100: =Empilage!K26*10^-5*Empilage!K15 -> -0.050 | L100: mm | N100: Déformée radiale | O100: =Empilage!O26*10^-5*Empilage!O15 -> -0.050 | P100: mm | R100: Déformée radiale | S100: =Empilage!S26*10^-5*Empilage!S15 -> -0.050 | T100: mm | V100: Déformée radiale | W100: =Empilage!W26*10^-5*Empilage!W15 -> -0.050 | X100: mm | Z100: Déformée radiale | AA100: =Empilage!AA26*10^-5*Empilage!AA15 -> -0.050 | AB100: mm | AD100: Déformée radiale | AE100: =Empilage!AE26*10^-5*Empilage!AE15 -> -0.050 | AF100: mm | AH100: Déformée radiale | AI100: =Empilage!AI26*10^-5*Empilage!AI15 -> -0.050 | AJ100: mm | AL100: Déformée radiale | AM100: =Empilage!AM26*10^-5*Empilage!AM15 -> -0.050 | AN100: mm
B101: Dans la pièce, au diamètre particulier | C101: =Empilage!C$17 -> 20.00 | D101: mm | F101: Dans la pièce, au diamètre particulier | G101: =Empilage!G$17 -> 20.00 | H101: mm | J101: Dans la pièce, au diamètre particulier | K101: =Empilage!K$17 -> 20.00 | L101: mm | N101: Dans la pièce, au diamètre particulier | O101: =Empilage!O$17 -> 20.00 | P101: mm | R101: Dans la pièce, au diamètre particulier | S101: =Empilage!S$17 -> 20.00 | T101: mm | V101: Dans la pièce, au diamètre particulier | W101: =Empilage!W$17 -> 20.00 | X101: mm | Z101: Dans la pièce, au diamètre particulier | AA101: =Empilage!AA$17 -> 20.00 | AB101: mm | AD101: Dans la pièce, au diamètre particulier | AE101: =Empilage!AE$17 -> 20.00 | AF101: mm | AH101: Dans la pièce, au diamètre particulier | AI101: =Empilage!AI$17 -> 20.00 | AJ101: mm | AL101: Dans la pièce, au diamètre particulier | AM101: =Empilage!AM$17 -> 20.00 | AN101: mm
B102: Déformée axiale | C102: =Empilage!C26*10^-5*Empilage!C13 -> -0.106 | D102: mm | F102: Déformée axiale | G102: =Empilage!G26*10^-5*Empilage!G13 -> -0.106 | H102: mm | J102: Déformée axiale | K102: =Empilage!K26*10^-5*Empilage!K13 -> -0.106 | L102: mm | N102: Déformée axiale | O102: =Empilage!O26*10^-5*Empilage!O13 -> -0.106 | P102: mm | R102: Déformée axiale | S102: =Empilage!S26*10^-5*Empilage!S13 -> -0.106 | T102: mm | V102: Déformée axiale | W102: =Empilage!W26*10^-5*Empilage!W13 -> -0.106 | X102: mm | Z102: Déformée axiale | AA102: =Empilage!AA26*10^-5*Empilage!AA13 -> -0.106 | AB102: mm | AD102: Déformée axiale | AE102: =Empilage!AE26*10^-5*Empilage!AE13 -> -0.106 | AF102: mm | AH102: Déformée axiale | AI102: =Empilage!AI26*10^-5*Empilage!AI13 -> -0.106 | AJ102: mm | AL102: Déformée axiale | AM102: =Empilage!AM26*10^-5*Empilage!AM13 -> -0.106 | AN102: mm
B103: Déformée radiale | C103: =Empilage!C26*10^-5*C101 -> -0.040 | D103: mm | F103: Déformée radiale | G103: =Empilage!G26*10^-5*G101 -> -0.040 | H103: mm | J103: Déformée radiale | K103: =Empilage!K26*10^-5*K101 -> -0.040 | L103: mm | N103: Déformée radiale | O103: =Empilage!O26*10^-5*O101 -> -0.040 | P103: mm | R103: Déformée radiale | S103: =Empilage!S26*10^-5*S101 -> -0.040 | T103: mm | V103: Déformée radiale | W103: =Empilage!W26*10^-5*W101 -> -0.040 | X103: mm | Z103: Déformée radiale | AA103: =Empilage!AA26*10^-5*AA101 -> -0.040 | AB103: mm | AD103: Déformée radiale | AE103: =Empilage!AE26*10^-5*AE101 -> -0.040 | AF103: mm | AH103: Déformée radiale | AI103: =Empilage!AI26*10^-5*AI101 -> -0.040 | AJ103: mm | AL103: Déformée radiale | AM103: =Empilage!AM26*10^-5*AM101 -> -0.040 | AN103: mm
B108: Nom : | C108: =Empilage!C31 -> Pièce femelle | F108: Nom : | G108: =Empilage!G31 -> Pièce femelle | J108: Nom : | K108: =Empilage!K31 -> Pièce femelle | N108: Nom : | O108: =Empilage!O31 -> Pièce femelle | R108: Nom : | S108: =Empilage!S31 -> Pièce femelle | V108: Nom : | W108: =Empilage!W31 -> Pièce femelle | Z108: Nom : | AA108: =Empilage!AA31 -> Pièce femelle | AD108: Nom : | AE108: =Empilage!AE31 -> Pièce femelle | AH108: Nom : | AI108: =Empilage!AI31 -> Pièce femelle | AL108: Nom : | AM108: =Empilage!AM31 -> Pièce femelle
B109: Effet de la centrifugation seule | F109: Effet de la centrifugation seule | J109: Effet de la centrifugation seule | N109: Effet de la centrifugation seule | R109: Effet de la centrifugation seule | V109: Effet de la centrifugation seule | Z109: Effet de la centrifugation seule | AD109: Effet de la centrifugation seule | AH109: Effet de la centrifugation seule | AL109: Effet de la centrifugation seule
B111: Au niveau du frettage | F111: Au niveau du frettage | J111: Au niveau du frettage | N111: Au niveau du frettage | R111: Au niveau du frettage | V111: Au niveau du frettage | Z111: Au niveau du frettage | AD111: Au niveau du frettage | AH111: Au niveau du frettage | AL111: Au niveau du frettage
B112: Contrainte radiale | C112: =0 -> 0 | D112: MPa | F112: Contrainte radiale | G112: =0 -> 0 | H112: MPa | J112: Contrainte radiale | K112: =0 -> 0 | L112: MPa | N112: Contrainte radiale | O112: =0 -> 0 | P112: MPa | R112: Contrainte radiale | S112: =0 -> 0 | T112: MPa | V112: Contrainte radiale | W112: =0 -> 0 | X112: MPa | Z112: Contrainte radiale | AA112: =0 -> 0 | AB112: MPa | AD112: Contrainte radiale | AE112: =0 -> 0 | AF112: MPa | AH112: Contrainte radiale | AI112: =0 -> 0 | AJ112: MPa | AL112: Contrainte radiale | AM112: =0 -> 0 | AN112: MPa
B113: Contrainte tangentielle | C113: =10^-12*Empilage!C53*Empilage!$D$87^2/16*((3+Empilage!C52)*Empilage!C35^2+(1-Empilage!C52)*Empilage!C36^2) -> 17 | D113: MPa | F113: Contrainte tangentielle | G113: =10^-12*Empilage!G53*Empilage!$D$87^2/16*((3+Empilage!G52)*Empilage!G35^2+(1-Empilage!G52)*Empilage!G36^2) -> 17 | H113: MPa | J113: Contrainte tangentielle | K113: =10^-12*Empilage!K53*Empilage!$D$87^2/16*((3+Empilage!K52)*Empilage!K35^2+(1-Empilage!K52)*Empilage!K36^2) -> 17 | L113: MPa | N113: Contrainte tangentielle | O113: =10^-12*Empilage!O53*Empilage!$D$87^2/16*((3+Empilage!O52)*Empilage!O35^2+(1-Empilage!O52)*Empilage!O36^2) -> 17 | P113: MPa | R113: Contrainte tangentielle | S113: =10^-12*Empilage!S53*Empilage!$D$87^2/16*((3+Empilage!S52)*Empilage!S35^2+(1-Empilage!S52)*Empilage!S36^2) -> 17 | T113: MPa | V113: Contrainte tangentielle | W113: =10^-12*Empilage!W53*Empilage!$D$87^2/16*((3+Empilage!W52)*Empilage!W35^2+(1-Empilage!W52)*Empilage!W36^2) -> 17 | X113: MPa | Z113: Contrainte tangentielle | AA113: =10^-12*Empilage!AA53*Empilage!$D$87^2/16*((3+Empilage!AA52)*Empilage!AA35^2+(1-Empilage!AA52)*Empilage!AA36^2) -> 17 | AB113: MPa | AD113: Contrainte tangentielle | AE113: =10^-12*Empilage!AE53*Empilage!$D$87^2/16*((3+Empilage!AE52)*Empilage!AE35^2+(1-Empilage!AE52)*Empilage!AE36^2) -> 17 | AF113: MPa | AH113: Contrainte tangentielle | AI113: =10^-12*Empilage!AI53*Empilage!$D$87^2/16*((3+Empilage!AI52)*Empilage!AI35^2+(1-Empilage!AI52)*Empilage!AI36^2) -> 17 | AJ113: MPa | AL113: Contrainte tangentielle | AM113: =10^-12*Empilage!AM53*Empilage!$D$87^2/16*((3+Empilage!AM52)*Empilage!AM35^2+(1-Empilage!AM52)*Empilage!AM36^2) -> 17 | AN113: MPa
B114: Déformée radiale | C114: =IF(COUNTIF(Empilage!C38,"*1 - Profil cylindrique*"),(C115/Empilage!C$45)*(Detail_des_effets!C113-Empilage!C$52*Detail_des_effets!C112)*10^-1,((C115/Empilage!C$45)*(Detail_des_effets!C113-Empilage!C$52*Detail_des_effets!C112)+(Type_piece!$D$6*Empilage!C39)+(Type_piece!$E$6)+(Type_piece!$D$7*Empilage!C40)+(Type_piece!$E$7)+(Type_piece!$D$8*Empilage!C41^3)+(Type_piece!$E$8*Empilage!C41^2)+(Type_piece!$F$8*Empilage!C41)+Type_piece!$G$8)*10^-1) -> 0.002 | D114: mm au diamètre | F114: Déformée radiale | G114: =IF(COUNTIF(Empilage!G38,"*1 - Profil cylindrique*"),(G115/Empilage!G$45)*(Detail_des_effets!G113-Empilage!G$52*Detail_des_effets!G112)*10^-1,((G115/Empilage!G$45)*(Detail_des_effets!G113-Empilage!G$52*Detail_des_effets!G112)+(Type_piece!$D$6*Empilage!G39)+(Type_piece!$E$6)+(Type_piece!$D$7*Empilage!G40)+(Type_piece!$E$7)+(Type_piece!$D$8*Empilage!G41^3)+(Type_piece!$E$8*Empilage!G41^2)+(Type_piece!$F$8*Empilage!G41)+Type_piece!$G$8)*10^-1) -> 0.002 | H114: mm au diamètre | J114: Déformée radiale | K114: =IF(COUNTIF(Empilage!K38,"*1 - Profil cylindrique*"),(K115/Empilage!K$45)*(Detail_des_effets!K113-Empilage!K$52*Detail_des_effets!K112)*10^-1,((K115/Empilage!K$45)*(Detail_des_effets!K113-Empilage!K$52*Detail_des_effets!K112)+(Type_piece!$D$6*Empilage!K39)+(Type_piece!$E$6)+(Type_piece!$D$7*Empilage!K40)+(Type_piece!$E$7)+(Type_piece!$D$8*Empilage!K41^3)+(Type_piece!$E$8*Empilage!K41^2)+(Type_piece!$F$8*Empilage!K41)+Type_piece!$G$8)*10^-1) -> 0.002 | L114: mm au diamètre | N114: Déformée radiale | O114: =IF(COUNTIF(Empilage!O38,"*1 - Profil cylindrique*"),(O115/Empilage!O$45)*(Detail_des_effets!O113-Empilage!O$52*Detail_des_effets!O112)*10^-1,((O115/Empilage!O$45)*(Detail_des_effets!O113-Empilage!O$52*Detail_des_effets!O112)+(Type_piece!$D$6*Empilage!O39)+(Type_piece!$E$6)+(Type_piece!$D$7*Empilage!O40)+(Type_piece!$E$7)+(Type_piece!$D$8*Empilage!O41^3)+(Type_piece!$E$8*Empilage!O41^2)+(Type_piece!$F$8*Empilage!O41)+Type_piece!$G$8)*10^-1) -> 0.002 | P114: mm au diamètre | R114: Déformée radiale | S114: =IF(COUNTIF(Empilage!S38,"*1 - Profil cylindrique*"),(S115/Empilage!S$45)*(Detail_des_effets!S113-Empilage!S$52*Detail_des_effets!S112)*10^-1,((S115/Empilage!S$45)*(Detail_des_effets!S113-Empilage!S$52*Detail_des_effets!S112)+(Type_piece!$D$6*Empilage!S39)+(Type_piece!$E$6)+(Type_piece!$D$7*Empilage!S40)+(Type_piece!$E$7)+(Type_piece!$D$8*Empilage!S41^3)+(Type_piece!$E$8*Empilage!S41^2)+(Type_piece!$F$8*Empilage!S41)+Type_piece!$G$8)*10^-1) -> 0.002 | T114: mm au diamètre | V114: Déformée radiale | W114: =IF(COUNTIF(Empilage!W38,"*1 - Profil cylindrique*"),(W115/Empilage!W$45)*(Detail_des_effets!W113-Empilage!W$52*Detail_des_effets!W112)*10^-1,((W115/Empilage!W$45)*(Detail_des_effets!W113-Empilage!W$52*Detail_des_effets!W112)+(Type_piece!$D$6*Empilage!W39)+(Type_piece!$E$6)+(Type_piece!$D$7*Empilage!W40)+(Type_piece!$E$7)+(Type_piece!$D$8*Empilage!W41^3)+(Type_piece!$E$8*Empilage!W41^2)+(Type_piece!$F$8*Empilage!W41)+Type_piece!$G$8)*10^-1) -> 0.002 | X114: mm au diamètre | Z114: Déformée radiale | AA114: =IF(COUNTIF(Empilage!AA38,"*1 - Profil cylindrique*"),(AA115/Empilage!AA$45)*(Detail_des_effets!AA113-Empilage!AA$52*Detail_des_effets!AA112)*10^-1,((AA115/Empilage!AA$45)*(Detail_des_effets!AA113-Empilage!AA$52*Detail_des_effets!AA112)+(Type_piece!$D$6*Empilage!AA39)+(Type_piece!$E$6)+(Type_piece!$D$7*Empilage!AA40)+(Type_piece!$E$7)+(Type_piece!$D$8*Empilage!AA41^3)+(Type_piece!$E$8*Empilage!AA41^2)+(Type_piece!$F$8*Empilage!AA41)+Type_piece!$G$8)*10^-1) -> 0.002 | AB114: mm au diamètre | AD114: Déformée radiale | AE114: =IF(COUNTIF(Empilage!AE38,"*1 - Profil cylindrique*"),(AE115/Empilage!AE$45)*(Detail_des_effets!AE113-Empilage!AE$52*Detail_des_effets!AE112)*10^-1,((AE115/Empilage!AE$45)*(Detail_des_effets!AE113-Empilage!AE$52*Detail_des_effets!AE112)+(Type_piece!$D$6*Empilage!AE39)+(Type_piece!$E$6)+(Type_piece!$D$7*Empilage!AE40)+(Type_piece!$E$7)+(Type_piece!$D$8*Empilage!AE41^3)+(Type_piece!$E$8*Empilage!AE41^2)+(Type_piece!$F$8*Empilage!AE41)+Type_piece!$G$8)*10^-1) -> 0.002 | AF114: mm au diamètre | AH114: Déformée radiale | AI114: =IF(COUNTIF(Empilage!AI38,"*1 - Profil cylindrique*"),(AI115/Empilage!AI$45)*(Detail_des_effets!AI113-Empilage!AI$52*Detail_des_effets!AI112)*10^-1,((AI115/Empilage!AI$45)*(Detail_des_effets!AI113-Empilage!AI$52*Detail_des_effets!AI112)+(Type_piece!$D$6*Empilage!AI39)+(Type_piece!$E$6)+(Type_piece!$D$7*Empilage!AI40)+(Type_piece!$E$7)+(Type_piece!$D$8*Empilage!AI41^3)+(Type_piece!$E$8*Empilage!AI41^2)+(Type_piece!$F$8*Empilage!AI41)+Type_piece!$G$8)*10^-1) -> 0.002 | AJ114: mm au diamètre | AL114: Déformée radiale | AM114: =IF(COUNTIF(Empilage!AM38,"*1 - Profil cylindrique*"),(AM115/Empilage!AM$45)*(Detail_des_effets!AM113-Empilage!AM$52*Detail_des_effets!AM112)*10^-1,((AM115/Empilage!AM$45)*(Detail_des_effets!AM113-Empilage!AM$52*Detail_des_effets!AM112)+(Type_piece!$D$6*Empilage!AM39)+(Type_piece!$E$6)+(Type_piece!$D$7*Empilage!AM40)+(Type_piece!$E$7)+(Type_piece!$D$8*Empilage!AM41^3)+(Type_piece!$E$8*Empilage!AM41^2)+(Type_piece!$F$8*Empilage!AM41)+Type_piece!$G$8)*10^-1) -> 0.002 | AN114: mm au diamètre
B115: Dans la pièce, au diamètre particulier | C115: =Empilage!C$37 -> 29.00 | D115: mm | F115: Dans la pièce, au diamètre particulier | G115: =Empilage!G$37 -> 29.00 | H115: mm | J115: Dans la pièce, au diamètre particulier | K115: =Empilage!K$37 -> 29.00 | L115: mm | N115: Dans la pièce, au diamètre particulier | O115: =Empilage!O$37 -> 29.00 | P115: mm | R115: Dans la pièce, au diamètre particulier | S115: =Empilage!S$37 -> 29.00 | T115: mm | V115: Dans la pièce, au diamètre particulier | W115: =Empilage!W$37 -> 29.00 | X115: mm | Z115: Dans la pièce, au diamètre particulier | AA115: =Empilage!AA$37 -> 29.00 | AB115: mm | AD115: Dans la pièce, au diamètre particulier | AE115: =Empilage!AE$37 -> 29.00 | AF115: mm | AH115: Dans la pièce, au diamètre particulier | AI115: =Empilage!AI$37 -> 29.00 | AJ115: mm | AL115: Dans la pièce, au diamètre particulier | AM115: =Empilage!AM$37 -> 29.00 | AN115: mm
B116: Contrainte radiale | C116: =10^-12*(3+Empilage!C52)/32*Empilage!C53*Empilage!$D$87^2*(Empilage!C36^2+Empilage!C35^2-(Empilage!C36*Empilage!C35/Detail_des_effets!C115)^2-Detail_des_effets!C115^2) -> 0.13 | D116: MPa | F116: Contrainte radiale | G116: =10^-12*(3+Empilage!G52)/32*Empilage!G53*Empilage!$D$87^2*(Empilage!G36^2+Empilage!G35^2-(Empilage!G36*Empilage!G35/Detail_des_effets!G115)^2-Detail_des_effets!G115^2) -> 0.13 | H116: MPa | J116: Contrainte radiale | K116: =10^-12*(3+Empilage!K52)/32*Empilage!K53*Empilage!$D$87^2*(Empilage!K36^2+Empilage!K35^2-(Empilage!K36*Empilage!K35/Detail_des_effets!K115)^2-Detail_des_effets!K115^2) -> 0.13 | L116: MPa | N116: Contrainte radiale | O116: =10^-12*(3+Empilage!O52)/32*Empilage!O53*Empilage!$D$87^2*(Empilage!O36^2+Empilage!O35^2-(Empilage!O36*Empilage!O35/Detail_des_effets!O115)^2-Detail_des_effets!O115^2) -> 0.13 | P116: MPa | R116: Contrainte radiale | S116: =10^-12*(3+Empilage!S52)/32*Empilage!S53*Empilage!$D$87^2*(Empilage!S36^2+Empilage!S35^2-(Empilage!S36*Empilage!S35/Detail_des_effets!S115)^2-Detail_des_effets!S115^2) -> 0.13 | T116: MPa | V116: Contrainte radiale | W116: =10^-12*(3+Empilage!W52)/32*Empilage!W53*Empilage!$D$87^2*(Empilage!W36^2+Empilage!W35^2-(Empilage!W36*Empilage!W35/Detail_des_effets!W115)^2-Detail_des_effets!W115^2) -> 0.13 | X116: MPa | Z116: Contrainte radiale | AA116: =10^-12*(3+Empilage!AA52)/32*Empilage!AA53*Empilage!$D$87^2*(Empilage!AA36^2+Empilage!AA35^2-(Empilage!AA36*Empilage!AA35/Detail_des_effets!AA115)^2-Detail_des_effets!AA115^2) -> 0.13 | AB116: MPa | AD116: Contrainte radiale | AE116: =10^-12*(3+Empilage!AE52)/32*Empilage!AE53*Empilage!$D$87^2*(Empilage!AE36^2+Empilage!AE35^2-(Empilage!AE36*Empilage!AE35/Detail_des_effets!AE115)^2-Detail_des_effets!AE115^2) -> 0.13 | AF116: MPa | AH116: Contrainte radiale | AI116: =10^-12*(3+Empilage!AI52)/32*Empilage!AI53*Empilage!$D$87^2*(Empilage!AI36^2+Empilage!AI35^2-(Empilage!AI36*Empilage!AI35/Detail_des_effets!AI115)^2-Detail_des_effets!AI115^2) -> 0.13 | AJ116: MPa | AL116: Contrainte radiale | AM116: =10^-12*(3+Empilage!AM52)/32*Empilage!AM53*Empilage!$D$87^2*(Empilage!AM36^2+Empilage!AM35^2-(Empilage!AM36*Empilage!AM35/Detail_des_effets!AM115)^2-Detail_des_effets!AM115^2) -> 0.13 | AN116: MPa
B117: Contrainte tangentielle | C117: =10^-12*Empilage!C53/32*Empilage!$D$87^2*((3+Empilage!C52)*(Empilage!C36^2+Empilage!C35^2+(Empilage!C36*Empilage!C35/Detail_des_effets!C115)^2)-(1+3*Empilage!C52)*Detail_des_effets!C115^2) -> 14 | D117: MPa | F117: Contrainte tangentielle | G117: =10^-12*Empilage!G53/32*Empilage!$D$87^2*((3+Empilage!G52)*(Empilage!G36^2+Empilage!G35^2+(Empilage!G36*Empilage!G35/Detail_des_effets!G115)^2)-(1+3*Empilage!G52)*Detail_des_effets!G115^2) -> 14 | H117: MPa | J117: Contrainte tangentielle | K117: =10^-12*Empilage!K53/32*Empilage!$D$87^2*((3+Empilage!K52)*(Empilage!K36^2+Empilage!K35^2+(Empilage!K36*Empilage!K35/Detail_des_effets!K115)^2)-(1+3*Empilage!K52)*Detail_des_effets!K115^2) -> 14 | L117: MPa | N117: Contrainte tangentielle | O117: =10^-12*Empilage!O53/32*Empilage!$D$87^2*((3+Empilage!O52)*(Empilage!O36^2+Empilage!O35^2+(Empilage!O36*Empilage!O35/Detail_des_effets!O115)^2)-(1+3*Empilage!O52)*Detail_des_effets!O115^2) -> 14 | P117: MPa | R117: Contrainte tangentielle | S117: =10^-12*Empilage!S53/32*Empilage!$D$87^2*((3+Empilage!S52)*(Empilage!S36^2+Empilage!S35^2+(Empilage!S36*Empilage!S35/Detail_des_effets!S115)^2)-(1+3*Empilage!S52)*Detail_des_effets!S115^2) -> 14 | T117: MPa | V117: Contrainte tangentielle | W117: =10^-12*Empilage!W53/32*Empilage!$D$87^2*((3+Empilage!W52)*(Empilage!W36^2+Empilage!W35^2+(Empilage!W36*Empilage!W35/Detail_des_effets!W115)^2)-(1+3*Empilage!W52)*Detail_des_effets!W115^2) -> 14 | X117: MPa | Z117: Contrainte tangentielle | AA117: =10^-12*Empilage!AA53/32*Empilage!$D$87^2*((3+Empilage!AA52)*(Empilage!AA36^2+Empilage!AA35^2+(Empilage!AA36*Empilage!AA35/Detail_des_effets!AA115)^2)-(1+3*Empilage!AA52)*Detail_des_effets!AA115^2) -> 14 | AB117: MPa | AD117: Contrainte tangentielle | AE117: =10^-12*Empilage!AE53/32*Empilage!$D$87^2*((3+Empilage!AE52)*(Empilage!AE36^2+Empilage!AE35^2+(Empilage!AE36*Empilage!AE35/Detail_des_effets!AE115)^2)-(1+3*Empilage!AE52)*Detail_des_effets!AE115^2) -> 14 | AF117: MPa | AH117: Contrainte tangentielle | AI117: =10^-12*Empilage!AI53/32*Empilage!$D$87^2*((3+Empilage!AI52)*(Empilage!AI36^2+Empilage!AI35^2+(Empilage!AI36*Empilage!AI35/Detail_des_effets!AI115)^2)-(1+3*Empilage!AI52)*Detail_des_effets!AI115^2) -> 14 | AJ117: MPa | AL117: Contrainte tangentielle | AM117: =10^-12*Empilage!AM53/32*Empilage!$D$87^2*((3+Empilage!AM52)*(Empilage!AM36^2+Empilage!AM35^2+(Empilage!AM36*Empilage!AM35/Detail_des_effets!AM115)^2)-(1+3*Empilage!AM52)*Detail_des_effets!AM115^2) -> 14 | AN117: MPa
B118: Déformée radiale | C118: =IF(COUNTIF(Empilage!C38,"*1 - Profil cylindrique*"),(C$115/Empilage!C$45)*(Detail_des_effets!C117-Empilage!C$52*Detail_des_effets!C116)*10^-1,((C$115/Empilage!C$45)*(Detail_des_effets!C117-Empilage!C$52*Detail_des_effets!C116)+Type_piece!$D$6*Empilage!C39+Type_piece!$E$6+Type_piece!$D$7*Empilage!C40+Type_piece!$E$7+(Type_piece!$D$8*Empilage!C41^3)+(Type_piece!$E$8*Empilage!C41^2)+(Type_piece!$F$8*Empilage!C41)+Type_piece!$G$8)*10^-1) -> 0.002 | D118: mm au diamètre | F118: Déformée radiale | G118: =IF(COUNTIF(Empilage!G38,"*1 - Profil cylindrique*"),(G$115/Empilage!G$45)*(Detail_des_effets!G117-Empilage!G$52*Detail_des_effets!G116)*10^-1,((G$115/Empilage!G$45)*(Detail_des_effets!G117-Empilage!G$52*Detail_des_effets!G116)+Type_piece!$D$6*Empilage!G39+Type_piece!$E$6+Type_piece!$D$7*Empilage!G40+Type_piece!$E$7+(Type_piece!$D$8*Empilage!G41^3)+(Type_piece!$E$8*Empilage!G41^2)+(Type_piece!$F$8*Empilage!G41)+Type_piece!$G$8)*10^-1) -> 0.002 | H118: mm au diamètre | J118: Déformée radiale | K118: =IF(COUNTIF(Empilage!K38,"*1 - Profil cylindrique*"),(K$115/Empilage!K$45)*(Detail_des_effets!K117-Empilage!K$52*Detail_des_effets!K116)*10^-1,((K$115/Empilage!K$45)*(Detail_des_effets!K117-Empilage!K$52*Detail_des_effets!K116)+Type_piece!$D$6*Empilage!K39+Type_piece!$E$6+Type_piece!$D$7*Empilage!K40+Type_piece!$E$7+(Type_piece!$D$8*Empilage!K41^3)+(Type_piece!$E$8*Empilage!K41^2)+(Type_piece!$F$8*Empilage!K41)+Type_piece!$G$8)*10^-1) -> 0.002 | L118: mm au diamètre | N118: Déformée radiale | O118: =IF(COUNTIF(Empilage!O38,"*1 - Profil cylindrique*"),(O$115/Empilage!O$45)*(Detail_des_effets!O117-Empilage!O$52*Detail_des_effets!O116)*10^-1,((O$115/Empilage!O$45)*(Detail_des_effets!O117-Empilage!O$52*Detail_des_effets!O116)+Type_piece!$D$6*Empilage!O39+Type_piece!$E$6+Type_piece!$D$7*Empilage!O40+Type_piece!$E$7+(Type_piece!$D$8*Empilage!O41^3)+(Type_piece!$E$8*Empilage!O41^2)+(Type_piece!$F$8*Empilage!O41)+Type_piece!$G$8)*10^-1) -> 0.002 | P118: mm au diamètre | R118: Déformée radiale | S118: =IF(COUNTIF(Empilage!S38,"*1 - Profil cylindrique*"),(S$115/Empilage!S$45)*(Detail_des_effets!S117-Empilage!S$52*Detail_des_effets!S116)*10^-1,((S$115/Empilage!S$45)*(Detail_des_effets!S117-Empilage!S$52*Detail_des_effets!S116)+Type_piece!$D$6*Empilage!S39+Type_piece!$E$6+Type_piece!$D$7*Empilage!S40+Type_piece!$E$7+(Type_piece!$D$8*Empilage!S41^3)+(Type_piece!$E$8*Empilage!S41^2)+(Type_piece!$F$8*Empilage!S41)+Type_piece!$G$8)*10^-1) -> 0.002 | T118: mm au diamètre | V118: Déformée radiale | W118: =IF(COUNTIF(Empilage!W38,"*1 - Profil cylindrique*"),(W$115/Empilage!W$45)*(Detail_des_effets!W117-Empilage!W$52*Detail_des_effets!W116)*10^-1,((W$115/Empilage!W$45)*(Detail_des_effets!W117-Empilage!W$52*Detail_des_effets!W116)+Type_piece!$D$6*Empilage!W39+Type_piece!$E$6+Type_piece!$D$7*Empilage!W40+Type_piece!$E$7+(Type_piece!$D$8*Empilage!W41^3)+(Type_piece!$E$8*Empilage!W41^2)+(Type_piece!$F$8*Empilage!W41)+Type_piece!$G$8)*10^-1) -> 0.002 | X118: mm au diamètre | Z118: Déformée radiale | AA118: =IF(COUNTIF(Empilage!AA38,"*1 - Profil cylindrique*"),(AA$115/Empilage!AA$45)*(Detail_des_effets!AA117-Empilage!AA$52*Detail_des_effets!AA116)*10^-1,((AA$115/Empilage!AA$45)*(Detail_des_effets!AA117-Empilage!AA$52*Detail_des_effets!AA116)+Type_piece!$D$6*Empilage!AA39+Type_piece!$E$6+Type_piece!$D$7*Empilage!AA40+Type_piece!$E$7+(Type_piece!$D$8*Empilage!AA41^3)+(Type_piece!$E$8*Empilage!AA41^2)+(Type_piece!$F$8*Empilage!AA41)+Type_piece!$G$8)*10^-1) -> 0.002 | AB118: mm au diamètre | AD118: Déformée radiale | AE118: =IF(COUNTIF(Empilage!AE38,"*1 - Profil cylindrique*"),(AE$115/Empilage!AE$45)*(Detail_des_effets!AE117-Empilage!AE$52*Detail_des_effets!AE116)*10^-1,((AE$115/Empilage!AE$45)*(Detail_des_effets!AE117-Empilage!AE$52*Detail_des_effets!AE116)+Type_piece!$D$6*Empilage!AE39+Type_piece!$E$6+Type_piece!$D$7*Empilage!AE40+Type_piece!$E$7+(Type_piece!$D$8*Empilage!AE41^3)+(Type_piece!$E$8*Empilage!AE41^2)+(Type_piece!$F$8*Empilage!AE41)+Type_piece!$G$8)*10^-1) -> 0.002 | AF118: mm au diamètre | AH118: Déformée radiale | AI118: =IF(COUNTIF(Empilage!AI38,"*1 - Profil cylindrique*"),(AI$115/Empilage!AI$45)*(Detail_des_effets!AI117-Empilage!AI$52*Detail_des_effets!AI116)*10^-1,((AI$115/Empilage!AI$45)*(Detail_des_effets!AI117-Empilage!AI$52*Detail_des_effets!AI116)+Type_piece!$D$6*Empilage!AI39+Type_piece!$E$6+Type_piece!$D$7*Empilage!AI40+Type_piece!$E$7+(Type_piece!$D$8*Empilage!AI41^3)+(Type_piece!$E$8*Empilage!AI41^2)+(Type_piece!$F$8*Empilage!AI41)+Type_piece!$G$8)*10^-1) -> 0.002 | AJ118: mm au diamètre | AL118: Déformée radiale | AM118: =IF(COUNTIF(Empilage!AM38,"*1 - Profil cylindrique*"),(AM$115/Empilage!AM$45)*(Detail_des_effets!AM117-Empilage!AM$52*Detail_des_effets!AM116)*10^-1,((AM$115/Empilage!AM$45)*(Detail_des_effets!AM117-Empilage!AM$52*Detail_des_effets!AM116)+Type_piece!$D$6*Empilage!AM39+Type_piece!$E$6+Type_piece!$D$7*Empilage!AM40+Type_piece!$E$7+(Type_piece!$D$8*Empilage!AM41^3)+(Type_piece!$E$8*Empilage!AM41^2)+(Type_piece!$F$8*Empilage!AM41)+Type_piece!$G$8)*10^-1) -> 0.002 | AN118: mm au diamètre
B119: Effet de la pression seule | F119: Effet de la pression seule | J119: Effet de la pression seule | N119: Effet de la pression seule | R119: Effet de la pression seule | V119: Effet de la pression seule | Z119: Effet de la pression seule | AD119: Effet de la pression seule | AH119: Effet de la pression seule | AL119: Effet de la pression seule
B121: Au niveau du frettage | F121: Au niveau du frettage | J121: Au niveau du frettage | N121: Au niveau du frettage | R121: Au niveau du frettage | V121: Au niveau du frettage | Z121: Au niveau du frettage | AD121: Au niveau du frettage | AH121: Au niveau du frettage | AL121: Au niveau du frettage
B122: Contrainte radiale | C122: =-Empilage!$D$90/10 -> -1 | D122: MPa | F122: Contrainte radiale | G122: =-Empilage!$D$90/10 -> -1 | H122: MPa | J122: Contrainte radiale | K122: =-Empilage!$D$90/10 -> -1 | L122: MPa | N122: Contrainte radiale | O122: =-Empilage!$D$90/10 -> -1 | P122: MPa | R122: Contrainte radiale | S122: =-Empilage!$D$90/10 -> -1 | T122: MPa | V122: Contrainte radiale | W122: =-Empilage!$D$90/10 -> -1 | X122: MPa | Z122: Contrainte radiale | AA122: =-Empilage!$D$90/10 -> -1 | AB122: MPa | AD122: Contrainte radiale | AE122: =-Empilage!$D$90/10 -> -1 | AF122: MPa | AH122: Contrainte radiale | AI122: =-Empilage!$D$90/10 -> -1 | AJ122: MPa | AL122: Contrainte radiale | AM122: =-Empilage!$D$90/10 -> -1 | AN122: MPa
B123: Contrainte tangentielle | C123: =((Empilage!C36^2+Empilage!C35^2)*Empilage!$D$90-2*Empilage!C35^2*Empilage!$D$91)/(Empilage!C35^2-Empilage!C36^2)/10 -> -8 | D123: MPa | F123: Contrainte tangentielle | G123: =((Empilage!G36^2+Empilage!G35^2)*Empilage!$D$90-2*Empilage!G35^2*Empilage!$D$91)/(Empilage!G35^2-Empilage!G36^2)/10 -> -8 | H123: MPa | J123: Contrainte tangentielle | K123: =((Empilage!K36^2+Empilage!K35^2)*Empilage!$D$90-2*Empilage!K35^2*Empilage!$D$91)/(Empilage!K35^2-Empilage!K36^2)/10 -> -8 | L123: MPa | N123: Contrainte tangentielle | O123: =((Empilage!O36^2+Empilage!O35^2)*Empilage!$D$90-2*Empilage!O35^2*Empilage!$D$91)/(Empilage!O35^2-Empilage!O36^2)/10 -> -8 | P123: MPa | R123: Contrainte tangentielle | S123: =((Empilage!S36^2+Empilage!S35^2)*Empilage!$D$90-2*Empilage!S35^2*Empilage!$D$91)/(Empilage!S35^2-Empilage!S36^2)/10 -> -8 | T123: MPa | V123: Contrainte tangentielle | W123: =((Empilage!W36^2+Empilage!W35^2)*Empilage!$D$90-2*Empilage!W35^2*Empilage!$D$91)/(Empilage!W35^2-Empilage!W36^2)/10 -> -8 | X123: MPa | Z123: Contrainte tangentielle | AA123: =((Empilage!AA36^2+Empilage!AA35^2)*Empilage!$D$90-2*Empilage!AA35^2*Empilage!$D$91)/(Empilage!AA35^2-Empilage!AA36^2)/10 -> -8 | AB123: MPa | AD123: Contrainte tangentielle | AE123: =((Empilage!AE36^2+Empilage!AE35^2)*Empilage!$D$90-2*Empilage!AE35^2*Empilage!$D$91)/(Empilage!AE35^2-Empilage!AE36^2)/10 -> -8 | AF123: MPa | AH123: Contrainte tangentielle | AI123: =((Empilage!AI36^2+Empilage!AI35^2)*Empilage!$D$90-2*Empilage!AI35^2*Empilage!$D$91)/(Empilage!AI35^2-Empilage!AI36^2)/10 -> -8 | AJ123: MPa | AL123: Contrainte tangentielle | AM123: =((Empilage!AM36^2+Empilage!AM35^2)*Empilage!$D$90-2*Empilage!AM35^2*Empilage!$D$91)/(Empilage!AM35^2-Empilage!AM36^2)/10 -> -8 | AN123: MPa
B124: Déformée radiale | C124: =(C$125/Empilage!C$45)*(Detail_des_effets!C123-Empilage!C$52*Detail_des_effets!C122)*10^-1 -> -0.001 | D124: mm au diamètre | F124: Déformée radiale | G124: =(G$125/Empilage!G$45)*(Detail_des_effets!G123-Empilage!G$52*Detail_des_effets!G122)*10^-1 -> -0.001 | H124: mm au diamètre | J124: Déformée radiale | K124: =(K$125/Empilage!K$45)*(Detail_des_effets!K123-Empilage!K$52*Detail_des_effets!K122)*10^-1 -> -0.001 | L124: mm au diamètre | N124: Déformée radiale | O124: =(O$125/Empilage!O$45)*(Detail_des_effets!O123-Empilage!O$52*Detail_des_effets!O122)*10^-1 -> -0.001 | P124: mm au diamètre | R124: Déformée radiale | S124: =(S$125/Empilage!S$45)*(Detail_des_effets!S123-Empilage!S$52*Detail_des_effets!S122)*10^-1 -> -0.001 | T124: mm au diamètre | V124: Déformée radiale | W124: =(W$125/Empilage!W$45)*(Detail_des_effets!W123-Empilage!W$52*Detail_des_effets!W122)*10^-1 -> -0.001 | X124: mm au diamètre | Z124: Déformée radiale | AA124: =(AA$125/Empilage!AA$45)*(Detail_des_effets!AA123-Empilage!AA$52*Detail_des_effets!AA122)*10^-1 -> -0.001 | AB124: mm au diamètre | AD124: Déformée radiale | AE124: =(AE$125/Empilage!AE$45)*(Detail_des_effets!AE123-Empilage!AE$52*Detail_des_effets!AE122)*10^-1 -> -0.001 | AF124: mm au diamètre | AH124: Déformée radiale | AI124: =(AI$125/Empilage!AI$45)*(Detail_des_effets!AI123-Empilage!AI$52*Detail_des_effets!AI122)*10^-1 -> -0.001 | AJ124: mm au diamètre | AL124: Déformée radiale | AM124: =(AM$125/Empilage!AM$45)*(Detail_des_effets!AM123-Empilage!AM$52*Detail_des_effets!AM122)*10^-1 -> -0.001 | AN124: mm au diamètre
B125: Dans la pièce, au diamètre particulier | C125: =Empilage!C$37 -> 29.00 | D125: mm | F125: Dans la pièce, au diamètre particulier | G125: =Empilage!G$37 -> 29.00 | H125: mm | J125: Dans la pièce, au diamètre particulier | K125: =Empilage!K$37 -> 29.00 | L125: mm | N125: Dans la pièce, au diamètre particulier | O125: =Empilage!O$37 -> 29.00 | P125: mm | R125: Dans la pièce, au diamètre particulier | S125: =Empilage!S$37 -> 29.00 | T125: mm | V125: Dans la pièce, au diamètre particulier | W125: =Empilage!W$37 -> 29.00 | X125: mm | Z125: Dans la pièce, au diamètre particulier | AA125: =Empilage!AA$37 -> 29.00 | AB125: mm | AD125: Dans la pièce, au diamètre particulier | AE125: =Empilage!AE$37 -> 29.00 | AF125: mm | AH125: Dans la pièce, au diamètre particulier | AI125: =Empilage!AI$37 -> 29.00 | AJ125: mm | AL125: Dans la pièce, au diamètre particulier | AM125: =Empilage!AM$37 -> 29.00 | AN125: mm
B126: Contrainte radiale | C126: =(C$125^2*(Empilage!C36^2*Empilage!$D$90-Empilage!C35^2*Empilage!$D$91)-(Empilage!$D$90-Empilage!$D$91)*Empilage!C36^2*Empilage!C35^2)/(Detail_des_effets!C$125^2*(Empilage!C35^2-Empilage!C36^2))/10 -> -2 | D126: MPa | F126: Contrainte radiale | G126: =(G$125^2*(Empilage!G36^2*Empilage!$D$90-Empilage!G35^2*Empilage!$D$91)-(Empilage!$D$90-Empilage!$D$91)*Empilage!G36^2*Empilage!G35^2)/(Detail_des_effets!G$125^2*(Empilage!G35^2-Empilage!G36^2))/10 -> -2 | H126: MPa | J126: Contrainte radiale | K126: =(K$125^2*(Empilage!K36^2*Empilage!$D$90-Empilage!K35^2*Empilage!$D$91)-(Empilage!$D$90-Empilage!$D$91)*Empilage!K36^2*Empilage!K35^2)/(Detail_des_effets!K$125^2*(Empilage!K35^2-Empilage!K36^2))/10 -> -2 | L126: MPa | N126: Contrainte radiale | O126: =(O$125^2*(Empilage!O36^2*Empilage!$D$90-Empilage!O35^2*Empilage!$D$91)-(Empilage!$D$90-Empilage!$D$91)*Empilage!O36^2*Empilage!O35^2)/(Detail_des_effets!O$125^2*(Empilage!O35^2-Empilage!O36^2))/10 -> -2 | P126: MPa | R126: Contrainte radiale | S126: =(S$125^2*(Empilage!S36^2*Empilage!$D$90-Empilage!S35^2*Empilage!$D$91)-(Empilage!$D$90-Empilage!$D$91)*Empilage!S36^2*Empilage!S35^2)/(Detail_des_effets!S$125^2*(Empilage!S35^2-Empilage!S36^2))/10 -> -2 | T126: MPa | V126: Contrainte radiale | W126: =(W$125^2*(Empilage!W36^2*Empilage!$D$90-Empilage!W35^2*Empilage!$D$91)-(Empilage!$D$90-Empilage!$D$91)*Empilage!W36^2*Empilage!W35^2)/(Detail_des_effets!W$125^2*(Empilage!W35^2-Empilage!W36^2))/10 -> -2 | X126: MPa | Z126: Contrainte radiale | AA126: =(AA$125^2*(Empilage!AA36^2*Empilage!$D$90-Empilage!AA35^2*Empilage!$D$91)-(Empilage!$D$90-Empilage!$D$91)*Empilage!AA36^2*Empilage!AA35^2)/(Detail_des_effets!AA$125^2*(Empilage!AA35^2-Empilage!AA36^2))/10 -> -2 | AB126: MPa | AD126: Contrainte radiale | AE126: =(AE$125^2*(Empilage!AE36^2*Empilage!$D$90-Empilage!AE35^2*Empilage!$D$91)-(Empilage!$D$90-Empilage!$D$91)*Empilage!AE36^2*Empilage!AE35^2)/(Detail_des_effets!AE$125^2*(Empilage!AE35^2-Empilage!AE36^2))/10 -> -2 | AF126: MPa | AH126: Contrainte radiale | AI126: =(AI$125^2*(Empilage!AI36^2*Empilage!$D$90-Empilage!AI35^2*Empilage!$D$91)-(Empilage!$D$90-Empilage!$D$91)*Empilage!AI36^2*Empilage!AI35^2)/(Detail_des_effets!AI$125^2*(Empilage!AI35^2-Empilage!AI36^2))/10 -> -2 | AJ126: MPa | AL126: Contrainte radiale | AM126: =(AM$125^2*(Empilage!AM36^2*Empilage!$D$90-Empilage!AM35^2*Empilage!$D$91)-(Empilage!$D$90-Empilage!$D$91)*Empilage!AM36^2*Empilage!AM35^2)/(Detail_des_effets!AM$125^2*(Empilage!AM35^2-Empilage!AM36^2))/10 -> -2 | AN126: MPa
B127: Contrainte tangentielle | C127: =(C$125^2*(Empilage!C36^2*Empilage!$D$90-Empilage!C35^2*Empilage!$D$91)+(Empilage!$D$90-Empilage!$D$91)*Empilage!C36^2*Empilage!C35^2)/Detail_des_effets!C$125^2/(Empilage!C35^2-Empilage!C36^2)/10 -> -7 | D127: MPa | F127: Contrainte tangentielle | G127: =(G$125^2*(Empilage!G36^2*Empilage!$D$90-Empilage!G35^2*Empilage!$D$91)+(Empilage!$D$90-Empilage!$D$91)*Empilage!G36^2*Empilage!G35^2)/Detail_des_effets!G$125^2/(Empilage!G35^2-Empilage!G36^2)/10 -> -7 | H127: MPa | J127: Contrainte tangentielle | K127: =(K$125^2*(Empilage!K36^2*Empilage!$D$90-Empilage!K35^2*Empilage!$D$91)+(Empilage!$D$90-Empilage!$D$91)*Empilage!K36^2*Empilage!K35^2)/Detail_des_effets!K$125^2/(Empilage!K35^2-Empilage!K36^2)/10 -> -7 | L127: MPa | N127: Contrainte tangentielle | O127: =(O$125^2*(Empilage!O36^2*Empilage!$D$90-Empilage!O35^2*Empilage!$D$91)+(Empilage!$D$90-Empilage!$D$91)*Empilage!O36^2*Empilage!O35^2)/Detail_des_effets!O$125^2/(Empilage!O35^2-Empilage!O36^2)/10 -> -7 | P127: MPa | R127: Contrainte tangentielle | S127: =(S$125^2*(Empilage!S36^2*Empilage!$D$90-Empilage!S35^2*Empilage!$D$91)+(Empilage!$D$90-Empilage!$D$91)*Empilage!S36^2*Empilage!S35^2)/Detail_des_effets!S$125^2/(Empilage!S35^2-Empilage!S36^2)/10 -> -7 | T127: MPa | V127: Contrainte tangentielle | W127: =(W$125^2*(Empilage!W36^2*Empilage!$D$90-Empilage!W35^2*Empilage!$D$91)+(Empilage!$D$90-Empilage!$D$91)*Empilage!W36^2*Empilage!W35^2)/Detail_des_effets!W$125^2/(Empilage!W35^2-Empilage!W36^2)/10 -> -7 | X127: MPa | Z127: Contrainte tangentielle | AA127: =(AA$125^2*(Empilage!AA36^2*Empilage!$D$90-Empilage!AA35^2*Empilage!$D$91)+(Empilage!$D$90-Empilage!$D$91)*Empilage!AA36^2*Empilage!AA35^2)/Detail_des_effets!AA$125^2/(Empilage!AA35^2-Empilage!AA36^2)/10 -> -7 | AB127: MPa | AD127: Contrainte tangentielle | AE127: =(AE$125^2*(Empilage!AE36^2*Empilage!$D$90-Empilage!AE35^2*Empilage!$D$91)+(Empilage!$D$90-Empilage!$D$91)*Empilage!AE36^2*Empilage!AE35^2)/Detail_des_effets!AE$125^2/(Empilage!AE35^2-Empilage!AE36^2)/10 -> -7 | AF127: MPa | AH127: Contrainte tangentielle | AI127: =(AI$125^2*(Empilage!AI36^2*Empilage!$D$90-Empilage!AI35^2*Empilage!$D$91)+(Empilage!$D$90-Empilage!$D$91)*Empilage!AI36^2*Empilage!AI35^2)/Detail_des_effets!AI$125^2/(Empilage!AI35^2-Empilage!AI36^2)/10 -> -7 | AJ127: MPa | AL127: Contrainte tangentielle | AM127: =(AM$125^2*(Empilage!AM36^2*Empilage!$D$90-Empilage!AM35^2*Empilage!$D$91)+(Empilage!$D$90-Empilage!$D$91)*Empilage!AM36^2*Empilage!AM35^2)/Detail_des_effets!AM$125^2/(Empilage!AM35^2-Empilage!AM36^2)/10 -> -7 | AN127: MPa
B128: Déformée radiale | C128: =(C$125/Empilage!C$45)*(Detail_des_effets!C127-Empilage!C$52*Detail_des_effets!C126)*10^-1 -> -0.001 | D128: mm au diamètre | F128: Déformée radiale | G128: =(G$125/Empilage!G$45)*(Detail_des_effets!G127-Empilage!G$52*Detail_des_effets!G126)*10^-1 -> -0.001 | H128: mm au diamètre | J128: Déformée radiale | K128: =(K$125/Empilage!K$45)*(Detail_des_effets!K127-Empilage!K$52*Detail_des_effets!K126)*10^-1 -> -0.001 | L128: mm au diamètre | N128: Déformée radiale | O128: =(O$125/Empilage!O$45)*(Detail_des_effets!O127-Empilage!O$52*Detail_des_effets!O126)*10^-1 -> -0.001 | P128: mm au diamètre | R128: Déformée radiale | S128: =(S$125/Empilage!S$45)*(Detail_des_effets!S127-Empilage!S$52*Detail_des_effets!S126)*10^-1 -> -0.001 | T128: mm au diamètre | V128: Déformée radiale | W128: =(W$125/Empilage!W$45)*(Detail_des_effets!W127-Empilage!W$52*Detail_des_effets!W126)*10^-1 -> -0.001 | X128: mm au diamètre | Z128: Déformée radiale | AA128: =(AA$125/Empilage!AA$45)*(Detail_des_effets!AA127-Empilage!AA$52*Detail_des_effets!AA126)*10^-1 -> -0.001 | AB128: mm au diamètre | AD128: Déformée radiale | AE128: =(AE$125/Empilage!AE$45)*(Detail_des_effets!AE127-Empilage!AE$52*Detail_des_effets!AE126)*10^-1 -> -0.001 | AF128: mm au diamètre | AH128: Déformée radiale | AI128: =(AI$125/Empilage!AI$45)*(Detail_des_effets!AI127-Empilage!AI$52*Detail_des_effets!AI126)*10^-1 -> -0.001 | AJ128: mm au diamètre | AL128: Déformée radiale | AM128: =(AM$125/Empilage!AM$45)*(Detail_des_effets!AM127-Empilage!AM$52*Detail_des_effets!AM126)*10^-1 -> -0.001 | AN128: mm au diamètre
B129: Effet de l'effort axial seul en montage | F129: Effet de l'effort axial seul en montage | J129: Effet de l'effort axial seul en montage | N129: Effet de l'effort axial seul en montage | R129: Effet de l'effort axial seul en montage | V129: Effet de l'effort axial seul en montage | Z129: Effet de l'effort axial seul en montage | AD129: Effet de l'effort axial seul en montage | AH129: Effet de l'effort axial seul en montage | AL129: Effet de l'effort axial seul en montage
B131: Au niveau du frettage | F131: Au niveau du frettage | J131: Au niveau du frettage | N131: Au niveau du frettage | R131: Au niveau du frettage | V131: Au niveau du frettage | Z131: Au niveau du frettage | AD131: Au niveau du frettage | AH131: Au niveau du frettage | AL131: Au niveau du frettage
B132: Contrainte axiale | C132: =Empilage!$D$92*10/((PI()/4)*(Empilage!C$35^2-Empilage!C$36^2)) -> 278 | D132: MPa | F132: Contrainte axiale | G132: =Empilage!$D$92*10/((PI()/4)*(Empilage!G$35^2-Empilage!G$36^2)) -> 278 | H132: MPa | J132: Contrainte axiale | K132: =Empilage!$D$92*10/((PI()/4)*(Empilage!K$35^2-Empilage!K$36^2)) -> 278 | L132: MPa | N132: Contrainte axiale | O132: =Empilage!$D$92*10/((PI()/4)*(Empilage!O$35^2-Empilage!O$36^2)) -> 278 | P132: MPa | R132: Contrainte axiale | S132: =Empilage!$D$92*10/((PI()/4)*(Empilage!S$35^2-Empilage!S$36^2)) -> 278 | T132: MPa | V132: Contrainte axiale | W132: =Empilage!$D$92*10/((PI()/4)*(Empilage!W$35^2-Empilage!W$36^2)) -> 278 | X132: MPa | Z132: Contrainte axiale | AA132: =Empilage!$D$92*10/((PI()/4)*(Empilage!AA$35^2-Empilage!AA$36^2)) -> 278 | AB132: MPa | AD132: Contrainte axiale | AE132: =Empilage!$D$92*10/((PI()/4)*(Empilage!AE$35^2-Empilage!AE$36^2)) -> 278 | AF132: MPa | AH132: Contrainte axiale | AI132: =Empilage!$D$92*10/((PI()/4)*(Empilage!AI$35^2-Empilage!AI$36^2)) -> 278 | AJ132: MPa | AL132: Contrainte axiale | AM132: =Empilage!$D$92*10/((PI()/4)*(Empilage!AM$35^2-Empilage!AM$36^2)) -> 278 | AN132: MPa
B133: Déformée axiale | C133: =C$132/Empilage!C$43*Empilage!C$33*10^-1 -> 0.071 | D133: mm | F133: Déformée axiale | G133: =G$132/Empilage!G$43*Empilage!G$33*10^-1 -> 0.071 | H133: mm | J133: Déformée axiale | K133: =K$132/Empilage!K$43*Empilage!K$33*10^-1 -> 0.071 | L133: mm | N133: Déformée axiale | O133: =O$132/Empilage!O$43*Empilage!O$33*10^-1 -> 0.071 | P133: mm | R133: Déformée axiale | S133: =S$132/Empilage!S$43*Empilage!S$33*10^-1 -> 0.071 | T133: mm | V133: Déformée axiale | W133: =W$132/Empilage!W$43*Empilage!W$33*10^-1 -> 0.071 | X133: mm | Z133: Déformée axiale | AA133: =AA$132/Empilage!AA$43*Empilage!AA$33*10^-1 -> 0.071 | AB133: mm | AD133: Déformée axiale | AE133: =AE$132/Empilage!AE$43*Empilage!AE$33*10^-1 -> 0.071 | AF133: mm | AH133: Déformée axiale | AI133: =AI$132/Empilage!AI$43*Empilage!AI$33*10^-1 -> 0.071 | AJ133: mm | AL133: Déformée axiale | AM133: =AM$132/Empilage!AM$43*Empilage!AM$33*10^-1 -> 0.071 | AN133: mm
B134: Déformée radiale | C134: =-Empilage!C$52/Empilage!C$43*Empilage!C35*Detail_des_effets!C132*10^-1 -> -0.011 | D134: mm au diamètre | F134: Déformée radiale | G134: =-Empilage!G$52/Empilage!G$43*Empilage!G35*Detail_des_effets!G132*10^-1 -> -0.011 | H134: mm au diamètre | J134: Déformée radiale | K134: =-Empilage!K$52/Empilage!K$43*Empilage!K35*Detail_des_effets!K132*10^-1 -> -0.011 | L134: mm au diamètre | N134: Déformée radiale | O134: =-Empilage!O$52/Empilage!O$43*Empilage!O35*Detail_des_effets!O132*10^-1 -> -0.011 | P134: mm au diamètre | R134: Déformée radiale | S134: =-Empilage!S$52/Empilage!S$43*Empilage!S35*Detail_des_effets!S132*10^-1 -> -0.011 | T134: mm au diamètre | V134: Déformée radiale | W134: =-Empilage!W$52/Empilage!W$43*Empilage!W35*Detail_des_effets!W132*10^-1 -> -0.011 | X134: mm au diamètre | Z134: Déformée radiale | AA134: =-Empilage!AA$52/Empilage!AA$43*Empilage!AA35*Detail_des_effets!AA132*10^-1 -> -0.011 | AB134: mm au diamètre | AD134: Déformée radiale | AE134: =-Empilage!AE$52/Empilage!AE$43*Empilage!AE35*Detail_des_effets!AE132*10^-1 -> -0.011 | AF134: mm au diamètre | AH134: Déformée radiale | AI134: =-Empilage!AI$52/Empilage!AI$43*Empilage!AI35*Detail_des_effets!AI132*10^-1 -> -0.011 | AJ134: mm au diamètre | AL134: Déformée radiale | AM134: =-Empilage!AM$52/Empilage!AM$43*Empilage!AM35*Detail_des_effets!AM132*10^-1 -> -0.011 | AN134: mm au diamètre
B135: Dans la pièce, au diamètre particulier | C135: =Empilage!C$37 -> 29.00 | D135: mm | F135: Dans la pièce, au diamètre particulier | G135: =Empilage!G$37 -> 29.00 | H135: mm | J135: Dans la pièce, au diamètre particulier | K135: =Empilage!K$37 -> 29.00 | L135: mm | N135: Dans la pièce, au diamètre particulier | O135: =Empilage!O$37 -> 29.00 | P135: mm | R135: Dans la pièce, au diamètre particulier | S135: =Empilage!S$37 -> 29.00 | T135: mm | V135: Dans la pièce, au diamètre particulier | W135: =Empilage!W$37 -> 29.00 | X135: mm | Z135: Dans la pièce, au diamètre particulier | AA135: =Empilage!AA$37 -> 29.00 | AB135: mm | AD135: Dans la pièce, au diamètre particulier | AE135: =Empilage!AE$37 -> 29.00 | AF135: mm | AH135: Dans la pièce, au diamètre particulier | AI135: =Empilage!AI$37 -> 29.00 | AJ135: mm | AL135: Dans la pièce, au diamètre particulier | AM135: =Empilage!AM$37 -> 29.00 | AN135: mm
B136: Contrainte axiale | C136: =Empilage!$D$92*10/((PI()/4)*(Empilage!C$35^2-Empilage!C$36^2)) -> 278 | D136: MPa | F136: Contrainte axiale | G136: =Empilage!$D$92*10/((PI()/4)*(Empilage!G$35^2-Empilage!G$36^2)) -> 278 | H136: MPa | J136: Contrainte axiale | K136: =Empilage!$D$92*10/((PI()/4)*(Empilage!K$35^2-Empilage!K$36^2)) -> 278 | L136: MPa | N136: Contrainte axiale | O136: =Empilage!$D$92*10/((PI()/4)*(Empilage!O$35^2-Empilage!O$36^2)) -> 278 | P136: MPa | R136: Contrainte axiale | S136: =Empilage!$D$92*10/((PI()/4)*(Empilage!S$35^2-Empilage!S$36^2)) -> 278 | T136: MPa | V136: Contrainte axiale | W136: =Empilage!$D$92*10/((PI()/4)*(Empilage!W$35^2-Empilage!W$36^2)) -> 278 | X136: MPa | Z136: Contrainte axiale | AA136: =Empilage!$D$92*10/((PI()/4)*(Empilage!AA$35^2-Empilage!AA$36^2)) -> 278 | AB136: MPa | AD136: Contrainte axiale | AE136: =Empilage!$D$92*10/((PI()/4)*(Empilage!AE$35^2-Empilage!AE$36^2)) -> 278 | AF136: MPa | AH136: Contrainte axiale | AI136: =Empilage!$D$92*10/((PI()/4)*(Empilage!AI$35^2-Empilage!AI$36^2)) -> 278 | AJ136: MPa | AL136: Contrainte axiale | AM136: =Empilage!$D$92*10/((PI()/4)*(Empilage!AM$35^2-Empilage!AM$36^2)) -> 278 | AN136: MPa
B137: Déformée axiale | C137: =C$132/Empilage!C$43*Empilage!C$33*10^-1 -> 0.071 | D137: mm | F137: Déformée axiale | G137: =G$132/Empilage!G$43*Empilage!G$33*10^-1 -> 0.071 | H137: mm | J137: Déformée axiale | K137: =K$132/Empilage!K$43*Empilage!K$33*10^-1 -> 0.071 | L137: mm | N137: Déformée axiale | O137: =O$132/Empilage!O$43*Empilage!O$33*10^-1 -> 0.071 | P137: mm | R137: Déformée axiale | S137: =S$132/Empilage!S$43*Empilage!S$33*10^-1 -> 0.071 | T137: mm | V137: Déformée axiale | W137: =W$132/Empilage!W$43*Empilage!W$33*10^-1 -> 0.071 | X137: mm | Z137: Déformée axiale | AA137: =AA$132/Empilage!AA$43*Empilage!AA$33*10^-1 -> 0.071 | AB137: mm | AD137: Déformée axiale | AE137: =AE$132/Empilage!AE$43*Empilage!AE$33*10^-1 -> 0.071 | AF137: mm | AH137: Déformée axiale | AI137: =AI$132/Empilage!AI$43*Empilage!AI$33*10^-1 -> 0.071 | AJ137: mm | AL137: Déformée axiale | AM137: =AM$132/Empilage!AM$43*Empilage!AM$33*10^-1 -> 0.071 | AN137: mm
B138: Déformée radiale | C138: =-Empilage!C$52/Empilage!C$43*C135*Detail_des_effets!C136*10^-1 -> -0.011 | D138: mm au diamètre | F138: Déformée radiale | G138: =-Empilage!G$52/Empilage!G$43*G135*Detail_des_effets!G136*10^-1 -> -0.011 | H138: mm au diamètre | J138: Déformée radiale | K138: =-Empilage!K$52/Empilage!K$43*K135*Detail_des_effets!K136*10^-1 -> -0.011 | L138: mm au diamètre | N138: Déformée radiale | O138: =-Empilage!O$52/Empilage!O$43*O135*Detail_des_effets!O136*10^-1 -> -0.011 | P138: mm au diamètre | R138: Déformée radiale | S138: =-Empilage!S$52/Empilage!S$43*S135*Detail_des_effets!S136*10^-1 -> -0.011 | T138: mm au diamètre | V138: Déformée radiale | W138: =-Empilage!W$52/Empilage!W$43*W135*Detail_des_effets!W136*10^-1 -> -0.011 | X138: mm au diamètre | Z138: Déformée radiale | AA138: =-Empilage!AA$52/Empilage!AA$43*AA135*Detail_des_effets!AA136*10^-1 -> -0.011 | AB138: mm au diamètre | AD138: Déformée radiale | AE138: =-Empilage!AE$52/Empilage!AE$43*AE135*Detail_des_effets!AE136*10^-1 -> -0.011 | AF138: mm au diamètre | AH138: Déformée radiale | AI138: =-Empilage!AI$52/Empilage!AI$43*AI135*Detail_des_effets!AI136*10^-1 -> -0.011 | AJ138: mm au diamètre | AL138: Déformée radiale | AM138: =-Empilage!AM$52/Empilage!AM$43*AM135*Detail_des_effets!AM136*10^-1 -> -0.011 | AN138: mm au diamètre
B139: Effet de l'effort axial seul en mise en froid | F139: Effet de l'effort axial seul en mise en froid | J139: Effet de l'effort axial seul en mise en froid | N139: Effet de l'effort axial seul en mise en froid | R139: Effet de l'effort axial seul en mise en froid | V139: Effet de l'effort axial seul en mise en froid | Z139: Effet de l'effort axial seul en mise en froid | AD139: Effet de l'effort axial seul en mise en froid | AH139: Effet de l'effort axial seul en mise en froid | AL139: Effet de l'effort axial seul en mise en froid
B141: Au niveau du frettage | F141: Au niveau du frettage | J141: Au niveau du frettage | N141: Au niveau du frettage | R141: Au niveau du frettage | V141: Au niveau du frettage | Z141: Au niveau du frettage | AD141: Au niveau du frettage | AH141: Au niveau du frettage | AL141: Au niveau du frettage
B142: Contrainte axiale | C142: =Empilage!$D$92*10/((PI()/4)*(Empilage!C$35^2-Empilage!C$36^2)) -> 278 | D142: MPa | F142: Contrainte axiale | G142: =Empilage!$D$92*10/((PI()/4)*(Empilage!G$35^2-Empilage!G$36^2)) -> 278 | H142: MPa | J142: Contrainte axiale | K142: =Empilage!$D$92*10/((PI()/4)*(Empilage!K$35^2-Empilage!K$36^2)) -> 278 | L142: MPa | N142: Contrainte axiale | O142: =Empilage!$D$92*10/((PI()/4)*(Empilage!O$35^2-Empilage!O$36^2)) -> 278 | P142: MPa | R142: Contrainte axiale | S142: =Empilage!$D$92*10/((PI()/4)*(Empilage!S$35^2-Empilage!S$36^2)) -> 278 | T142: MPa | V142: Contrainte axiale | W142: =Empilage!$D$92*10/((PI()/4)*(Empilage!W$35^2-Empilage!W$36^2)) -> 278 | X142: MPa | Z142: Contrainte axiale | AA142: =Empilage!$D$92*10/((PI()/4)*(Empilage!AA$35^2-Empilage!AA$36^2)) -> 278 | AB142: MPa | AD142: Contrainte axiale | AE142: =Empilage!$D$92*10/((PI()/4)*(Empilage!AE$35^2-Empilage!AE$36^2)) -> 278 | AF142: MPa | AH142: Contrainte axiale | AI142: =Empilage!$D$92*10/((PI()/4)*(Empilage!AI$35^2-Empilage!AI$36^2)) -> 278 | AJ142: MPa | AL142: Contrainte axiale | AM142: =Empilage!$D$92*10/((PI()/4)*(Empilage!AM$35^2-Empilage!AM$36^2)) -> 278 | AN142: MPa
B143: Déformée axiale | C143: =C$142/Empilage!C$44*Empilage!C$33*10^-1 -> 0.066 | D143: mm | F143: Déformée axiale | G143: =G$142/Empilage!G$44*Empilage!G$33*10^-1 -> 0.066 | H143: mm | J143: Déformée axiale | K143: =K$142/Empilage!K$44*Empilage!K$33*10^-1 -> 0.066 | L143: mm | N143: Déformée axiale | O143: =O$142/Empilage!O$44*Empilage!O$33*10^-1 -> 0.066 | P143: mm | R143: Déformée axiale | S143: =S$142/Empilage!S$44*Empilage!S$33*10^-1 -> 0.066 | T143: mm | V143: Déformée axiale | W143: =W$142/Empilage!W$44*Empilage!W$33*10^-1 -> 0.066 | X143: mm | Z143: Déformée axiale | AA143: =AA$142/Empilage!AA$44*Empilage!AA$33*10^-1 -> 0.066 | AB143: mm | AD143: Déformée axiale | AE143: =AE$142/Empilage!AE$44*Empilage!AE$33*10^-1 -> 0.066 | AF143: mm | AH143: Déformée axiale | AI143: =AI$142/Empilage!AI$44*Empilage!AI$33*10^-1 -> 0.066 | AJ143: mm | AL143: Déformée axiale | AM143: =AM$142/Empilage!AM$44*Empilage!AM$33*10^-1 -> 0.066 | AN143: mm
B144: Déformée radiale | C144: =-Empilage!C$52/Empilage!C$44*Empilage!C35*Detail_des_effets!C142*10^-1 -> -0.011 | D144: mm au diamètre | F144: Déformée radiale | G144: =-Empilage!G$52/Empilage!G$44*Empilage!G35*Detail_des_effets!G142*10^-1 -> -0.011 | H144: mm au diamètre | J144: Déformée radiale | K144: =-Empilage!K$52/Empilage!K$44*Empilage!K35*Detail_des_effets!K142*10^-1 -> -0.011 | L144: mm au diamètre | N144: Déformée radiale | O144: =-Empilage!O$52/Empilage!O$44*Empilage!O35*Detail_des_effets!O142*10^-1 -> -0.011 | P144: mm au diamètre | R144: Déformée radiale | S144: =-Empilage!S$52/Empilage!S$44*Empilage!S35*Detail_des_effets!S142*10^-1 -> -0.011 | T144: mm au diamètre | V144: Déformée radiale | W144: =-Empilage!W$52/Empilage!W$44*Empilage!W35*Detail_des_effets!W142*10^-1 -> -0.011 | X144: mm au diamètre | Z144: Déformée radiale | AA144: =-Empilage!AA$52/Empilage!AA$44*Empilage!AA35*Detail_des_effets!AA142*10^-1 -> -0.011 | AB144: mm au diamètre | AD144: Déformée radiale | AE144: =-Empilage!AE$52/Empilage!AE$44*Empilage!AE35*Detail_des_effets!AE142*10^-1 -> -0.011 | AF144: mm au diamètre | AH144: Déformée radiale | AI144: =-Empilage!AI$52/Empilage!AI$44*Empilage!AI35*Detail_des_effets!AI142*10^-1 -> -0.011 | AJ144: mm au diamètre | AL144: Déformée radiale | AM144: =-Empilage!AM$52/Empilage!AM$44*Empilage!AM35*Detail_des_effets!AM142*10^-1 -> -0.011 | AN144: mm au diamètre
B145: Dans la pièce, au diamètre particulier | C145: =Empilage!C$37 -> 29.00 | D145: mm | F145: Dans la pièce, au diamètre particulier | G145: =Empilage!G$37 -> 29.00 | H145: mm | J145: Dans la pièce, au diamètre particulier | K145: =Empilage!K$37 -> 29.00 | L145: mm | N145: Dans la pièce, au diamètre particulier | O145: =Empilage!O$37 -> 29.00 | P145: mm | R145: Dans la pièce, au diamètre particulier | S145: =Empilage!S$37 -> 29.00 | T145: mm | V145: Dans la pièce, au diamètre particulier | W145: =Empilage!W$37 -> 29.00 | X145: mm | Z145: Dans la pièce, au diamètre particulier | AA145: =Empilage!AA$37 -> 29.00 | AB145: mm | AD145: Dans la pièce, au diamètre particulier | AE145: =Empilage!AE$37 -> 29.00 | AF145: mm | AH145: Dans la pièce, au diamètre particulier | AI145: =Empilage!AI$37 -> 29.00 | AJ145: mm | AL145: Dans la pièce, au diamètre particulier | AM145: =Empilage!AM$37 -> 29.00 | AN145: mm
B146: Contrainte axiale | C146: =Empilage!$D$92*10/((PI()/4)*(Empilage!C$35^2-Empilage!C$36^2)) -> 278 | D146: MPa | F146: Contrainte axiale | G146: =Empilage!$D$92*10/((PI()/4)*(Empilage!G$35^2-Empilage!G$36^2)) -> 278 | H146: MPa | J146: Contrainte axiale | K146: =Empilage!$D$92*10/((PI()/4)*(Empilage!K$35^2-Empilage!K$36^2)) -> 278 | L146: MPa | N146: Contrainte axiale | O146: =Empilage!$D$92*10/((PI()/4)*(Empilage!O$35^2-Empilage!O$36^2)) -> 278 | P146: MPa | R146: Contrainte axiale | S146: =Empilage!$D$92*10/((PI()/4)*(Empilage!S$35^2-Empilage!S$36^2)) -> 278 | T146: MPa | V146: Contrainte axiale | W146: =Empilage!$D$92*10/((PI()/4)*(Empilage!W$35^2-Empilage!W$36^2)) -> 278 | X146: MPa | Z146: Contrainte axiale | AA146: =Empilage!$D$92*10/((PI()/4)*(Empilage!AA$35^2-Empilage!AA$36^2)) -> 278 | AB146: MPa | AD146: Contrainte axiale | AE146: =Empilage!$D$92*10/((PI()/4)*(Empilage!AE$35^2-Empilage!AE$36^2)) -> 278 | AF146: MPa | AH146: Contrainte axiale | AI146: =Empilage!$D$92*10/((PI()/4)*(Empilage!AI$35^2-Empilage!AI$36^2)) -> 278 | AJ146: MPa | AL146: Contrainte axiale | AM146: =Empilage!$D$92*10/((PI()/4)*(Empilage!AM$35^2-Empilage!AM$36^2)) -> 278 | AN146: MPa
B147: Déformée axiale | C147: =C$146/Empilage!C$44*Empilage!C$33*10^-1 -> 0.066 | D147: mm | F147: Déformée axiale | G147: =G$146/Empilage!G$44*Empilage!G$33*10^-1 -> 0.066 | H147: mm | J147: Déformée axiale | K147: =K$146/Empilage!K$44*Empilage!K$33*10^-1 -> 0.066 | L147: mm | N147: Déformée axiale | O147: =O$146/Empilage!O$44*Empilage!O$33*10^-1 -> 0.066 | P147: mm | R147: Déformée axiale | S147: =S$146/Empilage!S$44*Empilage!S$33*10^-1 -> 0.066 | T147: mm | V147: Déformée axiale | W147: =W$146/Empilage!W$44*Empilage!W$33*10^-1 -> 0.066 | X147: mm | Z147: Déformée axiale | AA147: =AA$146/Empilage!AA$44*Empilage!AA$33*10^-1 -> 0.066 | AB147: mm | AD147: Déformée axiale | AE147: =AE$146/Empilage!AE$44*Empilage!AE$33*10^-1 -> 0.066 | AF147: mm | AH147: Déformée axiale | AI147: =AI$146/Empilage!AI$44*Empilage!AI$33*10^-1 -> 0.066 | AJ147: mm | AL147: Déformée axiale | AM147: =AM$146/Empilage!AM$44*Empilage!AM$33*10^-1 -> 0.066 | AN147: mm
B148: Déformée radiale | C148: =-Empilage!C$52/Empilage!C$44*C145*Detail_des_effets!C146*10^-1 -> -0.010 | D148: mm au diamètre | F148: Déformée radiale | G148: =-Empilage!G$52/Empilage!G$44*G145*Detail_des_effets!G146*10^-1 -> -0.010 | H148: mm au diamètre | J148: Déformée radiale | K148: =-Empilage!K$52/Empilage!K$44*K145*Detail_des_effets!K146*10^-1 -> -0.010 | L148: mm au diamètre | N148: Déformée radiale | O148: =-Empilage!O$52/Empilage!O$44*O145*Detail_des_effets!O146*10^-1 -> -0.010 | P148: mm au diamètre | R148: Déformée radiale | S148: =-Empilage!S$52/Empilage!S$44*S145*Detail_des_effets!S146*10^-1 -> -0.010 | T148: mm au diamètre | V148: Déformée radiale | W148: =-Empilage!W$52/Empilage!W$44*W145*Detail_des_effets!W146*10^-1 -> -0.010 | X148: mm au diamètre | Z148: Déformée radiale | AA148: =-Empilage!AA$52/Empilage!AA$44*AA145*Detail_des_effets!AA146*10^-1 -> -0.010 | AB148: mm au diamètre | AD148: Déformée radiale | AE148: =-Empilage!AE$52/Empilage!AE$44*AE145*Detail_des_effets!AE146*10^-1 -> -0.010 | AF148: mm au diamètre | AH148: Déformée radiale | AI148: =-Empilage!AI$52/Empilage!AI$44*AI145*Detail_des_effets!AI146*10^-1 -> -0.010 | AJ148: mm au diamètre | AL148: Déformée radiale | AM148: =-Empilage!AM$52/Empilage!AM$44*AM145*Detail_des_effets!AM146*10^-1 -> -0.010 | AN148: mm au diamètre
B149: Effet de l'effort axial seul en fonctionnement | F149: Effet de l'effort axial seul en fonctionnement | J149: Effet de l'effort axial seul en fonctionnement | N149: Effet de l'effort axial seul en fonctionnement | R149: Effet de l'effort axial seul en fonctionnement | V149: Effet de l'effort axial seul en fonctionnement | Z149: Effet de l'effort axial seul en fonctionnement | AD149: Effet de l'effort axial seul en fonctionnement | AH149: Effet de l'effort axial seul en fonctionnement | AL149: Effet de l'effort axial seul en fonctionnement
B151: Au niveau du frettage | F151: Au niveau du frettage | J151: Au niveau du frettage | N151: Au niveau du frettage | R151: Au niveau du frettage | V151: Au niveau du frettage | Z151: Au niveau du frettage | AD151: Au niveau du frettage | AH151: Au niveau du frettage | AL151: Au niveau du frettage
B152: Contrainte axiale | C152: =Empilage!$D$92*10/((PI()/4)*(Empilage!C$35^2-Empilage!C$36^2)) -> 278 | D152: MPa | F152: Contrainte axiale | G152: =Empilage!$D$92*10/((PI()/4)*(Empilage!G$35^2-Empilage!G$36^2)) -> 278 | H152: MPa | J152: Contrainte axiale | K152: =Empilage!$D$92*10/((PI()/4)*(Empilage!K$35^2-Empilage!K$36^2)) -> 278 | L152: MPa | N152: Contrainte axiale | O152: =Empilage!$D$92*10/((PI()/4)*(Empilage!O$35^2-Empilage!O$36^2)) -> 278 | P152: MPa | R152: Contrainte axiale | S152: =Empilage!$D$92*10/((PI()/4)*(Empilage!S$35^2-Empilage!S$36^2)) -> 278 | T152: MPa | V152: Contrainte axiale | W152: =Empilage!$D$92*10/((PI()/4)*(Empilage!W$35^2-Empilage!W$36^2)) -> 278 | X152: MPa | Z152: Contrainte axiale | AA152: =Empilage!$D$92*10/((PI()/4)*(Empilage!AA$35^2-Empilage!AA$36^2)) -> 278 | AB152: MPa | AD152: Contrainte axiale | AE152: =Empilage!$D$92*10/((PI()/4)*(Empilage!AE$35^2-Empilage!AE$36^2)) -> 278 | AF152: MPa | AH152: Contrainte axiale | AI152: =Empilage!$D$92*10/((PI()/4)*(Empilage!AI$35^2-Empilage!AI$36^2)) -> 278 | AJ152: MPa | AL152: Contrainte axiale | AM152: =Empilage!$D$92*10/((PI()/4)*(Empilage!AM$35^2-Empilage!AM$36^2)) -> 278 | AN152: MPa
B153: Déformée axiale | C153: =C$152/Empilage!C$45*Empilage!C$33*10^-1 -> 0.067 | D153: mm | F153: Déformée axiale | G153: =G$152/Empilage!G$45*Empilage!G$33*10^-1 -> 0.067 | H153: mm | J153: Déformée axiale | K153: =K$152/Empilage!K$45*Empilage!K$33*10^-1 -> 0.067 | L153: mm | N153: Déformée axiale | O153: =O$152/Empilage!O$45*Empilage!O$33*10^-1 -> 0.067 | P153: mm | R153: Déformée axiale | S153: =S$152/Empilage!S$45*Empilage!S$33*10^-1 -> 0.067 | T153: mm | V153: Déformée axiale | W153: =W$152/Empilage!W$45*Empilage!W$33*10^-1 -> 0.067 | X153: mm | Z153: Déformée axiale | AA153: =AA$152/Empilage!AA$45*Empilage!AA$33*10^-1 -> 0.067 | AB153: mm | AD153: Déformée axiale | AE153: =AE$152/Empilage!AE$45*Empilage!AE$33*10^-1 -> 0.067 | AF153: mm | AH153: Déformée axiale | AI153: =AI$152/Empilage!AI$45*Empilage!AI$33*10^-1 -> 0.067 | AJ153: mm | AL153: Déformée axiale | AM153: =AM$152/Empilage!AM$45*Empilage!AM$33*10^-1 -> 0.067 | AN153: mm
B154: Déformée radiale | C154: =-Empilage!C$52/Empilage!C$45*Empilage!C35*Detail_des_effets!C152*10^-1 -> -0.011 | D154: mm au diamètre | F154: Déformée radiale | G154: =-Empilage!G$52/Empilage!G$45*Empilage!G35*Detail_des_effets!G152*10^-1 -> -0.011 | H154: mm au diamètre | J154: Déformée radiale | K154: =-Empilage!K$52/Empilage!K$45*Empilage!K35*Detail_des_effets!K152*10^-1 -> -0.011 | L154: mm au diamètre | N154: Déformée radiale | O154: =-Empilage!O$52/Empilage!O$45*Empilage!O35*Detail_des_effets!O152*10^-1 -> -0.011 | P154: mm au diamètre | R154: Déformée radiale | S154: =-Empilage!S$52/Empilage!S$45*Empilage!S35*Detail_des_effets!S152*10^-1 -> -0.011 | T154: mm au diamètre | V154: Déformée radiale | W154: =-Empilage!W$52/Empilage!W$45*Empilage!W35*Detail_des_effets!W152*10^-1 -> -0.011 | X154: mm au diamètre | Z154: Déformée radiale | AA154: =-Empilage!AA$52/Empilage!AA$45*Empilage!AA35*Detail_des_effets!AA152*10^-1 -> -0.011 | AB154: mm au diamètre | AD154: Déformée radiale | AE154: =-Empilage!AE$52/Empilage!AE$45*Empilage!AE35*Detail_des_effets!AE152*10^-1 -> -0.011 | AF154: mm au diamètre | AH154: Déformée radiale | AI154: =-Empilage!AI$52/Empilage!AI$45*Empilage!AI35*Detail_des_effets!AI152*10^-1 -> -0.011 | AJ154: mm au diamètre | AL154: Déformée radiale | AM154: =-Empilage!AM$52/Empilage!AM$45*Empilage!AM35*Detail_des_effets!AM152*10^-1 -> -0.011 | AN154: mm au diamètre
B155: Dans la pièce, au diamètre particulier | C155: =Empilage!C$37 -> 29.00 | D155: mm | F155: Dans la pièce, au diamètre particulier | G155: =Empilage!G$37 -> 29.00 | H155: mm | J155: Dans la pièce, au diamètre particulier | K155: =Empilage!K$37 -> 29.00 | L155: mm | N155: Dans la pièce, au diamètre particulier | O155: =Empilage!O$37 -> 29.00 | P155: mm | R155: Dans la pièce, au diamètre particulier | S155: =Empilage!S$37 -> 29.00 | T155: mm | V155: Dans la pièce, au diamètre particulier | W155: =Empilage!W$37 -> 29.00 | X155: mm | Z155: Dans la pièce, au diamètre particulier | AA155: =Empilage!AA$37 -> 29.00 | AB155: mm | AD155: Dans la pièce, au diamètre particulier | AE155: =Empilage!AE$37 -> 29.00 | AF155: mm | AH155: Dans la pièce, au diamètre particulier | AI155: =Empilage!AI$37 -> 29.00 | AJ155: mm | AL155: Dans la pièce, au diamètre particulier | AM155: =Empilage!AM$37 -> 29.00 | AN155: mm
B156: Contrainte axiale | C156: =Empilage!$D$92*10/((PI()/4)*(Empilage!C$35^2-Empilage!C$36^2)) -> 278 | D156: MPa | F156: Contrainte axiale | G156: =Empilage!$D$92*10/((PI()/4)*(Empilage!G$35^2-Empilage!G$36^2)) -> 278 | H156: MPa | J156: Contrainte axiale | K156: =Empilage!$D$92*10/((PI()/4)*(Empilage!K$35^2-Empilage!K$36^2)) -> 278 | L156: MPa | N156: Contrainte axiale | O156: =Empilage!$D$92*10/((PI()/4)*(Empilage!O$35^2-Empilage!O$36^2)) -> 278 | P156: MPa | R156: Contrainte axiale | S156: =Empilage!$D$92*10/((PI()/4)*(Empilage!S$35^2-Empilage!S$36^2)) -> 278 | T156: MPa | V156: Contrainte axiale | W156: =Empilage!$D$92*10/((PI()/4)*(Empilage!W$35^2-Empilage!W$36^2)) -> 278 | X156: MPa | Z156: Contrainte axiale | AA156: =Empilage!$D$92*10/((PI()/4)*(Empilage!AA$35^2-Empilage!AA$36^2)) -> 278 | AB156: MPa | AD156: Contrainte axiale | AE156: =Empilage!$D$92*10/((PI()/4)*(Empilage!AE$35^2-Empilage!AE$36^2)) -> 278 | AF156: MPa | AH156: Contrainte axiale | AI156: =Empilage!$D$92*10/((PI()/4)*(Empilage!AI$35^2-Empilage!AI$36^2)) -> 278 | AJ156: MPa | AL156: Contrainte axiale | AM156: =Empilage!$D$92*10/((PI()/4)*(Empilage!AM$35^2-Empilage!AM$36^2)) -> 278 | AN156: MPa
B157: Déformée axiale | C157: =C$156/Empilage!C$45*Empilage!C$33*10^-1 -> 0.067 | D157: mm | F157: Déformée axiale | G157: =G$156/Empilage!G$45*Empilage!G$33*10^-1 -> 0.067 | H157: mm | J157: Déformée axiale | K157: =K$156/Empilage!K$45*Empilage!K$33*10^-1 -> 0.067 | L157: mm | N157: Déformée axiale | O157: =O$156/Empilage!O$45*Empilage!O$33*10^-1 -> 0.067 | P157: mm | R157: Déformée axiale | S157: =S$156/Empilage!S$45*Empilage!S$33*10^-1 -> 0.067 | T157: mm | V157: Déformée axiale | W157: =W$156/Empilage!W$45*Empilage!W$33*10^-1 -> 0.067 | X157: mm | Z157: Déformée axiale | AA157: =AA$156/Empilage!AA$45*Empilage!AA$33*10^-1 -> 0.067 | AB157: mm | AD157: Déformée axiale | AE157: =AE$156/Empilage!AE$45*Empilage!AE$33*10^-1 -> 0.067 | AF157: mm | AH157: Déformée axiale | AI157: =AI$156/Empilage!AI$45*Empilage!AI$33*10^-1 -> 0.067 | AJ157: mm | AL157: Déformée axiale | AM157: =AM$156/Empilage!AM$45*Empilage!AM$33*10^-1 -> 0.067 | AN157: mm
B158: Déformée radiale | C158: =-Empilage!C$52/Empilage!C$45*C155*Detail_des_effets!C156*10^-1 -> -0.010 | D158: mm au diamètre | F158: Déformée radiale | G158: =-Empilage!G$52/Empilage!G$45*G155*Detail_des_effets!G156*10^-1 -> -0.010 | H158: mm au diamètre | J158: Déformée radiale | K158: =-Empilage!K$52/Empilage!K$45*K155*Detail_des_effets!K156*10^-1 -> -0.010 | L158: mm au diamètre | N158: Déformée radiale | O158: =-Empilage!O$52/Empilage!O$45*O155*Detail_des_effets!O156*10^-1 -> -0.010 | P158: mm au diamètre | R158: Déformée radiale | S158: =-Empilage!S$52/Empilage!S$45*S155*Detail_des_effets!S156*10^-1 -> -0.010 | T158: mm au diamètre | V158: Déformée radiale | W158: =-Empilage!W$52/Empilage!W$45*W155*Detail_des_effets!W156*10^-1 -> -0.010 | X158: mm au diamètre | Z158: Déformée radiale | AA158: =-Empilage!AA$52/Empilage!AA$45*AA155*Detail_des_effets!AA156*10^-1 -> -0.010 | AB158: mm au diamètre | AD158: Déformée radiale | AE158: =-Empilage!AE$52/Empilage!AE$45*AE155*Detail_des_effets!AE156*10^-1 -> -0.010 | AF158: mm au diamètre | AH158: Déformée radiale | AI158: =-Empilage!AI$52/Empilage!AI$45*AI155*Detail_des_effets!AI156*10^-1 -> -0.010 | AJ158: mm au diamètre | AL158: Déformée radiale | AM158: =-Empilage!AM$52/Empilage!AM$45*AM155*Detail_des_effets!AM156*10^-1 -> -0.010 | AN158: mm au diamètre
B159: Effet du frettage seul en montage | F159: Effet du frettage seul en montage | J159: Effet du frettage seul en montage | N159: Effet du frettage seul en montage | R159: Effet du frettage seul en montage | V159: Effet du frettage seul en montage | Z159: Effet du frettage seul en montage | AD159: Effet du frettage seul en montage | AH159: Effet du frettage seul en montage | AL159: Effet du frettage seul en montage
B161: Pression de contact | C161: =C57 -> Empilage!/Empilage!/(Constantes_de_frettage!-Constantes_de_frettage!) * 0.001 | D161: MPa | F161: Pression de contact | G161: =G57 -> Empilage!/Empilage!/(Constantes_de_frettage!-Constantes_de_frettage!) * 0.001 | H161: MPa | J161: Pression de contact | K161: =K57 -> Empilage!/Empilage!/(Constantes_de_frettage!-Constantes_de_frettage!) * 0.001 | L161: MPa | N161: Pression de contact | O161: =O57 -> Empilage!/Empilage!/(Constantes_de_frettage!-Constantes_de_frettage!) * 0.001 | P161: MPa | R161: Pression de contact | S161: =S57 -> Empilage!/Empilage!/(Constantes_de_frettage!-Constantes_de_frettage!) * 0.001 | T161: MPa | V161: Pression de contact | W161: =W57 -> Empilage!/Empilage!/(Constantes_de_frettage!-Constantes_de_frettage!) * 0.001 | X161: MPa | Z161: Pression de contact | AA161: =AA57 -> Empilage!/Empilage!/(Constantes_de_frettage!-Constantes_de_frettage!) * 0.001 | AB161: MPa | AD161: Pression de contact | AE161: =AE57 -> Empilage!/Empilage!/(Constantes_de_frettage!-Constantes_de_frettage!) * 0.001 | AF161: MPa | AH161: Pression de contact | AI161: =AI57 -> Empilage!/Empilage!/(Constantes_de_frettage!-Constantes_de_frettage!) * 0.001 | AJ161: MPa | AL161: Pression de contact | AM161: =AM57 -> Empilage!/Empilage!/(Constantes_de_frettage!-Constantes_de_frettage!) * 0.001 | AN161: MPa
B162: Au niveau du frettage | F162: Au niveau du frettage | J162: Au niveau du frettage | N162: Au niveau du frettage | R162: Au niveau du frettage | V162: Au niveau du frettage | Z162: Au niveau du frettage | AD162: Au niveau du frettage | AH162: Au niveau du frettage | AL162: Au niveau du frettage
B163: Contrainte radiale | C163: =-C161 ->  | D163: MPa | F163: Contrainte radiale | G163: =-G161 ->  | H163: MPa | J163: Contrainte radiale | K163: =-K161 ->  | L163: MPa | N163: Contrainte radiale | O163: =-O161 ->  | P163: MPa | R163: Contrainte radiale | S163: =-S161 ->  | T163: MPa | V163: Contrainte radiale | W163: =-W161 ->  | X163: MPa | Z163: Contrainte radiale | AA163: =-AA161 ->  | AB163: MPa | AD163: Contrainte radiale | AE163: =-AE161 ->  | AF163: MPa | AH163: Contrainte radiale | AI163: =-AI161 ->  | AJ163: MPa | AL163: Contrainte radiale | AM163: =-AM161 ->  | AN163: MPa
B164: Contrainte tangentielle | C164: =C161*(Empilage!C35^2+Empilage!C36^2)/(Empilage!C35^2-Empilage!C36^2) ->  | D164: MPa | F164: Contrainte tangentielle | G164: =G161*(Empilage!G35^2+Empilage!G36^2)/(Empilage!G35^2-Empilage!G36^2) ->  | H164: MPa | J164: Contrainte tangentielle | K164: =K161*(Empilage!K35^2+Empilage!K36^2)/(Empilage!K35^2-Empilage!K36^2) ->  | L164: MPa | N164: Contrainte tangentielle | O164: =O161*(Empilage!O35^2+Empilage!O36^2)/(Empilage!O35^2-Empilage!O36^2) ->  | P164: MPa | R164: Contrainte tangentielle | S164: =S161*(Empilage!S35^2+Empilage!S36^2)/(Empilage!S35^2-Empilage!S36^2) ->  | T164: MPa | V164: Contrainte tangentielle | W164: =W161*(Empilage!W35^2+Empilage!W36^2)/(Empilage!W35^2-Empilage!W36^2) ->  | X164: MPa | Z164: Contrainte tangentielle | AA164: =AA161*(Empilage!AA35^2+Empilage!AA36^2)/(Empilage!AA35^2-Empilage!AA36^2) ->  | AB164: MPa | AD164: Contrainte tangentielle | AE164: =AE161*(Empilage!AE35^2+Empilage!AE36^2)/(Empilage!AE35^2-Empilage!AE36^2) ->  | AF164: MPa | AH164: Contrainte tangentielle | AI164: =AI161*(Empilage!AI35^2+Empilage!AI36^2)/(Empilage!AI35^2-Empilage!AI36^2) ->  | AJ164: MPa | AL164: Contrainte tangentielle | AM164: =AM161*(Empilage!AM35^2+Empilage!AM36^2)/(Empilage!AM35^2-Empilage!AM36^2) ->  | AN164: MPa
B165: Déformée radiale | C165: =C166*((C164-Empilage!C$52*Detail_des_effets!C163)/Empilage!C43)*10^-1 ->  | D165: mm au diamètre | F165: Déformée radiale | G165: =G166*((G164-Empilage!G$52*Detail_des_effets!G163)/Empilage!G43)*10^-1 ->  | H165: mm au diamètre | J165: Déformée radiale | K165: =K166*((K164-Empilage!K$52*Detail_des_effets!K163)/Empilage!K43)*10^-1 ->  | L165: mm au diamètre | N165: Déformée radiale | O165: =O166*((O164-Empilage!O$52*Detail_des_effets!O163)/Empilage!O43)*10^-1 ->  | P165: mm au diamètre | R165: Déformée radiale | S165: =S166*((S164-Empilage!S$52*Detail_des_effets!S163)/Empilage!S43)*10^-1 ->  | T165: mm au diamètre | V165: Déformée radiale | W165: =W166*((W164-Empilage!W$52*Detail_des_effets!W163)/Empilage!W43)*10^-1 ->  | X165: mm au diamètre | Z165: Déformée radiale | AA165: =AA166*((AA164-Empilage!AA$52*Detail_des_effets!AA163)/Empilage!AA43)*10^-1 ->  | AB165: mm au diamètre | AD165: Déformée radiale | AE165: =AE166*((AE164-Empilage!AE$52*Detail_des_effets!AE163)/Empilage!AE43)*10^-1 ->  | AF165: mm au diamètre | AH165: Déformée radiale | AI165: =AI166*((AI164-Empilage!AI$52*Detail_des_effets!AI163)/Empilage!AI43)*10^-1 ->  | AJ165: mm au diamètre | AL165: Déformée radiale | AM165: =AM166*((AM164-Empilage!AM$52*Detail_des_effets!AM163)/Empilage!AM43)*10^-1 ->  | AN165: mm au diamètre
B166: Dans la pièce, au diamètre particulier | C166: =Empilage!C$37 -> 29.00 | D166: mm | F166: Dans la pièce, au diamètre particulier | G166: =Empilage!G$37 -> 29.00 | H166: mm | J166: Dans la pièce, au diamètre particulier | K166: =Empilage!K$37 -> 29.00 | L166: mm | N166: Dans la pièce, au diamètre particulier | O166: =Empilage!O$37 -> 29.00 | P166: mm | R166: Dans la pièce, au diamètre particulier | S166: =Empilage!S$37 -> 29.00 | T166: mm | V166: Dans la pièce, au diamètre particulier | W166: =Empilage!W$37 -> 29.00 | X166: mm | Z166: Dans la pièce, au diamètre particulier | AA166: =Empilage!AA$37 -> 29.00 | AB166: mm | AD166: Dans la pièce, au diamètre particulier | AE166: =Empilage!AE$37 -> 29.00 | AF166: mm | AH166: Dans la pièce, au diamètre particulier | AI166: =Empilage!AI$37 -> 29.00 | AJ166: mm | AL166: Dans la pièce, au diamètre particulier | AM166: =Empilage!AM$37 -> 29.00 | AN166: mm
B167: Contrainte radiale | C167: =C161*Empilage!C36^2/(Empilage!C40^2-Empilage!C36^2)*(1-Empilage!C40^2/Detail_des_effets!C166^2) ->  | D167: MPa | F167: Contrainte radiale | G167: =G161*Empilage!G36^2/(Empilage!G40^2-Empilage!G36^2)*(1-Empilage!G40^2/Detail_des_effets!G166^2) ->  | H167: MPa | J167: Contrainte radiale | K167: =K161*Empilage!K36^2/(Empilage!K40^2-Empilage!K36^2)*(1-Empilage!K40^2/Detail_des_effets!K166^2) ->  | L167: MPa | N167: Contrainte radiale | O167: =O161*Empilage!O36^2/(Empilage!O40^2-Empilage!O36^2)*(1-Empilage!O40^2/Detail_des_effets!O166^2) ->  | P167: MPa | R167: Contrainte radiale | S167: =S161*Empilage!S36^2/(Empilage!S40^2-Empilage!S36^2)*(1-Empilage!S40^2/Detail_des_effets!S166^2) ->  | T167: MPa | V167: Contrainte radiale | W167: =W161*Empilage!W36^2/(Empilage!W40^2-Empilage!W36^2)*(1-Empilage!W40^2/Detail_des_effets!W166^2) ->  | X167: MPa | Z167: Contrainte radiale | AA167: =AA161*Empilage!AA36^2/(Empilage!AA40^2-Empilage!AA36^2)*(1-Empilage!AA40^2/Detail_des_effets!AA166^2) ->  | AB167: MPa | AD167: Contrainte radiale | AE167: =AE161*Empilage!AE36^2/(Empilage!AE40^2-Empilage!AE36^2)*(1-Empilage!AE40^2/Detail_des_effets!AE166^2) ->  | AF167: MPa | AH167: Contrainte radiale | AI167: =AI161*Empilage!AI36^2/(Empilage!AI40^2-Empilage!AI36^2)*(1-Empilage!AI40^2/Detail_des_effets!AI166^2) ->  | AJ167: MPa | AL167: Contrainte radiale | AM167: =AM161*Empilage!AM36^2/(Empilage!AM40^2-Empilage!AM36^2)*(1-Empilage!AM40^2/Detail_des_effets!AM166^2) ->  | AN167: MPa
B168: Contrainte tangentielle | C168: =C161*Empilage!C36^2/(Empilage!C35^2-Empilage!C36^2)*(1+Empilage!C35^2/Detail_des_effets!C166^2) ->  | D168: MPa | F168: Contrainte tangentielle | G168: =G161*Empilage!G36^2/(Empilage!G35^2-Empilage!G36^2)*(1+Empilage!G35^2/Detail_des_effets!G166^2) ->  | H168: MPa | J168: Contrainte tangentielle | K168: =K161*Empilage!K36^2/(Empilage!K35^2-Empilage!K36^2)*(1+Empilage!K35^2/Detail_des_effets!K166^2) ->  | L168: MPa | N168: Contrainte tangentielle | O168: =O161*Empilage!O36^2/(Empilage!O35^2-Empilage!O36^2)*(1+Empilage!O35^2/Detail_des_effets!O166^2) ->  | P168: MPa | R168: Contrainte tangentielle | S168: =S161*Empilage!S36^2/(Empilage!S35^2-Empilage!S36^2)*(1+Empilage!S35^2/Detail_des_effets!S166^2) ->  | T168: MPa | V168: Contrainte tangentielle | W168: =W161*Empilage!W36^2/(Empilage!W35^2-Empilage!W36^2)*(1+Empilage!W35^2/Detail_des_effets!W166^2) ->  | X168: MPa | Z168: Contrainte tangentielle | AA168: =AA161*Empilage!AA36^2/(Empilage!AA35^2-Empilage!AA36^2)*(1+Empilage!AA35^2/Detail_des_effets!AA166^2) ->  | AB168: MPa | AD168: Contrainte tangentielle | AE168: =AE161*Empilage!AE36^2/(Empilage!AE35^2-Empilage!AE36^2)*(1+Empilage!AE35^2/Detail_des_effets!AE166^2) ->  | AF168: MPa | AH168: Contrainte tangentielle | AI168: =AI161*Empilage!AI36^2/(Empilage!AI35^2-Empilage!AI36^2)*(1+Empilage!AI35^2/Detail_des_effets!AI166^2) ->  | AJ168: MPa | AL168: Contrainte tangentielle | AM168: =AM161*Empilage!AM36^2/(Empilage!AM35^2-Empilage!AM36^2)*(1+Empilage!AM35^2/Detail_des_effets!AM166^2) ->  | AN168: MPa
B169: Déformée radiale | C169: =C166*((C168-Empilage!C$52*Detail_des_effets!C167)/Empilage!C43)*10^-1 ->  | D169: mm au diamètre | F169: Déformée radiale | G169: =G166*((G168-Empilage!G$52*Detail_des_effets!G167)/Empilage!G43)*10^-1 ->  | H169: mm au diamètre | J169: Déformée radiale | K169: =K166*((K168-Empilage!K$52*Detail_des_effets!K167)/Empilage!K43)*10^-1 ->  | L169: mm au diamètre | N169: Déformée radiale | O169: =O166*((O168-Empilage!O$52*Detail_des_effets!O167)/Empilage!O43)*10^-1 ->  | P169: mm au diamètre | R169: Déformée radiale | S169: =S166*((S168-Empilage!S$52*Detail_des_effets!S167)/Empilage!S43)*10^-1 ->  | T169: mm au diamètre | V169: Déformée radiale | W169: =W166*((W168-Empilage!W$52*Detail_des_effets!W167)/Empilage!W43)*10^-1 ->  | X169: mm au diamètre | Z169: Déformée radiale | AA169: =AA166*((AA168-Empilage!AA$52*Detail_des_effets!AA167)/Empilage!AA43)*10^-1 ->  | AB169: mm au diamètre | AD169: Déformée radiale | AE169: =AE166*((AE168-Empilage!AE$52*Detail_des_effets!AE167)/Empilage!AE43)*10^-1 ->  | AF169: mm au diamètre | AH169: Déformée radiale | AI169: =AI166*((AI168-Empilage!AI$52*Detail_des_effets!AI167)/Empilage!AI43)*10^-1 ->  | AJ169: mm au diamètre | AL169: Déformée radiale | AM169: =AM166*((AM168-Empilage!AM$52*Detail_des_effets!AM167)/Empilage!AM43)*10^-1 ->  | AN169: mm au diamètre
B170: Effet du frettage seul en mise en froid | F170: Effet du frettage seul en mise en froid | J170: Effet du frettage seul en mise en froid | N170: Effet du frettage seul en mise en froid | R170: Effet du frettage seul en mise en froid | V170: Effet du frettage seul en mise en froid | Z170: Effet du frettage seul en mise en froid | AD170: Effet du frettage seul en mise en froid | AH170: Effet du frettage seul en mise en froid | AL170: Effet du frettage seul en mise en froid
B172: Pression de contact | C172: =C68 -> Empilage!/Empilage!/(Constantes_de_frettage!-Constantes_de_frettage!) * 0.001 | D172: MPa | F172: Pression de contact | G172: =G68 -> Empilage!/Empilage!/(Constantes_de_frettage!-Constantes_de_frettage!) * 0.001 | H172: MPa | J172: Pression de contact | K172: =K68 -> Empilage!/Empilage!/(Constantes_de_frettage!-Constantes_de_frettage!) * 0.001 | L172: MPa | N172: Pression de contact | O172: =O68 -> Empilage!/Empilage!/(Constantes_de_frettage!-Constantes_de_frettage!) * 0.001 | P172: MPa | R172: Pression de contact | S172: =S68 -> Empilage!/Empilage!/(Constantes_de_frettage!-Constantes_de_frettage!) * 0.001 | T172: MPa | V172: Pression de contact | W172: =W68 -> Empilage!/Empilage!/(Constantes_de_frettage!-Constantes_de_frettage!) * 0.001 | X172: MPa | Z172: Pression de contact | AA172: =AA68 -> Empilage!/Empilage!/(Constantes_de_frettage!-Constantes_de_frettage!) * 0.001 | AB172: MPa | AD172: Pression de contact | AE172: =AE68 -> Empilage!/Empilage!/(Constantes_de_frettage!-Constantes_de_frettage!) * 0.001 | AF172: MPa | AH172: Pression de contact | AI172: =AI68 -> Empilage!/Empilage!/(Constantes_de_frettage!-Constantes_de_frettage!) * 0.001 | AJ172: MPa | AL172: Pression de contact | AM172: =AM68 -> Empilage!/Empilage!/(Constantes_de_frettage!-Constantes_de_frettage!) * 0.001 | AN172: MPa
B173: Au niveau du frettage | F173: Au niveau du frettage | J173: Au niveau du frettage | N173: Au niveau du frettage | R173: Au niveau du frettage | V173: Au niveau du frettage | Z173: Au niveau du frettage | AD173: Au niveau du frettage | AH173: Au niveau du frettage | AL173: Au niveau du frettage
B174: Contrainte radiale | C174: =-C172 ->  | D174: MPa | F174: Contrainte radiale | G174: =-G172 ->  | H174: MPa | J174: Contrainte radiale | K174: =-K172 ->  | L174: MPa | N174: Contrainte radiale | O174: =-O172 ->  | P174: MPa | R174: Contrainte radiale | S174: =-S172 ->  | T174: MPa | V174: Contrainte radiale | W174: =-W172 ->  | X174: MPa | Z174: Contrainte radiale | AA174: =-AA172 ->  | AB174: MPa | AD174: Contrainte radiale | AE174: =-AE172 ->  | AF174: MPa | AH174: Contrainte radiale | AI174: =-AI172 ->  | AJ174: MPa | AL174: Contrainte radiale | AM174: =-AM172 ->  | AN174: MPa
B175: Contrainte tangentielle | C175: =C172*(Empilage!C35^2+Empilage!C36^2)/(Empilage!C35^2-Empilage!C36^2) ->  | D175: MPa | F175: Contrainte tangentielle | G175: =G172*(Empilage!G35^2+Empilage!G36^2)/(Empilage!G35^2-Empilage!G36^2) ->  | H175: MPa | J175: Contrainte tangentielle | K175: =K172*(Empilage!K35^2+Empilage!K36^2)/(Empilage!K35^2-Empilage!K36^2) ->  | L175: MPa | N175: Contrainte tangentielle | O175: =O172*(Empilage!O35^2+Empilage!O36^2)/(Empilage!O35^2-Empilage!O36^2) ->  | P175: MPa | R175: Contrainte tangentielle | S175: =S172*(Empilage!S35^2+Empilage!S36^2)/(Empilage!S35^2-Empilage!S36^2) ->  | T175: MPa | V175: Contrainte tangentielle | W175: =W172*(Empilage!W35^2+Empilage!W36^2)/(Empilage!W35^2-Empilage!W36^2) ->  | X175: MPa | Z175: Contrainte tangentielle | AA175: =AA172*(Empilage!AA35^2+Empilage!AA36^2)/(Empilage!AA35^2-Empilage!AA36^2) ->  | AB175: MPa | AD175: Contrainte tangentielle | AE175: =AE172*(Empilage!AE35^2+Empilage!AE36^2)/(Empilage!AE35^2-Empilage!AE36^2) ->  | AF175: MPa | AH175: Contrainte tangentielle | AI175: =AI172*(Empilage!AI35^2+Empilage!AI36^2)/(Empilage!AI35^2-Empilage!AI36^2) ->  | AJ175: MPa | AL175: Contrainte tangentielle | AM175: =AM172*(Empilage!AM35^2+Empilage!AM36^2)/(Empilage!AM35^2-Empilage!AM36^2) ->  | AN175: MPa
B176: Déformée radiale | C176: =C177*((C175-Empilage!C$52*Detail_des_effets!C174)/Empilage!C44)*10^-1 ->  | D176: mm au diamètre | F176: Déformée radiale | G176: =G177*((G175-Empilage!G$52*Detail_des_effets!G174)/Empilage!G44)*10^-1 ->  | H176: mm au diamètre | J176: Déformée radiale | K176: =K177*((K175-Empilage!K$52*Detail_des_effets!K174)/Empilage!K44)*10^-1 ->  | L176: mm au diamètre | N176: Déformée radiale | O176: =O177*((O175-Empilage!O$52*Detail_des_effets!O174)/Empilage!O44)*10^-1 ->  | P176: mm au diamètre | R176: Déformée radiale | S176: =S177*((S175-Empilage!S$52*Detail_des_effets!S174)/Empilage!S44)*10^-1 ->  | T176: mm au diamètre | V176: Déformée radiale | W176: =W177*((W175-Empilage!W$52*Detail_des_effets!W174)/Empilage!W44)*10^-1 ->  | X176: mm au diamètre | Z176: Déformée radiale | AA176: =AA177*((AA175-Empilage!AA$52*Detail_des_effets!AA174)/Empilage!AA44)*10^-1 ->  | AB176: mm au diamètre | AD176: Déformée radiale | AE176: =AE177*((AE175-Empilage!AE$52*Detail_des_effets!AE174)/Empilage!AE44)*10^-1 ->  | AF176: mm au diamètre | AH176: Déformée radiale | AI176: =AI177*((AI175-Empilage!AI$52*Detail_des_effets!AI174)/Empilage!AI44)*10^-1 ->  | AJ176: mm au diamètre | AL176: Déformée radiale | AM176: =AM177*((AM175-Empilage!AM$52*Detail_des_effets!AM174)/Empilage!AM44)*10^-1 ->  | AN176: mm au diamètre
B177: Dans la pièce, au diamètre particulier | C177: =Empilage!C$37 -> 29.00 | D177: mm | F177: Dans la pièce, au diamètre particulier | G177: =Empilage!G$37 -> 29.00 | H177: mm | J177: Dans la pièce, au diamètre particulier | K177: =Empilage!K$37 -> 29.00 | L177: mm | N177: Dans la pièce, au diamètre particulier | O177: =Empilage!O$37 -> 29.00 | P177: mm | R177: Dans la pièce, au diamètre particulier | S177: =Empilage!S$37 -> 29.00 | T177: mm | V177: Dans la pièce, au diamètre particulier | W177: =Empilage!W$37 -> 29.00 | X177: mm | Z177: Dans la pièce, au diamètre particulier | AA177: =Empilage!AA$37 -> 29.00 | AB177: mm | AD177: Dans la pièce, au diamètre particulier | AE177: =Empilage!AE$37 -> 29.00 | AF177: mm | AH177: Dans la pièce, au diamètre particulier | AI177: =Empilage!AI$37 -> 29.00 | AJ177: mm | AL177: Dans la pièce, au diamètre particulier | AM177: =Empilage!AM$37 -> 29.00 | AN177: mm
B178: Contrainte radiale | C178: =C172*Empilage!C36^2/(Empilage!C40^2-Empilage!C36^2)*(1-Empilage!C40^2/Detail_des_effets!C177^2) ->  | D178: MPa | F178: Contrainte radiale | G178: =G172*Empilage!G36^2/(Empilage!G40^2-Empilage!G36^2)*(1-Empilage!G40^2/Detail_des_effets!G177^2) ->  | H178: MPa | J178: Contrainte radiale | K178: =K172*Empilage!K36^2/(Empilage!K40^2-Empilage!K36^2)*(1-Empilage!K40^2/Detail_des_effets!K177^2) ->  | L178: MPa | N178: Contrainte radiale | O178: =O172*Empilage!O36^2/(Empilage!O40^2-Empilage!O36^2)*(1-Empilage!O40^2/Detail_des_effets!O177^2) ->  | P178: MPa | R178: Contrainte radiale | S178: =S172*Empilage!S36^2/(Empilage!S40^2-Empilage!S36^2)*(1-Empilage!S40^2/Detail_des_effets!S177^2) ->  | T178: MPa | V178: Contrainte radiale | W178: =W172*Empilage!W36^2/(Empilage!W40^2-Empilage!W36^2)*(1-Empilage!W40^2/Detail_des_effets!W177^2) ->  | X178: MPa | Z178: Contrainte radiale | AA178: =AA172*Empilage!AA36^2/(Empilage!AA40^2-Empilage!AA36^2)*(1-Empilage!AA40^2/Detail_des_effets!AA177^2) ->  | AB178: MPa | AD178: Contrainte radiale | AE178: =AE172*Empilage!AE36^2/(Empilage!AE40^2-Empilage!AE36^2)*(1-Empilage!AE40^2/Detail_des_effets!AE177^2) ->  | AF178: MPa | AH178: Contrainte radiale | AI178: =AI172*Empilage!AI36^2/(Empilage!AI40^2-Empilage!AI36^2)*(1-Empilage!AI40^2/Detail_des_effets!AI177^2) ->  | AJ178: MPa | AL178: Contrainte radiale | AM178: =AM172*Empilage!AM36^2/(Empilage!AM40^2-Empilage!AM36^2)*(1-Empilage!AM40^2/Detail_des_effets!AM177^2) ->  | AN178: MPa
B179: Contrainte tangentielle | C179: =C172*Empilage!C36^2/(Empilage!C35^2-Empilage!C36^2)*(1+Empilage!C35^2/Detail_des_effets!C177^2) ->  | D179: MPa | F179: Contrainte tangentielle | G179: =G172*Empilage!G36^2/(Empilage!G35^2-Empilage!G36^2)*(1+Empilage!G35^2/Detail_des_effets!G177^2) ->  | H179: MPa | J179: Contrainte tangentielle | K179: =K172*Empilage!K36^2/(Empilage!K35^2-Empilage!K36^2)*(1+Empilage!K35^2/Detail_des_effets!K177^2) ->  | L179: MPa | N179: Contrainte tangentielle | O179: =O172*Empilage!O36^2/(Empilage!O35^2-Empilage!O36^2)*(1+Empilage!O35^2/Detail_des_effets!O177^2) ->  | P179: MPa | R179: Contrainte tangentielle | S179: =S172*Empilage!S36^2/(Empilage!S35^2-Empilage!S36^2)*(1+Empilage!S35^2/Detail_des_effets!S177^2) ->  | T179: MPa | V179: Contrainte tangentielle | W179: =W172*Empilage!W36^2/(Empilage!W35^2-Empilage!W36^2)*(1+Empilage!W35^2/Detail_des_effets!W177^2) ->  | X179: MPa | Z179: Contrainte tangentielle | AA179: =AA172*Empilage!AA36^2/(Empilage!AA35^2-Empilage!AA36^2)*(1+Empilage!AA35^2/Detail_des_effets!AA177^2) ->  | AB179: MPa | AD179: Contrainte tangentielle | AE179: =AE172*Empilage!AE36^2/(Empilage!AE35^2-Empilage!AE36^2)*(1+Empilage!AE35^2/Detail_des_effets!AE177^2) ->  | AF179: MPa | AH179: Contrainte tangentielle | AI179: =AI172*Empilage!AI36^2/(Empilage!AI35^2-Empilage!AI36^2)*(1+Empilage!AI35^2/Detail_des_effets!AI177^2) ->  | AJ179: MPa | AL179: Contrainte tangentielle | AM179: =AM172*Empilage!AM36^2/(Empilage!AM35^2-Empilage!AM36^2)*(1+Empilage!AM35^2/Detail_des_effets!AM177^2) ->  | AN179: MPa
B180: Déformée radiale | C180: =C177*((C179-Empilage!C$52*Detail_des_effets!C178)/Empilage!C44)*10^-1 ->  | D180: mm au diamètre | F180: Déformée radiale | G180: =G177*((G179-Empilage!G$52*Detail_des_effets!G178)/Empilage!G44)*10^-1 ->  | H180: mm au diamètre | J180: Déformée radiale | K180: =K177*((K179-Empilage!K$52*Detail_des_effets!K178)/Empilage!K44)*10^-1 ->  | L180: mm au diamètre | N180: Déformée radiale | O180: =O177*((O179-Empilage!O$52*Detail_des_effets!O178)/Empilage!O44)*10^-1 ->  | P180: mm au diamètre | R180: Déformée radiale | S180: =S177*((S179-Empilage!S$52*Detail_des_effets!S178)/Empilage!S44)*10^-1 ->  | T180: mm au diamètre | V180: Déformée radiale | W180: =W177*((W179-Empilage!W$52*Detail_des_effets!W178)/Empilage!W44)*10^-1 ->  | X180: mm au diamètre | Z180: Déformée radiale | AA180: =AA177*((AA179-Empilage!AA$52*Detail_des_effets!AA178)/Empilage!AA44)*10^-1 ->  | AB180: mm au diamètre | AD180: Déformée radiale | AE180: =AE177*((AE179-Empilage!AE$52*Detail_des_effets!AE178)/Empilage!AE44)*10^-1 ->  | AF180: mm au diamètre | AH180: Déformée radiale | AI180: =AI177*((AI179-Empilage!AI$52*Detail_des_effets!AI178)/Empilage!AI44)*10^-1 ->  | AJ180: mm au diamètre | AL180: Déformée radiale | AM180: =AM177*((AM179-Empilage!AM$52*Detail_des_effets!AM178)/Empilage!AM44)*10^-1 ->  | AN180: mm au diamètre
B181: Effet du frettage seul en fonctionnement | F181: Effet du frettage seul en fonctionnement | J181: Effet du frettage seul en fonctionnement | N181: Effet du frettage seul en fonctionnement | R181: Effet du frettage seul en fonctionnement | V181: Effet du frettage seul en fonctionnement | Z181: Effet du frettage seul en fonctionnement | AD181: Effet du frettage seul en fonctionnement | AH181: Effet du frettage seul en fonctionnement | AL181: Effet du frettage seul en fonctionnement
B183: Pression de contact | C183: =C79 -> Empilage!/Empilage!/(Constantes_de_frettage!-Constantes_de_frettage!) * 0.001 | D183: MPa | F183: Pression de contact | G183: =G79 -> Empilage!/Empilage!/(Constantes_de_frettage!-Constantes_de_frettage!) * 0.001 | H183: MPa | J183: Pression de contact | K183: =K79 -> Empilage!/Empilage!/(Constantes_de_frettage!-Constantes_de_frettage!) * 0.001 | L183: MPa | N183: Pression de contact | O183: =O79 -> Empilage!/Empilage!/(Constantes_de_frettage!-Constantes_de_frettage!) * 0.001 | P183: MPa | R183: Pression de contact | S183: =S79 -> Empilage!/Empilage!/(Constantes_de_frettage!-Constantes_de_frettage!) * 0.001 | T183: MPa | V183: Pression de contact | W183: =W79 -> Empilage!/Empilage!/(Constantes_de_frettage!-Constantes_de_frettage!) * 0.001 | X183: MPa | Z183: Pression de contact | AA183: =AA79 -> Empilage!/Empilage!/(Constantes_de_frettage!-Constantes_de_frettage!) * 0.001 | AB183: MPa | AD183: Pression de contact | AE183: =AE79 -> Empilage!/Empilage!/(Constantes_de_frettage!-Constantes_de_frettage!) * 0.001 | AF183: MPa | AH183: Pression de contact | AI183: =AI79 -> Empilage!/Empilage!/(Constantes_de_frettage!-Constantes_de_frettage!) * 0.001 | AJ183: MPa | AL183: Pression de contact | AM183: =AM79 -> Empilage!/Empilage!/(Constantes_de_frettage!-Constantes_de_frettage!) * 0.001 | AN183: MPa
B184: Au niveau du frettage | F184: Au niveau du frettage | J184: Au niveau du frettage | N184: Au niveau du frettage | R184: Au niveau du frettage | V184: Au niveau du frettage | Z184: Au niveau du frettage | AD184: Au niveau du frettage | AH184: Au niveau du frettage | AL184: Au niveau du frettage
B185: Contrainte radiale | C185: =-C183 ->  | D185: MPa | F185: Contrainte radiale | G185: =-G183 ->  | H185: MPa | J185: Contrainte radiale | K185: =-K183 ->  | L185: MPa | N185: Contrainte radiale | O185: =-O183 ->  | P185: MPa | R185: Contrainte radiale | S185: =-S183 ->  | T185: MPa | V185: Contrainte radiale | W185: =-W183 ->  | X185: MPa | Z185: Contrainte radiale | AA185: =-AA183 ->  | AB185: MPa | AD185: Contrainte radiale | AE185: =-AE183 ->  | AF185: MPa | AH185: Contrainte radiale | AI185: =-AI183 ->  | AJ185: MPa | AL185: Contrainte radiale | AM185: =-AM183 ->  | AN185: MPa
B186: Contrainte tangentielle | C186: =C183*(Empilage!C35^2+Empilage!C36^2)/(Empilage!C35^2-Empilage!C36^2) ->  | D186: MPa | F186: Contrainte tangentielle | G186: =G183*(Empilage!G35^2+Empilage!G36^2)/(Empilage!G35^2-Empilage!G36^2) ->  | H186: MPa | J186: Contrainte tangentielle | K186: =K183*(Empilage!K35^2+Empilage!K36^2)/(Empilage!K35^2-Empilage!K36^2) ->  | L186: MPa | N186: Contrainte tangentielle | O186: =O183*(Empilage!O35^2+Empilage!O36^2)/(Empilage!O35^2-Empilage!O36^2) ->  | P186: MPa | R186: Contrainte tangentielle | S186: =S183*(Empilage!S35^2+Empilage!S36^2)/(Empilage!S35^2-Empilage!S36^2) ->  | T186: MPa | V186: Contrainte tangentielle | W186: =W183*(Empilage!W35^2+Empilage!W36^2)/(Empilage!W35^2-Empilage!W36^2) ->  | X186: MPa | Z186: Contrainte tangentielle | AA186: =AA183*(Empilage!AA35^2+Empilage!AA36^2)/(Empilage!AA35^2-Empilage!AA36^2) ->  | AB186: MPa | AD186: Contrainte tangentielle | AE186: =AE183*(Empilage!AE35^2+Empilage!AE36^2)/(Empilage!AE35^2-Empilage!AE36^2) ->  | AF186: MPa | AH186: Contrainte tangentielle | AI186: =AI183*(Empilage!AI35^2+Empilage!AI36^2)/(Empilage!AI35^2-Empilage!AI36^2) ->  | AJ186: MPa | AL186: Contrainte tangentielle | AM186: =AM183*(Empilage!AM35^2+Empilage!AM36^2)/(Empilage!AM35^2-Empilage!AM36^2) ->  | AN186: MPa
B187: Déformée radiale | C187: =C188*((C186-Empilage!C$52*Detail_des_effets!C185)/Empilage!C45)*10^-1 ->  | D187: mm au diamètre | F187: Déformée radiale | G187: =G188*((G186-Empilage!G$52*Detail_des_effets!G185)/Empilage!G45)*10^-1 ->  | H187: mm au diamètre | J187: Déformée radiale | K187: =K188*((K186-Empilage!K$52*Detail_des_effets!K185)/Empilage!K45)*10^-1 ->  | L187: mm au diamètre | N187: Déformée radiale | O187: =O188*((O186-Empilage!O$52*Detail_des_effets!O185)/Empilage!O45)*10^-1 ->  | P187: mm au diamètre | R187: Déformée radiale | S187: =S188*((S186-Empilage!S$52*Detail_des_effets!S185)/Empilage!S45)*10^-1 ->  | T187: mm au diamètre | V187: Déformée radiale | W187: =W188*((W186-Empilage!W$52*Detail_des_effets!W185)/Empilage!W45)*10^-1 ->  | X187: mm au diamètre | Z187: Déformée radiale | AA187: =AA188*((AA186-Empilage!AA$52*Detail_des_effets!AA185)/Empilage!AA45)*10^-1 ->  | AB187: mm au diamètre | AD187: Déformée radiale | AE187: =AE188*((AE186-Empilage!AE$52*Detail_des_effets!AE185)/Empilage!AE45)*10^-1 ->  | AF187: mm au diamètre | AH187: Déformée radiale | AI187: =AI188*((AI186-Empilage!AI$52*Detail_des_effets!AI185)/Empilage!AI45)*10^-1 ->  | AJ187: mm au diamètre | AL187: Déformée radiale | AM187: =AM188*((AM186-Empilage!AM$52*Detail_des_effets!AM185)/Empilage!AM45)*10^-1 ->  | AN187: mm au diamètre
B188: Dans la pièce, au diamètre particulier | C188: =Empilage!C$37 -> 29.00 | D188: mm | F188: Dans la pièce, au diamètre particulier | G188: =Empilage!G$37 -> 29.00 | H188: mm | J188: Dans la pièce, au diamètre particulier | K188: =Empilage!K$37 -> 29.00 | L188: mm | N188: Dans la pièce, au diamètre particulier | O188: =Empilage!O$37 -> 29.00 | P188: mm | R188: Dans la pièce, au diamètre particulier | S188: =Empilage!S$37 -> 29.00 | T188: mm | V188: Dans la pièce, au diamètre particulier | W188: =Empilage!W$37 -> 29.00 | X188: mm | Z188: Dans la pièce, au diamètre particulier | AA188: =Empilage!AA$37 -> 29.00 | AB188: mm | AD188: Dans la pièce, au diamètre particulier | AE188: =Empilage!AE$37 -> 29.00 | AF188: mm | AH188: Dans la pièce, au diamètre particulier | AI188: =Empilage!AI$37 -> 29.00 | AJ188: mm | AL188: Dans la pièce, au diamètre particulier | AM188: =Empilage!AM$37 -> 29.00 | AN188: mm
B189: Contrainte radiale | C189: =C183*Empilage!C36^2/(Empilage!C40^2-Empilage!C36^2)*(1-Empilage!C40^2/Detail_des_effets!C188^2) ->  | D189: MPa | F189: Contrainte radiale | G189: =G183*Empilage!G36^2/(Empilage!G40^2-Empilage!G36^2)*(1-Empilage!G40^2/Detail_des_effets!G188^2) ->  | H189: MPa | J189: Contrainte radiale | K189: =K183*Empilage!K36^2/(Empilage!K40^2-Empilage!K36^2)*(1-Empilage!K40^2/Detail_des_effets!K188^2) ->  | L189: MPa | N189: Contrainte radiale | O189: =O183*Empilage!O36^2/(Empilage!O40^2-Empilage!O36^2)*(1-Empilage!O40^2/Detail_des_effets!O188^2) ->  | P189: MPa | R189: Contrainte radiale | S189: =S183*Empilage!S36^2/(Empilage!S40^2-Empilage!S36^2)*(1-Empilage!S40^2/Detail_des_effets!S188^2) ->  | T189: MPa | V189: Contrainte radiale | W189: =W183*Empilage!W36^2/(Empilage!W40^2-Empilage!W36^2)*(1-Empilage!W40^2/Detail_des_effets!W188^2) ->  | X189: MPa | Z189: Contrainte radiale | AA189: =AA183*Empilage!AA36^2/(Empilage!AA40^2-Empilage!AA36^2)*(1-Empilage!AA40^2/Detail_des_effets!AA188^2) ->  | AB189: MPa | AD189: Contrainte radiale | AE189: =AE183*Empilage!AE36^2/(Empilage!AE40^2-Empilage!AE36^2)*(1-Empilage!AE40^2/Detail_des_effets!AE188^2) ->  | AF189: MPa | AH189: Contrainte radiale | AI189: =AI183*Empilage!AI36^2/(Empilage!AI40^2-Empilage!AI36^2)*(1-Empilage!AI40^2/Detail_des_effets!AI188^2) ->  | AJ189: MPa | AL189: Contrainte radiale | AM189: =AM183*Empilage!AM36^2/(Empilage!AM40^2-Empilage!AM36^2)*(1-Empilage!AM40^2/Detail_des_effets!AM188^2) ->  | AN189: MPa
B190: Contrainte tangentielle | C190: =C183*Empilage!C36^2/(Empilage!C35^2-Empilage!C36^2)*(1+Empilage!C35^2/Detail_des_effets!C188^2) ->  | D190: MPa | F190: Contrainte tangentielle | G190: =G183*Empilage!G36^2/(Empilage!G35^2-Empilage!G36^2)*(1+Empilage!G35^2/Detail_des_effets!G188^2) ->  | H190: MPa | J190: Contrainte tangentielle | K190: =K183*Empilage!K36^2/(Empilage!K35^2-Empilage!K36^2)*(1+Empilage!K35^2/Detail_des_effets!K188^2) ->  | L190: MPa | N190: Contrainte tangentielle | O190: =O183*Empilage!O36^2/(Empilage!O35^2-Empilage!O36^2)*(1+Empilage!O35^2/Detail_des_effets!O188^2) ->  | P190: MPa | R190: Contrainte tangentielle | S190: =S183*Empilage!S36^2/(Empilage!S35^2-Empilage!S36^2)*(1+Empilage!S35^2/Detail_des_effets!S188^2) ->  | T190: MPa | V190: Contrainte tangentielle | W190: =W183*Empilage!W36^2/(Empilage!W35^2-Empilage!W36^2)*(1+Empilage!W35^2/Detail_des_effets!W188^2) ->  | X190: MPa | Z190: Contrainte tangentielle | AA190: =AA183*Empilage!AA36^2/(Empilage!AA35^2-Empilage!AA36^2)*(1+Empilage!AA35^2/Detail_des_effets!AA188^2) ->  | AB190: MPa | AD190: Contrainte tangentielle | AE190: =AE183*Empilage!AE36^2/(Empilage!AE35^2-Empilage!AE36^2)*(1+Empilage!AE35^2/Detail_des_effets!AE188^2) ->  | AF190: MPa | AH190: Contrainte tangentielle | AI190: =AI183*Empilage!AI36^2/(Empilage!AI35^2-Empilage!AI36^2)*(1+Empilage!AI35^2/Detail_des_effets!AI188^2) ->  | AJ190: MPa | AL190: Contrainte tangentielle | AM190: =AM183*Empilage!AM36^2/(Empilage!AM35^2-Empilage!AM36^2)*(1+Empilage!AM35^2/Detail_des_effets!AM188^2) ->  | AN190: MPa
B191: Déformée radiale | C191: =C188*((C190-Empilage!C$52*Detail_des_effets!C189)/Empilage!C45)*10^-1 ->  | D191: mm au diamètre | F191: Déformée radiale | G191: =G188*((G190-Empilage!G$52*Detail_des_effets!G189)/Empilage!G45)*10^-1 ->  | H191: mm au diamètre | J191: Déformée radiale | K191: =K188*((K190-Empilage!K$52*Detail_des_effets!K189)/Empilage!K45)*10^-1 ->  | L191: mm au diamètre | N191: Déformée radiale | O191: =O188*((O190-Empilage!O$52*Detail_des_effets!O189)/Empilage!O45)*10^-1 ->  | P191: mm au diamètre | R191: Déformée radiale | S191: =S188*((S190-Empilage!S$52*Detail_des_effets!S189)/Empilage!S45)*10^-1 ->  | T191: mm au diamètre | V191: Déformée radiale | W191: =W188*((W190-Empilage!W$52*Detail_des_effets!W189)/Empilage!W45)*10^-1 ->  | X191: mm au diamètre | Z191: Déformée radiale | AA191: =AA188*((AA190-Empilage!AA$52*Detail_des_effets!AA189)/Empilage!AA45)*10^-1 ->  | AB191: mm au diamètre | AD191: Déformée radiale | AE191: =AE188*((AE190-Empilage!AE$52*Detail_des_effets!AE189)/Empilage!AE45)*10^-1 ->  | AF191: mm au diamètre | AH191: Déformée radiale | AI191: =AI188*((AI190-Empilage!AI$52*Detail_des_effets!AI189)/Empilage!AI45)*10^-1 ->  | AJ191: mm au diamètre | AL191: Déformée radiale | AM191: =AM188*((AM190-Empilage!AM$52*Detail_des_effets!AM189)/Empilage!AM45)*10^-1 ->  | AN191: mm au diamètre
B192: Effet de la thermique seule en mise en froid | F192: Effet de la thermique seule en mise en froid | J192: Effet de la thermique seule en mise en froid | N192: Effet de la thermique seule en mise en froid | R192: Effet de la thermique seule en mise en froid | V192: Effet de la thermique seule en mise en froid | Z192: Effet de la thermique seule en mise en froid | AD192: Effet de la thermique seule en mise en froid | AH192: Effet de la thermique seule en mise en froid | AL192: Effet de la thermique seule en mise en froid
B194: Au niveau du frettage | F194: Au niveau du frettage | J194: Au niveau du frettage | N194: Au niveau du frettage | R194: Au niveau du frettage | V194: Au niveau du frettage | Z194: Au niveau du frettage | AD194: Au niveau du frettage | AH194: Au niveau du frettage | AL194: Au niveau du frettage
